Workbook

Sheet CV Rotina <2A - procedência
E1: AO NASCER | I1: MENOR DE 1 ANO | W1: 1 ANO
A2: Regional | B2: Município | C2: ¹População < 1 ano e 1 ano anual | D2: ²População < 1 ano e 1 ano proporcional | E2: Doses Aplicadas HB < 30 dias | F2: Cobertura Vacinal HB até 30 dias | G2: Doses Aplicadas BCG | H2: Cobertura Vacinal BCG | I2: Doses Aplicadas Pentavalente | J2: Cobertura Vacinal Pentavalente | K2: Doses Aplicadas Poliomielite | L2: Cobertura Vacinal Poliomielite | M2: Doses Aplicadas Pneumo 10 | N2: Cobertura Vacinal Pneumo 10 | O2: Doses Aplicadas Rotavírus | P2: Cobertura Vacinal Rotavírus | Q2: Doses Aplicadas Meningo C | R2: Cobertura Vacinal Meningo C | S2: Doses Aplicadas Febre Amarela | T2: Cobertura Vacinal Febre Amarela | U2: Doses Aplicadas COVID-19 | V2: Cobertura Vacinal COVID-19 | W2: Doses Aplicadas Hepatite A | X2: Cobertura Vacinal Hepatite A | Y2: Doses Aplicadas de Tríplice Viral | Z2: Cobertura Vacinal Tríplice Viral | AA2: Doses Aplicadas Varicela | AB2: Cobertura Varicela | AE2: VACINAS QUE ATINGIRAM A META DE CV | AF2: HOMOGENEIDADE ENTRE AS 10 VACINAS | AG2: VACINAS DO PQA-VS QUE ATINGIRAM A META DE CV | AH2: HOMOGENEIDADE ENTRE AS VACINAS DO PQA-VS
A3: Metropolitana | B3: Afonso Cláudio | C3: 396 | D3: 110 | E3: 76 | F3: =E3/D3 -> 0.6909090909 | G3: 75 | H3: =G3/D3 -> 0.6818181818 | I3: 98 | J3: =I3/D3 -> 0.8909090909 | K3: 97 | L3: =K3/D3 -> 0.8818181818 | M3: 82 | N3: =M3/D3 -> 0.7454545455 | O3: 83 | P3: =O3/D3 -> 0.7545454545 | Q3: 100 | R3: =Q3/D3 -> 0.9090909091 | S3: 82 | T3: =S3/D3 -> 0.7454545455 | U3: 0 | V3: =U3/D3 -> 0 | W3: 81 | X3: =W3/D3 -> 0.7363636364 | Y3: 107 | Z3: =Y3/D3 -> 0.9727272727 | AA3: 61 | AB3: =AA3/D3 -> 0.5545454545 | AE3: =cálculos1!O2 -> 1 | AF3: =AE3*0.1 -> 0.1 | AG3: =cálculos1!P2 -> 1 | AH3: =AG3*0.25 -> 0.25 | AJ3: LEGENDA / HOMOGENEIDADE PQA-VS
A4: Norte | B4: Água Doce do Norte | C4: 157 | D4: 33 | E4: 14 | F4: 0.4242424242 | G4: 19 | H4: 0.5757575758 | I4: 42 | J4: 1.272727273 | K4: 44 | L4: 1.333333333 | M4: 38 | N4: 1.151515152 | O4: 36 | P4: 1.090909091 | Q4: 41 | R4: 1.242424242 | S4: 28 | T4: 0.8484848485 | U4: 0 | V4: 0 | W4: 32 | X4: 0.9696969697 | Y4: 31 | Z4: 0.9393939394 | AA4: 21 | AB4: 0.6363636364 | AE4: =cálculos1!O3 -> 6 | AF4: =AE4*0.1 -> 0.6 | AG4: =cálculos1!P3 -> 3 | AH4: =AG4*0.25 -> 0.75 | AJ4: PERCENTUAL | AK4: Nº DE MUNICÍPIOS
A5: Central | B5: Águia Branca | C5: 138 | D5: 31 | E5: 23 | F5: 0.7419354839 | G5: 25 | H5: 0.8064516129 | I5: 45 | J5: 1.451612903 | K5: 44 | L5: 1.419354839 | M5: 39 | N5: 1.258064516 | O5: 39 | P5: 1.258064516 | Q5: 50 | R5: 1.612903226 | S5: 32 | T5: 1.032258065 | U5: 0 | V5: 0 | W5: 26 | X5: 0.8387096774 | Y5: 26 | Z5: 0.8387096774 | AA5: 14 | AB5: 0.4516129032 | AE5: =cálculos1!O4 -> 6 | AF5: 0.6 | AG5: =cálculos1!P4 -> 3 | AH5: 0.75 | AJ5: 0 | AK5: =COUNTIF($AH$3:$AH$80,"=0") -> 13
A6: Sul | B6: Alegre | C6: 335 | D6: 78 | E6: 52 | F6: 0.6666666667 | G6: 54 | H6: 0.6923076923 | I6: 84 | J6: 1.076923077 | K6: 89 | L6: 1.141025641 | M6: 84 | N6: 1.076923077 | O6: 79 | P6: 1.012820513 | Q6: 76 | R6: 0.9743589744 | S6: 78 | T6: 1 | U6: 0 | V6: 0 | W6: 59 | X6: 0.7564102564 | Y6: 76 | Z6: 0.9743589744 | AA6: 31 | AB6: 0.3974358974 | AE6: =cálculos1!O5 -> 7 | AF6: 0.7 | AG6: =cálculos1!P5 -> 4 | AH6: 1 | AJ6: 0.25 | AK6: =COUNTIF($AH$3:$AH$80,"=0,25") -> 13
A7: Sul | B7: Alfredo Chaves | C7: 154 | D7: 40 | E7: 8 | F7: 0.2 | G7: 20 | H7: 0.5 | I7: 34 | J7: 0.85 | K7: 38 | L7: 0.95 | M7: 47 | N7: 1.175 | O7: 49 | P7: 1.225 | Q7: 42 | R7: 1.05 | S7: 34 | T7: 0.85 | U7: 0 | V7: 0 | W7: 33 | X7: 0.825 | Y7: 41 | Z7: 1.025 | AA7: 21 | AB7: 0.525 | AE7: =cálculos1!O6 -> 5 | AF7: 0.5 | AG7: =cálculos1!P6 -> 3 | AH7: 0.75 | AJ7: 0.5 | AK7: =COUNTIF($AH$3:$AH$80,"=0,5") -> 8
A8: Central | B8: Alto Rio Novo | C8: 90 | D8: 24 | E8: 2 | F8: 0.08333333333 | G8: 8 | H8: 0.3333333333 | I8: 26 | J8: 1.083333333 | K8: 26 | L8: 1.083333333 | M8: 26 | N8: 1.083333333 | O8: 26 | P8: 1.083333333 | Q8: 30 | R8: 1.25 | S8: 16 | T8: 0.6666666667 | U8: 0 | V8: 0 | W8: 24 | X8: 1 | Y8: 23 | Z8: 0.9583333333 | AA8: 15 | AB8: 0.625 | AE8: =cálculos1!O7 -> 7 | AF8: 0.7 | AG8: =cálculos1!P7 -> 4 | AH8: 1 | AJ8: 0.75 | AK8: =COUNTIF($AH$3:$AH$80,"=0,75") -> 16
A9: Sul | B9: Anchieta | C9: 377 | D9: 84 | E9: 6 | F9: 0.07142857143 | G9: 55 | H9: 0.6547619048 | I9: 87 | J9: 1.035714286 | K9: 90 | L9: 1.071428571 | M9: 113 | N9: 1.345238095 | O9: 110 | P9: 1.30952381 | Q9: 101 | R9: 1.202380952 | S9: 77 | T9: 0.9166666667 | U9: 4 | V9: 0.04761904762 | W9: 87 | X9: 1.035714286 | Y9: 93 | Z9: 1.107142857 | AA9: 44 | AB9: 0.5238095238 | AE9: =cálculos1!O8 -> 7 | AF9: 0.7 | AG9: =cálculos1!P8 -> 4 | AH9: 1 | AJ9: 1 | AK9: =COUNTIF($AH$3:$AH$80,"=1,0") -> 28
A10: Sul | B10: Apiacá | C10: 62 | D10: 13 | E10: 11 | F10: 0.8461538462 | G10: 14 | H10: 1.076923077 | I10: 10 | J10: 0.7692307692 | K10: 11 | L10: 0.8461538462 | M10: 15 | N10: 1.153846154 | O10: 16 | P10: 1.230769231 | Q10: 11 | R10: 0.8461538462 | S10: 18 | T10: 1.384615385 | U10: 0 | V10: 0 | W10: 9 | X10: 0.6923076923 | Y10: 13 | Z10: 1 | AA10: 4 | AB10: 0.3076923077 | AE10: =cálculos1!O9 -> 5 | AF10: 0.5 | AG10: =cálculos1!P9 -> 2 | AH10: 0.5
A11: Metropolitana | B11: Aracruz | C11: 1453 | D11: 355 | E11: 317 | F11: 0.8929577465 | G11: 323 | H11: 0.9098591549 | I11: 321 | J11: 0.9042253521 | K11: 323 | L11: 0.9098591549 | M11: 344 | N11: 0.9690140845 | O11: 341 | P11: 0.9605633803 | Q11: 318 | R11: 0.8957746479 | S11: 302 | T11: 0.8507042254 | U11: 10 | V11: 0.02816901408 | W11: 328 | X11: 0.923943662 | Y11: 410 | Z11: 1.154929577 | AA11: 277 | AB11: 0.7802816901 | AE11: =cálculos1!O10 -> 4 | AF11: 0.4 | AG11: =cálculos1!P10 -> 2 | AH11: 0.5
A12: Sul | B12: Atilio Vivacqua | C12: 140 | D12: 37 | E12: 0 | F12: 0 | G12: 0 | H12: 0 | I12: 35 | J12: 0.9459459459 | K12: 34 | L12: 0.9189189189 | M12: 32 | N12: 0.8648648649 | O12: 32 | P12: 0.8648648649 | Q12: 28 | R12: 0.7567567568 | S12: 26 | T12: 0.7027027027 | U12: 0 | V12: 0 | W12: 31 | X12: 0.8378378378 | Y12: 39 | Z12: 1.054054054 | AA12: 22 | AB12: 0.5945945946 | AE12: =cálculos1!O11 -> 1 | AF12: 0.1 | AG12: =cálculos1!P11 -> 1 | AH12: 0.25 | AJ12: LEGENDA / HOMOGENEIDADE 10 VACINAS
A13: Central | B13: Baixo Guandu | C13: 364 | D13: 76 | E13: 20 | F13: 0.2631578947 | G13: 48 | H13: 0.6315789474 | I13: 106 | J13: 1.394736842 | K13: 106 | L13: 1.394736842 | M13: 110 | N13: 1.447368421 | O13: 106 | P13: 1.394736842 | Q13: 99 | R13: 1.302631579 | S13: 84 | T13: 1.105263158 | U13: 0 | V13: 0 | W13: 80 | X13: 1.052631579 | Y13: 141 | Z13: 1.855263158 | AA13: 71 | AB13: 0.9342105263 | AE13: =cálculos1!O12 -> 8 | AF13: 0.8 | AG13: =cálculos1!P12 -> 4 | AH13: 1 | AJ13: PERCENTUAL | AK13: Nº DE MUNICÍPIOS
A14: Norte | B14: Barra de São Francisco | C14: 510 | D14: 122 | E14: 98 | F14: 0.8032786885 | G14: 105 | H14: 0.8606557377 | I14: 113 | J14: 0.9262295082 | K14: 116 | L14: 0.9508196721 | M14: 120 | N14: 0.9836065574 | O14: 117 | P14: 0.9590163934 | Q14: 115 | R14: 0.9426229508 | S14: 136 | T14: 1.114754098 | U14: 0 | V14: 0 | W14: 97 | X14: 0.7950819672 | Y14: 141 | Z14: 1.155737705 | AA14: 100 | AB14: 0.8196721311 | AE14: =cálculos1!O13 -> 5 | AF14: 0.5 | AG14: =cálculos1!P13 -> 3 | AH14: 0.75 | AJ14: 0 | AK14: =COUNTIF($AF$3:$AF$80,"=0") -> 8
A15: Norte | B15: Boa Esperança | C15: 199 | D15: 54 | E15: 3 | F15: 0.05555555556 | G15: 20 | H15: 0.3703703704 | I15: 36 | J15: 0.6666666667 | K15: 40 | L15: 0.7407407407 | M15: 44 | N15: 0.8148148148 | O15: 46 | P15: 0.8518518519 | Q15: 44 | R15: 0.8148148148 | S15: 42 | T15: 0.7777777778 | U15: 0 | V15: 0 | W15: 40 | X15: 0.7407407407 | Y15: 50 | Z15: 0.9259259259 | AA15: 41 | AB15: 0.7592592593 | AE15: =cálculos1!O14 -> 0 | AF15: 0 | AG15: =cálculos1!P14 -> 0 | AH15: 0 | AJ15: 0.1 | AK15: =COUNTIF($AF$3:$AF$80,"=0,1") -> 11
A16: Sul | B16: Bom Jesus do Norte | C16: 81 | D16: 14 | E16: 8 | F16: 0.5714285714 | G16: 11 | H16: 0.7857142857 | I16: 39 | J16: 2.785714286 | K16: 37 | L16: 2.642857143 | M16: 31 | N16: 2.214285714 | O16: 29 | P16: 2.071428571 | Q16: 31 | R16: 2.214285714 | S16: 32 | T16: 2.285714286 | U16: 3 | V16: 0.2142857143 | W16: 6 | X16: 0.4285714286 | Y16: 34 | Z16: 2.428571429 | AA16: 12 | AB16: 0.8571428571 | AE16: =cálculos1!O15 -> 7 | AF16: 0.7 | AG16: =cálculos1!P15 -> 4 | AH16: 1 | AJ16: 0.2 | AK16: =COUNTIF($AF$3:$AF$80,"=0,2") -> 5
A17: Metropolitana | B17: Brejetuba | C17: 195 | D17: 39 | E17: 5 | F17: 0.1282051282 | G17: 41 | H17: 1.051282051 | I17: 49 | J17: 1.256410256 | K17: 49 | L17: 1.256410256 | M17: 51 | N17: 1.307692308 | O17: 51 | P17: 1.307692308 | Q17: 48 | R17: 1.230769231 | S17: 56 | T17: 1.435897436 | U17: 0 | V17: 0 | W17: 42 | X17: 1.076923077 | Y17: 45 | Z17: 1.153846154 | AA17: 35 | AB17: 0.8974358974 | AE17: =cálculos1!O16 -> 9 | AF17: 0.9 | AG17: =cálculos1!P16 -> 4 | AH17: 1 | AJ17: 0.3 | AK17: =COUNTIF($AF$3:$AF$80,"=0,3") -> 5
A18: Sul | B18: Cachoeiro de Itapemirim | C18: 2446 | D18: 639 | E18: 1244 | F18: 1.946791862 | G18: 1216 | H18: 1.902973396 | I18: 548 | J18: 0.8575899844 | K18: 539 | L18: 0.8435054773 | M18: 545 | N18: 0.8528951487 | O18: 526 | P18: 0.8231611894 | Q18: 530 | R18: 0.8294209703 | S18: 489 | T18: 0.765258216 | U18: 1 | V18: 0.001564945227 | W18: 463 | X18: 0.7245696401 | Y18: 601 | Z18: 0.9405320814 | AA18: 198 | AB18: 0.3098591549 | AE18: =cálculos1!O17 -> 1 | AF18: 0.1 | AG18: =cálculos1!P17 -> 0 | AH18: 0 | AJ18: 0.4 | AK18: =COUNTIF($AF$3:$AF$80,"=0,4") -> 8
A19: Metropolitana | B19: Cariacica | C19: 4835 | D19: 1168 | E19: 578 | F19: 0.4948630137 | G19: 594 | H19: 0.5085616438 | I19: 1079 | J19: 0.9238013699 | K19: 1055 | L19: 0.9032534247 | M19: 1098 | N19: 0.9400684932 | O19: 1032 | P19: 0.8835616438 | Q19: 1071 | R19: 0.9169520548 | S19: 901 | T19: 0.7714041096 | U19: 26 | V19: 0.02226027397 | W19: 724 | X19: =W19/D19 -> 0.6198630137 | Y19: 1161 | Z19: 0.9940068493 | AA19: 505 | AB19: 0.4323630137 | AE19: =cálculos1!O18 -> 1 | AF19: 0.1 | AG19: =cálculos1!P18 -> 1 | AH19: 0.25 | AJ19: 0.5 | AK19: =COUNTIF($AF$3:$AF$80,"=0,5") -> 8
A20: Sul | B20: Castelo | C20: 452 | D20: 125 | E20: 58 | F20: 0.464 | G20: 61 | H20: 0.488 | I20: 95 | J20: 0.76 | K20: 94 | L20: 0.752 | M20: 92 | N20: 0.736 | O20: 88 | P20: 0.704 | Q20: 89 | R20: 0.712 | S20: 99 | T20: 0.792 | U20: 0 | V20: 0 | W20: 42 | X20: 0.336 | Y20: 128 | Z20: 1.024 | AA20: 55 | AB20: 0.44 | AE20: =cálculos1!O19 -> 1 | AF20: 0.1 | AG20: =cálculos1!P19 -> 1 | AH20: 0.25 | AJ20: 0.6 | AK20: =COUNTIF($AF$3:$AF$80,"=0,6") -> 9
A21: Central | B21: Colatina | C21: 1530 | D21: 360 | E21: 972 | F21: 2.7 | G21: 857 | H21: 2.380555556 | I21: 354 | J21: 0.9833333333 | K21: 341 | L21: 0.9472222222 | M21: 320 | N21: 0.8888888889 | O21: 321 | P21: 0.8916666667 | Q21: 327 | R21: 0.9083333333 | S21: 285 | T21: 0.7916666667 | U21: 3 | V21: 0.008333333333 | W21: 182 | X21: 0.5055555556 | Y21: 335 | Z21: 0.9305555556 | AA21: 204 | AB21: 0.5666666667 | AE21: =cálculos1!O20 -> 2 | AF21: 0.2 | AG21: =cálculos1!P20 -> 1 | AH21: 0.25 | AJ21: 0.7 | AK21: =COUNTIF($AF$3:$AF$80,"=0,7") -> 9
A22: Norte | B22: Conceição da Barra | C22: 373 | D22: 88 | E22: 5 | F22: 0.05681818182 | G22: 8 | H22: 0.09090909091 | I22: 86 | J22: 0.9772727273 | K22: 88 | L22: 1 | M22: 96 | N22: 1.090909091 | O22: 91 | P22: 1.034090909 | Q22: 80 | R22: 0.9090909091 | S22: 100 | T22: 1.136363636 | U22: 0 | V22: 0 | W22: 56 | X22: 0.6363636364 | Y22: 93 | Z22: 1.056818182 | AA22: 58 | AB22: 0.6590909091 | AE22: =cálculos1!O21 -> 6 | AF22: 0.6 | AG22: =cálculos1!P21 -> 4 | AH22: 1 | AJ22: 0.8 | AK22: =COUNTIF($AF$3:$AF$80,"=0,8") -> 11
A23: Metropolitana | B23: Conceição do Castelo | C23: 152 | D23: 29 | E23: 0 | F23: 0 | G23: 0 | H23: 0 | I23: 32 | J23: 1.103448276 | K23: 31 | L23: 1.068965517 | M23: 36 | N23: 1.24137931 | O23: 34 | P23: 1.172413793 | Q23: 35 | R23: 1.206896552 | S23: 42 | T23: 1.448275862 | U23: 0 | V23: 0 | W23: 35 | X23: 1.206896552 | Y23: 22 | Z23: 0.7586206897 | AA23: 20 | AB23: 0.6896551724 | AE23: =cálculos1!O22 -> 7 | AF23: 0.7 | AG23: =cálculos1!P22 -> 3 | AH23: 0.75 | AJ23: 0.9 | AK23: =COUNTIF($AF$3:$AF$80,"=0,9") -> 3
A24: Sul | B24: Divino de São Lourenço | C24: 57 | D24: 9 | E24: 17 | F24: 1.888888889 | G24: 15 | H24: 1.666666667 | I24: 19 | J24: 2.111111111 | K24: 19 | L24: 2.111111111 | M24: 18 | N24: 2 | O24: 18 | P24: 2 | Q24: 21 | R24: 2.333333333 | S24: 16 | T24: 1.777777778 | U24: 0 | V24: 0 | W24: 15 | X24: 1.666666667 | Y24: 11 | Z24: 1.222222222 | AA24: 10 | AB24: 1.111111111 | AE24: =cálculos1!O23 -> 10 | AF24: 1 | AG24: =cálculos1!P23 -> 4 | AH24: 1 | AJ24: 1 | AK24: =COUNTIF($AF$3:$AF$80,"=1,0") -> 1
A25: Metropolitana | B25: Domingos Martins | C25: 407 | D25: 94 | E25: 8 | F25: 0.08510638298 | G25: 20 | H25: 0.2127659574 | I25: 75 | J25: 0.7978723404 | K25: 75 | L25: 0.7978723404 | M25: 101 | N25: 1.074468085 | O25: 96 | P25: 1.021276596 | Q25: 84 | R25: 0.8936170213 | S25: 99 | T25: 1.053191489 | U25: 2 | V25: 0.02127659574 | W25: 55 | X25: 0.585106383 | Y25: 109 | Z25: 1.159574468 | AA25: 108 | AB25: 1.14893617 | AE25: =cálculos1!O24 -> 5 | AF25: 0.5 | AG25: =cálculos1!P24 -> 2 | AH25: 0.5
A26: Sul | B26: Dores do Rio Preto | C26: 95 | D26: 28 | E26: 8 | F26: 0.2857142857 | G26: 18 | H26: 0.6428571429 | I26: 25 | J26: 0.8928571429 | K26: 28 | L26: 1 | M26: 30 | N26: 1.071428571 | O26: 28 | P26: 1 | Q26: 26 | R26: 0.9285714286 | S26: 25 | T26: 0.8928571429 | U26: 1 | V26: 0.03571428571 | W26: 18 | X26: 0.6428571429 | Y26: 25 | Z26: 0.8928571429 | AA26: 9 | AB26: 0.3214285714 | AE26: =cálculos1!O25 -> 3 | AF26: 0.3 | AG26: =cálculos1!P25 -> 2 | AH26: 0.5
A27: Norte | B27: Ecoporanga | C27: 226 | D27: 48 | E27: 33 | F27: 0.6875 | G27: 36 | H27: 0.75 | I27: 69 | J27: 1.4375 | K27: 68 | L27: 1.416666667 | M27: 54 | N27: 1.125 | O27: 53 | P27: 1.104166667 | Q27: 57 | R27: 1.1875 | S27: 59 | T27: 1.229166667 | U27: 0 | V27: 0 | W27: 50 | X27: 1.041666667 | Y27: 62 | Z27: 1.291666667 | AA27: 54 | AB27: 1.125 | AE27: =cálculos1!O26 -> 9 | AF27: 0.9 | AG27: =cálculos1!P26 -> 4 | AH27: 1
A28: Metropolitana | B28: Fundão | C28: 217 | D28: 58 | E28: 3 | F28: 0.05172413793 | G28: 20 | H28: 0.3448275862 | I28: 64 | J28: 1.103448276 | K28: 61 | L28: 1.051724138 | M28: 59 | N28: 1.017241379 | O28: 58 | P28: 1 | Q28: 56 | R28: 0.9655172414 | S28: 53 | T28: 0.9137931034 | U28: 2 | V28: 0.03448275862 | W28: 56 | X28: 0.9655172414 | Y28: 38 | Z28: 0.6551724138 | AA28: 55 | AB28: 0.9482758621 | AE28: =cálculos1!O27 -> 6 | AF28: 0.6 | AG28: =cálculos1!P27 -> 3 | AH28: 0.75
A29: Central | B29: Governador Lindenberg | C29: 145 | D29: 27 | E29: 6 | F29: 0.2222222222 | G29: 8 | H29: 0.2962962963 | I29: 32 | J29: 1.185185185 | K29: 29 | L29: 1.074074074 | M29: 31 | N29: 1.148148148 | O29: 32 | P29: 1.185185185 | Q29: 31 | R29: 1.148148148 | S29: 37 | T29: 1.37037037 | U29: 1 | V29: 0.03703703704 | W29: 27 | X29: 1 | Y29: 29 | Z29: 1.074074074 | AA29: 24 | AB29: 0.8888888889 | AE29: =cálculos1!O28 -> 8 | AF29: 0.8 | AG29: =cálculos1!P28 -> 4 | AH29: 1
A30: Sul | B30: Guaçuí | C30: 375 | D30: 78 | E30: 44 | F30: 0.5641025641 | G30: 58 | H30: 0.7435897436 | I30: 101 | J30: 1.294871795 | K30: 100 | L30: 1.282051282 | M30: 102 | N30: 1.307692308 | O30: 94 | P30: 1.205128205 | Q30: 94 | R30: 1.205128205 | S30: 80 | T30: 1.025641026 | U30: 0 | V30: 0 | W30: 86 | X30: 1.102564103 | Y30: 108 | Z30: 1.384615385 | AA30: 35 | AB30: 0.4487179487 | AE30: =cálculos1!O29 -> 8 | AF30: 0.8 | AG30: =cálculos1!P29 -> 4 | AH30: 1
A31: Metropolitana | B31: Guarapari | C31: 1759 | D31: 452 | E31: 292 | F31: 0.6460176991 | G31: 326 | H31: 0.7212389381 | I31: 367 | J31: 0.8119469027 | K31: 346 | L31: 0.7654867257 | M31: 378 | N31: 0.8362831858 | O31: 359 | P31: 0.7942477876 | Q31: 345 | R31: 0.7632743363 | S31: 316 | T31: 0.6991150442 | U31: 0 | V31: 0 | W31: 284 | X31: 0.6283185841 | Y31: 350 | Z31: 0.7743362832 | AA31: 202 | AB31: 0.4469026549 | AE31: =cálculos1!O30 -> 0 | AF31: 0 | AG31: =cálculos1!P30 -> 0 | AH31: 0
A32: Metropolitana | B32: Ibatiba | C32: 341 | D32: 66 | E32: 46 | F32: 0.696969697 | G32: 80 | H32: 1.212121212 | I32: 93 | J32: 1.409090909 | K32: 92 | L32: 1.393939394 | M32: 105 | N32: 1.590909091 | O32: 91 | P32: 1.378787879 | Q32: 106 | R32: 1.606060606 | S32: 82 | T32: 1.242424242 | U32: 1 | V32: 0.01515151515 | W32: 67 | X32: 1.015151515 | Y32: 81 | Z32: 1.227272727 | AA32: 29 | AB32: 0.4393939394 | AE32: =cálculos1!O31 -> 9 | AF32: 0.9 | AG32: =cálculos1!P31 -> 4 | AH32: 1
A33: Metropolitana | B33: Ibiraçu | C33: 147 | D33: 41 | E33: 10 | F33: 0.243902439 | G33: 7 | H33: 0.1707317073 | I33: 31 | J33: 0.756097561 | K33: 30 | L33: 0.7317073171 | M33: 29 | N33: 0.7073170732 | O33: 27 | P33: 0.6585365854 | Q33: 34 | R33: 0.8292682927 | S33: 33 | T33: 0.8048780488 | U33: 0 | V33: 0 | W33: 18 | X33: 0.4390243902 | Y33: 32 | Z33: 0.7804878049 | AA33: 19 | AB33: 0.4634146341 | AE33: =cálculos1!O32 -> 0 | AF33: 0 | AG33: =cálculos1!P32 -> 0 | AH33: 0
A34: Sul | B34: Ibitirama | C34: 122 | D34: 27 | E34: 19 | F34: 0.7037037037 | G34: 20 | H34: 0.7407407407 | I34: 28 | J34: 1.037037037 | K34: 30 | L34: 1.111111111 | M34: 33 | N34: 1.222222222 | O34: 33 | P34: 1.222222222 | Q34: 25 | R34: 0.9259259259 | S34: 24 | T34: 0.8888888889 | U34: 0 | V34: 0 | W34: 23 | X34: 0.8518518519 | Y34: 43 | Z34: 1.592592593 | AA34: 22 | AB34: 0.8148148148 | AE34: =cálculos1!O33 -> 5 | AF34: 0.5 | AG34: =cálculos1!P33 -> 4 | AH34: 1
A35: Sul | B35: Iconha | C35: 123 | D35: 36 | E35: 1 | F35: =E35/D35 -> 0.02777777778 | G35: 12 | H35: =G35/D35 -> 0.3333333333 | I35: 32 | J35: =I35/D35 -> 0.8888888889 | K35: 31 | L35: =K35/D35 -> 0.8611111111 | M35: 27 | N35: =M35/D35 -> 0.75 | O35: 28 | P35: =O35/D35 -> 0.7777777778 | Q35: 28 | R35: =Q35/D35 -> 0.7777777778 | S35: 35 | T35: =S35/D35 -> 0.9722222222 | U35: 1 | V35: =U35/D35 -> 0.02777777778 | W35: 26 | X35: =W35/D35 -> 0.7222222222 | Y35: 43 | Z35: =Y35/D35 -> 1.194444444 | AA35: 6 | AB35: =AA35/D35 -> 0.1666666667 | AE35: =cálculos1!O34 -> 2 | AF35: 0.2 | AG35: =cálculos1!P34 -> 1 | AH35: 0.25
A36: Sul | B36: Irupi | C36: 196 | D36: 47 | E36: 22 | F36: 0.4680851064 | G36: 28 | H36: 0.5957446809 | I36: 56 | J36: 1.191489362 | K36: 56 | L36: 1.191489362 | M36: 68 | N36: 1.446808511 | O36: 63 | P36: 1.340425532 | Q36: 61 | R36: 1.29787234 | S36: 44 | T36: 0.9361702128 | U36: 2 | V36: 0.04255319149 | W36: 43 | X36: 0.914893617 | Y36: 78 | Z36: 1.659574468 | AA36: 19 | AB36: 0.4042553191 | AE36: =cálculos1!O35 -> 6 | AF36: 0.6 | AG36: =cálculos1!P35 -> 4 | AH36: 1
A37: Metropolitana | B37: Itaguaçu | C37: 131 | D37: 30 | E37: 1 | F37: 0.03333333333 | G37: 19 | H37: 0.6333333333 | I37: 29 | J37: 0.9666666667 | K37: 29 | L37: 0.9666666667 | M37: 28 | N37: 0.9333333333 | O37: 28 | P37: 0.9333333333 | Q37: 29 | R37: 0.9666666667 | S37: 36 | T37: 1.2 | U37: 0 | V37: 0 | W37: 37 | X37: 1.233333333 | Y37: 39 | Z37: 1.3 | AA37: 39 | AB37: 1.3 | AE37: =cálculos1!O36 -> 8 | AF37: 0.8 | AG37: =cálculos1!P36 -> 3 | AH37: 0.75
A38: Sul | B38: Itapemirim | C38: 571 | D38: 142 | E38: 252 | F38: 1.774647887 | G38: 58 | H38: 0.4084507042 | I38: 103 | J38: 0.7253521127 | K38: 100 | L38: 0.7042253521 | M38: 126 | N38: 0.8873239437 | O38: 107 | P38: 0.7535211268 | Q38: 98 | R38: 0.6901408451 | S38: 74 | T38: 0.5211267606 | U38: 0 | V38: 0 | W38: 88 | X38: 0.6197183099 | Y38: 129 | Z38: 0.9084507042 | AA38: 70 | AB38: 0.4929577465 | AE38: =cálculos1!O37 -> 0 | AF38: 0 | AG38: =cálculos1!P37 -> 0 | AH38: 0
A39: Metropolitana | B39: Itarana | C39: 135 | D39: 33 | E39: 2 | F39: 0.06060606061 | G39: 34 | H39: 1.03030303 | I39: 31 | J39: 0.9393939394 | K39: 31 | L39: 0.9393939394 | M39: 25 | N39: 0.7575757576 | O39: 25 | P39: 0.7575757576 | Q39: 26 | R39: 0.7878787879 | S39: 38 | T39: 1.151515152 | U39: 0 | V39: 0 | W39: 9 | X39: 0.2727272727 | Y39: 33 | Z39: 1 | AA39: 26 | AB39: 0.7878787879 | AE39: =cálculos1!O38 -> 3 | AF39: 0.3 | AG39: =cálculos1!P38 -> 1 | AH39: 0.25
A40: Sul | B40: Iúna | C40: 469 | D40: 103 | E40: 64 | F40: 0.6213592233 | G40: 75 | H40: 0.7281553398 | I40: 121 | J40: 1.174757282 | K40: 119 | L40: 1.155339806 | M40: 125 | N40: 1.213592233 | O40: 124 | P40: 1.203883495 | Q40: 119 | R40: 1.155339806 | S40: 106 | T40: 1.029126214 | U40: 1 | V40: 0.009708737864 | W40: 76 | X40: 0.7378640777 | Y40: 122 | Z40: 1.184466019 | AA40: 49 | AB40: 0.4757281553 | AE40: =cálculos1!O39 -> 7 | AF40: 0.7 | AG40: =cálculos1!P39 -> 4 | AH40: 1
A41: Norte | B41: Jaguaré | C41: 492 | D41: 114 | E41: 82 | F41: 0.7192982456 | G41: 80 | H41: 0.701754386 | I41: 118 | J41: 1.035087719 | K41: 127 | L41: 1.114035088 | M41: 123 | N41: 1.078947368 | O41: 123 | P41: 1.078947368 | Q41: 106 | R41: 0.9298245614 | S41: 112 | T41: 0.9824561404 | U41: 1 | V41: 0.008771929825 | W41: 82 | X41: 0.7192982456 | Y41: 109 | Z41: 0.9561403509 | AA41: 64 | AB41: 0.5614035088 | AE41: =cálculos1!O40 -> 6 | AF41: 0.6 | AG41: =cálculos1!P40 -> 4 | AH41: 1
A42: Sul | B42: Jerônimo Monteiro | C42: 163 | D42: 41 | E42: 4 | F42: 0.09756097561 | G42: 5 | H42: 0.1219512195 | I42: 48 | J42: 1.170731707 | K42: 48 | L42: 1.170731707 | M42: 39 | N42: 0.9512195122 | O42: 40 | P42: 0.9756097561 | Q42: 36 | R42: 0.8780487805 | S42: 35 | T42: 0.8536585366 | U42: 2 | V42: 0.0487804878 | W42: 31 | X42: 0.756097561 | Y42: 36 | Z42: 0.8780487805 | AA42: 7 | AB42: 0.1707317073 | AE42: =cálculos1!O41 -> 4 | AF42: 0.4 | AG42: =cálculos1!P41 -> 3 | AH42: 0.75
A43: Metropolitana | B43: João Neiva | C43: 179 | D43: 41 | E43: 9 | F43: 0.2195121951 | G43: 11 | H43: 0.2682926829 | I43: 46 | J43: 1.12195122 | K43: 45 | L43: 1.097560976 | M43: 43 | N43: 1.048780488 | O43: 42 | P43: 1.024390244 | Q43: 44 | R43: 1.073170732 | S43: 47 | T43: 1.146341463 | U43: 1 | V43: 0.0243902439 | W43: 31 | X43: 0.756097561 | Y43: 50 | Z43: 1.219512195 | AA43: 22 | AB43: 0.5365853659 | AE43: =cálculos1!O42 -> 7 | AF43: 0.7 | AG43: =cálculos1!P42 -> 4 | AH43: 1
A44: Metropolitana | B44: Laranja da Terra | C44: 100 | D44: 25 | E44: 0 | F44: 0 | G44: 15 | H44: 0.6 | I44: 28 | J44: 1.12 | K44: 28 | L44: 1.12 | M44: 17 | N44: 0.68 | O44: 18 | P44: 0.72 | Q44: 24 | R44: 0.96 | S44: 37 | T44: 1.48 | U44: 5 | V44: 0.2 | W44: 18 | X44: 0.72 | Y44: 42 | Z44: 1.68 | AA44: 17 | AB44: 0.68 | AE44: =cálculos1!O43 -> 5 | AF44: 0.5 | AG44: =cálculos1!P43 -> 3 | AH44: 0.75
A45: Central | B45: Linhares | C45: 2585 | D45: 648 | E45: 670 | F45: 1.033950617 | G45: 693 | H45: 1.069444444 | I45: 557 | J45: 0.8595679012 | K45: 548 | L45: 0.8456790123 | M45: 520 | N45: 0.8024691358 | O45: 531 | P45: 0.8194444444 | Q45: 483 | R45: 0.7453703704 | S45: 465 | T45: 0.7175925926 | U45: 0 | V45: 0 | W45: 302 | X45: 0.4660493827 | Y45: 511 | Z45: 0.7885802469 | AA45: 328 | AB45: 0.5061728395 | AE45: =cálculos1!O44 -> 1 | AF45: 0.1 | AG45: =cálculos1!P44 -> 0 | AH45: 0
A46: Central | B46: Mantenópolis | C46: 152 | D46: 34 | E46: 14 | F46: 0.4117647059 | G46: 20 | H46: 0.5882352941 | I46: 40 | J46: 1.176470588 | K46: 45 | L46: 1.323529412 | M46: 32 | N46: 0.9411764706 | O46: 30 | P46: 0.8823529412 | Q46: 31 | R46: 0.9117647059 | S46: 35 | T46: 1.029411765 | U46: 0 | V46: 0 | W46: 33 | X46: 0.9705882353 | Y46: 40 | Z46: 1.176470588 | AA46: 26 | AB46: 0.7647058824 | AE46: =cálculos1!O45 -> 5 | AF46: 0.5 | AG46: =cálculos1!P45 -> 3 | AH46: 0.75
A47: Sul | B47: Marataízes | C47: 570 | D47: 156 | E47: 5 | F47: 0.03205128205 | G47: 58 | H47: 0.3717948718 | I47: 137 | J47: 0.8782051282 | K47: 149 | L47: 0.9551282051 | M47: 133 | N47: 0.8525641026 | O47: 134 | P47: 0.858974359 | Q47: 146 | R47: 0.9358974359 | S47: 106 | T47: 0.6794871795 | U47: 0 | V47: 0 | W47: 133 | X47: 0.8525641026 | Y47: 145 | Z47: 0.9294871795 | AA47: 55 | AB47: 0.3525641026 | AE47: =cálculos1!O46 -> 1 | AF47: 0.1 | AG47: =cálculos1!P46 -> 1 | AH47: 0.25
A48: Metropolitana | B48: Marechal Floriano | C48: 235 | D48: 65 | E48: 12 | F48: 0.1846153846 | G48: 15 | H48: 0.2307692308 | I48: 37 | J48: 0.5692307692 | K48: 37 | L48: 0.5692307692 | M48: 57 | N48: 0.8769230769 | O48: 56 | P48: 0.8615384615 | Q48: 45 | R48: 0.6923076923 | S48: 47 | T48: 0.7230769231 | U48: 2 | V48: 0.03076923077 | W48: 45 | X48: 0.6923076923 | Y48: 57 | Z48: 0.8769230769 | AA48: 38 | AB48: 0.5846153846 | AE48: =cálculos1!O47 -> 0 | AF48: 0 | AG48: =cálculos1!P47 -> 0 | AH48: 0
A49: Central | B49: Marilândia | C49: 160 | D49: 28 | E49: 8 | F49: 0.2857142857 | G49: 13 | H49: 0.4642857143 | I49: 36 | J49: 1.285714286 | K49: 36 | L49: 1.285714286 | M49: 33 | N49: 1.178571429 | O49: 37 | P49: 1.321428571 | Q49: 44 | R49: 1.571428571 | S49: 31 | T49: 1.107142857 | U49: 0 | V49: 0 | W49: 31 | X49: 1.107142857 | Y49: 40 | Z49: 1.428571429 | AA49: 26 | AB49: 0.9285714286 | AE49: =cálculos1!O48 -> 8 | AF49: 0.8 | AG49: =cálculos1!P48 -> 4 | AH49: 1
A50: Sul | B50: Mimoso do Sul | C50: 258 | D50: 56 | E50: 10 | F50: 0.1785714286 | G50: 10 | H50: 0.1785714286 | I50: 53 | J50: 0.9464285714 | K50: 52 | L50: 0.9285714286 | M50: 49 | N50: 0.875 | O50: 47 | P50: 0.8392857143 | Q50: 48 | R50: 0.8571428571 | S50: 49 | T50: 0.875 | U50: 0 | V50: 0 | W50: 39 | X50: 0.6964285714 | Y50: 57 | Z50: 1.017857143 | AA50: 27 | AB50: 0.4821428571 | AE50: =cálculos1!O49 -> 1 | AF50: 0.1 | AG50: =cálculos1!P49 -> 1 | AH50: 0.25
A51: Norte | B51: Montanha | C51: 254 | D51: 55 | E51: 15 | F51: 0.2727272727 | G51: 18 | H51: 0.3272727273 | I51: 90 | J51: 1.636363636 | K51: 92 | L51: 1.672727273 | M51: 68 | N51: 1.236363636 | O51: 69 | P51: 1.254545455 | Q51: 62 | R51: 1.127272727 | S51: 63 | T51: 1.145454545 | U51: 0 | V51: 0 | W51: 60 | X51: 1.090909091 | Y51: 70 | Z51: 1.272727273 | AA51: 51 | AB51: 0.9272727273 | AE51: =cálculos1!O50 -> 8 | AF51: 0.8 | AG51: =cálculos1!P50 -> 4 | AH51: 1
A52: Norte | B52: Mucurici | C52: 72 | D52: 12 | E52: 2 | F52: 0.1666666667 | G52: 3 | H52: 0.25 | I52: 23 | J52: 1.916666667 | K52: 25 | L52: 2.083333333 | M52: 21 | N52: 1.75 | O52: 20 | P52: 1.666666667 | Q52: 19 | R52: 1.583333333 | S52: 23 | T52: 1.916666667 | U52: 0 | V52: 0 | W52: 9 | X52: 0.75 | Y52: 20 | Z52: 1.666666667 | AA52: 9 | AB52: 0.75 | AE52: =cálculos1!O51 -> 7 | AF52: 0.7 | AG52: =cálculos1!P51 -> 4 | AH52: 1
A53: Sul | B53: Muniz Freire | C53: 211 | D53: 43 | E53: 35 | F53: 0.8139534884 | G53: 33 | H53: 0.7674418605 | I53: 57 | J53: 1.325581395 | K53: 52 | L53: 1.209302326 | M53: 56 | N53: 1.302325581 | O53: 58 | P53: 1.348837209 | Q53: 55 | R53: 1.279069767 | S53: 61 | T53: 1.418604651 | U53: 0 | V53: 0 | W53: 54 | X53: 1.255813953 | Y53: 73 | Z53: 1.697674419 | AA53: 26 | AB53: 0.6046511628 | AE53: =cálculos1!O52 -> 8 | AF53: 0.8 | AG53: =cálculos1!P52 -> 4 | AH53: 1
A54: Sul | B54: Muqui | C54: 172 | D54: 44 | E54: 1 | F54: 0.02272727273 | G54: 7 | H54: 0.1590909091 | I54: 51 | J54: 1.159090909 | K54: 52 | L54: 1.181818182 | M54: 34 | N54: 0.7727272727 | O54: 34 | P54: 0.7727272727 | Q54: 45 | R54: 1.022727273 | S54: 35 | T54: 0.7954545455 | U54: 2 | V54: 0.04545454545 | W54: 21 | X54: 0.4772727273 | Y54: 39 | Z54: 0.8863636364 | AA54: 19 | AB54: 0.4318181818 | AE54: =cálculos1!O53 -> 3 | AF54: 0.3 | AG54: =cálculos1!P53 -> 2 | AH54: 0.5
A55: Norte | B55: Nova Venécia | C55: 681 | D55: 163 | E55: 21 | F55: 0.1288343558 | G55: 98 | H55: 0.6012269939 | I55: 181 | J55: 1.110429448 | K55: 182 | L55: 1.116564417 | M55: 145 | N55: 0.8895705521 | O55: 140 | P55: 0.8588957055 | Q55: 148 | R55: 0.9079754601 | S55: 181 | T55: 1.110429448 | U55: 0 | V55: 0 | W55: 126 | X55: 0.773006135 | Y55: 168 | Z55: 1.030674847 | AA55: 111 | AB55: 0.6809815951 | AE55: =cálculos1!O54 -> 4 | AF55: 0.4 | AG55: =cálculos1!P54 -> 3 | AH55: 0.75
A56: Central | B56: Pancas | C56: 208 | D56: 42 | E56: 12 | F56: 0.2857142857 | G56: 22 | H56: 0.5238095238 | I56: 55 | J56: 1.30952381 | K56: 55 | L56: 1.30952381 | M56: 53 | N56: 1.261904762 | O56: 52 | P56: 1.238095238 | Q56: 54 | R56: 1.285714286 | S56: 49 | T56: 1.166666667 | U56: 0 | V56: 0 | W56: 32 | X56: 0.7619047619 | Y56: 46 | Z56: 1.095238095 | AA56: 52 | AB56: 1.238095238 | AE56: =cálculos1!O55 -> 8 | AF56: 0.8 | AG56: =cálculos1!P55 -> 4 | AH56: 1
A57: Norte | B57: Pedro Canário | C57: 330 | D57: 78 | E57: 6 | F57: 0.07692307692 | G57: 3 | H57: 0.03846153846 | I57: 78 | J57: 1 | K57: 85 | L57: 1.08974359 | M57: 71 | N57: 0.9102564103 | O57: 69 | P57: 0.8846153846 | Q57: 65 | R57: 0.8333333333 | S57: 83 | T57: 1.064102564 | U57: 0 | V57: 0 | W57: 55 | X57: 0.7051282051 | Y57: 96 | Z57: 1.230769231 | AA57: 61 | AB57: 0.7820512821 | AE57: =cálculos1!O56 -> 4 | AF57: 0.4 | AG57: =cálculos1!P56 -> 3 | AH57: 0.75
A58: Norte | B58: Pinheiros | C58: 322 | D58: 70 | E58: 2 | F58: 0.02857142857 | G58: 4 | H58: 0.05714285714 | I58: 88 | J58: 1.257142857 | K58: 87 | L58: 1.242857143 | M58: 77 | N58: 1.1 | O58: 75 | P58: 1.071428571 | Q58: 71 | R58: 1.014285714 | S58: 76 | T58: 1.085714286 | U58: 0 | V58: 0 | W58: 52 | X58: 0.7428571429 | Y58: 65 | Z58: 0.9285714286 | AA58: 31 | AB58: 0.4428571429 | AE58: =cálculos1!O57 -> 6 | AF58: 0.6 | AG58: =cálculos1!P57 -> 3 | AH58: 0.75
A59: Sul | B59: Piúma | C59: 312 | D59: 67 | E59: 3 | F59: 0.0447761194 | G59: 40 | H59: 0.5970149254 | I59: 72 | J59: 1.074626866 | K59: 72 | L59: 1.074626866 | M59: 65 | N59: 0.9701492537 | O59: 59 | P59: 0.8805970149 | Q59: 47 | R59: 0.7014925373 | S59: 50 | T59: 0.7462686567 | U59: 1 | V59: 0.01492537313 | W59: 56 | X59: 0.8358208955 | Y59: 72 | Z59: 1.074626866 | AA59: 30 | AB59: 0.447761194 | AE59: =cálculos1!O58 -> 4 | AF59: 0.4 | AG59: =cálculos1!P58 -> 4 | AH59: 1
A60: Norte | B60: Ponto Belo | C60: 86 | D60: 19 | E60: 4 | F60: 0.2105263158 | G60: 3 | H60: 0.1578947368 | I60: 11 | J60: 0.5789473684 | K60: 10 | L60: 0.5263157895 | M60: 14 | N60: 0.7368421053 | O60: 14 | P60: 0.7368421053 | Q60: 6 | R60: 0.3157894737 | S60: 17 | T60: 0.8947368421 | U60: 0 | V60: 0 | W60: 9 | X60: 0.4736842105 | Y60: 15 | Z60: 0.7894736842 | AA60: 11 | AB60: 0.5789473684 | AE60: =cálculos1!O59 -> 0 | AF60: 0 | AG60: =cálculos1!P59 -> 0 | AH60: 0
A61: Sul | B61: Presidente Kennedy | C61: 192 | D61: 57 | E61: 0 | F61: 0 | G61: 5 | H61: 0.08771929825 | I61: 40 | J61: 0.701754386 | K61: 44 | L61: 0.7719298246 | M61: 33 | N61: 0.5789473684 | O61: 32 | P61: 0.5614035088 | Q61: 44 | R61: 0.7719298246 | S61: 39 | T61: 0.6842105263 | U61: 0 | V61: 0 | W61: 43 | X61: 0.7543859649 | Y61: 64 | Z61: 1.122807018 | AA61: 14 | AB61: 0.2456140351 | AE61: =cálculos1!O60 -> 1 | AF61: 0.1 | AG61: =cálculos1!P60 -> 1 | AH61: 0.25
A62: Central | B62: Rio Bananal | C62: 304 | D62: 77 | E62: 21 | F62: 0.2727272727 | G62: 16 | H62: 0.2077922078 | I62: 76 | J62: 0.987012987 | K62: 76 | L62: 0.987012987 | M62: 64 | N62: 0.8311688312 | O62: 67 | P62: 0.8701298701 | Q62: 64 | R62: 0.8311688312 | S62: 77 | T62: 1 | U62: 4 | V62: 0.05194805195 | W62: 61 | X62: 0.7922077922 | Y62: 82 | Z62: 1.064935065 | AA62: 61 | AB62: 0.7922077922 | AE62: =cálculos1!O61 -> 4 | AF62: 0.4 | AG62: =cálculos1!P61 -> 3 | AH62: 0.75
A63: Sul | B63: Rio Novo do Sul | C63: 129 | D63: 34 | E63: 0 | F63: 0 | G63: 10 | H63: 0.2941176471 | I63: 38 | J63: 1.117647059 | K63: 38 | L63: 1.117647059 | M63: 31 | N63: 0.9117647059 | O63: 31 | P63: 0.9117647059 | Q63: 35 | R63: 1.029411765 | S63: 31 | T63: 0.9117647059 | U63: 0 | V63: 0 | W63: 22 | X63: 0.6470588235 | Y63: 31 | Z63: 0.9117647059 | AA63: 25 | AB63: 0.7352941176 | AE63: =cálculos1!O62 -> 4 | AF63: 0.4 | AG63: =cálculos1!P62 -> 2 | AH63: 0.5
A64: Metropolitana | B64: Santa Leopoldina | C64: 108 | D64: 32 | E64: 0 | F64: 0 | G64: 4 | H64: 0.125 | I64: 25 | J64: 0.78125 | K64: 25 | L64: 0.78125 | M64: 26 | N64: 0.8125 | O64: 27 | P64: 0.84375 | Q64: 29 | R64: 0.90625 | S64: 31 | T64: 0.96875 | U64: 0 | V64: 0 | W64: 23 | X64: 0.71875 | Y64: 38 | Z64: 1.1875 | AA64: 10 | AB64: 0.3125 | AE64: =cálculos1!O63 -> 2 | AF64: 0.2 | AG64: =cálculos1!P63 -> 1 | AH64: 0.25
A65: Metropolitana | B65: Santa Maria de Jetibá | C65: 669 | D65: 163 | E65: 101 | F65: 0.6196319018 | G65: 119 | H65: 0.7300613497 | I65: 138 | J65: 0.8466257669 | K65: 138 | L65: 0.8466257669 | M65: 153 | N65: 0.9386503067 | O65: 155 | P65: 0.9509202454 | Q65: 141 | R65: 0.8650306748 | S65: 143 | T65: 0.8773006135 | U65: 2 | V65: 0.01226993865 | W65: 164 | X65: 1.006134969 | Y65: 179 | Z65: 1.098159509 | AA65: 59 | AB65: 0.3619631902 | AE65: =cálculos1!O64 -> 3 | AF65: 0.3 | AG65: =cálculos1!P64 -> 1 | AH65: 0.25
A66: Metropolitana | B66: Santa Teresa | C66: 288 | D66: 63 | E66: 163 | F66: 2.587301587 | G66: 53 | H66: 0.8412698413 | I66: 79 | J66: 1.253968254 | K66: 79 | L66: 1.253968254 | M66: 64 | N66: 1.015873016 | O66: 65 | P66: 1.031746032 | Q66: 64 | R66: 1.015873016 | S66: 51 | T66: 0.8095238095 | U66: 0 | V66: 0 | W66: 49 | X66: 0.7777777778 | Y66: 70 | Z66: 1.111111111 | AA66: 44 | AB66: 0.6984126984 | AE66: =cálculos1!O65 -> 6 | AF66: 0.6 | AG66: =cálculos1!P65 -> 4 | AH66: 1
A67: Central | B67: São Domingos do Norte | C67: 119 | D67: 23 | E67: 7 | F67: =E67/D67 -> 0.3043478261 | G67: 14 | H67: =G67/D67 -> 0.6086956522 | I67: 28 | J67: =I67/D67 -> 1.217391304 | K67: 28 | L67: =K67/D67 -> 1.217391304 | M67: 26 | N67: =M67/D67 -> 1.130434783 | O67: 26 | P67: =O67/D67 -> 1.130434783 | Q67: 28 | R67: =Q67/D67 -> 1.217391304 | S67: 35 | T67: =S67/D67 -> 1.52173913 | U67: 0 | V67: =U67/D67 -> 0 | W67: 13 | X67: =W67/D67 -> 0.5652173913 | Y67: 19 | Z67: =Y67/D67 -> 0.8260869565 | AA67: 19 | AB67: =AA67/D67 -> 0.8260869565 | AE67: =cálculos1!O66 -> 6 | AF67: 0.6 | AG67: =cálculos1!P66 -> 3 | AH67: 0.75
A68: Central | B68: São Gabriel da Palha | C68: 420 | D68: 88 | E68: 22 | F68: 0.25 | G68: 47 | H68: 0.5340909091 | I68: 108 | J68: 1.227272727 | K68: 110 | L68: 1.25 | M68: 92 | N68: 1.045454545 | O68: 87 | P68: 0.9886363636 | Q68: 96 | R68: 1.090909091 | S68: 90 | T68: 1.022727273 | U68: 1 | V68: 0.01136363636 | W68: 52 | X68: 0.5909090909 | Y68: 87 | Z68: 0.9886363636 | AA68: 64 | AB68: 0.7272727273 | AE68: =cálculos1!O67 -> 7 | AF68: =AE68*0.1 -> 0.7 | AG68: =cálculos1!P67 -> 4 | AH68: =AG68*0.25 -> 1
A69: Sul | B69: São José do Calçado | C69: 99 | D69: 23 | E69: 22 | F69: 0.9565217391 | G69: 26 | H69: 1.130434783 | I69: 39 | J69: 1.695652174 | K69: 38 | L69: 1.652173913 | M69: 29 | N69: 1.260869565 | O69: 27 | P69: 1.173913043 | Q69: 37 | R69: 1.608695652 | S69: 21 | T69: 0.9130434783 | U69: 0 | V69: 0 | W69: 27 | X69: 1.173913043 | Y69: 36 | Z69: 1.565217391 | AA69: 17 | AB69: 0.7391304348 | AE69: =cálculos1!O68 -> 8 | AF69: 0.8 | AG69: =cálculos1!P68 -> 4 | AH69: 1
A70: Norte | B70: São Mateus | C70: 1854 | D70: 396 | E70: 668 | F70: 1.686868687 | G70: 646 | H70: 1.631313131 | I70: 462 | J70: 1.166666667 | K70: 455 | L70: 1.148989899 | M70: 411 | N70: 1.037878788 | O70: 384 | P70: 0.9696969697 | Q70: 371 | R70: 0.9368686869 | S70: 321 | T70: 0.8106060606 | U70: 1 | V70: 0.002525252525 | W70: 309 | X70: 0.7803030303 | Y70: 374 | Z70: 0.9444444444 | AA70: 193 | AB70: 0.4873737374 | AE70: =cálculos1!O69 -> 5 | AF70: 0.5 | AG70: =cálculos1!P69 -> 3 | AH70: 0.75
A71: Central | B71: São Roque do Canaã | C71: 122 | D71: 40 | E71: 14 | F71: 0.35 | G71: 16 | H71: 0.4 | I71: 27 | J71: 0.675 | K71: 26 | L71: 0.65 | M71: 16 | N71: 0.4 | O71: 18 | P71: 0.45 | Q71: 24 | R71: 0.6 | S71: 39 | T71: 0.975 | U71: 1 | V71: 0.025 | W71: 11 | X71: 0.275 | Y71: 34 | Z71: 0.85 | AA71: 21 | AB71: 0.525 | AE71: =cálculos1!O70 -> 1 | AF71: 0.1 | AG71: =cálculos1!P70 -> 0 | AH71: 0
A72: Metropolitana | B72: Serra | C72: 7403 | D72: 1921 | E72: 2274 | F72: 1.183758459 | G72: 2188 | H72: 1.138990109 | I72: 1595 | J72: 0.8302967205 | K72: 1609 | L72: 0.8375845914 | M72: 1557 | N72: 0.8105153566 | O72: 1529 | P72: 0.7959396148 | Q72: 1483 | R72: 0.7719937533 | S72: 1308 | T72: 0.680895367 | U72: 15 | V72: 0.007808433108 | W72: 917 | X72: 0.477355544 | Y72: 1527 | Z72: 0.7948984904 | AA72: 655 | AB72: 0.3409682457 | AE72: =cálculos1!O71 -> 1 | AF72: 0.1 | AG72: =cálculos1!P71 -> 0 | AH72: 0
A73: Central | B73: Sooretama | C73: 432 | D73: 110 | E73: 9 | F73: 0.08181818182 | G73: 4 | H73: 0.03636363636 | I73: 102 | J73: 0.9272727273 | K73: 103 | L73: 0.9363636364 | M73: 96 | N73: 0.8727272727 | O73: 91 | P73: 0.8272727273 | Q73: 83 | R73: 0.7545454545 | S73: 90 | T73: 0.8181818182 | U73: 0 | V73: 0 | W73: 88 | X73: 0.8 | Y73: 94 | Z73: 0.8545454545 | AA73: 54 | AB73: 0.4909090909 | AE73: =cálculos1!O72 -> 0 | AF73: 0 | AG73: =cálculos1!P72 -> 0 | AH73: 0
A74: Sul | B74: Vargem Alta | C74: 258 | D74: 64 | E74: 1 | F74: 0.015625 | G74: 4 | H74: 0.0625 | I74: 56 | J74: 0.875 | K74: 55 | L74: 0.859375 | M74: 61 | N74: 0.953125 | O74: 62 | P74: 0.96875 | Q74: 61 | R74: 0.953125 | S74: 59 | T74: 0.921875 | U74: 1 | V74: 0.015625 | W74: 57 | X74: 0.890625 | Y74: 63 | Z74: 0.984375 | AA74: 31 | AB74: 0.484375 | AE74: =cálculos1!O73 -> 4 | AF74: 0.4 | AG74: =cálculos1!P73 -> 2 | AH74: 0.5
A75: Metropolitana | B75: Venda Nova do Imigrante | C75: 382 | D75: 82 | E75: 11 | F75: 0.1341463415 | G75: 94 | H75: 1.146341463 | I75: 101 | J75: 1.231707317 | K75: 101 | L75: 1.231707317 | M75: 88 | N75: 1.073170732 | O75: 85 | P75: 1.036585366 | Q75: 95 | R75: 1.158536585 | S75: 105 | T75: 1.280487805 | U75: 0 | V75: 0 | W75: 54 | X75: 0.6585365854 | Y75: 105 | Z75: 1.280487805 | AA75: 39 | AB75: 0.4756097561 | AE75: =cálculos1!O74 -> 8 | AF75: 0.8 | AG75: =cálculos1!P74 -> 4 | AH75: 1
A76: Metropolitana | B76: Viana | C76: 989 | D76: 241 | E76: 43 | F76: 0.1784232365 | G76: 45 | H76: 0.1867219917 | I76: 231 | J76: 0.9585062241 | K76: 223 | L76: 0.9253112033 | M76: 224 | N76: 0.9294605809 | O76: 211 | P76: 0.8755186722 | Q76: 229 | R76: 0.9502074689 | S76: 171 | T76: 0.7095435685 | U76: 3 | V76: 0.01244813278 | W76: 150 | X76: 0.622406639 | Y76: 217 | Z76: 0.9004149378 | AA76: 69 | AB76: 0.2863070539 | AE76: =cálculos1!O75 -> 2 | AF76: 0.2 | AG76: =cálculos1!P75 -> 1 | AH76: 0.25
A77: Norte | B77: Vila Pavão | C77: 99 | D77: 21 | E77: 7 | F77: 0.3333333333 | G77: 14 | H77: 0.6666666667 | I77: 25 | J77: 1.19047619 | K77: 24 | L77: 1.142857143 | M77: 21 | N77: 1 | O77: 21 | P77: 1 | Q77: 22 | R77: 1.047619048 | S77: 29 | T77: 1.380952381 | U77: 0 | V77: =U77/D77 -> 0 | W77: 18 | X77: 0.8571428571 | Y77: 31 | Z77: 1.476190476 | AA77: 22 | AB77: 1.047619048 | AE77: =cálculos1!O76 -> 8 | AF77: 0.8 | AG77: =cálculos1!P76 -> 4 | AH77: 1
A78: Central | B78: Vila Valério | C78: 694 | D78: 54 | E78: 11 | F78: 0.2037037037 | G78: 20 | H78: 0.3703703704 | I78: 47 | J78: 0.8703703704 | K78: 48 | L78: 0.8888888889 | M78: 45 | N78: 0.8333333333 | O78: 49 | P78: 0.9074074074 | Q78: 40 | R78: 0.7407407407 | S78: 54 | T78: 1 | U78: 0 | V78: =U78/D78 -> 0 | W78: 32 | X78: 0.5925925926 | Y78: 46 | Z78: 0.8518518519 | AA78: 45 | AB78: 0.8333333333 | AE78: =cálculos1!O77 -> 2 | AF78: 0.2 | AG78: =cálculos1!P77 -> 0 | AH78: 0
A79: Metropolitana | B79: Vila Velha | C79: 5621 | D79: 1472 | E79: 1076 | F79: 0.7309782609 | G79: 1056 | H79: 0.7173913043 | I79: 1133 | J79: 0.769701087 | K79: 1128 | L79: 0.7663043478 | M79: 1147 | N79: 0.7792119565 | O79: 1170 | P79: 0.7948369565 | Q79: 1136 | R79: 0.7717391304 | S79: 994 | T79: 0.6752717391 | U79: 25 | V79: =U79/D79 -> 0.01698369565 | W79: 688 | X79: 0.4673913043 | Y79: 1196 | Z79: 0.8125 | AA79: 674 | AB79: 0.4578804348 | AE79: =cálculos1!O78 -> 0 | AF79: 0 | AG79: =cálculos1!P78 -> 0 | AH79: 0
A80: Metropolitana | B80: Vitória | C80: 6999 | D80: 910 | E80: 1613 | F80: 1.772527473 | G80: 1617 | H80: 1.776923077 | I80: 958 | J80: 1.052747253 | K80: 956 | L80: 1.050549451 | M80: 754 | N80: 0.8285714286 | O80: 804 | P80: 0.8835164835 | Q80: 855 | R80: 0.9395604396 | S80: 693 | T80: 0.7615384615 | U80: 26 | V80: =U80/D80 -> 0.02857142857 | W80: 829 | X80: 0.910989011 | Y80: 796 | Z80: 0.8747252747 | AA80: 507 | AB80: 0.5571428571 | AE80: =cálculos1!O79 -> 3 | AF80: 0.3 | AG80: =cálculos1!P79 -> 2 | AH80: 0.5
B82: Total Norte | C82: =SUMIF($A$3:$A$80,"Norte",C$3:C$80) -> 5655 | D82: =SUMIF($A$3:$A$80,"Norte",D$3:D$80) -> 1273 | E82: =SUMIF($A$3:$A$80,"Norte",E$3:E$80) -> 960 | F82: =E82/D82 -> 0.7541241163 | G82: =SUMIF($A$3:$A$80,"Norte",G$3:G$80) -> 1057 | H82: =G82/D82 -> 0.8303220738 | I82: =SUMIF($A$3:$A$80,"Norte",I$3:I$80) -> 1422 | J82: =I82/D82 -> 1.117046347 | K82: =SUMIF($A$3:$A$80,"Norte",K$3:K$80) -> 1443 | L82: =K82/D82 -> 1.133542812 | M82: =SUMIF($A$3:$A$80,"Norte",M$3:M$80) -> 1303 | N82: =M82/D82 -> 1.023566379 | O82: =SUMIF($A$3:$A$80,"Norte",O$3:O$80) -> 1258 | P82: =O82/D82 -> 0.9882168107 | Q82: =SUMIF($A$3:$A$80,"Norte",Q$3:Q$80) -> 1207 | R82: =Q82/D82 -> 0.948153967 | S82: =SUMIF($A$3:$A$80,"Norte",S$3:S$80) -> 1270 | T82: =S82/D82 -> 0.9976433621 | U82: =SUMIF($A$3:$A$80,"Norte",U$3:U$80) -> 2 | V82: =U82/D82 -> 0.001571091909 | W82: =SUMIF($A$3:$A$80,"Norte",W$3:W$80) -> 995 | X82: =W82/D82 -> 0.7816182247 | Y82: =SUMIF($A$3:$A$80,"Norte",Y$3:Y$80) -> 1325 | Z82: =Y82/D82 -> 1.04084839 | AA82: =SUMIF($A$3:$A$80,"Norte",AA$3:AA$80) -> 827 | AB82: =AA82/D82 -> 0.6496465043 | AE82: =cálculos1!O81 -> 6 | AF82: 0.6 | AG82: =cálculos1!P81 -> 4 | AH82: 1
B83: Total Central | C83: =SUMIF($A$3:$A$80,"Central",C$3:C$80) -> 7463 | D83: =SUMIF($A$3:$A$80,"Central",D$3:D$80) -> 1662 | E83: =SUMIF($A$3:$A$80,"Central",E$3:E$80) -> 1811 | F83: =E83/D83 -> 1.089651023 | G83: =SUMIF($A$3:$A$80,"Central",G$3:G$80) -> 1811 | H83: =G83/D83 -> 1.089651023 | I83: =SUMIF($A$3:$A$80,"Central",I$3:I$80) -> 1639 | J83: =I83/D83 -> 0.9861612515 | K83: =SUMIF($A$3:$A$80,"Central",K$3:K$80) -> 1621 | L83: =K83/D83 -> 0.9753309266 | M83: =SUMIF($A$3:$A$80,"Central",M$3:M$80) -> 1503 | N83: =M83/D83 -> 0.90433213 | O83: =SUMIF($A$3:$A$80,"Central",O$3:O$80) -> 1512 | P83: =O83/D83 -> 0.9097472924 | Q83: =SUMIF($A$3:$A$80,"Central",Q$3:Q$80) -> 1484 | R83: =Q83/D83 -> 0.8929001203 | S83: =SUMIF($A$3:$A$80,"Central",S$3:S$80) -> 1419 | T83: =S83/D83 -> 0.8537906137 | U83: =SUMIF($A$3:$A$80,"Central",U$3:U$80) -> 10 | V83: =U83/D83 -> 0.006016847172 | W83: =SUMIF($A$3:$A$80,"Central",W$3:W$80) -> 994 | X83: =W83/D83 -> 0.5980746089 | Y83: =SUMIF($A$3:$A$80,"Central",Y$3:Y$80) -> 1553 | Z83: =Y83/D83 -> 0.9344163658 | AA83: =SUMIF($A$3:$A$80,"Central",AA$3:AA$80) -> 1024 | AB83: =AA83/D83 -> 0.6161251504 | AE83: =cálculos1!O82 -> 4 | AF83: 0.4 | AG83: =cálculos1!P82 -> 2 | AH83: 0.5
B84: Total Metropolitana | C84: =SUMIF($A$3:$A$80,"Metropolitana",C$3:C$80) -> 33141 | D84: =SUMIF($A$3:$A$80,"Metropolitana",D$3:D$80) -> 7490 | E84: =SUMIF($A$3:$A$80,"Metropolitana",E$3:E$80) -> 6640 | F84: =E84/D84 -> 0.8865153538 | G84: =SUMIF($A$3:$A$80,"Metropolitana",G$3:G$80) -> 6756 | H84: =G84/D84 -> 0.9020026702 | I84: =SUMIF($A$3:$A$80,"Metropolitana",I$3:I$80) -> 6640 | J84: =I84/D84 -> 0.8865153538 | K84: =SUMIF($A$3:$A$80,"Metropolitana",K$3:K$80) -> 6588 | L84: =K84/D84 -> 0.8795727637 | M84: =SUMIF($A$3:$A$80,"Metropolitana",M$3:M$80) -> 6466 | N84: =M84/D84 -> 0.8632843792 | O84: =SUMIF($A$3:$A$80,"Metropolitana",O$3:O$80) -> 6387 | P84: =O84/D84 -> 0.8527369826 | Q84: =SUMIF($A$3:$A$80,"Metropolitana",Q$3:Q$80) -> 6397 | R84: =Q84/D84 -> 0.8540720961 | S84: =SUMIF($A$3:$A$80,"Metropolitana",S$3:S$80) -> 5667 | T84: =S84/D84 -> 0.7566088117 | U84: =SUMIF($A$3:$A$80,"Metropolitana",U$3:U$80) -> 120 | V84: =U84/D84 -> 0.01602136182 | W84: =SUMIF($A$3:$A$80,"Metropolitana",W$3:W$80) -> 4704 | X84: =W84/D84 -> 0.6280373832 | Y84: =SUMIF($A$3:$A$80,"Metropolitana",Y$3:Y$80) -> 6704 | Z84: =Y84/D84 -> 0.8950600801 | AA84: =SUMIF($A$3:$A$80,"Metropolitana",AA$3:AA$80) -> 3510 | AB84: =AA84/D84 -> 0.4686248331 | AE84: =cálculos1!O83 -> 1 | AF84: 0.1 | AG84: =cálculos1!P83 -> 0 | AH84: 0
B85: Total Sul | C85: =SUMIF($A$3:$A$80,"sul",C$3:C$80) -> 8419 | D85: =SUMIF($A$3:$A$80,"sul",D$3:D$80) -> 2085 | E85: =SUMIF($A$3:$A$80,"Sul",E$3:E$80) -> 1895 | F85: =E85/D85 -> 0.9088729017 | G85: =SUMIF($A$3:$A$80,"Sul",G$3:G$80) -> 1913 | H85: =G85/D85 -> 0.9175059952 | I85: =SUMIF($A$3:$A$80,"Sul",I$3:I$80) -> 2008 | J85: =I85/D85 -> 0.9630695444 | K85: =SUMIF($A$3:$A$80,"Sul",K$3:K$80) -> 2015 | L85: =K85/D85 -> 0.9664268585 | M85: =SUMIF($A$3:$A$80,"Sul",M$3:M$80) -> 2018 | N85: =M85/D85 -> 0.9678657074 | O85: =SUMIF($A$3:$A$80,"Sul",O$3:O$80) -> 1948 | P85: =O85/D85 -> 0.9342925659 | Q85: =SUMIF($A$3:$A$80,"Sul",Q$3:Q$80) -> 1934 | R85: =Q85/D85 -> 0.9275779376 | S85: =SUMIF($A$3:$A$80,"Sul",S$3:S$80) -> 1743 | T85: =S85/D85 -> 0.835971223 | U85: =SUMIF($A$3:$A$80,"Sul",U$3:U$80) -> 19 | V85: =U85/D85 -> 0.009112709832 | W85: =SUMIF($A$3:$A$80,"Sul",W$3:W$80) -> 1588 | X85: =W85/D85 -> 0.7616306954 | Y85: =SUMIF($A$3:$A$80,"Sul",Y$3:Y$80) -> 2200 | Z85: =Y85/D85 -> 1.055155875 | AA85: =SUMIF($A$3:$A$80,"Sul",AA$3:AA$80) -> 858 | AB85: =AA85/D85 -> 0.4115107914 | AE85: =cálculos1!O84 -> 6 | AF85: 0.6 | AG85: =cálculos1!P84 -> 4 | AH85: 1
B86: Total Espírito Santo | C86: =SUM(C3:C80) -> 54678 | D86: =SUM(D3:D80) -> 12510 | E86: =SUM(E82:E85) -> 11306 | F86: =E86/D86 -> 0.9037569944 | G86: =SUM(G82:G85) -> 11537 | H86: =G86/D86 -> 0.9222222222 | I86: =SUM(I82:I85) -> 11709 | J86: =I86/D86 -> 0.935971223 | K86: =SUM(K82:K85) -> 11667 | L86: =K86/D86 -> 0.9326139089 | M86: =SUM(M82:M85) -> 11290 | N86: =M86/D86 -> 0.9024780176 | O86: =SUM(O82:O85) -> 11105 | P86: =O86/D86 -> 0.8876898481 | Q86: =SUM(Q82:Q85) -> 11022 | R86: =Q86/D86 -> 0.8810551559 | S86: =SUM(S82:S85) -> 10099 | T86: =S86/D86 -> 0.8072741807 | U86: =SUM(U82:U85) -> 151 | V86: =U86/D86 -> 0.01207034373 | W86: =SUM(W82:W85) -> 8281 | X86: =W86/D86 -> 0.6619504396 | Y86: =SUM(Y82:Y85) -> 11782 | Z86: =Y86/D86 -> 0.9418065548 | AA86: =SUM(AA82:AA85) -> 6219 | AB86: =AA86/D86 -> 0.4971223022 | AE86: =cálculos1!O85 -> 1 | AF86: 0.1 | AG86: =cálculos1!P85 -> 0 | AH86: 0
E87: =COUNTIF(F3:F80,">=0,95") -> 10 | G87: =COUNTIF(H3:H80,">=0,9") -> 14 | I87: =COUNTIF(J3:J80,">=0,95") -> 47 | K87: =COUNTIF(L3:L80,">=0,95") -> 49 | M87: =COUNTIF(N3:N80,">=0,95") -> 43 | O87: =COUNTIF(P3:P80,">=0,9") -> 46 | Q87: =COUNTIF(R3:R80,">=0,95") -> 37 | S87: =COUNTIF(T3:T80,">=0,95") -> 39 | U87: =COUNTIF(V3:V80,">=0,95") -> 0 | W87: =COUNTIF(X3:X80,">=0,95") -> 19 | Y87: =COUNTIF(Z3:Z80,">=0,95") -> 50 | AA87: =COUNTIF(AB3:AB80,">=0,95") -> 6
B88: HOMOGENEIDADE ENTRE MUNICÍPIOS | E88: =E87/78 -> 0.1282051282 | G88: =G87/78 -> 0.1794871795 | I88: =I87/78 -> 0.6025641026 | K88: =K87/78 -> 0.6282051282 | M88: =M87/78 -> 0.5512820513 | O88: =O87/78 -> 0.5897435897 | Q88: =Q87/78 -> 0.4743589744 | S88: =S87/78 -> 0.5 | U88: =U87/78 -> 0 | W88: =W87/78 -> 0.2435897436 | Y88: =Y87/78 -> 0.641025641 | AA88: =AA87/78 -> 0.07692307692
A90: FonteVacina e Confia, em 06 de Abril de 2024.**
A91: **Dados referente às doses aplicadas no período de Março de 2024
A92: Cobertura Calculada por município de procedência da vacinação
A93: 1 População anual extraída do MS/SVS/DASIS - SINASC/DASIS/SVS/MS 2023 (hoje preliminares) referente ao período de fevereiro a dezembro de 2023 e SINASC/DASIS/SVS/MS 2024 referente ao período de janeiro de 2024.
A95: ² População proporcional extraída do MS/SVS/DASIS - SINASC/DASIS/SVS/MS 2023 (hoje preliminares) referente ao período de fevereiro e março de 2023 somada a população extraída do SINASC/DASIS/SVS/MS 2024 referente ao período de janeiro de 2024.
A97: Observações:
A98: Imunobiológicos que foram recebidos parcialmente pelo estado no mês da análise, sendo distribuídos em quantidades reduzidas às regionais e municípios: Varicela, Febre Amarela e HPV Quadrivalente.
A99: Imunobiológicos que não foram recebidos pelo estado no mês da análise, não sendo possível a distribuição às regionais e municípios: Meningo C, Hepatite A (CRIE), HIB, Hepatite A Rotina Pediátrica, DTPa (CRIE).
A100: Imunobiológicos com indisponibilidade de aquisição e distribuição no mês da análise: Tetra Viral.

Sheet CV Rotina <2A - residência
E1: AO NASCER | I1: MENOR DE 1 ANO | W1: 1 ANO
A2: Regional | B2: Município | C2: ¹População < 1 ano e 1 ano anual | D2: ²População < 1 ano e 1 ano proporcional | E2: Doses Aplicadas HB < 30 dias | F2: Cobertura Vacinal HB até 30 dias | G2: Doses Aplicadas BCG | H2: Cobertura Vacinal BCG | I2: Doses Aplicadas Pentavalente | J2: Cobertura Vacinal Pentavalente | K2: Doses Aplicadas Poliomielite | L2: Cobertura Vacinal Poliomielite | M2: Doses Aplicadas Pneumo 10 | N2: Cobertura Vacinal Pneumo 10 | O2: Doses Aplicadas Rotavírus | P2: Cobertura Vacinal Rotavírus | Q2: Doses Aplicadas Meningo C | R2: Cobertura Vacinal Meningo C | S2: Doses Aplicadas Febre Amarela | T2: Cobertura Vacinal Febre Amarela | U2: Doses Aplicadas COVID-19 | V2: Cobertura Vacinal COVID-19 | W2: Doses Aplicadas Hepatite A | X2: Cobertura Vacinal Hepatite A | Y2: Doses Aplicadas de Tríplice Viral | Z2: Cobertura Vacinal Tríplice Viral | AA2: Doses Aplicadas Varicela | AB2: Cobertura Varicela | AE2: VACINAS QUE ATINGIRAM A META DE CV | AF2: HOMOGENEIDADE ENTRE AS 10 VACINAS | AG2: VACINAS DO PQA-VS QUE ATINGIRAM A META DE CV | AH2: HOMOGENEIDADE ENTRE AS VACINAS DO PQA-VS
A3: Metropolitana | B3: Afonso Cláudio | C3: 396 | D3: 110 | E3: 78 | F3: =E3/D3 -> 0.7090909091 | G3: 81 | H3: =G3/D3 -> 0.7363636364 | I3: 104 | J3: =I3/D3 -> 0.9454545455 | K3: 103 | L3: =K3/D3 -> 0.9363636364 | M3: 93 | N3: =M3/D3 -> 0.8454545455 | O3: 95 | P3: =O3/D3 -> 0.8636363636 | Q3: 105 | R3: =Q3/D3 -> 0.9545454545 | S3: 85 | T3: =S3/D3 -> 0.7727272727 | U3: 0 | V3: =U3/D3 -> 0 | W3: 89 | X3: =W3/D3 -> 0.8090909091 | Y3: 117 | Z3: =Y3/D3 -> 1.063636364 | AA3: 65 | AB3: =AA3/D3 -> 0.5909090909 | AE3: =cálculos2!O2 -> 2 | AF3: =AE3*0.1 -> 0.2 | AG3: =cálculos2!P2 -> 1 | AH3: =AG3*0.25 -> 0.25 | AJ3: LEGENDA / HOMOGENEIDADE PQA-VS
A4: Norte | B4: Água Doce do Norte | C4: 157 | D4: 33 | E4: 56 | F4: 1.696969697 | G4: 58 | H4: =G4/D4 -> 1.757575758 | I4: 43 | J4: =I4/D4 -> 1.303030303 | K4: 45 | L4: =K4/D4 -> 1.363636364 | M4: 42 | N4: =M4/D4 -> 1.272727273 | O4: 40 | P4: =O4/D4 -> 1.212121212 | Q4: 46 | R4: =Q4/D4 -> 1.393939394 | S4: 30 | T4: =S4/D4 -> 0.9090909091 | U4: 0 | V4: =U4/D4 -> 0 | W4: 28 | X4: =W4/D4 -> 0.8484848485 | Y4: 30 | Z4: =Y4/D4 -> 0.9090909091 | AA4: 19 | AB4: =AA4/D4 -> 0.5757575758 | AE4: =cálculos2!O3 -> 6 | AF4: =AE4*0.1 -> 0.6 | AG4: =cálculos2!P3 -> 3 | AH4: =AG4*0.25 -> 0.75 | AJ4: PERCENTUAL | AK4: Nº DE MUNICÍPIOS
A5: Central | B5: Águia Branca | C5: 138 | D5: 31 | E5: 38 | F5: 1.225806452 | G5: 41 | H5: 1.322580645 | I5: 45 | J5: 1.451612903 | K5: 45 | L5: 1.451612903 | M5: 38 | N5: 1.225806452 | O5: 38 | P5: 1.225806452 | Q5: 46 | R5: 1.483870968 | S5: 35 | T5: 1.129032258 | U5: 0 | V5: 0 | W5: 25 | X5: 0.8064516129 | Y5: 28 | Z5: 0.9032258065 | AA5: 14 | AB5: 0.4516129032 | AE5: =cálculos2!O4 -> 7 | AF5: 0.7 | AG5: =cálculos2!P4 -> 3 | AH5: 0.75 | AJ5: 0 | AK5: =COUNTIF($AH$3:$AH$80,"=0") -> 16
A6: Sul | B6: Alegre | C6: 335 | D6: 78 | E6: 72 | F6: 0.9230769231 | G6: 71 | H6: 0.9102564103 | I6: 79 | J6: 1.012820513 | K6: 83 | L6: 1.064102564 | M6: 82 | N6: 1.051282051 | O6: 78 | P6: 1 | Q6: 74 | R6: 0.9487179487 | S6: 80 | T6: 1.025641026 | U6: 0 | V6: 0 | W6: 55 | X6: 0.7051282051 | Y6: 80 | Z6: 1.025641026 | AA6: 31 | AB6: 0.3974358974 | AE6: =cálculos2!O5 -> 7 | AF6: 0.7 | AG6: =cálculos2!P5 -> 4 | AH6: 1 | AJ6: 0.25 | AK6: =COUNTIF($AH$3:$AH$80,"=0,25") -> 13
A7: Sul | B7: Alfredo Chaves | C7: 154 | D7: 40 | E7: 24 | F7: 0.6 | G7: 25 | H7: 0.625 | I7: 32 | J7: 0.8 | K7: 36 | L7: 0.9 | M7: 46 | N7: 1.15 | O7: 48 | P7: 1.2 | Q7: 41 | R7: 1.025 | S7: 37 | T7: 0.925 | U7: 0 | V7: 0 | W7: 29 | X7: 0.725 | Y7: 37 | Z7: 0.925 | AA7: 18 | AB7: 0.45 | AE7: =cálculos2!O6 -> 3 | AF7: 0.3 | AG7: =cálculos2!P6 -> 1 | AH7: 0.25 | AJ7: 0.5 | AK7: =COUNTIF($AH$3:$AH$80,"=0,5") -> 6
A8: Central | B8: Alto Rio Novo | C8: 90 | D8: 24 | E8: 13 | F8: 0.5416666667 | G8: 16 | H8: 0.6666666667 | I8: 26 | J8: 1.083333333 | K8: 26 | L8: 1.083333333 | M8: 23 | N8: 0.9583333333 | O8: 23 | P8: 0.9583333333 | Q8: 24 | R8: 1 | S8: 15 | T8: 0.625 | U8: 0 | V8: 0 | W8: 17 | X8: 0.7083333333 | Y8: 23 | Z8: 0.9583333333 | AA8: 10 | AB8: 0.4166666667 | AE8: =cálculos2!O7 -> 6 | AF8: 0.6 | AG8: =cálculos2!P7 -> 4 | AH8: 1 | AJ8: 0.75 | AK8: =COUNTIF($AH$3:$AH$80,"=0,75") -> 14
A9: Sul | B9: Anchieta | C9: 377 | D9: 84 | E9: 85 | F9: 1.011904762 | G9: 82 | H9: 0.9761904762 | I9: 92 | J9: 1.095238095 | K9: 95 | L9: 1.130952381 | M9: 109 | N9: 1.297619048 | O9: 110 | P9: 1.30952381 | Q9: 100 | R9: 1.19047619 | S9: 82 | T9: 0.9761904762 | U9: 4 | V9: 0.04761904762 | W9: 84 | X9: 1 | Y9: 98 | Z9: 1.166666667 | AA9: 47 | AB9: 0.5595238095 | AE9: =cálculos2!O8 -> 9 | AF9: 0.9 | AG9: =cálculos2!P8 -> 4 | AH9: 1 | AJ9: 1 | AK9: =COUNTIF($AH$3:$AH$80,"=1,0") -> 29
A10: Sul | B10: Apiacá | C10: 62 | D10: 13 | E10: 12 | F10: 0.9230769231 | G10: 15 | H10: 1.153846154 | I10: 9 | J10: 0.6923076923 | K10: 9 | L10: 0.6923076923 | M10: 14 | N10: 1.076923077 | O10: 15 | P10: 1.153846154 | Q10: 9 | R10: 0.6923076923 | S10: 18 | T10: 1.384615385 | U10: 0 | V10: 0 | W10: 4 | X10: 0.3076923077 | Y10: 10 | Z10: 0.7692307692 | AA10: 2 | AB10: 0.1538461538 | AE10: =cálculos2!O9 -> 4 | AF10: 0.4 | AG10: =cálculos2!P9 -> 1 | AH10: 0.25
A11: Metropolitana | B11: Aracruz | C11: 1453 | D11: 355 | E11: 344 | F11: 0.9690140845 | G11: 336 | H11: 0.9464788732 | I11: 316 | J11: 0.8901408451 | K11: 318 | L11: 0.8957746479 | M11: 342 | N11: 0.9633802817 | O11: 338 | P11: 0.9521126761 | Q11: 311 | R11: 0.876056338 | S11: 294 | T11: 0.8281690141 | U11: 7 | V11: 0.01971830986 | W11: 313 | X11: 0.8816901408 | Y11: 409 | Z11: 1.152112676 | AA11: 267 | AB11: 0.7521126761 | AE11: =cálculos2!O10 -> 4 | AF11: 0.4 | AG11: =cálculos2!P10 -> 2 | AH11: 0.5
A12: Sul | B12: Atilio Vivacqua | C12: 140 | D12: 37 | E12: 29 | F12: 0.7837837838 | G12: 28 | H12: 0.7567567568 | I12: 30 | J12: 0.8108108108 | K12: 29 | L12: 0.7837837838 | M12: 30 | N12: 0.8108108108 | O12: 30 | P12: 0.8108108108 | Q12: 26 | R12: 0.7027027027 | S12: 25 | T12: 0.6756756757 | U12: 0 | V12: 0 | W12: 28 | X12: 0.7567567568 | Y12: 34 | Z12: 0.9189189189 | AA12: 19 | AB12: 0.5135135135 | AE12: =cálculos2!O11 -> 0 | AF12: 0 | AG12: =cálculos2!P11 -> 0 | AH12: 0 | AJ12: LEGENDA / HOMOGENEIDADE 10 VACINAS
A13: Central | B13: Baixo Guandu | C13: 364 | D13: 76 | E13: 74 | F13: 0.9736842105 | G13: 88 | H13: 1.157894737 | I13: 101 | J13: 1.328947368 | K13: 101 | L13: 1.328947368 | M13: 104 | N13: 1.368421053 | O13: 101 | P13: 1.328947368 | Q13: 97 | R13: 1.276315789 | S13: 85 | T13: 1.118421053 | U13: 0 | V13: 0 | W13: 78 | X13: 1.026315789 | Y13: 135 | Z13: 1.776315789 | AA13: 69 | AB13: 0.9078947368 | AE13: =cálculos2!O12 -> 9 | AF13: 0.9 | AG13: =cálculos2!P12 -> 4 | AH13: 1 | AJ13: PERCENTUAL | AK13: Nº DE MUNICÍPIOS
A14: Norte | B14: Barra de São Francisco | C14: 510 | D14: 122 | E14: 113 | F14: 0.9262295082 | G14: 112 | H14: 0.9180327869 | I14: 119 | J14: 0.9754098361 | K14: 120 | L14: 0.9836065574 | M14: 121 | N14: 0.9918032787 | O14: 118 | P14: 0.9672131148 | Q14: 117 | R14: 0.9590163934 | S14: 137 | T14: 1.12295082 | U14: 0 | V14: 0 | W14: 103 | X14: 0.8442622951 | Y14: 134 | Z14: 1.098360656 | AA14: 101 | AB14: 0.8278688525 | AE14: =cálculos2!O13 -> 8 | AF14: 0.8 | AG14: =cálculos2!P13 -> 4 | AH14: 1 | AJ14: 0 | AK14: =COUNTIF($AF$3:$AF$80,"=0") -> 11
A15: Norte | B15: Boa Esperança | C15: 199 | D15: 54 | E15: 32 | F15: 0.5925925926 | G15: 46 | H15: 0.8518518519 | I15: 35 | J15: 0.6481481481 | K15: 40 | L15: 0.7407407407 | M15: 48 | N15: 0.8888888889 | O15: 49 | P15: 0.9074074074 | Q15: 46 | R15: 0.8518518519 | S15: 46 | T15: 0.8518518519 | U15: 0 | V15: 0 | W15: 39 | X15: 0.7222222222 | Y15: 50 | Z15: 0.9259259259 | AA15: 37 | AB15: 0.6851851852 | AE15: =cálculos2!O14 -> 1 | AF15: 0.1 | AG15: =cálculos2!P14 -> 0 | AH15: 0 | AJ15: 0.1 | AK15: =COUNTIF($AF$3:$AF$80,"=0,1") -> 8
A16: Sul | B16: Bom Jesus do Norte | C16: 81 | D16: 14 | E16: 13 | F16: 0.9285714286 | G16: 13 | H16: 0.9285714286 | I16: 37 | J16: 2.642857143 | K16: 35 | L16: 2.5 | M16: 33 | N16: 2.357142857 | O16: 31 | P16: 2.214285714 | Q16: 28 | R16: 2 | S16: 30 | T16: 2.142857143 | U16: 3 | V16: 0.2142857143 | W16: 4 | X16: 0.2857142857 | Y16: 24 | Z16: 1.714285714 | AA16: 4 | AB16: 0.2857142857 | AE16: =cálculos2!O15 -> 8 | AF16: 0.8 | AG16: =cálculos2!P15 -> 4 | AH16: 1 | AJ16: 0.2 | AK16: =COUNTIF($AF$3:$AF$80,"=0,2") -> 7
A17: Metropolitana | B17: Brejetuba | C17: 195 | D17: 39 | E17: 13 | F17: 0.3333333333 | G17: 48 | H17: 1.230769231 | I17: 47 | J17: 1.205128205 | K17: 47 | L17: 1.205128205 | M17: 48 | N17: 1.230769231 | O17: 47 | P17: 1.205128205 | Q17: 47 | R17: 1.205128205 | S17: 55 | T17: 1.41025641 | U17: 0 | V17: 0 | W17: 43 | X17: 1.102564103 | Y17: 47 | Z17: 1.205128205 | AA17: 32 | AB17: 0.8205128205 | AE17: =cálculos2!O16 -> 9 | AF17: 0.9 | AG17: =cálculos2!P16 -> 4 | AH17: 1 | AJ17: 0.3 | AK17: =COUNTIF($AF$3:$AF$80,"=0,3") -> 3
A18: Sul | B18: Cachoeiro de Itapemirim | C18: 2446 | D18: 639 | E18: 657 | F18: 1.028169014 | G18: 655 | H18: 1.025039124 | I18: 554 | J18: 0.8669796557 | K18: 545 | L18: 0.8528951487 | M18: 538 | N18: 0.8419405321 | O18: 522 | P18: 0.8169014085 | Q18: 520 | R18: 0.813771518 | S18: 504 | T18: 0.7887323944 | U18: 1 | V18: 0.001564945227 | W18: 477 | X18: 0.7464788732 | Y18: 613 | Z18: 0.9593114241 | AA18: 212 | AB18: 0.3317683881 | AE18: =cálculos2!O17 -> 2 | AF18: 0.2 | AG18: =cálculos2!P17 -> 1 | AH18: 0.25 | AJ18: 0.4 | AK18: =COUNTIF($AF$3:$AF$80,"=0,4") -> 8
A19: Metropolitana | B19: Cariacica | C19: 4835 | D19: 1168 | E19: 1030 | F19: 0.8818493151 | G19: 1015 | H19: 0.8690068493 | I19: 1110 | J19: 0.9503424658 | K19: 1082 | L19: 0.926369863 | M19: 1107 | N19: 0.9477739726 | O19: 1045 | P19: 0.8946917808 | Q19: 1084 | R19: 0.9280821918 | S19: 898 | T19: 0.7688356164 | U19: 24 | V19: 0.02054794521 | W19: 747 | X19: 0.6395547945 | Y19: 1157 | Z19: 0.9905821918 | AA19: 522 | AB19: 0.4469178082 | AE19: =cálculos2!O18 -> 2 | AF19: 0.2 | AG19: =cálculos2!P18 -> 2 | AH19: 0.5 | AJ19: 0.5 | AK19: =COUNTIF($AF$3:$AF$80,"=0,5") -> 4
A20: Sul | B20: Castelo | C20: 452 | D20: 125 | E20: 95 | F20: 0.76 | G20: 90 | H20: 0.72 | I20: 97 | J20: 0.776 | K20: 96 | L20: 0.768 | M20: 99 | N20: 0.792 | O20: 95 | P20: 0.76 | Q20: 95 | R20: 0.76 | S20: 98 | T20: 0.784 | U20: 0 | V20: 0 | W20: 41 | X20: 0.328 | Y20: 124 | Z20: 0.992 | AA20: 53 | AB20: 0.424 | AE20: =cálculos2!O19 -> 1 | AF20: 0.1 | AG20: =cálculos2!P19 -> 1 | AH20: 0.25 | AJ20: 0.6 | AK20: =COUNTIF($AF$3:$AF$80,"=0,6") -> 8
A21: Central | B21: Colatina | C21: 1530 | D21: 360 | E21: 412 | F21: 1.144444444 | G21: 404 | H21: 1.122222222 | I21: 366 | J21: 1.016666667 | K21: 351 | L21: 0.975 | M21: 327 | N21: 0.9083333333 | O21: 337 | P21: 0.9361111111 | Q21: 342 | R21: 0.95 | S21: 294 | T21: 0.8166666667 | U21: 3 | V21: 0.008333333333 | W21: 203 | X21: 0.5638888889 | Y21: 342 | Z21: 0.95 | AA21: 219 | AB21: 0.6083333333 | AE21: =cálculos2!O20 -> 6 | AF21: 0.6 | AG21: =cálculos2!P20 -> 3 | AH21: 0.75 | AJ21: 0.7 | AK21: =COUNTIF($AF$3:$AF$80,"=0,7") -> 9
A22: Norte | B22: Conceição da Barra | C22: 373 | D22: 88 | E22: 59 | F22: 0.6704545455 | G22: 58 | H22: 0.6590909091 | I22: 85 | J22: 0.9659090909 | K22: 89 | L22: 1.011363636 | M22: 96 | N22: 1.090909091 | O22: 90 | P22: 1.022727273 | Q22: 79 | R22: 0.8977272727 | S22: 100 | T22: 1.136363636 | U22: 0 | V22: 0 | W22: 53 | X22: 0.6022727273 | Y22: 95 | Z22: 1.079545455 | AA22: 54 | AB22: 0.6136363636 | AE22: =cálculos2!O21 -> 6 | AF22: 0.6 | AG22: =cálculos2!P21 -> 4 | AH22: 1 | AJ22: 0.8 | AK22: =COUNTIF($AF$3:$AF$80,"=0,8") -> 9
A23: Metropolitana | B23: Conceição do Castelo | C23: 152 | D23: 29 | E23: 13 | F23: 0.4482758621 | G23: 40 | H23: 1.379310345 | I23: 29 | J23: 1 | K23: 28 | L23: 0.9655172414 | M23: 32 | N23: 1.103448276 | O23: 30 | P23: 1.034482759 | Q23: 32 | R23: 1.103448276 | S23: 37 | T23: 1.275862069 | U23: 0 | V23: 0 | W23: 30 | X23: 1.034482759 | Y23: 26 | Z23: 0.8965517241 | AA23: 18 | AB23: 0.6206896552 | AE23: =cálculos2!O22 -> 8 | AF23: 0.8 | AG23: =cálculos2!P22 -> 3 | AH23: 0.75 | AJ23: 0.9 | AK23: =COUNTIF($AF$3:$AF$80,"=0,9") -> 9
A24: Sul | B24: Divino de São Lourenço | C24: 57 | D24: 9 | E24: 19 | F24: 2.111111111 | G24: 18 | H24: 2 | I24: 18 | J24: 2 | K24: 18 | L24: 2 | M24: 18 | N24: 2 | O24: 18 | P24: 2 | Q24: 20 | R24: 2.222222222 | S24: 17 | T24: 1.888888889 | U24: 0 | V24: 0 | W24: 13 | X24: 1.444444444 | Y24: 11 | Z24: 1.222222222 | AA24: 6 | AB24: 0.6666666667 | AE24: =cálculos2!O23 -> 9 | AF24: 0.9 | AG24: =cálculos2!P23 -> 4 | AH24: 1 | AJ24: 1 | AK24: =COUNTIF($AF$3:$AF$80,"=1,0") -> 2
A25: Metropolitana | B25: Domingos Martins | C25: 407 | D25: 94 | E25: 72 | F25: 0.7659574468 | G25: 85 | H25: 0.9042553191 | I25: 81 | J25: 0.8617021277 | K25: 82 | L25: 0.8723404255 | M25: 94 | N25: 1 | O25: 90 | P25: 0.9574468085 | Q25: 85 | R25: 0.9042553191 | S25: 99 | T25: 1.053191489 | U25: 2 | V25: 0.02127659574 | W25: 64 | X25: 0.6808510638 | Y25: 108 | Z25: 1.14893617 | AA25: 108 | AB25: 1.14893617 | AE25: =cálculos2!O24 -> 6 | AF25: 0.6 | AG25: =cálculos2!P24 -> 2 | AH25: 0.5
A26: Sul | B26: Dores do Rio Preto | C26: 95 | D26: 28 | E26: 10 | F26: 0.3571428571 | G26: 14 | H26: 0.5 | I26: 20 | J26: 0.7142857143 | K26: 23 | L26: 0.8214285714 | M26: 26 | N26: 0.9285714286 | O26: 24 | P26: 0.8571428571 | Q26: 24 | R26: 0.8571428571 | S26: 23 | T26: 0.8214285714 | U26: 1 | V26: 0.03571428571 | W26: 15 | X26: 0.5357142857 | Y26: 20 | Z26: 0.7142857143 | AA26: 7 | AB26: 0.25 | AE26: =cálculos2!O25 -> 0 | AF26: 0 | AG26: =cálculos2!P25 -> 0 | AH26: 0
A27: Norte | B27: Ecoporanga | C27: 226 | D27: 48 | E27: 74 | F27: 1.541666667 | G27: 77 | H27: 1.604166667 | I27: 69 | J27: 1.4375 | K27: 67 | L27: 1.395833333 | M27: 57 | N27: 1.1875 | O27: 56 | P27: 1.166666667 | Q27: 57 | R27: 1.1875 | S27: 63 | T27: 1.3125 | U27: 0 | V27: 0 | W27: 50 | X27: 1.041666667 | Y27: 60 | Z27: 1.25 | AA27: 55 | AB27: 1.145833333 | AE27: =cálculos2!O26 -> 10 | AF27: 1 | AG27: =cálculos2!P26 -> 4 | AH27: 1
A28: Metropolitana | B28: Fundão | C28: 217 | D28: 58 | E28: 44 | F28: 0.7586206897 | G28: 43 | H28: 0.7413793103 | I28: 69 | J28: 1.189655172 | K28: 67 | L28: 1.155172414 | M28: 55 | N28: 0.9482758621 | O28: 54 | P28: 0.9310344828 | Q28: 56 | R28: 0.9655172414 | S28: 54 | T28: 0.9310344828 | U28: 1 | V28: 0.01724137931 | W28: 47 | X28: 0.8103448276 | Y28: 42 | Z28: 0.724137931 | AA28: 49 | AB28: 0.8448275862 | AE28: =cálculos2!O27 -> 4 | AF28: 0.4 | AG28: =cálculos2!P27 -> 2 | AH28: 0.5
A29: Central | B29: Governador Lindenberg | C29: 145 | D29: 27 | E29: 24 | F29: 0.8888888889 | G29: 21 | H29: 0.7777777778 | I29: 35 | J29: 1.296296296 | K29: 33 | L29: 1.222222222 | M29: 33 | N29: 1.222222222 | O29: 34 | P29: 1.259259259 | Q29: 33 | R29: 1.222222222 | S29: 43 | T29: 1.592592593 | U29: 1 | V29: 0.03703703704 | W29: 26 | X29: 0.962962963 | Y29: 25 | Z29: 0.9259259259 | AA29: 25 | AB29: 0.9259259259 | AE29: =cálculos2!O28 -> 7 | AF29: 0.7 | AG29: =cálculos2!P28 -> 3 | AH29: 0.75
A30: Sul | B30: Guaçuí | C30: 375 | D30: 78 | E30: 75 | F30: 0.9615384615 | G30: 86 | H30: 1.102564103 | I30: 104 | J30: 1.333333333 | K30: 104 | L30: 1.333333333 | M30: 106 | N30: 1.358974359 | O30: 97 | P30: 1.243589744 | Q30: 98 | R30: 1.256410256 | S30: 79 | T30: 1.012820513 | U30: 0 | V30: 0 | W30: 93 | X30: 1.192307692 | Y30: 109 | Z30: 1.397435897 | AA30: 42 | AB30: 0.5384615385 | AE30: =cálculos2!O29 -> 9 | AF30: 0.9 | AG30: =cálculos2!P29 -> 4 | AH30: 1
A31: Metropolitana | B31: Guarapari | C31: 1759 | D31: 452 | E31: 337 | F31: 0.7455752212 | G31: 364 | H31: 0.8053097345 | I31: 371 | J31: 0.8207964602 | K31: 351 | L31: 0.7765486726 | M31: 391 | N31: 0.8650442478 | O31: 373 | P31: 0.8252212389 | Q31: 354 | R31: 0.7831858407 | S31: 324 | T31: 0.7168141593 | U31: 0 | V31: 0 | W31: 284 | X31: 0.6283185841 | Y31: 343 | Z31: 0.7588495575 | AA31: 197 | AB31: 0.435840708 | AE31: =cálculos2!O30 -> 0 | AF31: 0 | AG31: =cálculos2!P30 -> 0 | AH31: 0
A32: Metropolitana | B32: Ibatiba | C32: 341 | D32: 66 | E32: 51 | F32: 0.7727272727 | G32: 91 | H32: 1.378787879 | I32: 94 | J32: 1.424242424 | K32: 94 | L32: 1.424242424 | M32: 103 | N32: 1.560606061 | O32: 91 | P32: 1.378787879 | Q32: 105 | R32: 1.590909091 | S32: 83 | T32: 1.257575758 | U32: 1 | V32: 0.01515151515 | W32: 63 | X32: 0.9545454545 | Y32: 80 | Z32: 1.212121212 | AA32: 31 | AB32: 0.4696969697 | AE32: =cálculos2!O31 -> 9 | AF32: 0.9 | AG32: =cálculos2!P31 -> 4 | AH32: 1
A33: Metropolitana | B33: Ibiraçu | C33: 147 | D33: 41 | E33: 37 | F33: 0.9024390244 | G33: 34 | H33: 0.8292682927 | I33: 33 | J33: 0.8048780488 | K33: 31 | L33: 0.756097561 | M33: 29 | N33: 0.7073170732 | O33: 27 | P33: 0.6585365854 | Q33: 33 | R33: 0.8048780488 | S33: 31 | T33: 0.756097561 | U33: 0 | V33: 0 | W33: 19 | X33: 0.4634146341 | Y33: 29 | Z33: 0.7073170732 | AA33: 15 | AB33: 0.3658536585 | AE33: =cálculos2!O32 -> 0 | AF33: 0 | AG33: =cálculos2!P32 -> 0 | AH33: 0
A34: Sul | B34: Ibitirama | C34: 122 | D34: 27 | E34: 32 | F34: 1.185185185 | G34: 33 | H34: 1.222222222 | I34: 27 | J34: 1 | K34: 28 | L34: 1.037037037 | M34: 31 | N34: 1.148148148 | O34: 32 | P34: 1.185185185 | Q34: 23 | R34: 0.8518518519 | S34: 21 | T34: 0.7777777778 | U34: 0 | V34: 0 | W34: 21 | X34: 0.7777777778 | Y34: 36 | Z34: 1.333333333 | AA34: 19 | AB34: 0.7037037037 | AE34: =cálculos2!O33 -> 6 | AF34: 0.6 | AG34: =cálculos2!P33 -> 4 | AH34: 1
A35: Sul | B35: Iconha | C35: 123 | D35: 36 | E35: 21 | F35: =E35/D35 -> 0.5833333333 | G35: 20 | H35: 0.5555555556 | I35: 31 | J35: 0.8611111111 | K35: 29 | L35: 0.8055555556 | M35: 30 | N35: 0.8333333333 | O35: 31 | P35: 0.8611111111 | Q35: 25 | R35: 0.6944444444 | S35: 31 | T35: 0.8611111111 | U35: 1 | V35: 0.02777777778 | W35: 27 | X35: 0.75 | Y35: 45 | Z35: 1.25 | AA35: 11 | AB35: 0.3055555556 | AE35: =cálculos2!O34 -> 1 | AF35: 0.1 | AG35: =cálculos2!P34 -> 1 | AH35: 0.25
A36: Sul | B36: Irupi | C36: 196 | D36: 47 | E36: 35 | F36: 0.7446808511 | G36: 40 | H36: 0.8510638298 | I36: 53 | J36: 1.127659574 | K36: 53 | L36: 1.127659574 | M36: 65 | N36: 1.382978723 | O36: 60 | P36: 1.276595745 | Q36: 58 | R36: 1.234042553 | S36: 45 | T36: 0.9574468085 | U36: 3 | V36: 0.06382978723 | W36: 39 | X36: 0.829787234 | Y36: 76 | Z36: 1.617021277 | AA36: 18 | AB36: 0.3829787234 | AE36: =cálculos2!O35 -> 7 | AF36: 0.7 | AG36: =cálculos2!P35 -> 4 | AH36: 1
A37: Metropolitana | B37: Itaguaçu | C37: 131 | D37: 30 | E37: 34 | F37: 1.133333333 | G37: 29 | H37: 0.9666666667 | I37: 31 | J37: 1.033333333 | K37: 30 | L37: 1 | M37: 28 | N37: 0.9333333333 | O37: 28 | P37: 0.9333333333 | Q37: 31 | R37: 1.033333333 | S37: 34 | T37: 1.133333333 | U37: 0 | V37: 0 | W37: 34 | X37: 1.133333333 | Y37: 40 | Z37: 1.333333333 | AA37: 39 | AB37: 1.3 | AE37: =cálculos2!O36 -> 9 | AF37: 0.9 | AG37: =cálculos2!P36 -> 3 | AH37: 0.75
A38: Sul | B38: Itapemirim | C38: 571 | D38: 142 | E38: 103 | F38: 0.7253521127 | G38: 106 | H38: 0.7464788732 | I38: 108 | J38: 0.7605633803 | K38: 106 | L38: 0.7464788732 | M38: 131 | N38: 0.9225352113 | O38: 111 | P38: 0.7816901408 | Q38: 107 | R38: 0.7535211268 | S38: 87 | T38: 0.6126760563 | U38: 0 | V38: 0 | W38: 105 | X38: 0.7394366197 | Y38: 132 | Z38: 0.9295774648 | AA38: 68 | AB38: 0.4788732394 | AE38: =cálculos2!O37 -> 0 | AF38: 0 | AG38: =cálculos2!P37 -> 0 | AH38: 0
A39: Metropolitana | B39: Itarana | C39: 135 | D39: 33 | E39: 36 | F39: 1.090909091 | G39: 39 | H39: 1.181818182 | I39: 31 | J39: 0.9393939394 | K39: 31 | L39: 0.9393939394 | M39: 24 | N39: 0.7272727273 | O39: 23 | P39: 0.696969697 | Q39: 26 | R39: 0.7878787879 | S39: 39 | T39: 1.181818182 | U39: 0 | V39: 0 | W39: 16 | X39: 0.4848484848 | Y39: 30 | Z39: 0.9090909091 | AA39: 26 | AB39: 0.7878787879 | AE39: =cálculos2!O38 -> 2 | AF39: 0.2 | AG39: =cálculos2!P38 -> 0 | AH39: 0
A40: Sul | B40: Iúna | C40: 469 | D40: 103 | E40: 76 | F40: 0.7378640777 | G40: 74 | H40: 0.7184466019 | I40: 120 | J40: 1.165048544 | K40: 117 | L40: 1.13592233 | M40: 127 | N40: 1.233009709 | O40: 125 | P40: 1.213592233 | Q40: 118 | R40: 1.145631068 | S40: 107 | T40: 1.038834951 | U40: 0 | V40: 0 | W40: 79 | X40: 0.7669902913 | Y40: 126 | Z40: 1.223300971 | AA40: 50 | AB40: 0.4854368932 | AE40: =cálculos2!O39 -> 7 | AF40: 0.7 | AG40: =cálculos2!P39 -> 4 | AH40: 1
A41: Norte | B41: Jaguaré | C41: 492 | D41: 114 | E41: 104 | F41: 0.9122807018 | G41: 102 | H41: 0.8947368421 | I41: 126 | J41: 1.105263158 | K41: 136 | L41: 1.192982456 | M41: 122 | N41: 1.070175439 | O41: 121 | P41: 1.061403509 | Q41: 106 | R41: 0.9298245614 | S41: 111 | T41: 0.9736842105 | U41: 1 | V41: 0.008771929825 | W41: 77 | X41: 0.6754385965 | Y41: 102 | Z41: 0.8947368421 | AA41: 63 | AB41: 0.5526315789 | AE41: =cálculos2!O40 -> 5 | AF41: 0.5 | AG41: =cálculos2!P40 -> 3 | AH41: 0.75
A42: Sul | B42: Jerônimo Monteiro | C42: 163 | D42: 41 | E42: 32 | F42: 0.7804878049 | G42: 34 | H42: 0.8292682927 | I42: 47 | J42: 1.146341463 | K42: 47 | L42: 1.146341463 | M42: 44 | N42: 1.073170732 | O42: 44 | P42: 1.073170732 | Q42: 36 | R42: 0.8780487805 | S42: 36 | T42: 0.8780487805 | U42: 2 | V42: 0.0487804878 | W42: 28 | X42: 0.6829268293 | Y42: 37 | Z42: 0.9024390244 | AA42: 8 | AB42: 0.1951219512 | AE42: =cálculos2!O41 -> 4 | AF42: 0.4 | AG42: =cálculos2!P41 -> 3 | AH42: 0.75
A43: Metropolitana | B43: João Neiva | C43: 179 | D43: 41 | E43: 33 | F43: 0.8048780488 | G43: 31 | H43: 0.756097561 | I43: 44 | J43: 1.073170732 | K43: 42 | L43: 1.024390244 | M43: 45 | N43: 1.097560976 | O43: 45 | P43: 1.097560976 | Q43: 43 | R43: 1.048780488 | S43: 44 | T43: 1.073170732 | U43: 1 | V43: 0.0243902439 | W43: 26 | X43: 0.6341463415 | Y43: 50 | Z43: 1.219512195 | AA43: 20 | AB43: 0.487804878 | AE43: =cálculos2!O42 -> 7 | AF43: 0.7 | AG43: =cálculos2!P42 -> 4 | AH43: 1
A44: Metropolitana | B44: Laranja da Terra | C44: 100 | D44: 25 | E44: 20 | F44: 0.8 | G44: 19 | H44: 0.76 | I44: 23 | J44: 0.92 | K44: 23 | L44: 0.92 | M44: 14 | N44: 0.56 | O44: 15 | P44: 0.6 | Q44: 19 | R44: 0.76 | S44: 36 | T44: 1.44 | U44: 5 | V44: 0.2 | W44: 17 | X44: 0.68 | Y44: 41 | Z44: 1.64 | AA44: 16 | AB44: 0.64 | AE44: =cálculos2!O43 -> 2 | AF44: 0.2 | AG44: =cálculos2!P43 -> 1 | AH44: 0.25
A45: Central | B45: Linhares | C45: 2585 | D45: 648 | E45: 517 | F45: 0.7978395062 | G45: 526 | H45: 0.8117283951 | I45: 567 | J45: 0.875 | K45: 561 | L45: 0.8657407407 | M45: 531 | N45: 0.8194444444 | O45: 550 | P45: 0.8487654321 | Q45: 496 | R45: 0.7654320988 | S45: 485 | T45: 0.7484567901 | U45: 1 | V45: 0.001543209877 | W45: 315 | X45: 0.4861111111 | Y45: 541 | Z45: 0.8348765432 | AA45: 327 | AB45: 0.5046296296 | AE45: =cálculos2!O44 -> 0 | AF45: 0 | AG45: =cálculos2!P44 -> 0 | AH45: 0
A46: Central | B46: Mantenópolis | C46: 152 | D46: 34 | E46: 33 | F46: 0.9705882353 | G46: 39 | H46: 1.147058824 | I46: 37 | J46: 1.088235294 | K46: 42 | L46: 1.235294118 | M46: 32 | N46: 0.9411764706 | O46: 30 | P46: 0.8823529412 | Q46: 31 | R46: 0.9117647059 | S46: 36 | T46: 1.058823529 | U46: 0 | V46: 0 | W46: 31 | X46: 0.9117647059 | Y46: 38 | Z46: 1.117647059 | AA46: 27 | AB46: 0.7941176471 | AE46: =cálculos2!O45 -> 5 | AF46: 0.5 | AG46: =cálculos2!P45 -> 3 | AH46: 0.75
A47: Sul | B47: Marataízes | C47: 570 | D47: 156 | E47: 146 | F47: 0.9358974359 | G47: 130 | H47: 0.8333333333 | I47: 121 | J47: 0.7756410256 | K47: 133 | L47: 0.8525641026 | M47: 129 | N47: 0.8269230769 | O47: 130 | P47: 0.8333333333 | Q47: 136 | R47: 0.8717948718 | S47: 95 | T47: 0.608974359 | U47: 0 | V47: 0 | W47: 110 | X47: 0.7051282051 | Y47: 129 | Z47: 0.8269230769 | AA47: 47 | AB47: 0.3012820513 | AE47: =cálculos2!O46 -> 0 | AF47: 0 | AG47: =cálculos2!P46 -> 0 | AH47: 0
A48: Metropolitana | B48: Marechal Floriano | C48: 235 | D48: 65 | E48: 45 | F48: 0.6923076923 | G48: 48 | H48: 0.7384615385 | I48: 39 | J48: 0.6 | K48: 39 | L48: 0.6 | M48: 56 | N48: 0.8615384615 | O48: 55 | P48: 0.8461538462 | Q48: 45 | R48: 0.6923076923 | S48: 44 | T48: 0.6769230769 | U48: 2 | V48: 0.03076923077 | W48: 42 | X48: 0.6461538462 | Y48: 57 | Z48: 0.8769230769 | AA48: 34 | AB48: 0.5230769231 | AE48: =cálculos2!O47 -> 0 | AF48: 0 | AG48: =cálculos2!P47 -> 0 | AH48: 0
A49: Central | B49: Marilândia | C49: 160 | D49: 28 | E49: 34 | F49: 1.214285714 | G49: 32 | H49: 1.142857143 | I49: 46 | J49: 1.642857143 | K49: 46 | L49: 1.642857143 | M49: 37 | N49: 1.321428571 | O49: 38 | P49: 1.357142857 | Q49: 49 | R49: 1.75 | S49: 33 | T49: 1.178571429 | U49: 0 | V49: 0 | W49: 34 | X49: 1.214285714 | Y49: 42 | Z49: 1.5 | AA49: 30 | AB49: 1.071428571 | AE49: =cálculos2!O48 -> 10 | AF49: 1 | AG49: =cálculos2!P48 -> 4 | AH49: 1
A50: Sul | B50: Mimoso do Sul | C50: 258 | D50: 56 | E50: 47 | F50: 0.8392857143 | G50: 49 | H50: 0.875 | I50: 58 | J50: 1.035714286 | K50: 58 | L50: 1.035714286 | M50: 54 | N50: 0.9642857143 | O50: 51 | P50: 0.9107142857 | Q50: 57 | R50: 1.017857143 | S50: 49 | T50: 0.875 | U50: 0 | V50: 0 | W50: 44 | X50: 0.7857142857 | Y50: 60 | Z50: 1.071428571 | AA50: 30 | AB50: 0.5357142857 | AE50: =cálculos2!O49 -> 6 | AF50: 0.6 | AG50: =cálculos2!P49 -> 4 | AH50: 1
A51: Norte | B51: Montanha | C51: 254 | D51: 55 | E51: 40 | F51: 0.7272727273 | G51: 40 | H51: 0.7272727273 | I51: 87 | J51: 1.581818182 | K51: 89 | L51: 1.618181818 | M51: 67 | N51: 1.218181818 | O51: 68 | P51: 1.236363636 | Q51: 59 | R51: 1.072727273 | S51: 59 | T51: 1.072727273 | U51: 0 | V51: 0 | W51: 56 | X51: 1.018181818 | Y51: 64 | Z51: 1.163636364 | AA51: 51 | AB51: 0.9272727273 | AE51: =cálculos2!O50 -> 8 | AF51: 0.8 | AG51: =cálculos2!P50 -> 4 | AH51: 1
A52: Norte | B52: Mucurici | C52: 72 | D52: 12 | E52: 10 | F52: 0.8333333333 | G52: 11 | H52: 0.9166666667 | I52: 21 | J52: 1.75 | K52: 23 | L52: 1.916666667 | M52: 21 | N52: 1.75 | O52: 21 | P52: 1.75 | Q52: 17 | R52: 1.416666667 | S52: 21 | T52: 1.75 | U52: 0 | V52: 0 | W52: 10 | X52: 0.8333333333 | Y52: 21 | Z52: 1.75 | AA52: 10 | AB52: 0.8333333333 | AE52: =cálculos2!O51 -> 8 | AF52: 0.8 | AG52: =cálculos2!P51 -> 4 | AH52: 1
A53: Sul | B53: Muniz Freire | C53: 211 | D53: 43 | E53: 49 | F53: 1.139534884 | G53: 48 | H53: 1.11627907 | I53: 61 | J53: 1.418604651 | K53: 56 | L53: 1.302325581 | M53: 57 | N53: 1.325581395 | O53: 56 | P53: 1.302325581 | Q53: 59 | R53: 1.372093023 | S53: 58 | T53: 1.348837209 | U53: 0 | V53: 0 | W53: 52 | X53: 1.209302326 | Y53: 65 | Z53: 1.511627907 | AA53: 24 | AB53: 0.5581395349 | AE53: =cálculos2!O52 -> 9 | AF53: 0.9 | AG53: =cálculos2!P52 -> 4 | AH53: 1
A54: Sul | B54: Muqui | C54: 172 | D54: 44 | E54: 31 | F54: 0.7045454545 | G54: 31 | H54: 0.7045454545 | I54: 52 | J54: 1.181818182 | K54: 53 | L54: 1.204545455 | M54: 36 | N54: 0.8181818182 | O54: 36 | P54: 0.8181818182 | Q54: 44 | R54: 1 | S54: 34 | T54: 0.7727272727 | U54: 2 | V54: 0.04545454545 | W54: 20 | X54: 0.4545454545 | Y54: 46 | Z54: 1.045454545 | AA54: 18 | AB54: 0.4090909091 | AE54: =cálculos2!O53 -> 4 | AF54: 0.4 | AG54: =cálculos2!P53 -> 3 | AH54: 0.75
A55: Norte | B55: Nova Venécia | C55: 681 | D55: 163 | E55: 84 | F55: 0.5153374233 | G55: 154 | H55: 0.9447852761 | I55: 196 | J55: 1.202453988 | K55: 198 | L55: 1.214723926 | M55: 154 | N55: 0.9447852761 | O55: 145 | P55: 0.8895705521 | Q55: 159 | R55: 0.9754601227 | S55: 169 | T55: 1.036809816 | U55: 0 | V55: 0 | W55: 128 | X55: 0.7852760736 | Y55: 167 | Z55: 1.024539877 | AA55: 110 | AB55: 0.6748466258 | AE55: =cálculos2!O54 -> 6 | AF55: 0.6 | AG55: =cálculos2!P54 -> 3 | AH55: 0.75
A56: Central | B56: Pancas | C56: 208 | D56: 42 | E56: 54 | F56: 1.285714286 | G56: 48 | H56: 1.142857143 | I56: 61 | J56: 1.452380952 | K56: 61 | L56: 1.452380952 | M56: 62 | N56: 1.476190476 | O56: 59 | P56: 1.404761905 | Q56: 60 | R56: 1.428571429 | S56: 48 | T56: 1.142857143 | U56: 0 | V56: 0 | W56: 30 | X56: 0.7142857143 | Y56: 52 | Z56: 1.238095238 | AA56: 54 | AB56: 1.285714286 | AE56: =cálculos2!O55 -> 9 | AF56: 0.9 | AG56: =cálculos2!P55 -> 4 | AH56: 1
A57: Norte | B57: Pedro Canário | C57: 330 | D57: 78 | E57: 57 | F57: 0.7307692308 | G57: 59 | H57: 0.7564102564 | I57: 77 | J57: 0.9871794872 | K57: 82 | L57: 1.051282051 | M57: 68 | N57: 0.8717948718 | O57: 65 | P57: 0.8333333333 | Q57: 62 | R57: 0.7948717949 | S57: 82 | T57: 1.051282051 | U57: 0 | V57: 0 | W57: 57 | X57: 0.7307692308 | Y57: 99 | Z57: 1.269230769 | AA57: 64 | AB57: 0.8205128205 | AE57: =cálculos2!O56 -> 4 | AF57: 0.4 | AG57: =cálculos2!P56 -> 3 | AH57: 0.75
A58: Norte | B58: Pinheiros | C58: 322 | D58: 70 | E58: 46 | F58: 0.6571428571 | G58: 45 | H58: 0.6428571429 | I58: 82 | J58: 1.171428571 | K58: 81 | L58: 1.157142857 | M58: 72 | N58: 1.028571429 | O58: 69 | P58: 0.9857142857 | Q58: 68 | R58: 0.9714285714 | S58: 71 | T58: 1.014285714 | U58: 0 | V58: 0 | W58: 56 | X58: 0.8 | Y58: 72 | Z58: 1.028571429 | AA58: 34 | AB58: 0.4857142857 | AE58: =cálculos2!O57 -> 7 | AF58: 0.7 | AG58: =cálculos2!P57 -> 4 | AH58: 1
A59: Sul | B59: Piúma | C59: 312 | D59: 67 | E59: 59 | F59: 0.8805970149 | G59: 57 | H59: 0.8507462687 | I59: 73 | J59: 1.089552239 | K59: 72 | L59: 1.074626866 | M59: 65 | N59: 0.9701492537 | O59: 59 | P59: 0.8805970149 | Q59: 52 | R59: 0.776119403 | S59: 52 | T59: 0.776119403 | U59: 1 | V59: 0.01492537313 | W59: 54 | X59: 0.8059701493 | Y59: 77 | Z59: 1.149253731 | AA59: 34 | AB59: 0.5074626866 | AE59: =cálculos2!O58 -> 4 | AF59: 0.4 | AG59: =cálculos2!P58 -> 4 | AH59: 1
A60: Norte | B60: Ponto Belo | C60: 86 | D60: 19 | E60: 10 | F60: 0.5263157895 | G60: 11 | H60: 0.5789473684 | I60: 10 | J60: 0.5263157895 | K60: 9 | L60: 0.4736842105 | M60: 11 | N60: 0.5789473684 | O60: 11 | P60: 0.5789473684 | Q60: 7 | R60: 0.3684210526 | S60: 19 | T60: 1 | U60: 0 | V60: 0 | W60: 10 | X60: 0.5263157895 | Y60: 14 | Z60: 0.7368421053 | AA60: 11 | AB60: 0.5789473684 | AE60: =cálculos2!O59 -> 1 | AF60: 0.1 | AG60: =cálculos2!P59 -> 0 | AH60: 0
A61: Sul | B61: Presidente Kennedy | C61: 192 | D61: 57 | E61: 47 | F61: 0.8245614035 | G61: 47 | H61: 0.8245614035 | I61: 41 | J61: 0.7192982456 | K61: 46 | L61: 0.8070175439 | M61: 34 | N61: 0.5964912281 | O61: 33 | P61: 0.5789473684 | Q61: 46 | R61: 0.8070175439 | S61: 40 | T61: 0.701754386 | U61: 0 | V61: 0 | W61: 45 | X61: 0.7894736842 | Y61: 64 | Z61: 1.122807018 | AA61: 16 | AB61: 0.2807017544 | AE61: =cálculos2!O60 -> 1 | AF61: 0.1 | AG61: =cálculos2!P60 -> 1 | AH61: 0.25
A62: Central | B62: Rio Bananal | C62: 304 | D62: 77 | E62: 63 | F62: 0.8181818182 | G62: 65 | H62: 0.8441558442 | I62: 74 | J62: 0.961038961 | K62: 74 | L62: 0.961038961 | M62: 54 | N62: 0.7012987013 | O62: 59 | P62: 0.7662337662 | Q62: 65 | R62: 0.8441558442 | S62: 76 | T62: 0.987012987 | U62: 4 | V62: 0.05194805195 | W62: 56 | X62: 0.7272727273 | Y62: 73 | Z62: 0.9480519481 | AA62: 56 | AB62: 0.7272727273 | AE62: =cálculos2!O61 -> 3 | AF62: 0.3 | AG62: =cálculos2!P61 -> 2 | AH62: 0.5
A63: Sul | B63: Rio Novo do Sul | C63: 129 | D63: 34 | E63: 24 | F63: 0.7058823529 | G63: 23 | H63: 0.6764705882 | I63: 33 | J63: 0.9705882353 | K63: 32 | L63: 0.9411764706 | M63: 29 | N63: 0.8529411765 | O63: 30 | P63: 0.8823529412 | Q63: 30 | R63: 0.8823529412 | S63: 33 | T63: 0.9705882353 | U63: 0 | V63: 0 | W63: 17 | X63: 0.5 | Y63: 28 | Z63: 0.8235294118 | AA63: 20 | AB63: 0.5882352941 | AE63: =cálculos2!O62 -> 2 | AF63: 0.2 | AG63: =cálculos2!P62 -> 1 | AH63: 0.25
A64: Metropolitana | B64: Santa Leopoldina | C64: 108 | D64: 32 | E64: 10 | F64: 0.3125 | G64: 7 | H64: 0.21875 | I64: 28 | J64: 0.875 | K64: 28 | L64: 0.875 | M64: 26 | N64: 0.8125 | O64: 27 | P64: 0.84375 | Q64: 28 | R64: 0.875 | S64: 31 | T64: 0.96875 | U64: 0 | V64: 0 | W64: 22 | X64: 0.6875 | Y64: 43 | Z64: 1.34375 | AA64: 9 | AB64: 0.28125 | AE64: =cálculos2!O63 -> 2 | AF64: 0.2 | AG64: =cálculos2!P63 -> 1 | AH64: 0.25
A65: Metropolitana | B65: Santa Maria de Jetibá | C65: 669 | D65: 163 | E65: 140 | F65: 0.8588957055 | G65: 146 | H65: 0.8957055215 | I65: 130 | J65: 0.7975460123 | K65: 131 | L65: 0.8036809816 | M65: 151 | N65: 0.9263803681 | O65: 152 | P65: 0.9325153374 | Q65: 136 | R65: 0.8343558282 | S65: 137 | T65: 0.8404907975 | U65: 3 | V65: 0.01840490798 | W65: 156 | X65: 0.9570552147 | Y65: 168 | Z65: 1.030674847 | AA65: 64 | AB65: 0.3926380368 | AE65: =cálculos2!O64 -> 3 | AF65: 0.3 | AG65: =cálculos2!P64 -> 1 | AH65: 0.25
A66: Metropolitana | B66: Santa Teresa | C66: 288 | D66: 63 | E66: 69 | F66: 1.095238095 | G66: 71 | H66: 1.126984127 | I66: 80 | J66: 1.26984127 | K66: 79 | L66: 1.253968254 | M66: 71 | N66: 1.126984127 | O66: 73 | P66: 1.158730159 | Q66: 73 | R66: 1.158730159 | S66: 56 | T66: 0.8888888889 | U66: 0 | V66: 0 | W66: 47 | X66: 0.746031746 | Y66: 76 | Z66: 1.206349206 | AA66: 44 | AB66: 0.6984126984 | AE66: =cálculos2!O65 -> 7 | AF66: 0.7 | AG66: =cálculos2!P65 -> 4 | AH66: 1
A67: Central | B67: São Domingos do Norte | C67: 119 | D67: 23 | E67: 29 | F67: =E67/D67 -> 1.260869565 | G67: 28 | H67: 1.217391304 | I67: 28 | J67: 1.217391304 | K67: 28 | L67: 1.217391304 | M67: 26 | N67: 1.130434783 | O67: 24 | P67: 1.043478261 | Q67: 29 | R67: 1.260869565 | S67: 29 | T67: 1.260869565 | U67: 0 | V67: 0 | W67: 13 | X67: 0.5652173913 | Y67: 18 | Z67: 0.7826086957 | AA67: 19 | AB67: 0.8260869565 | AE67: =cálculos2!O66 -> 7 | AF67: 0.7 | AG67: =cálculos2!P66 -> 3 | AH67: 0.75
A68: Central | B68: São Gabriel da Palha | C68: 420 | D68: 88 | E68: 85 | F68: 0.9659090909 | G68: 88 | H68: =G68/D68 -> 1 | I68: 102 | J68: =I68/D68 -> 1.159090909 | K68: 103 | L68: =K68/D68 -> 1.170454545 | M68: 90 | N68: =M68/D68 -> 1.022727273 | O68: 87 | P68: =O68/D68 -> 0.9886363636 | Q68: 96 | R68: =Q68/D68 -> 1.090909091 | S68: 86 | T68: =S68/D68 -> 0.9772727273 | U68: 1 | V68: =U68/D68 -> 0.01136363636 | W68: 45 | X68: =W68/D68 -> 0.5113636364 | Y68: 88 | Z68: =Y68/D68 -> 1 | AA68: 55 | AB68: =AA68/D68 -> 0.625 | AE68: =cálculos2!O67 -> 8 | AF68: =AE68*0.1 -> 0.8 | AG68: =cálculos2!P67 -> 4 | AH68: =AG68*0.25 -> 1
A69: Sul | B69: São José do Calçado | C69: 99 | D69: 23 | E69: 33 | F69: 1.434782609 | G69: 37 | H69: 1.608695652 | I69: 39 | J69: 1.695652174 | K69: 38 | L69: 1.652173913 | M69: 28 | N69: 1.217391304 | O69: 25 | P69: 1.086956522 | Q69: 39 | R69: 1.695652174 | S69: 21 | T69: 0.9130434783 | U69: 0 | V69: 0 | W69: 26 | X69: 1.130434783 | Y69: 33 | Z69: 1.434782609 | AA69: 18 | AB69: 0.7826086957 | AE69: =cálculos2!O68 -> 8 | AF69: 0.8 | AG69: =cálculos2!P68 -> 4 | AH69: 1
A70: Norte | B70: São Mateus | C70: 1854 | D70: 396 | E70: 481 | F70: 1.214646465 | G70: 468 | H70: 1.181818182 | I70: 454 | J70: 1.146464646 | K70: 447 | L70: 1.128787879 | M70: 415 | N70: 1.047979798 | O70: 397 | P70: 1.002525253 | Q70: 371 | R70: 0.9368686869 | S70: 330 | T70: 0.8333333333 | U70: 1 | V70: 0.002525252525 | W70: 314 | X70: 0.7929292929 | Y70: 363 | Z70: 0.9166666667 | AA70: 197 | AB70: 0.4974747475 | AE70: =cálculos2!O69 -> 5 | AF70: 0.5 | AG70: =cálculos2!P69 -> 3 | AH70: 0.75
A71: Central | B71: São Roque do Canaã | C71: 122 | D71: 40 | E71: 47 | F71: 1.175 | G71: 44 | H71: 1.1 | I71: 24 | J71: 0.6 | K71: 23 | L71: 0.575 | M71: 14 | N71: 0.35 | O71: 16 | P71: 0.4 | Q71: 22 | R71: 0.55 | S71: 34 | T71: 0.85 | U71: 1 | V71: 0.025 | W71: 14 | X71: 0.35 | Y71: 33 | Z71: 0.825 | AA71: 19 | AB71: 0.475 | AE71: =cálculos2!O70 -> 1 | AF71: 0.1 | AG71: =cálculos2!P70 -> 0 | AH71: 0
A72: Metropolitana | B72: Serra | C72: 7403 | D72: 1921 | E72: 1754 | F72: 0.9130661114 | G72: 1710 | H72: 0.8901613743 | I72: 1618 | J72: 0.8422696512 | K72: 1632 | L72: 0.8495575221 | M72: 1549 | N72: 0.8063508589 | O72: 1522 | P72: 0.7922956793 | Q72: 1499 | R72: 0.7803227486 | S72: 1329 | T72: 0.6918271733 | U72: 18 | V72: 0.009370119729 | W72: 978 | X72: 0.5091098386 | Y72: 1558 | Z72: 0.8110359188 | AA72: 693 | AB72: 0.3607496096 | AE72: =cálculos2!O71 -> 0 | AF72: 0 | AG72: =cálculos2!P71 -> 0 | AH72: 0
A73: Central | B73: Sooretama | C73: 432 | D73: 110 | E73: 94 | F73: 0.8545454545 | G73: 91 | H73: 0.8272727273 | I73: 100 | J73: 0.9090909091 | K73: 102 | L73: 0.9272727273 | M73: 93 | N73: 0.8454545455 | O73: 88 | P73: 0.8 | Q73: 81 | R73: 0.7363636364 | S73: 80 | T73: 0.7272727273 | U73: 0 | V73: 0 | W73: 86 | X73: 0.7818181818 | Y73: 89 | Z73: 0.8090909091 | AA73: 61 | AB73: 0.5545454545 | AE73: =cálculos2!O72 -> 0 | AF73: 0 | AG73: =cálculos2!P72 -> 0 | AH73: 0
A74: Sul | B74: Vargem Alta | C74: 258 | D74: 64 | E74: 62 | F74: 0.96875 | G74: 59 | H74: 0.921875 | I74: 59 | J74: 0.921875 | K74: 58 | L74: 0.90625 | M74: 59 | N74: 0.921875 | O74: 58 | P74: 0.90625 | Q74: 61 | R74: 0.953125 | S74: 55 | T74: 0.859375 | U74: 1 | V74: 0.015625 | W74: 62 | X74: 0.96875 | Y74: 69 | Z74: 1.078125 | AA74: 34 | AB74: 0.53125 | AE74: =cálculos2!O73 -> 5 | AF74: 0.5 | AG74: =cálculos2!P73 -> 1 | AH74: 0.25
A75: Metropolitana | B75: Venda Nova do Imigrante | C75: 382 | D75: 82 | E75: 23 | F75: 0.2804878049 | G75: 74 | H75: 0.9024390244 | I75: 94 | J75: 1.146341463 | K75: 94 | L75: 1.146341463 | M75: 87 | N75: 1.06097561 | O75: 87 | P75: 1.06097561 | Q75: 93 | R75: 1.134146341 | S75: 102 | T75: 1.243902439 | U75: 0 | V75: 0 | W75: 62 | X75: 0.756097561 | Y75: 96 | Z75: 1.170731707 | AA75: 41 | AB75: 0.5 | AE75: =cálculos2!O74 -> 8 | AF75: 0.8 | AG75: =cálculos2!P74 -> 4 | AH75: 1
A76: Metropolitana | B76: Viana | C76: 989 | D76: 241 | E76: 195 | F76: 0.8091286307 | G76: 190 | H76: 0.7883817427 | I76: 230 | J76: 0.9543568465 | K76: 225 | L76: 0.9336099585 | M76: 226 | N76: 0.9377593361 | O76: 212 | P76: 0.8796680498 | Q76: 216 | R76: 0.8962655602 | S76: 175 | T76: 0.7261410788 | U76: 4 | V76: 0.01659751037 | W76: 154 | X76: 0.6390041494 | Y76: 227 | Z76: 0.9419087137 | AA76: 76 | AB76: 0.3153526971 | AE76: =cálculos2!O75 -> 1 | AF76: 0.1 | AG76: =cálculos2!P75 -> 1 | AH76: 0.25
A77: Norte | B77: Vila Pavão | C77: 99 | D77: 21 | E77: 22 | F77: 1.047619048 | G77: 25 | H77: 1.19047619 | I77: 24 | J77: 1.142857143 | K77: 24 | L77: 1.142857143 | M77: 22 | N77: 1.047619048 | O77: 21 | P77: 1 | Q77: 22 | R77: 1.047619048 | S77: 28 | T77: 1.333333333 | U77: 0 | V77: 0 | W77: 18 | X77: 0.8571428571 | Y77: 25 | Z77: 1.19047619 | AA77: 19 | AB77: 0.9047619048 | AE77: =cálculos2!O76 -> 8 | AF77: 0.8 | AG77: =cálculos2!P76 -> 4 | AH77: 1
A78: Central | B78: Vila Valério | C78: 694 | D78: 54 | E78: 52 | F78: 0.962962963 | G78: 58 | H78: 1.074074074 | I78: 52 | J78: 0.962962963 | K78: 53 | L78: 0.9814814815 | M78: 45 | N78: 0.8333333333 | O78: 48 | P78: 0.8888888889 | Q78: 44 | R78: 0.8148148148 | S78: 55 | T78: 1.018518519 | U78: 0 | V78: 0 | W78: 32 | X78: 0.5925925926 | Y78: 46 | Z78: 0.8518518519 | AA78: 44 | AB78: 0.8148148148 | AE78: =cálculos2!O77 -> 4 | AF78: 0.4 | AG78: =cálculos2!P77 -> 2 | AH78: 0.5
A79: Metropolitana | B79: Vila Velha | C79: 5621 | D79: 1472 | E79: 1211 | F79: 0.8226902174 | G79: 1165 | H79: 0.7914402174 | I79: 1170 | J79: 0.7948369565 | K79: 1165 | L79: 0.7914402174 | M79: 1144 | N79: 0.777173913 | O79: 1165 | P79: 0.7914402174 | Q79: 1155 | R79: 0.7846467391 | S79: 990 | T79: 0.6725543478 | U79: 24 | V79: 0.01630434783 | W79: 692 | X79: 0.4701086957 | Y79: 1194 | Z79: 0.8111413043 | AA79: 662 | AB79: 0.4497282609 | AE79: =cálculos2!O78 -> 0 | AF79: 0 | AG79: =cálculos2!P78 -> 0 | AH79: 0
A80: Metropolitana | B80: Vitória | C80: 6999 | D80: 910 | E80: 1041 | F80: 1.143956044 | G80: 1093 | H80: 1.201098901 | I80: 805 | J80: 0.8846153846 | K80: 805 | L80: 0.8846153846 | M80: 700 | N80: 0.7692307692 | O80: 729 | P80: 0.8010989011 | Q80: 750 | R80: 0.8241758242 | S80: 633 | T80: 0.6956043956 | U80: 25 | V80: 0.02747252747 | W80: 702 | X80: 0.7714285714 | Y80: 727 | Z80: 0.7989010989 | AA80: 426 | AB80: 0.4681318681 | AE80: =cálculos2!O79 -> 1 | AF80: 0.1 | AG80: =cálculos2!P79 -> 0 | AH80: 0
B82: Total Norte | C82: =SUMIF($A$3:$A$80,"Norte",C$3:C$80) -> 5655 | D82: =SUMIF($A$3:$A$80,"Norte",D$3:D$80) -> 1273 | E82: =SUMIF($A$3:$A$80,"Norte",E$3:E$80) -> 1188 | F82: =E82/D82 -> 0.9332285939 | G82: =SUMIF($A$3:$A$80,"Norte",G$3:G$80) -> 1266 | H82: =G82/D82 -> 0.9945011783 | I82: =SUMIF($A$3:$A$80,"Norte",I$3:I$80) -> 1428 | J82: =I82/D82 -> 1.121759623 | K82: =SUMIF($A$3:$A$80,"Norte",K$3:K$80) -> 1450 | L82: =K82/D82 -> 1.139041634 | M82: =SUMIF($A$3:$A$80,"Norte",M$3:M$80) -> 1316 | N82: =M82/D82 -> 1.033778476 | O82: =SUMIF($A$3:$A$80,"Norte",O$3:O$80) -> 1271 | P82: =O82/D82 -> 0.9984289081 | Q82: =SUMIF($A$3:$A$80,"Norte",Q$3:Q$80) -> 1216 | R82: =Q82/D82 -> 0.9552238806 | S82: =SUMIF($A$3:$A$80,"Norte",S$3:S$80) -> 1266 | T82: =S82/D82 -> 0.9945011783 | U82: =SUMIF($A$3:$A$80,"Norte",U$3:U$80) -> 2 | V82: =U82/D82 -> 0.001571091909 | W82: =SUMIF($A$3:$A$80,"Norte",W$3:W$80) -> 999 | X82: =W82/D82 -> 0.7847604085 | Y82: =SUMIF($A$3:$A$80,"Norte",Y$3:Y$80) -> 1296 | Z82: =Y82/D82 -> 1.018067557 | AA82: =SUMIF($A$3:$A$80,"Norte",AA$3:AA$80) -> 825 | AB82: =AA82/D82 -> 0.6480754124 | AE82: =cálculos1!O81 -> 6 | AF82: 0.6 | AG82: =cálculos1!P81 -> 4 | AH82: 1
B83: Total Central | C83: =SUMIF($A$3:$A$80,"Central",C$3:C$80) -> 7463 | D83: =SUMIF($A$3:$A$80,"Central",D$3:D$80) -> 1662 | E83: =SUMIF($A$3:$A$80,"Central",E$3:E$80) -> 1569 | F83: =E83/D83 -> 0.9440433213 | G83: =SUMIF($A$3:$A$80,"Central",G$3:G$80) -> 1589 | H83: =G83/D83 -> 0.9560770156 | I83: =SUMIF($A$3:$A$80,"Central",I$3:I$80) -> 1664 | J83: =I83/D83 -> 1.001203369 | K83: =SUMIF($A$3:$A$80,"Central",K$3:K$80) -> 1649 | L83: =K83/D83 -> 0.9921780987 | M83: =SUMIF($A$3:$A$80,"Central",M$3:M$80) -> 1509 | N83: =M83/D83 -> 0.9079422383 | O83: =SUMIF($A$3:$A$80,"Central",O$3:O$80) -> 1532 | P83: =O83/D83 -> 0.9217809868 | Q83: =SUMIF($A$3:$A$80,"Central",Q$3:Q$80) -> 1515 | R83: =Q83/D83 -> 0.9115523466 | S83: =SUMIF($A$3:$A$80,"Central",S$3:S$80) -> 1434 | T83: =S83/D83 -> 0.8628158845 | U83: =SUMIF($A$3:$A$80,"Central",U$3:U$80) -> 11 | V83: =U83/D83 -> 0.006618531889 | W83: =SUMIF($A$3:$A$80,"Central",W$3:W$80) -> 1005 | X83: =W83/D83 -> 0.6046931408 | Y83: =SUMIF($A$3:$A$80,"Central",Y$3:Y$80) -> 1573 | Z83: =Y83/D83 -> 0.9464500602 | AA83: =SUMIF($A$3:$A$80,"Central",AA$3:AA$80) -> 1029 | AB83: =AA83/D83 -> 0.619133574 | AE83: =cálculos1!O82 -> 4 | AF83: 0.4 | AG83: =cálculos1!P82 -> 2 | AH83: 0.5
B84: Total Metropolitana | C84: =SUMIF($A$3:$A$80,"Metropolitana",C$3:C$80) -> 33141 | D84: =SUMIF($A$3:$A$80,"Metropolitana",D$3:D$80) -> 7490 | E84: =SUMIF($A$3:$A$80,"Metropolitana",E$3:E$80) -> 6630 | F84: =E84/D84 -> 0.8851802403 | G84: =SUMIF($A$3:$A$80,"Metropolitana",G$3:G$80) -> 6759 | H84: =G84/D84 -> 0.9024032043 | I84: =SUMIF($A$3:$A$80,"Metropolitana",I$3:I$80) -> 6577 | J84: =I84/D84 -> 0.8781041389 | K84: =SUMIF($A$3:$A$80,"Metropolitana",K$3:K$80) -> 6527 | L84: =K84/D84 -> 0.8714285714 | M84: =SUMIF($A$3:$A$80,"Metropolitana",M$3:M$80) -> 6415 | N84: =M84/D84 -> 0.8564753004 | O84: =SUMIF($A$3:$A$80,"Metropolitana",O$3:O$80) -> 6323 | P84: =O84/D84 -> 0.8441922563 | Q84: =SUMIF($A$3:$A$80,"Metropolitana",Q$3:Q$80) -> 6326 | R84: =Q84/D84 -> 0.8445927904 | S84: =SUMIF($A$3:$A$80,"Metropolitana",S$3:S$80) -> 5610 | T84: =S84/D84 -> 0.7489986649 | U84: =SUMIF($A$3:$A$80,"Metropolitana",U$3:U$80) -> 117 | V84: =U84/D84 -> 0.01562082777 | W84: =SUMIF($A$3:$A$80,"Metropolitana",W$3:W$80) -> 4647 | X84: =W84/D84 -> 0.6204272363 | Y84: =SUMIF($A$3:$A$80,"Metropolitana",Y$3:Y$80) -> 6665 | Z84: =Y84/D84 -> 0.8898531375 | AA84: =SUMIF($A$3:$A$80,"Metropolitana",AA$3:AA$80) -> 3454 | AB84: =AA84/D84 -> 0.4611481976 | AE84: =cálculos1!O83 -> 1 | AF84: 0.1 | AG84: =cálculos1!P83 -> 0 | AH84: 0
B85: Total Sul | C85: =SUMIF($A$3:$A$80,"sul",C$3:C$80) -> 8419 | D85: =SUMIF($A$3:$A$80,"sul",D$3:D$80) -> 2085 | E85: =SUMIF($A$3:$A$80,"Sul",E$3:E$80) -> 1888 | F85: =E85/D85 -> 0.9055155875 | G85: =SUMIF($A$3:$A$80,"Sul",G$3:G$80) -> 1885 | H85: =G85/D85 -> 0.9040767386 | I85: =SUMIF($A$3:$A$80,"Sul",I$3:I$80) -> 1995 | J85: =I85/D85 -> 0.9568345324 | K85: =SUMIF($A$3:$A$80,"Sul",K$3:K$80) -> 1999 | L85: =K85/D85 -> 0.9587529976 | M85: =SUMIF($A$3:$A$80,"Sul",M$3:M$80) -> 2020 | N85: =M85/D85 -> 0.96882494 | O85: =SUMIF($A$3:$A$80,"Sul",O$3:O$80) -> 1949 | P85: =O85/D85 -> 0.9347721823 | Q85: =SUMIF($A$3:$A$80,"Sul",Q$3:Q$80) -> 1926 | R85: =Q85/D85 -> 0.9237410072 | S85: =SUMIF($A$3:$A$80,"Sul",S$3:S$80) -> 1757 | T85: =S85/D85 -> 0.8426858513 | U85: =SUMIF($A$3:$A$80,"Sul",U$3:U$80) -> 19 | V85: =U85/D85 -> 0.009112709832 | W85: =SUMIF($A$3:$A$80,"Sul",W$3:W$80) -> 1572 | X85: =W85/D85 -> 0.7539568345 | Y85: =SUMIF($A$3:$A$80,"Sul",Y$3:Y$80) -> 2183 | Z85: =Y85/D85 -> 1.047002398 | AA85: =SUMIF($A$3:$A$80,"Sul",AA$3:AA$80) -> 856 | AB85: =AA85/D85 -> 0.4105515588 | AE85: =cálculos1!O84 -> 6 | AF85: 0.6 | AG85: =cálculos1!P84 -> 4 | AH85: 1
B86: Total Espírito Santo | C86: =SUM(C3:C80) -> 54678 | D86: =SUM(D3:D80) -> 12510 | E86: =SUM(E82:E85) -> 11275 | F86: =E86/D86 -> 0.9012789768 | G86: =SUM(G82:G85) -> 11499 | H86: =G86/D86 -> 0.9191846523 | I86: =SUM(I82:I85) -> 11664 | J86: =I86/D86 -> 0.9323741007 | K86: =SUM(K82:K85) -> 11625 | L86: =K86/D86 -> 0.9292565947 | M86: =SUM(M82:M85) -> 11260 | N86: =M86/D86 -> 0.9000799361 | O86: =SUM(O82:O85) -> 11075 | P86: =O86/D86 -> 0.8852917666 | Q86: =SUM(Q82:Q85) -> 10983 | R86: =Q86/D86 -> 0.8779376499 | S86: =SUM(S82:S85) -> 10067 | T86: =S86/D86 -> 0.804716227 | U86: =SUM(U82:U85) -> 149 | V86: =U86/D86 -> 0.01191047162 | W86: =SUM(W82:W85) -> 8223 | X86: =W86/D86 -> 0.6573141487 | Y86: =SUM(Y82:Y85) -> 11717 | Z86: =Y86/D86 -> 0.9366107114 | AA86: =SUM(AA82:AA85) -> 6164 | AB86: =AA86/D86 -> 0.4927258193 | AE86: =cálculos1!O85 -> 1 | AF86: 0.1 | AG86: =cálculos1!P85 -> 0 | AH86: 0
E87: =COUNTIF(F3:F80,">=0,95") -> 27 | G87: =COUNTIF(H3:H80,">=0,9") -> 38 | I87: =COUNTIF(J3:J80,">=0,95") -> 49 | K87: =COUNTIF(L3:L80,">=0,95") -> 46 | M87: =COUNTIF(N3:N80,">=0,95") -> 41 | O87: =COUNTIF(P3:P80,">=0,9") -> 46 | Q87: =COUNTIF(R3:R80,">=0,95") -> 38 | S87: =COUNTIF(T3:T80,">=0,95") -> 41 | U87: =COUNTIF(V3:V80,">=0,95") -> 0 | W87: =COUNTIF(X3:X80,">=0,95") -> 16 | Y87: =COUNTIF(Z3:Z80,">=0,95") -> 47 | AA87: =COUNTIF(AB3:AB80,">=0,95") -> 5
B88: HOMOGENEIDADE ENTRE MUNICÍPIOS | E88: =E87/78 -> 0.3461538462 | G88: =G87/78 -> 0.4871794872 | I88: =I87/78 -> 0.6282051282 | K88: =K87/78 -> 0.5897435897 | M88: =M87/78 -> 0.5256410256 | O88: =O87/78 -> 0.5897435897 | Q88: =Q87/78 -> 0.4871794872 | S88: =S87/78 -> 0.5256410256 | U88: =U87/78 -> 0 | W88: =W87/78 -> 0.2051282051 | Y88: =Y87/78 -> 0.6025641026 | AA88: =AA87/78 -> 0.0641025641
A90: FonteVacina e Confia, em 04 de Abril de 2024.**
A91: **Dados referente às doses aplicadas no período de Março de 2024
A92: Cobertura Calculada por município de residência do cidadão (no Vacina e Confia, a origem da informação é o endereço que consta no cadastro do cidadão preenchido manualmente por meio do autocadastro ou pelo cadastro realizado por um profissional de saúde no momento do atendimento).
A94: 1 População anual extraída do MS/SVS/DASIS - SINASC/DASIS/SVS/MS 2023 (hoje preliminares) referente ao período de fevereiro a dezembro de 2023 e SINASC/DASIS/SVS/MS 2024 referente ao período de janeiro de 2024.
A96: ² População proporcional extraída do MS/SVS/DASIS - SINASC/DASIS/SVS/MS 2023 (hoje preliminares) referente ao período de fevereiro e março de 2023 somada a população extraída do SINASC/DASIS/SVS/MS 2024 referente ao período de janeiro de 2024.
A98: Observações:
A99: Imunobiológicos que foram recebidos parcialmente pelo estado no mês da análise, sendo distribuídos em quantidades reduzidas às regionais e municípios: Varicela, Febre Amarela e HPV Quadrivalente.
A100: Imunobiológicos que não foram recebidos pelo estado no mês da análise, não sendo possível a distribuição às regionais e municípios: Meningo C, Hepatite A (CRIE), HIB, Hepatite A Rotina Pediátrica, DTPa (CRIE).
A101: Imunobiológicos com indisponibilidade de aquisição e distribuição no mês da análise: Tetra Viral.

Sheet CV REF 1A e 4A - procedência
G1: D2 | K1: REFORÇOS 1 ANO | S1: REFORÇOS 4 ANOS
A2: Regional | B2: Município | C2: ¹População 1 ano anual | D2: ²População 1 ano proporcional | E2: ³População 4 anos anual | F2: ³População 4 anos proporcional | G2: DOSES APLICADAS D2 TRÍPLICE VIRAL | H2: COBERTURA D2 TRÍPLICE VIRAL | I2: DOSES APLICADAS D2 VARICELA | J2: COBERTURA D2 VARICELA | K2: DOSES APLICADAS REF PNEUMO | L2: COBERTURA REF PNEUMO | M2: DOSES APLICADAS REF MENINGO | N2: COBERTURA REF MENINGO | O2: DOSES APLICADAS R1 POLIO | P2: COBERTURA R1 POLIO | Q2: DOSES APLICADAS R1 TRÍPLICE BACTERIANA | R2: COBERTURA R1 TRÍPLICE BACTERIANA | S2: DOSES APLICADAS REF FEBRE AMARELA | T2: COBERTURA REF FEBRE AMARELA | U2: DOSES APLICADAS R2 POLIO | V2: COBERTURA R2 POLIO | W2: DOSES APLICADAS R2 TRÍPLICE BACTERIANA | X2: COBERTURA R2 TRÍPLICE BACTERIANA
A3: Metropolitana | B3: Afonso Cláudio | C3: 396 | D3: 110 | E3: 416 | F3: =E3/12*3 -> 104 | G3: 77 | H3: =G3/D3 -> 0.7 | I3: 55 | J3: =I3/F3 -> 0.5288461538 | K3: 103 | L3: =K3/D3 -> 0.9363636364 | M3: 102 | N3: =M3/D3 -> 0.9272727273 | O3: 83 | P3: =O3/D3 -> 0.7545454545 | Q3: 81 | R3: =Q3/D3 -> 0.7363636364 | S3: 59 | T3: =S3/F3 -> 0.5673076923 | U3: 61 | V3: =U3/F3 -> 0.5865384615 | W3: 62 | X3: =W3/F3 -> 0.5961538462
A4: Norte | B4: Água Doce do Norte | C4: 157 | D4: 33 | E4: 151 | F4: =E4/12*3 -> 37.75 | G4: 29 | H4: 0.8787878788 | I4: 20 | J4: 0.5298013245 | K4: 35 | L4: 1.060606061 | M4: 36 | N4: 1.090909091 | O4: 31 | P4: 0.9393939394 | Q4: 32 | R4: 0.9696969697 | S4: 29 | T4: 0.7682119205 | U4: 28 | V4: 0.7417218543 | W4: 28 | X4: 0.7417218543
A5: Central | B5: Águia Branca | C5: 138 | D5: 31 | E5: 129 | F5: 32.25 | G5: 15 | H5: 0.4838709677 | I5: 13 | J5: 0.4031007752 | K5: 23 | L5: 0.7419354839 | M5: 23 | N5: 0.7419354839 | O5: 26 | P5: 0.8387096774 | Q5: 27 | R5: 0.8709677419 | S5: 25 | T5: 0.7751937984 | U5: 28 | V5: 0.8682170543 | W5: 29 | X5: 0.8992248062
A6: Sul | B6: Alegre | C6: 335 | D6: 78 | E6: 372 | F6: 93 | G6: 55 | H6: 0.7051282051 | I6: 52 | J6: 0.5591397849 | K6: 71 | L6: 0.9102564103 | M6: 68 | N6: 0.8717948718 | O6: 62 | P6: 0.7948717949 | Q6: 57 | R6: 0.7307692308 | S6: 66 | T6: 0.7096774194 | U6: 78 | V6: 0.8387096774 | W6: 81 | X6: 0.8709677419
A7: Sul | B7: Alfredo Chaves | C7: 154 | D7: 40 | E7: 138 | F7: 34.5 | G7: 24 | H7: 0.6 | I7: 17 | J7: 0.4927536232 | K7: 36 | L7: 0.9 | M7: 36 | N7: 0.9 | O7: 31 | P7: 0.775 | Q7: 31 | R7: 0.775 | S7: 17 | T7: 0.4927536232 | U7: 16 | V7: 0.4637681159 | W7: 19 | X7: 0.5507246377
A8: Central | B8: Alto Rio Novo | C8: 90 | D8: 24 | E8: 102 | F8: 25.5 | G8: 19 | H8: 0.7916666667 | I8: 13 | J8: 0.5098039216 | K8: 23 | L8: 0.9583333333 | M8: 23 | N8: 0.9583333333 | O8: 25 | P8: 1.041666667 | Q8: 22 | R8: 0.9166666667 | S8: 12 | T8: 0.4705882353 | U8: 14 | V8: 0.5490196078 | W8: 14 | X8: 0.5490196078
A9: Sul | B9: Anchieta | C9: 377 | D9: 84 | E9: 390 | F9: 97.5 | G9: 69 | H9: 0.8214285714 | I9: 57 | J9: 0.5846153846 | K9: 98 | L9: 1.166666667 | M9: 101 | N9: 1.202380952 | O9: 82 | P9: 0.9761904762 | Q9: 90 | R9: 1.071428571 | S9: 87 | T9: 0.8923076923 | U9: 91 | V9: 0.9333333333 | W9: 89 | X9: 0.9128205128
A10: Sul | B10: Apiacá | C10: 62 | D10: 13 | E10: 90 | F10: 22.5 | G10: 9 | H10: 0.6923076923 | I10: 20 | J10: 0.8888888889 | K10: 13 | L10: 1 | M10: 14 | N10: 1.076923077 | O10: 9 | P10: 0.6923076923 | Q10: 8 | R10: 0.6153846154 | S10: 3 | T10: 0.1333333333 | U10: 25 | V10: 1.111111111 | W10: 23 | X10: 1.022222222
A11: Metropolitana | B11: Aracruz | C11: 1453 | D11: 355 | E11: 1420 | F11: 355 | G11: 341 | H11: 0.9605633803 | I11: 244 | J11: 0.6873239437 | K11: 397 | L11: 1.118309859 | M11: 404 | N11: 1.138028169 | O11: 346 | P11: 0.9746478873 | Q11: 349 | R11: 0.9830985915 | S11: 234 | T11: 0.6591549296 | U11: 298 | V11: 0.8394366197 | W11: 311 | X11: 0.876056338
A12: Sul | B12: Atilio Vivacqua | C12: 140 | D12: 37 | E12: 138 | F12: 34.5 | G12: 31 | H12: 0.8378378378 | I12: 13 | J12: 0.3768115942 | K12: 39 | L12: 1.054054054 | M12: 40 | N12: 1.081081081 | O12: 37 | P12: 1 | Q12: 38 | R12: 1.027027027 | S12: 26 | T12: 0.7536231884 | U12: 28 | V12: 0.8115942029 | W12: 28 | X12: 0.8115942029
A13: Central | B13: Baixo Guandu | C13: 364 | D13: 76 | E13: 427 | F13: 106.75 | G13: 83 | H13: 1.092105263 | I13: 64 | J13: 0.5995316159 | K13: 108 | L13: 1.421052632 | M13: 108 | N13: 1.421052632 | O13: 98 | P13: 1.289473684 | Q13: 95 | R13: 1.25 | S13: 76 | T13: 0.7119437939 | U13: 103 | V13: 0.9648711944 | W13: 99 | X13: 0.9274004684
A14: Norte | B14: Barra de São Francisco | C14: 510 | D14: 122 | E14: 589 | F14: 147.25 | G14: 115 | H14: 0.9426229508 | I14: 86 | J14: 0.584040747 | K14: 132 | L14: 1.081967213 | M14: 128 | N14: 1.049180328 | O14: 113 | P14: 0.9262295082 | Q14: 118 | R14: 0.9672131148 | S14: 109 | T14: 0.740237691 | U14: 104 | V14: 0.7062818336 | W14: 105 | X14: 0.7130730051
A15: Norte | B15: Boa Esperança | C15: 199 | D15: 54 | E15: 200 | F15: 50 | G15: 41 | H15: 0.7592592593 | I15: 26 | J15: 0.52 | K15: 53 | L15: 0.9814814815 | M15: 55 | N15: 1.018518519 | O15: 49 | P15: 0.9074074074 | Q15: 44 | R15: 0.8148148148 | S15: 28 | T15: 0.56 | U15: 35 | V15: 0.7 | W15: 37 | X15: 0.74
A16: Sul | B16: Bom Jesus do Norte | C16: 81 | D16: 14 | E16: 146 | F16: 36.5 | G16: 25 | H16: 1.785714286 | I16: 7 | J16: 0.1917808219 | K16: 35 | L16: 2.5 | M16: 35 | N16: 2.5 | O16: 27 | P16: 1.928571429 | Q16: 27 | R16: 1.928571429 | S16: 19 | T16: 0.5205479452 | U16: 28 | V16: 0.7671232877 | W16: 25 | X16: 0.6849315068
A17: Metropolitana | B17: Brejetuba | C17: 195 | D17: 39 | E17: 169 | F17: 42.25 | G17: 49 | H17: 1.256410256 | I17: 39 | J17: 0.9230769231 | K17: 41 | L17: 1.051282051 | M17: 45 | N17: 1.153846154 | O17: 45 | P17: 1.153846154 | Q17: 47 | R17: 1.205128205 | S17: 48 | T17: 1.136094675 | U17: 51 | V17: 1.207100592 | W17: 49 | X17: 1.159763314
A18: Sul | B18: Cachoeiro de Itapemirim | C18: 2446 | D18: 639 | E18: 2417 | F18: 604.25 | G18: 422 | H18: 0.6604068858 | I18: 247 | J18: 0.408771204 | K18: 605 | L18: 0.9467918623 | M18: 632 | N18: 0.9890453834 | O18: 550 | P18: 0.8607198748 | Q18: 535 | R18: 0.8372456964 | S18: 389 | T18: 0.6437732727 | U18: 452 | V18: 0.7480347538 | W18: 463 | X18: 0.7662391394
A19: Metropolitana | B19: Cariacica | C19: 4835 | D19: 1168 | E19: 5005 | F19: 1251.25 | G19: 699 | H19: 0.5984589041 | I19: 715 | J19: 0.5714285714 | K19: 1155 | L19: 0.988869863 | M19: 1196 | N19: 1.023972603 | O19: 955 | P19: 0.8176369863 | Q19: 955 | R19: 0.8176369863 | S19: 927 | T19: 0.7408591409 | U19: 1208 | V19: 0.9654345654 | W19: 1184 | X19: 0.9462537463
A20: Sul | B20: Castelo | C20: 452 | D20: 125 | E20: 399 | F20: 99.75 | G20: 73 | H20: 0.584 | I20: 43 | J20: 0.4310776942 | K20: 123 | L20: 0.984 | M20: 126 | N20: 1.008 | O20: 94 | P20: 0.752 | Q20: 94 | R20: 0.752 | S20: 52 | T20: 0.5213032581 | U20: 65 | V20: 0.6516290727 | W20: 66 | X20: 0.6616541353
A21: Central | B21: Colatina | C21: 1530 | D21: 360 | E21: 1561 | F21: 390.25 | G21: 227 | H21: 0.6305555556 | I21: 158 | J21: 0.4048686739 | K21: 302 | L21: 0.8388888889 | M21: 325 | N21: 0.9027777778 | O21: 262 | P21: 0.7277777778 | Q21: 270 | R21: 0.75 | S21: 136 | T21: 0.3484945548 | U21: 209 | V21: 0.535554132 | W21: 213 | X21: 0.5458039718
A22: Norte | B22: Conceição da Barra | C22: 373 | D22: 88 | E22: 391 | F22: 97.75 | G22: 85 | H22: 0.9659090909 | I22: 67 | J22: 0.6854219949 | K22: 87 | L22: 0.9886363636 | M22: 88 | N22: 1 | O22: 87 | P22: 0.9886363636 | Q22: 84 | R22: 0.9545454545 | S22: 84 | T22: 0.8593350384 | U22: 96 | V22: 0.9820971867 | W22: 102 | X22: 1.043478261
A23: Metropolitana | B23: Conceição do Castelo | C23: 152 | D23: 29 | E23: 144 | F23: 36 | G23: 32 | H23: 1.103448276 | I23: 9 | J23: 0.25 | K23: 20 | L23: 0.6896551724 | M23: 21 | N23: 0.724137931 | O23: 34 | P23: 1.172413793 | Q23: 33 | R23: 1.137931034 | S23: 20 | T23: 0.5555555556 | U23: 17 | V23: 0.4722222222 | W23: 18 | X23: 0.5
A24: Sul | B24: Divino de São Lourenço | C24: 57 | D24: 9 | E24: 68 | F24: 17 | G24: 14 | H24: 1.555555556 | I24: 10 | J24: 0.5882352941 | K24: 10 | L24: 1.111111111 | M24: 10 | N24: 1.111111111 | O24: 16 | P24: 1.777777778 | Q24: 15 | R24: 1.666666667 | S24: 28 | T24: 1.647058824 | U24: 20 | V24: 1.176470588 | W24: 20 | X24: 1.176470588
A25: Metropolitana | B25: Domingos Martins | C25: 407 | D25: 94 | E25: 411 | F25: 102.75 | G25: 104 | H25: 1.106382979 | I25: 80 | J25: 0.7785888078 | K25: 104 | L25: 1.106382979 | M25: 94 | N25: 1 | O25: 105 | P25: 1.117021277 | Q25: 108 | R25: 1.14893617 | S25: 76 | T25: 0.7396593674 | U25: 94 | V25: 0.9148418491 | W25: 95 | X25: 0.9245742092
A26: Sul | B26: Dores do Rio Preto | C26: 95 | D26: 28 | E26: 92 | F26: 23 | G26: 12 | H26: 0.4285714286 | I26: 11 | J26: 0.4782608696 | K26: 26 | L26: 0.9285714286 | M26: 26 | N26: 0.9285714286 | O26: 19 | P26: 0.6785714286 | Q26: 17 | R26: 0.6071428571 | S26: 14 | T26: 0.6086956522 | U26: 18 | V26: 0.7826086957 | W26: 19 | X26: 0.8260869565
A27: Norte | B27: Ecoporanga | C27: 226 | D27: 48 | E27: 283 | F27: 70.75 | G27: 60 | H27: 1.25 | I27: 45 | J27: 0.6360424028 | K27: 56 | L27: 1.166666667 | M27: 59 | N27: 1.229166667 | O27: 55 | P27: 1.145833333 | Q27: 55 | R27: 1.145833333 | S27: 46 | T27: 0.6501766784 | U27: 48 | V27: 0.6784452297 | W27: 49 | X27: 0.6925795053
A28: Metropolitana | B28: Fundão | C28: 217 | D28: 58 | E28: 218 | F28: 54.5 | G28: 47 | H28: 0.8103448276 | I28: 41 | J28: 0.752293578 | K28: 45 | L28: 0.775862069 | M28: 45 | N28: 0.775862069 | O28: 54 | P28: 0.9310344828 | Q28: 53 | R28: 0.9137931034 | S28: 27 | T28: 0.495412844 | U28: 37 | V28: 0.6788990826 | W28: 35 | X28: 0.6422018349
A29: Central | B29: Governador Lindenberg | C29: 145 | D29: 27 | E29: 142 | F29: 35.5 | G29: 24 | H29: 0.8888888889 | I29: 25 | J29: 0.7042253521 | K29: 32 | L29: 1.185185185 | M29: 34 | N29: 1.259259259 | O29: 27 | P29: 1 | Q29: 27 | R29: 1 | S29: 22 | T29: 0.6197183099 | U29: 25 | V29: 0.7042253521 | W29: 25 | X29: 0.7042253521
A30: Sul | B30: Guaçuí | C30: 375 | D30: 78 | E30: 407 | F30: 101.75 | G30: 90 | H30: 1.153846154 | I30: 29 | J30: 0.285012285 | K30: 103 | L30: 1.320512821 | M30: 110 | N30: 1.41025641 | O30: 88 | P30: 1.128205128 | Q30: 80 | R30: 1.025641026 | S30: 72 | T30: 0.7076167076 | U30: 65 | V30: 0.6388206388 | W30: 61 | X30: 0.5995085995
A31: Metropolitana | B31: Guarapari | C31: 1759 | D31: 452 | E31: 1557 | F31: 389.25 | G31: 273 | H31: 0.6039823009 | I31: 175 | J31: 0.4495825305 | K31: 393 | L31: 0.8694690265 | M31: 396 | N31: 0.8761061947 | O31: 332 | P31: 0.7345132743 | Q31: 359 | R31: 0.7942477876 | S31: 267 | T31: 0.6859344894 | U31: 307 | V31: 0.7886962107 | W31: 344 | X31: 0.8837508028
A32: Metropolitana | B32: Ibatiba | C32: 341 | D32: 66 | E32: 354 | F32: 88.5 | G32: 58 | H32: 0.8787878788 | I32: 38 | J32: 0.4293785311 | K32: 85 | L32: 1.287878788 | M32: 86 | N32: 1.303030303 | O32: 81 | P32: 1.227272727 | Q32: 82 | R32: 1.242424242 | S32: 65 | T32: 0.7344632768 | U32: 73 | V32: 0.8248587571 | W32: 74 | X32: 0.8361581921
A33: Metropolitana | B33: Ibiraçu | C33: 147 | D33: 41 | E33: 160 | F33: 40 | G33: 15 | H33: 0.3658536585 | I33: 23 | J33: 0.575 | K33: 31 | L33: 0.756097561 | M33: 32 | N33: 0.7804878049 | O33: 17 | P33: 0.4146341463 | Q33: 17 | R33: 0.4146341463 | S33: 24 | T33: 0.6 | U33: 25 | V33: 0.625 | W33: 26 | X33: 0.65
A34: Sul | B34: Ibitirama | C34: 122 | D34: 27 | E34: 148 | F34: 37 | G34: 24 | H34: 0.8888888889 | I34: 7 | J34: 0.1891891892 | K34: 34 | L34: 1.259259259 | M34: 36 | N34: 1.333333333 | O34: 27 | P34: 1 | Q34: 25 | R34: 0.9259259259 | S34: 9 | T34: 0.2432432432 | U34: 14 | V34: 0.3783783784 | W34: 11 | X34: 0.2972972973
A35: Sul | B35: Iconha | C35: 123 | D35: 36 | E35: 156 | F35: 39 | G35: 31 | H35: =G35/D35 -> 0.8611111111 | I35: 6 | J35: =I35/F35 -> 0.1538461538 | K35: 43 | L35: =K35/D35 -> 1.194444444 | M35: 43 | N35: =M35/D35 -> 1.194444444 | O35: 26 | P35: =O35/D35 -> 0.7222222222 | Q35: 26 | R35: =Q35/D35 -> 0.7222222222 | S35: 30 | T35: =S35/F35 -> 0.7692307692 | U35: 30 | V35: =U35/F35 -> 0.7692307692 | W35: 28 | X35: =W35/F35 -> 0.7179487179
A36: Sul | B36: Irupi | C36: 196 | D36: 47 | E36: 200 | F36: 50 | G36: 35 | H36: 0.7446808511 | I36: 26 | J36: 0.52 | K36: 69 | L36: 1.468085106 | M36: 70 | N36: 1.489361702 | O36: 43 | P36: 0.914893617 | Q36: 43 | R36: 0.914893617 | S36: 49 | T36: 0.98 | U36: 40 | V36: 0.8 | W36: 44 | X36: 0.88
A37: Metropolitana | B37: Itaguaçu | C37: 131 | D37: 30 | E37: 154 | F37: 38.5 | G37: 44 | H37: 1.466666667 | I37: 21 | J37: 0.5454545455 | K37: 33 | L37: 1.1 | M37: 36 | N37: 1.2 | O37: 38 | P37: 1.266666667 | Q37: 35 | R37: 1.166666667 | S37: 25 | T37: 0.6493506494 | U37: 25 | V37: 0.6493506494 | W37: 24 | X37: 0.6233766234
A38: Sul | B38: Itapemirim | C38: 571 | D38: 142 | E38: 556 | F38: 139 | G38: 79 | H38: 0.5563380282 | I38: 55 | J38: 0.3956834532 | K38: 117 | L38: 0.823943662 | M38: 125 | N38: 0.8802816901 | O38: 96 | P38: 0.676056338 | Q38: 104 | R38: 0.7323943662 | S38: 54 | T38: 0.3884892086 | U38: 73 | V38: 0.5251798561 | W38: 73 | X38: 0.5251798561
A39: Metropolitana | B39: Itarana | C39: 135 | D39: 33 | E39: 128 | F39: 32 | G39: 22 | H39: 0.6666666667 | I39: 27 | J39: 0.84375 | K39: 30 | L39: 0.9090909091 | M39: 30 | N39: 0.9090909091 | O39: 25 | P39: 0.7575757576 | Q39: 26 | R39: 0.7878787879 | S39: 24 | T39: 0.75 | U39: 27 | V39: 0.84375 | W39: 27 | X39: 0.84375
A40: Sul | B40: Iúna | C40: 469 | D40: 103 | E40: 410 | F40: 102.5 | G40: 80 | H40: 0.7766990291 | I40: 63 | J40: 0.6146341463 | K40: 121 | L40: 1.174757282 | M40: 126 | N40: 1.223300971 | O40: 91 | P40: 0.8834951456 | Q40: 90 | R40: 0.8737864078 | S40: 78 | T40: 0.7609756098 | U40: 97 | V40: 0.9463414634 | W40: 107 | X40: 1.043902439
A41: Norte | B41: Jaguaré | C41: 492 | D41: 114 | E41: 445 | F41: 111.25 | G41: 100 | H41: 0.8771929825 | I41: 50 | J41: 0.4494382022 | K41: 100 | L41: 0.8771929825 | M41: 99 | N41: 0.8684210526 | O41: 99 | P41: 0.8684210526 | Q41: 110 | R41: 0.9649122807 | S41: 73 | T41: 0.6561797753 | U41: 88 | V41: 0.791011236 | W41: 112 | X41: 1.006741573
A42: Sul | B42: Jerônimo Monteiro | C42: 163 | D42: 41 | E42: 157 | F42: 39.25 | G42: 29 | H42: 0.7073170732 | I42: 9 | J42: 0.2292993631 | K42: 39 | L42: 0.9512195122 | M42: 39 | N42: 0.9512195122 | O42: 35 | P42: 0.8536585366 | Q42: 35 | R42: 0.8536585366 | S42: 26 | T42: 0.6624203822 | U42: 23 | V42: 0.5859872611 | W42: 25 | X42: 0.6369426752
A43: Metropolitana | B43: João Neiva | C43: 179 | D43: 41 | E43: 142 | F43: 35.5 | G43: 28 | H43: 0.6829268293 | I43: 18 | J43: 0.5070422535 | K43: 46 | L43: 1.12195122 | M43: 50 | N43: 1.219512195 | O43: 33 | P43: 0.8048780488 | Q43: 33 | R43: 0.8048780488 | S43: 24 | T43: 0.676056338 | U43: 26 | V43: 0.7323943662 | W43: 25 | X43: 0.7042253521
A44: Metropolitana | B44: Laranja da Terra | C44: 100 | D44: 25 | E44: 133 | F44: 33.25 | G44: 19 | H44: 0.76 | I44: 21 | J44: 0.6315789474 | K44: 42 | L44: 1.68 | M44: 42 | N44: 1.68 | O44: 18 | P44: 0.72 | Q44: 17 | R44: 0.68 | S44: 15 | T44: 0.4511278195 | U44: 20 | V44: 0.6015037594 | W44: 20 | X44: 0.6015037594
A45: Central | B45: Linhares | C45: 2585 | D45: 648 | E45: 2452 | F45: 613 | G45: 433 | H45: 0.6682098765 | I45: 284 | J45: 0.4632952692 | K45: 480 | L45: 0.7407407407 | M45: 469 | N45: 0.7237654321 | O45: 472 | P45: 0.7283950617 | Q45: 505 | R45: 0.7793209877 | S45: 358 | T45: 0.5840130506 | U45: 483 | V45: 0.7879282219 | W45: 512 | X45: 0.8352365416
A46: Central | B46: Mantenópolis | C46: 152 | D46: 34 | E46: 166 | F46: 41.5 | G46: 31 | H46: 0.9117647059 | I46: 17 | J46: 0.4096385542 | K46: 41 | L46: 1.205882353 | M46: 35 | N46: 1.029411765 | O46: 36 | P46: 1.058823529 | Q46: 36 | R46: 1.058823529 | S46: 18 | T46: 0.4337349398 | U46: 27 | V46: 0.6506024096 | W46: 27 | X46: 0.6506024096
A47: Sul | B47: Marataízes | C47: 570 | D47: 156 | E47: 579 | F47: 144.75 | G47: 94 | H47: 0.6025641026 | I47: 63 | J47: 0.4352331606 | K47: 152 | L47: 0.9743589744 | M47: 152 | N47: 0.9743589744 | O47: 120 | P47: 0.7692307692 | Q47: 135 | R47: 0.8653846154 | S47: 68 | T47: 0.469775475 | U47: 119 | V47: 0.8221070812 | W47: 124 | X47: 0.8566493955
A48: Metropolitana | B48: Marechal Floriano | C48: 235 | D48: 65 | E48: 236 | F48: 59 | G48: 42 | H48: 0.6461538462 | I48: 28 | J48: 0.4745762712 | K48: 53 | L48: 0.8153846154 | M48: 51 | N48: 0.7846153846 | O48: 44 | P48: 0.6769230769 | Q48: 42 | R48: 0.6461538462 | S48: 28 | T48: 0.4745762712 | U48: 30 | V48: 0.5084745763 | W48: 28 | X48: 0.4745762712
A49: Central | B49: Marilândia | C49: 160 | D49: 28 | E49: 164 | F49: 41 | G49: 30 | H49: 1.071428571 | I49: 21 | J49: 0.512195122 | K49: 33 | L49: 1.178571429 | M49: 33 | N49: 1.178571429 | O49: 29 | P49: 1.035714286 | Q49: 29 | R49: 1.035714286 | S49: 26 | T49: 0.6341463415 | U49: 21 | V49: 0.512195122 | W49: 21 | X49: 0.512195122
A50: Sul | B50: Mimoso do Sul | C50: 258 | D50: 56 | E50: 276 | F50: 69 | G50: 24 | H50: 0.4285714286 | I50: 46 | J50: 0.6666666667 | K50: 54 | L50: 0.9642857143 | M50: 56 | N50: 1 | O50: 39 | P50: 0.6964285714 | Q50: 40 | R50: 0.7142857143 | S50: 49 | T50: 0.7101449275 | U50: 54 | V50: 0.7826086957 | W50: 54 | X50: 0.7826086957
A51: Norte | B51: Montanha | C51: 254 | D51: 55 | E51: 278 | F51: 69.5 | G51: 60 | H51: 1.090909091 | I51: 42 | J51: 0.6043165468 | K51: 62 | L51: 1.127272727 | M51: 64 | N51: 1.163636364 | O51: 60 | P51: 1.090909091 | Q51: 63 | R51: 1.145454545 | S51: 52 | T51: 0.7482014388 | U51: 62 | V51: 0.8920863309 | W51: 63 | X51: 0.9064748201
A52: Norte | B52: Mucurici | C52: 72 | D52: 12 | E52: 97 | F52: 24.25 | G52: 10 | H52: 0.8333333333 | I52: 11 | J52: 0.4536082474 | K52: 20 | L52: 1.666666667 | M52: 20 | N52: 1.666666667 | O52: 9 | P52: 0.75 | Q52: 9 | R52: 0.75 | S52: 12 | T52: 0.4948453608 | U52: 14 | V52: 0.5773195876 | W52: 14 | X52: 0.5773195876
A53: Sul | B53: Muniz Freire | C53: 211 | D53: 43 | E53: 275 | F53: 68.75 | G53: 53 | H53: 1.23255814 | I53: 13 | J53: 0.1890909091 | K53: 70 | L53: 1.627906977 | M53: 69 | N53: 1.604651163 | O53: 53 | P53: 1.23255814 | Q53: 53 | R53: 1.23255814 | S53: 58 | T53: 0.8436363636 | U53: 60 | V53: 0.8727272727 | W53: 56 | X53: 0.8145454545
A54: Sul | B54: Muqui | C54: 172 | D54: 44 | E54: 152 | F54: 38 | G54: 27 | H54: 0.6136363636 | I54: 20 | J54: 0.5263157895 | K54: 39 | L54: 0.8863636364 | M54: 36 | N54: 0.8181818182 | O54: 27 | P54: 0.6136363636 | Q54: 27 | R54: 0.6136363636 | S54: 22 | T54: 0.5789473684 | U54: 21 | V54: 0.5526315789 | W54: 21 | X54: 0.5526315789
A55: Norte | B55: Nova Venécia | C55: 681 | D55: 163 | E55: 656 | F55: 164 | G55: 153 | H55: 0.9386503067 | I55: 77 | J55: 0.4695121951 | K55: 160 | L55: 0.981595092 | M55: 161 | N55: 0.9877300613 | O55: 137 | P55: 0.8404907975 | Q55: 149 | R55: 0.9141104294 | S55: 104 | T55: 0.6341463415 | U55: 118 | V55: 0.7195121951 | W55: 121 | X55: 0.737804878
A56: Central | B56: Pancas | C56: 208 | D56: 42 | E56: 244 | F56: 61 | G56: 53 | H56: 1.261904762 | I56: 32 | J56: 0.5245901639 | K56: 49 | L56: 1.166666667 | M56: 51 | N56: 1.214285714 | O56: 60 | P56: 1.428571429 | Q56: 61 | R56: 1.452380952 | S56: 34 | T56: 0.5573770492 | U56: 33 | V56: 0.5409836066 | W56: 34 | X56: 0.5573770492
A57: Norte | B57: Pedro Canário | C57: 330 | D57: 78 | E57: 338 | F57: 84.5 | G57: 76 | H57: 0.9743589744 | I57: 57 | J57: 0.674556213 | K57: 91 | L57: 1.166666667 | M57: 92 | N57: 1.179487179 | O57: 89 | P57: 1.141025641 | Q57: 94 | R57: 1.205128205 | S57: 72 | T57: 0.8520710059 | U57: 77 | V57: 0.9112426036 | W57: 80 | X57: 0.9467455621
A58: Norte | B58: Pinheiros | C58: 322 | D58: 70 | E58: 383 | F58: 95.75 | G58: 46 | H58: 0.6571428571 | I58: 42 | J58: 0.4386422977 | K58: 64 | L58: 0.9142857143 | M58: 57 | N58: 0.8142857143 | O58: 53 | P58: 0.7571428571 | Q58: 49 | R58: 0.7 | S58: 62 | T58: 0.6475195822 | U58: 75 | V58: 0.7832898172 | W58: 66 | X58: 0.6892950392
A59: Sul | B59: Piúma | C59: 312 | D59: 67 | E59: 311 | F59: 77.75 | G59: 35 | H59: 0.5223880597 | I59: 32 | J59: 0.4115755627 | K59: 70 | L59: 1.044776119 | M59: 68 | N59: 1.014925373 | O59: 60 | P59: 0.8955223881 | Q59: 59 | R59: 0.8805970149 | S59: 40 | T59: 0.5144694534 | U59: 59 | V59: 0.7588424437 | W59: 64 | X59: 0.8231511254
A60: Norte | B60: Ponto Belo | C60: 86 | D60: 19 | E60: 85 | F60: 21.25 | G60: 9 | H60: 0.4736842105 | I60: 7 | J60: 0.3294117647 | K60: 13 | L60: 0.6842105263 | M60: 13 | N60: 0.6842105263 | O60: 10 | P60: 0.5263157895 | Q60: 9 | R60: 0.4736842105 | S60: 5 | T60: 0.2352941176 | U60: 7 | V60: 0.3294117647 | W60: 7 | X60: 0.3294117647
A61: Sul | B61: Presidente Kennedy | C61: 192 | D61: 57 | E61: 239 | F61: 59.75 | G61: 46 | H61: 0.8070175439 | I61: 13 | J61: 0.2175732218 | K61: 64 | L61: 1.122807018 | M61: 65 | N61: 1.140350877 | O61: 48 | P61: 0.8421052632 | Q61: 48 | R61: 0.8421052632 | S61: 48 | T61: 0.8033472803 | U61: 61 | V61: 1.020920502 | W61: 59 | X61: 0.9874476987
A62: Central | B62: Rio Bananal | C62: 304 | D62: 77 | E62: 229 | F62: 57.25 | G62: 70 | H62: 0.9090909091 | I62: 58 | J62: 1.013100437 | K62: 80 | L62: 1.038961039 | M62: 86 | N62: 1.116883117 | O62: 71 | P62: 0.9220779221 | Q62: 67 | R62: 0.8701298701 | S62: 57 | T62: 0.9956331878 | U62: 55 | V62: 0.96069869 | W62: 55 | X62: 0.96069869
A63: Sul | B63: Rio Novo do Sul | C63: 129 | D63: 34 | E63: 144 | F63: 36 | G63: 26 | H63: 0.7647058824 | I63: 18 | J63: 0.5 | K63: 34 | L63: 1 | M63: 35 | N63: 1.029411765 | O63: 30 | P63: 0.8823529412 | Q63: 31 | R63: 0.9117647059 | S63: 16 | T63: 0.4444444444 | U63: 24 | V63: 0.6666666667 | W63: 24 | X63: 0.6666666667
A64: Metropolitana | B64: Santa Leopoldina | C64: 108 | D64: 32 | E64: 155 | F64: 38.75 | G64: 19 | H64: 0.59375 | I64: 15 | J64: 0.3870967742 | K64: 38 | L64: 1.1875 | M64: 37 | N64: 1.15625 | O64: 22 | P64: 0.6875 | Q64: 23 | R64: 0.71875 | S64: 16 | T64: 0.4129032258 | U64: 29 | V64: 0.7483870968 | W64: 32 | X64: 0.8258064516
A65: Metropolitana | B65: Santa Maria de Jetibá | C65: 669 | D65: 163 | E65: 685 | F65: 171.25 | G65: 140 | H65: 0.8588957055 | I65: 41 | J65: 0.2394160584 | K65: 169 | L65: 1.036809816 | M65: 179 | N65: 1.098159509 | O65: 167 | P65: 1.024539877 | Q65: 159 | R65: 0.9754601227 | S65: 97 | T65: 0.5664233577 | U65: 129 | V65: 0.7532846715 | W65: 135 | X65: 0.7883211679
A66: Metropolitana | B66: Santa Teresa | C66: 288 | D66: 63 | E66: 260 | F66: 65 | G66: 43 | H66: 0.6825396825 | I66: 40 | J66: 0.6153846154 | K66: 65 | L66: 1.031746032 | M66: 72 | N66: 1.142857143 | O66: 47 | P66: 0.746031746 | Q66: 43 | R66: 0.6825396825 | S66: 49 | T66: 0.7538461538 | U66: 48 | V66: 0.7384615385 | W66: 45 | X66: 0.6923076923
A67: Central | B67: São Domingos do Norte | C67: 119 | D67: 23 | E67: 117 | F67: 29.25 | G67: 19 | H67: =G67/D67 -> 0.8260869565 | I67: 16 | J67: =I67/F67 -> 0.547008547 | K67: 25 | L67: =K67/D67 -> 1.086956522 | M67: 24 | N67: =M67/D67 -> 1.043478261 | O67: 17 | P67: =O67/D67 -> 0.7391304348 | Q67: 17 | R67: =Q67/D67 -> 0.7391304348 | S67: 23 | T67: =S67/F67 -> 0.7863247863 | U67: 20 | V67: =U67/F67 -> 0.6837606838 | W67: 21 | X67: =W67/F67 -> 0.7179487179
A68: Central | B68: São Gabriel da Palha | C68: 420 | D68: 88 | E68: 426 | F68: =E68/12*3 -> 106.5 | G68: 78 | H68: 0.8863636364 | I68: 67 | J68: 0.6291079812 | K68: 84 | L68: 0.9545454545 | M68: 87 | N68: 0.9886363636 | O68: 80 | P68: 0.9090909091 | Q68: 79 | R68: 0.8977272727 | S68: 76 | T68: 0.7136150235 | U68: 72 | V68: 0.676056338 | W68: 74 | X68: 0.6948356808
A69: Sul | B69: São José do Calçado | C69: 99 | D69: 23 | E69: 150 | F69: 37.5 | G69: 28 | H69: 1.217391304 | I69: 11 | J69: 0.2933333333 | K69: 36 | L69: 1.565217391 | M69: 36 | N69: 1.565217391 | O69: 31 | P69: 1.347826087 | Q69: 29 | R69: 1.260869565 | S69: 34 | T69: 0.9066666667 | U69: 36 | V69: 0.96 | W69: 34 | X69: 0.9066666667
A70: Norte | B70: São Mateus | C70: 1854 | D70: 396 | E70: 1766 | F70: 441.5 | G70: 231 | H70: 0.5833333333 | I70: 233 | J70: 0.5277463194 | K70: 403 | L70: 1.017676768 | M70: 364 | N70: 0.9191919192 | O70: 337 | P70: 0.851010101 | Q70: 336 | R70: 0.8484848485 | S70: 291 | T70: 0.6591166478 | U70: 356 | V70: 0.8063420159 | W70: 353 | X70: 0.7995469989
A71: Central | B71: São Roque do Canaã | C71: 122 | D71: 40 | E71: 100 | F71: 25 | G71: 27 | H71: 0.675 | I71: 30 | J71: 1.2 | K71: 33 | L71: 0.825 | M71: 38 | N71: 0.95 | O71: 22 | P71: 0.55 | Q71: 21 | R71: 0.525 | S71: 26 | T71: 1.04 | U71: 25 | V71: 1 | W71: 26 | X71: 1.04
A72: Metropolitana | B72: Serra | C72: 7403 | D72: 1921 | E72: 7550 | F72: 1887.5 | G72: 1096 | H72: 0.5705361791 | I72: 798 | J72: 0.422781457 | K72: 1526 | L72: 0.7943779282 | M72: 1526 | N72: 0.7943779282 | O72: 1376 | P72: 0.7162935971 | Q72: 1389 | R72: 0.7230609058 | S72: 1427 | T72: 0.7560264901 | U72: 1592 | V72: 0.8434437086 | W72: 1577 | X72: 0.8354966887
A73: Central | B73: Sooretama | C73: 432 | D73: 110 | E73: 415 | F73: 103.75 | G73: 79 | H73: 0.7181818182 | I73: 51 | J73: 0.4915662651 | K73: 89 | L73: 0.8090909091 | M73: 85 | N73: 0.7727272727 | O73: 93 | P73: 0.8454545455 | Q73: 93 | R73: 0.8454545455 | S73: 103 | T73: 0.9927710843 | U73: 81 | V73: 0.7807228916 | W73: 89 | X73: 0.8578313253
A74: Sul | B74: Vargem Alta | C74: 258 | D74: 64 | E74: 278 | F74: 69.5 | G74: 50 | H74: 0.78125 | I74: 33 | J74: 0.4748201439 | K74: 67 | L74: 1.046875 | M74: 66 | N74: 1.03125 | O74: 54 | P74: 0.84375 | Q74: 56 | R74: 0.875 | S74: 49 | T74: 0.7050359712 | U74: 51 | V74: 0.7338129496 | W74: 52 | X74: 0.7482014388
A75: Metropolitana | B75: Venda Nova do Imigrante | C75: 382 | D75: 82 | E75: 328 | F75: 82 | G75: 71 | H75: 0.8658536585 | I75: 34 | J75: 0.4146341463 | K75: 103 | L75: 1.256097561 | M75: 107 | N75: 1.304878049 | O75: 70 | P75: 0.8536585366 | Q75: 72 | R75: 0.8780487805 | S75: 39 | T75: 0.4756097561 | U75: 41 | V75: 0.5 | W75: 45 | X75: 0.5487804878
A76: Metropolitana | B76: Viana | C76: 989 | D76: 241 | E76: 1064 | F76: 266 | G76: 81 | H76: 0.3360995851 | I76: 114 | J76: 0.4285714286 | K76: 226 | L76: 0.9377593361 | M76: 229 | N76: 0.9502074689 | O76: 162 | P76: 0.6721991701 | Q76: 173 | R76: 0.7178423237 | S76: 168 | T76: 0.6315789474 | U76: 213 | V76: 0.8007518797 | W76: 218 | X76: 0.8195488722
A77: Norte | B77: Vila Pavão | C77: 99 | D77: 21 | E77: 127 | F77: 31.75 | G77: 21 | H77: 1 | I77: 17 | J77: 0.5354330709 | K77: 25 | L77: 1.19047619 | M77: 27 | N77: 1.285714286 | O77: 24 | P77: 1.142857143 | Q77: 24 | R77: 1.142857143 | S77: 20 | T77: 0.6299212598 | U77: 23 | V77: 0.7244094488 | W77: 22 | X77: 0.6929133858
A78: Central | B78: Vila Valério | C78: 694 | D78: 54 | E78: 169 | F78: 42.25 | G78: 50 | H78: 0.9259259259 | I78: 32 | J78: 0.7573964497 | K78: 42 | L78: 0.7777777778 | M78: 41 | N78: 0.7592592593 | O78: 46 | P78: 0.8518518519 | Q78: 54 | R78: 1 | S78: 42 | T78: 0.9940828402 | U78: 44 | V78: 1.041420118 | W78: 44 | X78: 1.041420118
A79: Metropolitana | B79: Vila Velha | C79: 5621 | D79: 1472 | E79: 5675 | F79: 1418.75 | G79: 918 | H79: 0.6236413043 | I79: 663 | J79: 0.4673127753 | K79: 1151 | L79: 0.7819293478 | M79: 1210 | N79: 0.8220108696 | O79: 1012 | P79: 0.6875 | Q79: 1003 | R79: 0.6813858696 | S79: 1031 | T79: 0.7266960352 | U79: 1128 | V79: 0.7950660793 | W79: 1093 | X79: 0.7703964758
A80: Metropolitana | B80: Vitória | C80: 6999 | D80: 910 | E80: 3833 | F80: 958.25 | G80: 564 | H80: 0.6197802198 | I80: 509 | J80: 0.5311766241 | K80: 697 | L80: 0.7659340659 | M80: 799 | N80: 0.878021978 | O80: 729 | P80: 0.8010989011 | Q80: 726 | R80: 0.7978021978 | S80: 699 | T80: 0.7294547352 | U80: 797 | V80: 0.8317244978 | W80: 807 | X80: 0.8421601878
B82: Total Norte | C82: =SUMIF($A$3:$A$80,"Norte",C$3:C$80) -> 5655 | D82: =SUMIF($A$3:$A$80,"Norte",D$3:D$80) -> 1273 | E82: =SUMIF($A$3:$A$80,"Norte",E$3:E$80) -> 5789 | F82: =SUMIF($A$3:$A$80,"Norte",F$3:F$80) -> 1447.25 | G82: =SUMIF($A$3:$A$80,"Norte",G$3:G$80) -> 1036 | H82: =G82/D82 -> 0.8138256088 | I82: =SUMIF($A$3:$A$80,"Norte",I$3:I$80) -> 780 | J82: =I82/F82 -> 0.5389531871 | K82: =SUMIF($A$3:$A$80,"Norte",K$3:K$80) -> 1301 | L82: =K82/D82 -> 1.021995287 | M82: =SUMIF($A$3:$A$80,"Norte",M$3:M$80) -> 1263 | N82: =M82/D82 -> 0.9921445405 | O82: =SUMIF($A$3:$A$80,"Norte",O$3:O$80) -> 1153 | P82: =O82/D82 -> 0.9057344855 | Q82: =SUMIF($A$3:$A$80,"Norte",Q$3:Q$80) -> 1176 | R82: =Q82/D82 -> 0.9238020424 | S82: =SUMIF($A$3:$A$80,"Norte",S$3:S$80) -> 987 | T82: =S82/F82 -> 0.6819830713 | U82: =SUMIF($A$3:$A$80,"Norte",U$3:U$80) -> 1131 | V82: =U82/F82 -> 0.7814821213 | W82: =SUMIF($A$3:$A$80,"Norte",W$3:W$80) -> 1159 | X82: =W82/F82 -> 0.8008291587
B83: Total Central | C83: =SUMIF($A$3:$A$80,"Central",C$3:C$80) -> 7463 | D83: =SUMIF($A$3:$A$80,"Central",D$3:D$80) -> 1662 | E83: =SUMIF($A$3:$A$80,"Central",E$3:E$80) -> 6843 | F83: =SUMIF($A$3:$A$80,"Central",F$3:F$80) -> 1710.75 | G83: =SUMIF($A$3:$A$80,"Central",G$3:G$80) -> 1238 | H83: =G83/D83 -> 0.7448856799 | I83: =SUMIF($A$3:$A$80,"Central",I$3:I$80) -> 881 | J83: =I83/F83 -> 0.5149788105 | K83: =SUMIF($A$3:$A$80,"Central",K$3:K$80) -> 1444 | L83: =K83/D83 -> 0.8688327316 | M83: =SUMIF($A$3:$A$80,"Central",M$3:M$80) -> 1462 | N83: =M83/D83 -> 0.8796630566 | O83: =SUMIF($A$3:$A$80,"Central",O$3:O$80) -> 1364 | P83: =O83/D83 -> 0.8206979543 | Q83: =SUMIF($A$3:$A$80,"Central",Q$3:Q$80) -> 1403 | R83: =Q83/D83 -> 0.8441636582 | S83: =SUMIF($A$3:$A$80,"Central",S$3:S$80) -> 1034 | T83: =S83/F83 -> 0.604413269 | U83: =SUMIF($A$3:$A$80,"Central",U$3:U$80) -> 1240 | V83: =U83/F83 -> 0.7248282917 | W83: =SUMIF($A$3:$A$80,"Central",W$3:W$80) -> 1283 | X83: =W83/F83 -> 0.7499634663
B84: Total Metropolitana | C84: =SUMIF($A$3:$A$80,"Metropolitana",C$3:C$80) -> 33141 | D84: =SUMIF($A$3:$A$80,"Metropolitana",D$3:D$80) -> 7490 | E84: =SUMIF($A$3:$A$80,"Metropolitana",E$3:E$80) -> 30197 | F84: =SUMIF($A$3:$A$80,"Metropolitana",F$3:F$80) -> 7549.25 | G84: =SUMIF($A$3:$A$80,"Metropolitana",G$3:G$80) -> 4782 | H84: =G84/D84 -> 0.6384512684 | I84: =SUMIF($A$3:$A$80,"Metropolitana",I$3:I$80) -> 3748 | J84: =I84/F84 -> 0.4964731596 | K84: =SUMIF($A$3:$A$80,"Metropolitana",K$3:K$80) -> 6553 | L84: =K84/D84 -> 0.8748998665 | M84: =SUMIF($A$3:$A$80,"Metropolitana",M$3:M$80) -> 6789 | N84: =M84/D84 -> 0.9064085447 | O84: =SUMIF($A$3:$A$80,"Metropolitana",O$3:O$80) -> 5795 | P84: =O84/D84 -> 0.7736982644 | Q84: =SUMIF($A$3:$A$80,"Metropolitana",Q$3:Q$80) -> 5825 | R84: =Q84/D84 -> 0.7777036048 | S84: =SUMIF($A$3:$A$80,"Metropolitana",S$3:S$80) -> 5389 | T84: =S84/F84 -> 0.7138457463 | U84: =SUMIF($A$3:$A$80,"Metropolitana",U$3:U$80) -> 6276 | V84: =U84/F84 -> 0.8313408617 | W84: =SUMIF($A$3:$A$80,"Metropolitana",W$3:W$80) -> 6274 | X84: =W84/F84 -> 0.8310759347
B85: Total Sul | C85: =SUMIF($A$3:$A$80,"sul",C$3:C$80) -> 8419 | D85: =SUMIF($A$3:$A$80,"sul",D$3:D$80) -> 2085 | E85: =SUMIF($A$3:$A$80,"sul",E$3:E$80) -> 8688 | F85: =SUMIF($A$3:$A$80,"sul",F$3:F$80) -> 2172 | G85: =SUMIF($A$3:$A$80,"sul",G$3:G$80) -> 1485 | H85: =G85/D85 -> 0.7122302158 | I85: =SUMIF($A$3:$A$80,"sul",I$3:I$80) -> 921 | J85: =I85/F85 -> 0.4240331492 | K85: =SUMIF($A$3:$A$80,"sul",K$3:K$80) -> 2168 | L85: =K85/D85 -> 1.039808153 | M85: =SUMIF($A$3:$A$80,"sul",M$3:M$80) -> 2220 | N85: =M85/D85 -> 1.064748201 | O85: =SUMIF($A$3:$A$80,"sul",O$3:O$80) -> 1795 | P85: =O85/D85 -> 0.860911271 | Q85: =SUMIF($A$3:$A$80,"sul",Q$3:Q$80) -> 1793 | R85: =Q85/D85 -> 0.8599520384 | S85: =SUMIF($A$3:$A$80,"sul",S$3:S$80) -> 1403 | T85: =S85/F85 -> 0.6459484346 | U85: =SUMIF($A$3:$A$80,"sul",U$3:U$80) -> 1648 | V85: =U85/F85 -> 0.758747698 | W85: =SUMIF($A$3:$A$80,"sul",W$3:W$80) -> 1670 | X85: =W85/F85 -> 0.7688766114
B86: Total Espírito Santo | C86: =SUM(C3:C80) -> 54678 | D86: =SUM(D3:D80) -> 12510 | E86: =SUM(E3:E80) -> 51517 | F86: =SUM(F3:F80) -> 12879.25 | G86: =SUM(G3:G80) -> 8541 | H86: =G86/D86 -> 0.6827338129 | I86: =SUM(I3:I80) -> 6330 | J86: =I86/F86 -> 0.4914882466 | K86: =SUM(K3:K80) -> 11466 | L86: =K86/D86 -> 0.9165467626 | M86: =SUM(M3:M80) -> 11734 | N86: =M86/D86 -> 0.9379696243 | O86: =SUM(O3:O80) -> 10107 | P86: =O86/D86 -> 0.8079136691 | Q86: =SUM(Q3:Q80) -> 10197 | R86: =Q86/D86 -> 0.8151079137 | S86: =SUM(S3:S80) -> 8813 | T86: =S86/F86 -> 0.6842789759 | U86: =SUM(U3:U80) -> 10295 | V86: =U86/F86 -> 0.7993477881 | W86: =SUM(W3:W80) -> 10386 | X86: =W86/F86 -> 0.8064134169
A90: FonteVacina e Confia, em 04 de Abril de 2024.**
A91: **Dados referente às doses aplicadas no período de Março de 2024
A92: Cobertura Calculada por município de procedência da vacinação
A93: 1 População anual extraída do MS/SVS/DASIS - SINASC/DASIS/SVS/MS 2023 (hoje preliminares) referente ao período de fevereiro a dezembro de 2023 e SINASC/DASIS/SVS/MS 2024 referente ao período de janeiro de 2024.
A95: ² População proporcional extraída do MS/SVS/DASIS - SINASC/DASIS/SVS/MS 2023 (hoje preliminares) referente ao período de fevereiro e março de 2023 somada a população extraída do SINASC/DASIS/SVS/MS 2024 referente ao período de janeiro de 2024.
A96: ³ População anual e proporcional extraída do Censo IBGE 2022.
A98: Observações:
A99: Imunobiológicos que foram recebidos parcialmente pelo estado no mês da análise, sendo distribuídos em quantidades reduzidas às regionais e municípios: Varicela, Febre Amarela e HPV Quadrivalente.
A100: Imunobiológicos que não foram recebidos pelo estado no mês da análise, não sendo possível a distribuição às regionais e municípios: Meningo C, Hepatite A (CRIE), HIB, Hepatite A Rotina Pediátrica, DTPa (CRIE).
A101: Imunobiológicos com indisponibilidade de aquisição e distribuição no mês da análise: Tetra Viral.

Sheet CV REF 1A e 4A - residência
G1: D2 | K1: REFORÇOS 1 ANO | S1: REFORÇOS 4 ANOS
A2: Regional | B2: Município | C2: ¹População 1 ano anual | D2: ²População 1 ano proporcional | E2: ³População 4 anos anual | F2: ³População 4 anos proporcional | G2: DOSES APLICADAS D2 TRÍPLICE VIRAL | H2: COBERTURA D2 TRÍPLICE VIRAL | I2: DOSES APLICADAS D2 VARICELA | J2: COBERTURA D2 VARICELA | K2: DOSES APLICADAS REF PNEUMO | L2: COBERTURA REF PNEUMO | M2: DOSES APLICADAS REF MENINGO | N2: COBERTURA REF MENINGO | O2: DOSES APLICADAS R1 POLIO | P2: COBERTURA R1 POLIO | Q2: DOSES APLICADAS R1 TRÍPLICE BACTERIANA | R2: COBERTURA R1 TRÍPLICE BACTERIANA | S2: DOSES APLICADAS REF FEBRE AMARELA | T2: COBERTURA REF FEBRE AMARELA | U2: DOSES APLICADAS R2 POLIO | V2: COBERTURA R2 POLIO | W2: DOSES APLICADAS R2 TRÍPLICE BACTERIANA | X2: COBERTURA R2 TRÍPLICE BACTERIANA
A3: Metropolitana | B3: Afonso Cláudio | C3: 396 | D3: 110 | E3: 416 | F3: =E3/12*3 -> 104 | G3: 83 | H3: =G3/D3 -> 0.7545454545 | I3: 58 | J3: =I3/F3 -> 0.5576923077 | K3: 114 | L3: =K3/D3 -> 1.036363636 | M3: 112 | N3: =M3/D3 -> 1.018181818 | O3: 92 | P3: =O3/D3 -> 0.8363636364 | Q3: 92 | R3: =Q3/D3 -> 0.8363636364 | S3: 61 | T3: =S3/F3 -> 0.5865384615 | U3: 64 | V3: =U3/F3 -> 0.6153846154 | W3: 66 | X3: =W3/F3 -> 0.6346153846
A4: Norte | B4: Água Doce do Norte | C4: 157 | D4: 33 | E4: 151 | F4: =E4/12*3 -> 37.75 | G4: 24 | H4: 0.7272727273 | I4: 19 | J4: 0.5033112583 | K4: 36 | L4: 1.090909091 | M4: 35 | N4: 1.060606061 | O4: 27 | P4: 0.8181818182 | Q4: 28 | R4: 0.8484848485 | S4: 27 | T4: 0.7152317881 | U4: 26 | V4: 0.6887417219 | W4: 26 | X4: 0.6887417219
A5: Central | B5: Águia Branca | C5: 138 | D5: 31 | E5: 129 | F5: 32.25 | G5: 18 | H5: 0.5806451613 | I5: 15 | J5: 0.4651162791 | K5: 26 | L5: 0.8387096774 | M5: 27 | N5: 0.8709677419 | O5: 27 | P5: 0.8709677419 | Q5: 28 | R5: 0.9032258065 | S5: 22 | T5: 0.6821705426 | U5: 25 | V5: 0.7751937984 | W5: 26 | X5: 0.8062015504
A6: Sul | B6: Alegre | C6: 335 | D6: 78 | E6: 372 | F6: 93 | G6: 55 | H6: 0.7051282051 | I6: 52 | J6: 0.5591397849 | K6: 74 | L6: 0.9487179487 | M6: 72 | N6: 0.9230769231 | O6: 61 | P6: 0.7820512821 | Q6: 56 | R6: 0.7179487179 | S6: 71 | T6: 0.7634408602 | U6: 84 | V6: 0.9032258065 | W6: 86 | X6: 0.9247311828
A7: Sul | B7: Alfredo Chaves | C7: 154 | D7: 40 | E7: 138 | F7: 34.5 | G7: 21 | H7: 0.525 | I7: 19 | J7: 0.5507246377 | K7: 33 | L7: 0.825 | M7: 35 | N7: 0.875 | O7: 31 | P7: 0.775 | Q7: 29 | R7: 0.725 | S7: 20 | T7: 0.5797101449 | U7: 17 | V7: 0.4927536232 | W7: 20 | X7: 0.5797101449
A8: Central | B8: Alto Rio Novo | C8: 90 | D8: 24 | E8: 102 | F8: 25.5 | G8: 14 | H8: 0.5833333333 | I8: 13 | J8: 0.5098039216 | K8: 23 | L8: 0.9583333333 | M8: 22 | N8: 0.9166666667 | O8: 18 | P8: 0.75 | Q8: 15 | R8: 0.625 | S8: 15 | T8: 0.5882352941 | U8: 16 | V8: 0.6274509804 | W8: 15 | X8: 0.5882352941
A9: Sul | B9: Anchieta | C9: 377 | D9: 84 | E9: 390 | F9: 97.5 | G9: 67 | H9: 0.7976190476 | I9: 60 | J9: 0.6153846154 | K9: 99 | L9: 1.178571429 | M9: 102 | N9: 1.214285714 | O9: 81 | P9: 0.9642857143 | Q9: 87 | R9: 1.035714286 | S9: 85 | T9: 0.8717948718 | U9: 92 | V9: 0.9435897436 | W9: 89 | X9: 0.9128205128
A10: Sul | B10: Apiacá | C10: 62 | D10: 13 | E10: 90 | F10: 22.5 | G10: 4 | H10: 0.3076923077 | I10: 19 | J10: 0.8444444444 | K10: 10 | L10: 0.7692307692 | M10: 11 | N10: 0.8461538462 | O10: 4 | P10: 0.3076923077 | Q10: 4 | R10: 0.3076923077 | S10: 4 | T10: 0.1777777778 | U10: 23 | V10: 1.022222222 | W10: 22 | X10: 0.9777777778
A11: Metropolitana | B11: Aracruz | C11: 1453 | D11: 355 | E11: 1420 | F11: 355 | G11: 316 | H11: 0.8901408451 | I11: 223 | J11: 0.6281690141 | K11: 389 | L11: 1.095774648 | M11: 401 | N11: 1.129577465 | O11: 338 | P11: 0.9521126761 | Q11: 337 | R11: 0.9492957746 | S11: 217 | T11: 0.6112676056 | U11: 283 | V11: 0.7971830986 | W11: 291 | X11: 0.8197183099
A12: Sul | B12: Atilio Vivacqua | C12: 140 | D12: 37 | E12: 138 | F12: 34.5 | G12: 28 | H12: 0.7567567568 | I12: 12 | J12: 0.347826087 | K12: 35 | L12: 0.9459459459 | M12: 35 | N12: 0.9459459459 | O12: 35 | P12: 0.9459459459 | Q12: 36 | R12: 0.972972973 | S12: 26 | T12: 0.7536231884 | U12: 28 | V12: 0.8115942029 | W12: 27 | X12: 0.7826086957
A13: Central | B13: Baixo Guandu | C13: 364 | D13: 76 | E13: 427 | F13: 106.75 | G13: 84 | H13: 1.105263158 | I13: 64 | J13: 0.5995316159 | K13: 103 | L13: 1.355263158 | M13: 103 | N13: 1.355263158 | O13: 96 | P13: 1.263157895 | Q13: 94 | R13: 1.236842105 | S13: 72 | T13: 0.6744730679 | U13: 101 | V13: 0.9461358314 | W13: 97 | X13: 0.9086651054
A14: Norte | B14: Barra de São Francisco | C14: 510 | D14: 122 | E14: 589 | F14: 147.25 | G14: 118 | H14: 0.9672131148 | I14: 81 | J14: 0.5500848896 | K14: 127 | L14: 1.040983607 | M14: 122 | N14: 1 | O14: 114 | P14: 0.9344262295 | Q14: 120 | R14: 0.9836065574 | S14: 108 | T14: 0.7334465195 | U14: 101 | V14: 0.6859083192 | W14: 102 | X14: 0.6926994907
A15: Norte | B15: Boa Esperança | C15: 199 | D15: 54 | E15: 200 | F15: 50 | G15: 39 | H15: 0.7222222222 | I15: 27 | J15: 0.54 | K15: 51 | L15: 0.9444444444 | M15: 53 | N15: 0.9814814815 | O15: 48 | P15: 0.8888888889 | Q15: 42 | R15: 0.7777777778 | S15: 28 | T15: 0.56 | U15: 35 | V15: 0.7 | W15: 37 | X15: 0.74
A16: Sul | B16: Bom Jesus do Norte | C16: 81 | D16: 14 | E16: 146 | F16: 36.5 | G16: 12 | H16: 0.8571428571 | I16: 3 | J16: 0.08219178082 | K16: 24 | L16: 1.714285714 | M16: 23 | N16: 1.642857143 | O16: 15 | P16: 1.071428571 | Q16: 14 | R16: 1 | S16: 10 | T16: 0.2739726027 | U16: 15 | V16: 0.4109589041 | W16: 13 | X16: 0.3561643836
A17: Metropolitana | B17: Brejetuba | C17: 195 | D17: 39 | E17: 169 | F17: 42.25 | G17: 52 | H17: 1.333333333 | I17: 35 | J17: 0.8284023669 | K17: 43 | L17: 1.102564103 | M17: 45 | N17: 1.153846154 | O17: 49 | P17: 1.256410256 | Q17: 50 | R17: 1.282051282 | S17: 45 | T17: 1.065088757 | U17: 48 | V17: 1.136094675 | W17: 47 | X17: 1.112426036
A18: Sul | B18: Cachoeiro de Itapemirim | C18: 2446 | D18: 639 | E18: 2417 | F18: 604.25 | G18: 431 | H18: 0.6744913928 | I18: 253 | J18: 0.4187008688 | K18: 614 | L18: 0.9608763693 | M18: 633 | N18: 0.9906103286 | O18: 562 | P18: 0.8794992175 | Q18: 547 | R18: 0.8560250391 | S18: 398 | T18: 0.65866777 | U18: 470 | V18: 0.7778237484 | W18: 475 | X18: 0.7860984692
A19: Metropolitana | B19: Cariacica | C19: 4835 | D19: 1168 | E19: 5005 | F19: 1251.25 | G19: 708 | H19: 0.6061643836 | I19: 712 | J19: 0.569030969 | K19: 1161 | L19: 0.9940068493 | M19: 1199 | N19: 1.026541096 | O19: 974 | P19: 0.8339041096 | Q19: 967 | R19: 0.8279109589 | S19: 924 | T19: 0.7384615385 | U19: 1193 | V19: 0.9534465534 | W19: 1174 | X19: 0.9382617383
A20: Sul | B20: Castelo | C20: 452 | D20: 125 | E20: 399 | F20: 99.75 | G20: 70 | H20: 0.56 | I20: 45 | J20: 0.4511278195 | K20: 115 | L20: 0.92 | M20: 120 | N20: 0.96 | O20: 89 | P20: 0.712 | Q20: 90 | R20: 0.72 | S20: 51 | T20: 0.5112781955 | U20: 65 | V20: 0.6516290727 | W20: 68 | X20: 0.6817042607
A21: Central | B21: Colatina | C21: 1530 | D21: 360 | E21: 1561 | F21: 390.25 | G21: 244 | H21: 0.6777777778 | I21: 153 | J21: 0.3920563741 | K21: 306 | L21: 0.85 | M21: 337 | N21: 0.9361111111 | O21: 277 | P21: 0.7694444444 | Q21: 281 | R21: 0.7805555556 | S21: 134 | T21: 0.3433696348 | U21: 205 | V21: 0.5253042921 | W21: 209 | X21: 0.535554132
A22: Norte | B22: Conceição da Barra | C22: 373 | D22: 88 | E22: 391 | F22: 97.75 | G22: 81 | H22: 0.9204545455 | I22: 60 | J22: 0.6138107417 | K22: 87 | L22: 0.9886363636 | M22: 89 | N22: 1.011363636 | O22: 89 | P22: 1.011363636 | Q22: 83 | R22: 0.9431818182 | S22: 77 | T22: 0.7877237852 | U22: 95 | V22: 0.9718670077 | W22: 100 | X22: 1.023017903
A23: Metropolitana | B23: Conceição do Castelo | C23: 152 | D23: 29 | E23: 144 | F23: 36 | G23: 26 | H23: 0.8965517241 | I23: 7 | J23: 0.1944444444 | K23: 24 | L23: 0.8275862069 | M23: 25 | N23: 0.8620689655 | O23: 29 | P23: 1 | Q23: 28 | R23: 0.9655172414 | S23: 19 | T23: 0.5277777778 | U23: 15 | V23: 0.4166666667 | W23: 17 | X23: 0.4722222222
A24: Sul | B24: Divino de São Lourenço | C24: 57 | D24: 9 | E24: 68 | F24: 17 | G24: 10 | H24: 1.111111111 | I24: 8 | J24: 0.4705882353 | K24: 10 | L24: 1.111111111 | M24: 11 | N24: 1.222222222 | O24: 14 | P24: 1.555555556 | Q24: 14 | R24: 1.555555556 | S24: 24 | T24: 1.411764706 | U24: 19 | V24: 1.117647059 | W24: 18 | X24: 1.058823529
A25: Metropolitana | B25: Domingos Martins | C25: 407 | D25: 94 | E25: 411 | F25: 102.75 | G25: 103 | H25: 1.095744681 | I25: 75 | J25: 0.7299270073 | K25: 102 | L25: 1.085106383 | M25: 93 | N25: 0.9893617021 | O25: 104 | P25: 1.106382979 | Q25: 106 | R25: 1.127659574 | S25: 74 | T25: 0.7201946472 | U25: 89 | V25: 0.8661800487 | W25: 89 | X25: 0.8661800487
A26: Sul | B26: Dores do Rio Preto | C26: 95 | D26: 28 | E26: 92 | F26: 23 | G26: 11 | H26: 0.3928571429 | I26: 8 | J26: 0.347826087 | K26: 21 | L26: 0.75 | M26: 21 | N26: 0.75 | O26: 16 | P26: 0.5714285714 | Q26: 14 | R26: 0.5 | S26: 10 | T26: 0.4347826087 | U26: 10 | V26: 0.4347826087 | W26: 11 | X26: 0.4782608696
A27: Norte | B27: Ecoporanga | C27: 226 | D27: 48 | E27: 283 | F27: 70.75 | G27: 65 | H27: 1.354166667 | I27: 46 | J27: 0.6501766784 | K27: 59 | L27: 1.229166667 | M27: 61 | N27: 1.270833333 | O27: 62 | P27: 1.291666667 | Q27: 62 | R27: 1.291666667 | S27: 46 | T27: 0.6501766784 | U27: 50 | V27: 0.7067137809 | W27: 51 | X27: 0.7208480565
A28: Metropolitana | B28: Fundão | C28: 217 | D28: 58 | E28: 218 | F28: 54.5 | G28: 43 | H28: 0.7413793103 | I28: 28 | J28: 0.5137614679 | K28: 42 | L28: 0.724137931 | M28: 42 | N28: 0.724137931 | O28: 49 | P28: 0.8448275862 | Q28: 51 | R28: 0.8793103448 | S28: 23 | T28: 0.4220183486 | U28: 30 | V28: 0.5504587156 | W28: 29 | X28: 0.5321100917
A29: Central | B29: Governador Lindenberg | C29: 145 | D29: 27 | E29: 142 | F29: 35.5 | G29: 24 | H29: 0.8888888889 | I29: 23 | J29: 0.6478873239 | K29: 27 | L29: 1 | M29: 28 | N29: 1.037037037 | O29: 26 | P29: 0.962962963 | Q29: 27 | R29: 1 | S29: 21 | T29: 0.5915492958 | U29: 27 | V29: 0.7605633803 | W29: 27 | X29: 0.7605633803
A30: Sul | B30: Guaçuí | C30: 375 | D30: 78 | E30: 407 | F30: 101.75 | G30: 98 | H30: 1.256410256 | I30: 29 | J30: 0.285012285 | K30: 111 | L30: 1.423076923 | M30: 117 | N30: 1.5 | O30: 96 | P30: 1.230769231 | Q30: 88 | R30: 1.128205128 | S30: 69 | T30: 0.6781326781 | U30: 64 | V30: 0.628992629 | W30: 60 | X30: 0.5896805897
A31: Metropolitana | B31: Guarapari | C31: 1759 | D31: 452 | E31: 1557 | F31: 389.25 | G31: 274 | H31: 0.6061946903 | I31: 169 | J31: 0.4341682723 | K31: 382 | L31: 0.8451327434 | M31: 392 | N31: 0.8672566372 | O31: 334 | P31: 0.7389380531 | Q31: 360 | R31: 0.796460177 | S31: 261 | T31: 0.6705202312 | U31: 297 | V31: 0.7630057803 | W31: 330 | X31: 0.8477842004
A32: Metropolitana | B32: Ibatiba | C32: 341 | D32: 66 | E32: 354 | F32: 88.5 | G32: 58 | H32: 0.8787878788 | I32: 38 | J32: 0.4293785311 | K32: 86 | L32: 1.303030303 | M32: 87 | N32: 1.318181818 | O32: 75 | P32: 1.136363636 | Q32: 76 | R32: 1.151515152 | S32: 62 | T32: 0.7005649718 | U32: 73 | V32: 0.8248587571 | W32: 74 | X32: 0.8361581921
A33: Metropolitana | B33: Ibiraçu | C33: 147 | D33: 41 | E33: 160 | F33: 40 | G33: 14 | H33: 0.3414634146 | I33: 23 | J33: 0.575 | K33: 30 | L33: 0.7317073171 | M33: 31 | N33: 0.756097561 | O33: 19 | P33: 0.4634146341 | Q33: 19 | R33: 0.4634146341 | S33: 25 | T33: 0.625 | U33: 27 | V33: 0.675 | W33: 27 | X33: 0.675
A34: Sul | B34: Ibitirama | C34: 122 | D34: 27 | E34: 148 | F34: 37 | G34: 23 | H34: 0.8518518519 | I34: 12 | J34: 0.3243243243 | K34: 31 | L34: 1.148148148 | M34: 32 | N34: 1.185185185 | O34: 25 | P34: 0.9259259259 | Q34: 24 | R34: 0.8888888889 | S34: 14 | T34: 0.3783783784 | U34: 18 | V34: 0.4864864865 | W34: 17 | X34: 0.4594594595
A35: Sul | B35: Iconha | C35: 123 | D35: 36 | E35: 156 | F35: 39 | G35: 29 | H35: =G35/D35 -> 0.8055555556 | I35: 6 | J35: =I35/F35 -> 0.1538461538 | K35: 46 | L35: =K35/D35 -> 1.277777778 | M35: 48 | N35: =M35/D35 -> 1.333333333 | O35: 27 | P35: =O35/D35 -> 0.75 | Q35: 27 | R35: =Q35/D35 -> 0.75 | S35: 26 | T35: =S35/F35 -> 0.6666666667 | U35: 25 | V35: =U35/F35 -> 0.641025641 | W35: 24 | X35: =W35/F35 -> 0.6153846154
A36: Sul | B36: Irupi | C36: 196 | D36: 47 | E36: 200 | F36: 50 | G36: 33 | H36: 0.7021276596 | I36: 30 | J36: 0.6 | K36: 70 | L36: 1.489361702 | M36: 69 | N36: 1.468085106 | O36: 42 | P36: 0.8936170213 | Q36: 41 | R36: 0.8723404255 | S36: 47 | T36: 0.94 | U36: 40 | V36: 0.8 | W36: 45 | X36: 0.9
A37: Metropolitana | B37: Itaguaçu | C37: 131 | D37: 30 | E37: 154 | F37: 38.5 | G37: 45 | H37: 1.5 | I37: 18 | J37: 0.4675324675 | K37: 39 | L37: 1.3 | M37: 38 | N37: 1.266666667 | O37: 39 | P37: 1.3 | Q37: 37 | R37: 1.233333333 | S37: 22 | T37: 0.5714285714 | U37: 21 | V37: 0.5454545455 | W37: 19 | X37: 0.4935064935
A38: Sul | B38: Itapemirim | C38: 571 | D38: 142 | E38: 556 | F38: 139 | G38: 86 | H38: 0.6056338028 | I38: 56 | J38: 0.4028776978 | K38: 128 | L38: 0.9014084507 | M38: 133 | N38: 0.9366197183 | O38: 110 | P38: 0.7746478873 | Q38: 119 | R38: 0.838028169 | S38: 64 | T38: 0.4604316547 | U38: 84 | V38: 0.6043165468 | W38: 84 | X38: 0.6043165468
A39: Metropolitana | B39: Itarana | C39: 135 | D39: 33 | E39: 128 | F39: 32 | G39: 24 | H39: 0.7272727273 | I39: 25 | J39: 0.78125 | K39: 27 | L39: 0.8181818182 | M39: 26 | N39: 0.7878787879 | O39: 28 | P39: 0.8484848485 | Q39: 28 | R39: 0.8484848485 | S39: 22 | T39: 0.6875 | U39: 29 | V39: 0.90625 | W39: 29 | X39: 0.90625
A40: Sul | B40: Iúna | C40: 469 | D40: 103 | E40: 410 | F40: 102.5 | G40: 81 | H40: 0.786407767 | I40: 53 | J40: 0.5170731707 | K40: 120 | L40: 1.165048544 | M40: 129 | N40: 1.252427184 | O40: 90 | P40: 0.8737864078 | Q40: 91 | R40: 0.8834951456 | S40: 70 | T40: 0.6829268293 | U40: 90 | V40: 0.8780487805 | W40: 97 | X40: 0.9463414634
A41: Norte | B41: Jaguaré | C41: 492 | D41: 114 | E41: 445 | F41: 111.25 | G41: 100 | H41: 0.8771929825 | I41: 49 | J41: 0.4404494382 | K41: 96 | L41: 0.8421052632 | M41: 95 | N41: 0.8333333333 | O41: 101 | P41: 0.8859649123 | Q41: 109 | R41: 0.9561403509 | S41: 77 | T41: 0.6921348315 | U41: 84 | V41: 0.7550561798 | W41: 107 | X41: 0.9617977528
A42: Sul | B42: Jerônimo Monteiro | C42: 163 | D42: 41 | E42: 157 | F42: 39.25 | G42: 27 | H42: 0.6585365854 | I42: 16 | J42: 0.4076433121 | K42: 37 | L42: 0.9024390244 | M42: 37 | N42: 0.9024390244 | O42: 31 | P42: 0.756097561 | Q42: 31 | R42: 0.756097561 | S42: 28 | T42: 0.7133757962 | U42: 26 | V42: 0.6624203822 | W42: 29 | X42: 0.7388535032
A43: Metropolitana | B43: João Neiva | C43: 179 | D43: 41 | E43: 142 | F43: 35.5 | G43: 28 | H43: 0.6829268293 | I43: 19 | J43: 0.5352112676 | K43: 45 | L43: 1.097560976 | M43: 49 | N43: 1.195121951 | O43: 29 | P43: 0.7073170732 | Q43: 29 | R43: 0.7073170732 | S43: 24 | T43: 0.676056338 | U43: 27 | V43: 0.7605633803 | W43: 26 | X43: 0.7323943662
A44: Metropolitana | B44: Laranja da Terra | C44: 100 | D44: 25 | E44: 133 | F44: 33.25 | G44: 17 | H44: 0.68 | I44: 18 | J44: 0.5413533835 | K44: 41 | L44: 1.64 | M44: 40 | N44: 1.6 | O44: 17 | P44: 0.68 | Q44: 16 | R44: 0.64 | S44: 14 | T44: 0.4210526316 | U44: 18 | V44: 0.5413533835 | W44: 17 | X44: 0.5112781955
A45: Central | B45: Linhares | C45: 2585 | D45: 648 | E45: 2452 | F45: 613 | G45: 443 | H45: 0.6836419753 | I45: 311 | J45: 0.5073409462 | K45: 512 | L45: 0.7901234568 | M45: 500 | N45: 0.7716049383 | O45: 470 | P45: 0.725308642 | Q45: 508 | R45: 0.7839506173 | S45: 387 | T45: 0.6313213703 | U45: 518 | V45: 0.8450244698 | W45: 554 | X45: 0.9037520392
A46: Central | B46: Mantenópolis | C46: 152 | D46: 34 | E46: 166 | F46: 41.5 | G46: 31 | H46: 0.9117647059 | I46: 18 | J46: 0.4337349398 | K46: 40 | L46: 1.176470588 | M46: 33 | N46: 0.9705882353 | O46: 36 | P46: 1.058823529 | Q46: 36 | R46: 1.058823529 | S46: 17 | T46: 0.4096385542 | U46: 26 | V46: 0.6265060241 | W46: 26 | X46: 0.6265060241
A47: Sul | B47: Marataízes | C47: 570 | D47: 156 | E47: 579 | F47: 144.75 | G47: 85 | H47: 0.5448717949 | I47: 56 | J47: 0.3868739206 | K47: 133 | L47: 0.8525641026 | M47: 137 | N47: 0.8782051282 | O47: 104 | P47: 0.6666666667 | Q47: 116 | R47: 0.7435897436 | S47: 61 | T47: 0.4214162349 | U47: 100 | V47: 0.6908462867 | W47: 107 | X47: 0.7392055268
A48: Metropolitana | B48: Marechal Floriano | C48: 235 | D48: 65 | E48: 236 | F48: 59 | G48: 42 | H48: 0.6461538462 | I48: 23 | J48: 0.3898305085 | K48: 56 | L48: 0.8615384615 | M48: 55 | N48: 0.8461538462 | O48: 43 | P48: 0.6615384615 | Q48: 44 | R48: 0.6769230769 | S48: 27 | T48: 0.4576271186 | U48: 26 | V48: 0.4406779661 | W48: 29 | X48: 0.4915254237
A49: Central | B49: Marilândia | C49: 160 | D49: 28 | E49: 164 | F49: 41 | G49: 34 | H49: 1.214285714 | I49: 23 | J49: 0.5609756098 | K49: 34 | L49: 1.214285714 | M49: 35 | N49: 1.25 | O49: 37 | P49: 1.321428571 | Q49: 37 | R49: 1.321428571 | S49: 27 | T49: 0.6585365854 | U49: 21 | V49: 0.512195122 | W49: 22 | X49: 0.5365853659
A50: Sul | B50: Mimoso do Sul | C50: 258 | D50: 56 | E50: 276 | F50: 69 | G50: 31 | H50: 0.5535714286 | I50: 51 | J50: 0.7391304348 | K50: 54 | L50: 0.9642857143 | M50: 58 | N50: 1.035714286 | O50: 43 | P50: 0.7678571429 | Q50: 45 | R50: 0.8035714286 | S50: 54 | T50: 0.7826086957 | U50: 59 | V50: 0.8550724638 | W50: 60 | X50: 0.8695652174
A51: Norte | B51: Montanha | C51: 254 | D51: 55 | E51: 278 | F51: 69.5 | G51: 61 | H51: 1.109090909 | I51: 39 | J51: 0.5611510791 | K51: 57 | L51: 1.036363636 | M51: 60 | N51: 1.090909091 | O51: 61 | P51: 1.109090909 | Q51: 65 | R51: 1.181818182 | S51: 49 | T51: 0.7050359712 | U51: 57 | V51: 0.8201438849 | W51: 58 | X51: 0.8345323741
A52: Norte | B52: Mucurici | C52: 72 | D52: 12 | E52: 97 | F52: 24.25 | G52: 10 | H52: 0.8333333333 | I52: 15 | J52: 0.618556701 | K52: 21 | L52: 1.75 | M52: 21 | N52: 1.75 | O52: 10 | P52: 0.8333333333 | Q52: 10 | R52: 0.8333333333 | S52: 14 | T52: 0.5773195876 | U52: 18 | V52: 0.7422680412 | W52: 18 | X52: 0.7422680412
A53: Sul | B53: Muniz Freire | C53: 211 | D53: 43 | E53: 275 | F53: 68.75 | G53: 51 | H53: 1.186046512 | I53: 16 | J53: 0.2327272727 | K53: 64 | L53: 1.488372093 | M53: 64 | N53: 1.488372093 | O53: 50 | P53: 1.162790698 | Q53: 50 | R53: 1.162790698 | S53: 54 | T53: 0.7854545455 | U53: 58 | V53: 0.8436363636 | W53: 55 | X53: 0.8
A54: Sul | B54: Muqui | C54: 172 | D54: 44 | E54: 152 | F54: 38 | G54: 26 | H54: 0.5909090909 | I54: 15 | J54: 0.3947368421 | K54: 44 | L54: 1 | M54: 43 | N54: 0.9772727273 | O54: 26 | P54: 0.5909090909 | Q54: 26 | R54: 0.5909090909 | S54: 17 | T54: 0.4473684211 | U54: 17 | V54: 0.4473684211 | W54: 18 | X54: 0.4736842105
A55: Norte | B55: Nova Venécia | C55: 681 | D55: 163 | E55: 656 | F55: 164 | G55: 143 | H55: 0.8773006135 | I55: 76 | J55: 0.4634146341 | K55: 164 | L55: 1.006134969 | M55: 155 | N55: 0.9509202454 | O55: 139 | P55: 0.8527607362 | Q55: 150 | R55: 0.9202453988 | S55: 105 | T55: 0.6402439024 | U55: 116 | V55: 0.7073170732 | W55: 121 | X55: 0.737804878
A56: Central | B56: Pancas | C56: 208 | D56: 42 | E56: 244 | F56: 61 | G56: 54 | H56: 1.285714286 | I56: 36 | J56: 0.5901639344 | K56: 57 | L56: 1.357142857 | M56: 56 | N56: 1.333333333 | O56: 59 | P56: 1.404761905 | Q56: 61 | R56: 1.452380952 | S56: 39 | T56: 0.6393442623 | U56: 38 | V56: 0.6229508197 | W56: 38 | X56: 0.6229508197
A57: Norte | B57: Pedro Canário | C57: 330 | D57: 78 | E57: 338 | F57: 84.5 | G57: 77 | H57: 0.9871794872 | I57: 61 | J57: 0.7218934911 | K57: 96 | L57: 1.230769231 | M57: 96 | N57: 1.230769231 | O57: 88 | P57: 1.128205128 | Q57: 92 | R57: 1.179487179 | S57: 74 | T57: 0.875739645 | U57: 81 | V57: 0.9585798817 | W57: 87 | X57: 1.029585799
A58: Norte | B58: Pinheiros | C58: 322 | D58: 70 | E58: 383 | F58: 95.75 | G58: 45 | H58: 0.6428571429 | I58: 40 | J58: 0.4177545692 | K58: 65 | L58: 0.9285714286 | M58: 57 | N58: 0.8142857143 | O58: 60 | P58: 0.8571428571 | Q58: 57 | R58: 0.8142857143 | S58: 58 | T58: 0.6057441253 | U58: 71 | V58: 0.7415143603 | W58: 62 | X58: 0.6475195822
A59: Sul | B59: Piúma | C59: 312 | D59: 67 | E59: 311 | F59: 77.75 | G59: 33 | H59: 0.4925373134 | I59: 25 | J59: 0.3215434084 | K59: 72 | L59: 1.074626866 | M59: 70 | N59: 1.044776119 | O59: 55 | P59: 0.8208955224 | Q59: 55 | R59: 0.8208955224 | S59: 32 | T59: 0.4115755627 | U59: 49 | V59: 0.6302250804 | W59: 54 | X59: 0.6945337621
A60: Norte | B60: Ponto Belo | C60: 86 | D60: 19 | E60: 85 | F60: 21.25 | G60: 10 | H60: 0.5263157895 | I60: 6 | J60: 0.2823529412 | K60: 12 | L60: 0.6315789474 | M60: 12 | N60: 0.6315789474 | O60: 11 | P60: 0.5789473684 | Q60: 10 | R60: 0.5263157895 | S60: 4 | T60: 0.1882352941 | U60: 5 | V60: 0.2352941176 | W60: 5 | X60: 0.2352941176
A61: Sul | B61: Presidente Kennedy | C61: 192 | D61: 57 | E61: 239 | F61: 59.75 | G61: 43 | H61: 0.7543859649 | I61: 16 | J61: 0.2677824268 | K61: 64 | L61: 1.122807018 | M61: 65 | N61: 1.140350877 | O61: 46 | P61: 0.8070175439 | Q61: 46 | R61: 0.8070175439 | S61: 54 | T61: 0.9037656904 | U61: 64 | V61: 1.071129707 | W61: 63 | X61: 1.054393305
A62: Central | B62: Rio Bananal | C62: 304 | D62: 77 | E62: 229 | F62: 57.25 | G62: 62 | H62: 0.8051948052 | I62: 54 | J62: 0.943231441 | K62: 72 | L62: 0.9350649351 | M62: 78 | N62: 1.012987013 | O62: 64 | P62: 0.8311688312 | Q62: 62 | R62: 0.8051948052 | S62: 59 | T62: 1.030567686 | U62: 58 | V62: 1.013100437 | W62: 57 | X62: 0.9956331878
A63: Sul | B63: Rio Novo do Sul | C63: 129 | D63: 34 | E63: 144 | F63: 36 | G63: 19 | H63: 0.5588235294 | I63: 18 | J63: 0.5 | K63: 27 | L63: 0.7941176471 | M63: 28 | N63: 0.8235294118 | O63: 23 | P63: 0.6764705882 | Q63: 24 | R63: 0.7058823529 | S63: 19 | T63: 0.5277777778 | U63: 26 | V63: 0.7222222222 | W63: 24 | X63: 0.6666666667
A64: Metropolitana | B64: Santa Leopoldina | C64: 108 | D64: 32 | E64: 155 | F64: 38.75 | G64: 17 | H64: 0.53125 | I64: 13 | J64: 0.335483871 | K64: 42 | L64: 1.3125 | M64: 43 | N64: 1.34375 | O64: 21 | P64: 0.65625 | Q64: 22 | R64: 0.6875 | S64: 19 | T64: 0.4903225806 | U64: 30 | V64: 0.7741935484 | W64: 32 | X64: 0.8258064516
A65: Metropolitana | B65: Santa Maria de Jetibá | C65: 669 | D65: 163 | E65: 685 | F65: 171.25 | G65: 139 | H65: 0.8527607362 | I65: 48 | J65: 0.2802919708 | K65: 158 | L65: 0.9693251534 | M65: 167 | N65: 1.024539877 | O65: 165 | P65: 1.012269939 | Q65: 155 | R65: 0.9509202454 | S65: 94 | T65: 0.5489051095 | U65: 129 | V65: 0.7532846715 | W65: 134 | X65: 0.7824817518
A66: Metropolitana | B66: Santa Teresa | C66: 288 | D66: 63 | E66: 260 | F66: 65 | G66: 44 | H66: 0.6984126984 | I66: 40 | J66: 0.6153846154 | K66: 71 | L66: 1.126984127 | M66: 79 | N66: 1.253968254 | O66: 48 | P66: 0.7619047619 | Q66: 44 | R66: 0.6984126984 | S66: 48 | T66: 0.7384615385 | U66: 51 | V66: 0.7846153846 | W66: 46 | X66: 0.7076923077
A67: Central | B67: São Domingos do Norte | C67: 119 | D67: 23 | E67: 117 | F67: 29.25 | G67: 20 | H67: =G67/D67 -> 0.8695652174 | I67: 14 | J67: =I67/F67 -> 0.4786324786 | K67: 21 | L67: =K67/D67 -> 0.9130434783 | M67: 21 | N67: =M67/D67 -> 0.9130434783 | O67: 19 | P67: =O67/D67 -> 0.8260869565 | Q67: 19 | R67: =Q67/D67 -> 0.8260869565 | S67: 18 | T67: =S67/F67 -> 0.6153846154 | U67: 16 | V67: =U67/F67 -> 0.547008547 | W67: 18 | X67: =W67/F67 -> 0.6153846154
A68: Central | B68: São Gabriel da Palha | C68: 420 | D68: 88 | E68: 426 | F68: =E68/12*3 -> 106.5 | G68: 65 | H68: 0.7386363636 | I68: 67 | J68: 0.6291079812 | K68: 85 | L68: 0.9659090909 | M68: 89 | N68: 1.011363636 | O68: 70 | P68: 0.7954545455 | Q68: 69 | R68: 0.7840909091 | S68: 69 | T68: 0.6478873239 | U68: 68 | V68: 0.6384976526 | W68: 69 | X68: 0.6478873239
A69: Sul | B69: São José do Calçado | C69: 99 | D69: 23 | E69: 150 | F69: 37.5 | G69: 27 | H69: 1.173913043 | I69: 9 | J69: 0.24 | K69: 34 | L69: 1.47826087 | M69: 34 | N69: 1.47826087 | O69: 30 | P69: 1.304347826 | Q69: 28 | R69: 1.217391304 | S69: 33 | T69: 0.88 | U69: 33 | V69: 0.88 | W69: 33 | X69: 0.88
A70: Norte | B70: São Mateus | C70: 1854 | D70: 396 | E70: 1766 | F70: 441.5 | G70: 247 | H70: 0.6237373737 | I70: 237 | J70: 0.536806342 | K70: 391 | L70: 0.9873737374 | M70: 368 | N70: 0.9292929293 | O70: 340 | P70: 0.8585858586 | Q70: 343 | R70: 0.8661616162 | S70: 292 | T70: 0.6613816535 | U70: 347 | V70: 0.7859569649 | W70: 342 | X70: 0.7746319366
A71: Central | B71: São Roque do Canaã | C71: 122 | D71: 40 | E71: 100 | F71: 25 | G71: 23 | H71: 0.575 | I71: 27 | J71: 1.08 | K71: 31 | L71: 0.775 | M71: 34 | N71: 0.85 | O71: 23 | P71: 0.575 | Q71: 22 | R71: 0.55 | S71: 22 | T71: 0.88 | U71: 21 | V71: 0.84 | W71: 23 | X71: 0.92
A72: Metropolitana | B72: Serra | C72: 7403 | D72: 1921 | E72: 7550 | F72: 1887.5 | G72: 1117 | H72: 0.5814679854 | I72: 799 | J72: 0.4233112583 | K72: 1536 | L72: 0.7995835502 | M72: 1539 | N72: 0.8011452369 | O72: 1402 | P72: 0.7298282145 | Q72: 1411 | R72: 0.7345132743 | S72: 1399 | T72: 0.741192053 | U72: 1548 | V72: 0.8201324503 | W72: 1538 | X72: 0.8148344371
A73: Central | B73: Sooretama | C73: 432 | D73: 110 | E73: 415 | F73: 103.75 | G73: 78 | H73: 0.7090909091 | I73: 52 | J73: 0.5012048193 | K73: 84 | L73: 0.7636363636 | M73: 76 | N73: 0.6909090909 | O73: 96 | P73: 0.8727272727 | Q73: 94 | R73: 0.8545454545 | S73: 102 | T73: 0.9831325301 | U73: 87 | V73: 0.8385542169 | W73: 95 | X73: 0.9156626506
A74: Sul | B74: Vargem Alta | C74: 258 | D74: 64 | E74: 278 | F74: 69.5 | G74: 53 | H74: 0.828125 | I74: 34 | J74: 0.4892086331 | K74: 71 | L74: 1.109375 | M74: 71 | N74: 1.109375 | O74: 62 | P74: 0.96875 | Q74: 65 | R74: 1.015625 | S74: 48 | T74: 0.690647482 | U74: 52 | V74: 0.7482014388 | W74: 54 | X74: 0.7769784173
A75: Metropolitana | B75: Venda Nova do Imigrante | C75: 382 | D75: 82 | E75: 328 | F75: 82 | G75: 81 | H75: 0.987804878 | I75: 37 | J75: 0.4512195122 | K75: 91 | L75: 1.109756098 | M75: 96 | N75: 1.170731707 | O75: 76 | P75: 0.9268292683 | Q75: 78 | R75: 0.9512195122 | S75: 43 | T75: 0.5243902439 | U75: 47 | V75: 0.5731707317 | W75: 50 | X75: 0.6097560976
A76: Metropolitana | B76: Viana | C76: 989 | D76: 241 | E76: 1064 | F76: 266 | G76: 93 | H76: 0.3858921162 | I76: 127 | J76: 0.477443609 | K76: 238 | L76: 0.9875518672 | M76: 241 | N76: 1 | O76: 166 | P76: 0.6887966805 | Q76: 182 | R76: 0.755186722 | S76: 183 | T76: 0.6879699248 | U76: 223 | V76: 0.8383458647 | W76: 225 | X76: 0.8458646617
A77: Norte | B77: Vila Pavão | C77: 99 | D77: 21 | E77: 127 | F77: 31.75 | G77: 18 | H77: 0.8571428571 | I77: 16 | J77: 0.5039370079 | K77: 23 | L77: 1.095238095 | M77: 22 | N77: 1.047619048 | O77: 21 | P77: 1 | Q77: 20 | R77: 0.9523809524 | S77: 19 | T77: 0.5984251969 | U77: 21 | V77: 0.6614173228 | W77: 21 | X77: 0.6614173228
A78: Central | B78: Vila Valério | C78: 694 | D78: 54 | E78: 169 | F78: 42.25 | G78: 52 | H78: 0.962962963 | I78: 24 | J78: 0.5680473373 | K78: 45 | L78: 0.8333333333 | M78: 43 | N78: 0.7962962963 | O78: 45 | P78: 0.8333333333 | Q78: 54 | R78: 1 | S78: 34 | T78: 0.8047337278 | U78: 37 | V78: 0.875739645 | W78: 39 | X78: 0.9230769231
A79: Metropolitana | B79: Vila Velha | C79: 5621 | D79: 1472 | E79: 5675 | F79: 1418.75 | G79: 909 | H79: 0.6175271739 | I79: 650 | J79: 0.4581497797 | K79: 1139 | L79: 0.7737771739 | M79: 1209 | N79: 0.8213315217 | O79: 1006 | P79: 0.683423913 | Q79: 992 | R79: 0.6739130435 | S79: 1009 | T79: 0.7111894273 | U79: 1130 | V79: 0.7964757709 | W79: 1096 | X79: 0.7725110132
A80: Metropolitana | B80: Vitória | C80: 6999 | D80: 910 | E80: 3833 | F80: 958.25 | G80: 504 | H80: 0.5538461538 | I80: 479 | J80: 0.4998695539 | K80: 653 | L80: 0.7175824176 | M80: 731 | N80: 0.8032967033 | O80: 624 | P80: 0.6857142857 | Q80: 626 | R80: 0.6879120879 | S80: 670 | T80: 0.699191234 | U80: 756 | V80: 0.7889381685 | W80: 748 | X80: 0.7805896165
B82: Total Norte | C82: =SUMIF($A$3:$A$80,"Norte",C$3:C$80) -> 5655 | D82: =SUMIF($A$3:$A$80,"Norte",D$3:D$80) -> 1273 | E82: =SUMIF($A$3:$A$80,"Norte",E$3:E$80) -> 5789 | F82: =SUMIF($A$3:$A$80,"Norte",F$3:F$80) -> 1447.25 | G82: =SUMIF($A$3:$A$80,"Norte",G$3:G$80) -> 1038 | H82: =G82/D82 -> 0.8153967007 | I82: =SUMIF($A$3:$A$80,"Norte",I$3:I$80) -> 772 | J82: =I82/F82 -> 0.5334254621 | K82: =SUMIF($A$3:$A$80,"Norte",K$3:K$80) -> 1285 | L82: =K82/D82 -> 1.009426551 | M82: =SUMIF($A$3:$A$80,"Norte",M$3:M$80) -> 1246 | N82: =M82/D82 -> 0.9787902592 | O82: =SUMIF($A$3:$A$80,"Norte",O$3:O$80) -> 1171 | P82: =O82/D82 -> 0.9198743126 | Q82: =SUMIF($A$3:$A$80,"Norte",Q$3:Q$80) -> 1191 | R82: =Q82/D82 -> 0.9355852317 | S82: =SUMIF($A$3:$A$80,"Norte",S$3:S$80) -> 978 | T82: =S82/F82 -> 0.6757643807 | U82: =SUMIF($A$3:$A$80,"Norte",U$3:U$80) -> 1107 | V82: =U82/F82 -> 0.7648989463 | W82: =SUMIF($A$3:$A$80,"Norte",W$3:W$80) -> 1137 | X82: =W82/F82 -> 0.785627915
B83: Total Central | C83: =SUMIF($A$3:$A$80,"Central",C$3:C$80) -> 7463 | D83: =SUMIF($A$3:$A$80,"Central",D$3:D$80) -> 1662 | E83: =SUMIF($A$3:$A$80,"Central",E$3:E$80) -> 6843 | F83: =SUMIF($A$3:$A$80,"Central",F$3:F$80) -> 1710.75 | G83: =SUMIF($A$3:$A$80,"Central",G$3:G$80) -> 1246 | H83: =G83/D83 -> 0.7496991576 | I83: =SUMIF($A$3:$A$80,"Central",I$3:I$80) -> 894 | J83: =I83/F83 -> 0.5225778167 | K83: =SUMIF($A$3:$A$80,"Central",K$3:K$80) -> 1466 | L83: =K83/D83 -> 0.8820697954 | M83: =SUMIF($A$3:$A$80,"Central",M$3:M$80) -> 1482 | N83: =M83/D83 -> 0.8916967509 | O83: =SUMIF($A$3:$A$80,"Central",O$3:O$80) -> 1363 | P83: =O83/D83 -> 0.8200962696 | Q83: =SUMIF($A$3:$A$80,"Central",Q$3:Q$80) -> 1407 | R83: =Q83/D83 -> 0.8465703971 | S83: =SUMIF($A$3:$A$80,"Central",S$3:S$80) -> 1038 | T83: =S83/F83 -> 0.6067514248 | U83: =SUMIF($A$3:$A$80,"Central",U$3:U$80) -> 1264 | V83: =U83/F83 -> 0.7388572264 | W83: =SUMIF($A$3:$A$80,"Central",W$3:W$80) -> 1315 | X83: =W83/F83 -> 0.7686687126
B84: Total Metropolitana | C84: =SUMIF($A$3:$A$80,"Metropolitana",C$3:C$80) -> 33141 | D84: =SUMIF($A$3:$A$80,"Metropolitana",D$3:D$80) -> 7490 | E84: =SUMIF($A$3:$A$80,"Metropolitana",E$3:E$80) -> 30197 | F84: =SUMIF($A$3:$A$80,"Metropolitana",F$3:F$80) -> 7549.25 | G84: =SUMIF($A$3:$A$80,"Metropolitana",G$3:G$80) -> 4737 | H84: =G84/D84 -> 0.6324432577 | I84: =SUMIF($A$3:$A$80,"Metropolitana",I$3:I$80) -> 3664 | J84: =I84/F84 -> 0.4853462264 | K84: =SUMIF($A$3:$A$80,"Metropolitana",K$3:K$80) -> 6509 | L84: =K84/D84 -> 0.8690253672 | M84: =SUMIF($A$3:$A$80,"Metropolitana",M$3:M$80) -> 6740 | N84: =M84/D84 -> 0.8998664887 | O84: =SUMIF($A$3:$A$80,"Metropolitana",O$3:O$80) -> 5727 | P84: =O84/D84 -> 0.7646194927 | Q84: =SUMIF($A$3:$A$80,"Metropolitana",Q$3:Q$80) -> 5750 | R84: =Q84/D84 -> 0.7676902537 | S84: =SUMIF($A$3:$A$80,"Metropolitana",S$3:S$80) -> 5285 | T84: =S84/F84 -> 0.7000695433 | U84: =SUMIF($A$3:$A$80,"Metropolitana",U$3:U$80) -> 6154 | V84: =U84/F84 -> 0.8151803159 | W84: =SUMIF($A$3:$A$80,"Metropolitana",W$3:W$80) -> 6133 | X84: =W84/F84 -> 0.8123985826
B85: Total Sul | C85: =SUMIF($A$3:$A$80,"sul",C$3:C$80) -> 8419 | D85: =SUMIF($A$3:$A$80,"sul",D$3:D$80) -> 2085 | E85: =SUMIF($A$3:$A$80,"sul",E$3:E$80) -> 8688 | F85: =SUMIF($A$3:$A$80,"sul",F$3:F$80) -> 2172 | G85: =SUMIF($A$3:$A$80,"sul",G$3:G$80) -> 1454 | H85: =G85/D85 -> 0.6973621103 | I85: =SUMIF($A$3:$A$80,"sul",I$3:I$80) -> 921 | J85: =I85/F85 -> 0.4240331492 | K85: =SUMIF($A$3:$A$80,"sul",K$3:K$80) -> 2141 | L85: =K85/D85 -> 1.026858513 | M85: =SUMIF($A$3:$A$80,"sul",M$3:M$80) -> 2198 | N85: =M85/D85 -> 1.054196643 | O85: =SUMIF($A$3:$A$80,"sul",O$3:O$80) -> 1768 | P85: =O85/D85 -> 0.8479616307 | Q85: =SUMIF($A$3:$A$80,"sul",Q$3:Q$80) -> 1767 | R85: =Q85/D85 -> 0.8474820144 | S85: =SUMIF($A$3:$A$80,"sul",S$3:S$80) -> 1389 | T85: =S85/F85 -> 0.6395027624 | U85: =SUMIF($A$3:$A$80,"sul",U$3:U$80) -> 1628 | V85: =U85/F85 -> 0.7495395948 | W85: =SUMIF($A$3:$A$80,"sul",W$3:W$80) -> 1653 | X85: =W85/F85 -> 0.7610497238
B86: Total Espírito Santo | C86: =SUM(C3:C80) -> 54678 | D86: =SUM(D3:D80) -> 12510 | E86: =SUM(E3:E80) -> 51517 | F86: =SUM(F3:F80) -> 12879.25 | G86: =SUM(G3:G80) -> 8475 | H86: =G86/D86 -> 0.6774580336 | I86: =SUM(I3:I80) -> 6251 | J86: =I86/F86 -> 0.485354349 | K86: =SUM(K3:K80) -> 11401 | L86: =K86/D86 -> 0.9113509193 | M86: =SUM(M3:M80) -> 11666 | N86: =M86/D86 -> 0.9325339728 | O86: =SUM(O3:O80) -> 10029 | P86: =O86/D86 -> 0.8016786571 | Q86: =SUM(Q3:Q80) -> 10115 | R86: =Q86/D86 -> 0.8085531575 | S86: =SUM(S3:S80) -> 8690 | T86: =S86/F86 -> 0.6747287303 | U86: =SUM(U3:U80) -> 10153 | V86: =U86/F86 -> 0.7883223014 | W86: =SUM(W3:W80) -> 10238 | X86: =W86/F86 -> 0.7949220646
A90: FonteVacina e Confia, em 04 de Abril de 2024.**
A91: **Dados referente às doses aplicadas no período de Março de 2024
A92: Cobertura Calculada por município de residência do cidadão (no Vacina e Confia, a origem da informação é o endereço que consta no cadastro do cidadão preenchido manualmente por meio do autocadastro ou pelo cadastro realizado por um profissional de saúde no momento do atendimento).
A94: 1 População anual extraída do MS/SVS/DASIS - SINASC/DASIS/SVS/MS 2023 (hoje preliminares) referente ao período de fevereiro a dezembro de 2023 e SINASC/DASIS/SVS/MS 2024 referente ao período de janeiro de 2024.
A96: ² População proporcional extraída do MS/SVS/DASIS - SINASC/DASIS/SVS/MS 2023 (hoje preliminares) referente ao período de fevereiro e março de 2023 somada a população extraída do SINASC/DASIS/SVS/MS 2024 referente ao período de janeiro de 2024.
A97: ³ População anual e proporcional extraída do Censo IBGE 2022.
A99: Observações:
A100: Imunobiológicos que foram recebidos parcialmente pelo estado no mês da análise, sendo distribuídos em quantidades reduzidas às regionais e municípios: Varicela, Febre Amarela e HPV Quadrivalente.
A101: Imunobiológicos que não foram recebidos pelo estado no mês da análise, não sendo possível a distribuição às regionais e municípios: Meningo C, Hepatite A (CRIE), HIB, Hepatite A Rotina Pediátrica, DTPa (CRIE).
A102: Imunobiológicos com indisponibilidade de aquisição e distribuição no mês da análise: Tetra Viral.

Sheet Cobert. COVID-19 Menores 4 anos (hidden)
A1: Regional | B1: Município | C1: Série Histórica
A2: Região Metropolitana | B2: Afonso Cláudio
A3: Região Norte | B3: Água Doce do Norte
A4: Região Central | B4: Águia Branca
A5: Região Sul | B5: Alegre
A6: Região Sul | B6: Alfredo Chaves
A7: Região Central | B7: Alto Rio Novo
A8: Região Sul | B8: Anchieta
A9: Região Sul | B9: Apiacá
A10: Região Metropolitana | B10: Aracruz
A11: Região Sul | B11: Atilio Vivacqua
A12: Região Central | B12: Baixo Guandu
A13: Região Norte | B13: Barra de São Francisco
A14: Região Norte | B14: Boa Esperança
A15: Região Sul | B15: Bom Jesus do Norte
A16: Região Metropolitana | B16: Brejetuba
A17: Região Sul | B17: Cachoeiro de Itapemirim
A18: Região Metropolitana | B18: Cariacica
A19: Região Sul | B19: Castelo
A20: Região Central | B20: Colatina
A21: Região Norte | B21: Conceição da Barra
A22: Região Metropolitana | B22: Conceição do Castelo
A23: Região Sul | B23: Divino de São Lourenço
A24: Região Metropolitana | B24: Domingos Martins
A25: Região Sul | B25: Dores do Rio Preto
A26: Região Norte | B26: Ecoporanga
A27: Região Metropolitana | B27: Fundão
A28: Região Central | B28: Governador Lindenberg
A29: Região Sul | B29: Guaçuí
A30: Região Metropolitana | B30: Guarapari
A31: Região Metropolitana | B31: Ibatiba
A32: Região Metropolitana | B32: Ibiraçu
A33: Região Sul | B33: Ibitirama
A34: Região Sul | B34: Iconha
A35: Região Sul | B35: Irupi
A36: Região Metropolitana | B36: Itaguaçu
A37: Região Sul | B37: Itapemirim
A38: Região Metropolitana | B38: Itarana
A39: Região Sul | B39: Iúna
A40: Região Norte | B40: Jaguaré
A41: Região Sul | B41: Jerônimo Monteiro
A42: Região Metropolitana | B42: João Neiva
A43: Região Metropolitana | B43: Laranja da Terra
A44: Região Central | B44: Linhares
A45: Região Central | B45: Mantenópolis
A46: Região Sul | B46: Marataízes
A47: Região Metropolitana | B47: Marechal Floriano
A48: Região Central | B48: Marilândia
A49: Região Sul | B49: Mimoso do Sul
A50: Região Norte | B50: Montanha
A51: Região Norte | B51: Mucurici
A52: Região Sul | B52: Muniz Freire
A53: Região Sul | B53: Muqui
A54: Região Norte | B54: Nova Venécia
A55: Região Central | B55: Pancas
A56: Região Norte | B56: Pedro Canário
A57: Região Norte | B57: Pinheiros
A58: Região Sul | B58: Piúma
A59: Região Norte | B59: Ponto Belo
A60: Região Sul | B60: Presidente Kennedy
A61: Região Central | B61: Rio Bananal
A62: Região Sul | B62: Rio Novo do Sul
A63: Região Metropolitana | B63: Santa Leopoldina
A64: Região Metropolitana | B64: Santa Maria de Jetibá
A65: Região Metropolitana | B65: Santa Teresa
A66: Região Central | B66: São Domingos do Norte
A67: Região Central | B67: São Gabriel da Palha
A68: Região Sul | B68: São José do Calçado
A69: Região Norte | B69: São Mateus
A70: Região Central | B70: São Roque do Canaã
A71: Região Metropolitana | B71: Serra
A72: Região Central | B72: Sooretama
A73: Região Sul | B73: Vargem Alta
A74: Região Metropolitana | B74: Venda Nova do Imigrante
A75: Região Metropolitana | B75: Viana
A76: Região Norte | B76: Vila Pavão
A77: Região Central | B77: Vila Valério
A78: Região Metropolitana | B78: Vila Velha
A79: Região Metropolitana | B79: Vitória
B81: Espírito Santo
B82: Região Norte
B83: Região Central
B84: Região Metropolitana
B85: Região Sul
A87: Pfizer Pediátrica Menor de 5 anos e Coronavac
A88: Período avaliado: 2021-2024
A89: Fonte: https://www.vacinaeconfia.es.gov.br
A90: *Dados de janeiro/2024 extraídos do Vacina e Confia em 04/01/2024
A91: População proporcional extraída do SINASC 2022 (menores de 1 ano) e Censo IBGE 2022 (demais idades)
A92: Cobertura Calculada por município de procedência da vacinação

Sheet Cobert. Meningo C Adolescentes
A1: Regional | B1: Município | C1: Série Histórica
A2: Metropolitana | B2: Afonso Cláudio | C2: 54.76336816
A3: Central Norte | B3: Água Doce do Norte | C3: 59.78915663
A4: Central Norte | B4: Águia Branca | C4: 54.96031746
A5: Sul | B5: Alegre | C5: 65.21095485
A6: Sul | B6: Alfredo Chaves | C6: 35.12658228
A7: Central Norte | B7: Alto Rio Novo | C7: 81.06796117
A8: Sul | B8: Anchieta | C8: 69.17989418
A9: Sul | B9: Apiacá | C9: 29.12087912
A10: Metropolitana | B10: Aracruz | C10: 72.08225269
A11: Sul | B11: Atilio Vivacqua | C11: 70.1171875
A12: Central Norte | B12: Baixo Guandu | C12: 56.1760841
A13: Central Norte | B13: Barra de São Francisco | C13: 61.27493495
A14: Central Norte | B14: Boa Esperança | C14: 53.57643759
A15: Sul | B15: Bom Jesus do Norte | C15: 45.10556622
A16: Metropolitana | B16: Brejetuba | C16: 73.30677291
A17: Sul | B17: Cachoeiro de Itapemirim | C17: 71.36378719
A18: Metropolitana | B18: Cariacica | C18: 64.50503313
A19: Sul | B19: Castelo | C19: 69.3324937
A20: Central Norte | B20: Colatina | C20: 54.71053578
A21: Central Norte | B21: Conceição da Barra | C21: 49.54075775
A22: Metropolitana | B22: Conceição do Castelo | C22: 68.58108108
A23: Sul | B23: Divino de São Lourenço | C23: 52.57352941
A24: Metropolitana | B24: Domingos Martins | C24: 70.15098722
A25: Sul | B25: Dores do Rio Preto | C25: 71.39107612
A26: Central Norte | B26: Ecoporanga | C26: 56.2005277
A27: Metropolitana | B27: Fundão | C27: 65.51362683
A28: Central Norte | B28: Governador Lindenberg | C28: 66.18181818
A29: Sul | B29: Guaçuí | C29: 59.28381963
A30: Metropolitana | B30: Guarapari | C30: 62.2537792
A31: Metropolitana | B31: Ibatiba | C31: 66.35446686
A32: Metropolitana | B32: Ibiraçu | C32: 68.64111498
A33: Sul | B33: Ibitirama | C33: 62.82722513
A34: Sul | B34: Iconha | C34: 67.71653543
A35: Sul | B35: Irupi | C35: 59.49535193
A36: Metropolitana | B36: Itaguaçu | C36: 60.22727273
A37: Sul | B37: Itapemirim | C37: 52.84552846
A38: Metropolitana | B38: Itarana | C38: 58.17757009
A39: Sul | B39: Iúna | C39: 57.4168798
A40: Central Norte | B40: Jaguaré | C40: 54.45930881
A41: Sul | B41: Jerônimo Monteiro | C41: 74.95559503
A42: Metropolitana | B42: João Neiva | C42: 66.91957511
A43: Metropolitana | B43: Laranja da Terra | C43: 59.42622951
A44: Central Norte | B44: Linhares | C44: 64.03602831
A45: Central Norte | B45: Mantenópolis | C45: 74.36619718
A46: Sul | B46: Marataízes | C46: 75.0334971
A47: Metropolitana | B47: Marechal Floriano | C47: 70.82429501
A48: Central Norte | B48: Marilândia | C48: 64.90909091
A49: Sul | B49: Mimoso do Sul | C49: 62.12251941
A50: Central Norte | B50: Montanha | C50: 69.04761905
A51: Central Norte | B51: Mucurici | C51: 56.52173913
A52: Sul | B52: Muniz Freire | C52: 57.35930736
A53: Sul | B53: Muqui | C53: 58.3081571
A54: Central Norte | B54: Nova Venécia | C54: 45.07216495
A55: Central Norte | B55: Pancas | C55: 60.78224101
A56: Central Norte | B56: Pedro Canário | C56: 65.68236233
A57: Central Norte | B57: Pinheiros | C57: 54.69301341
A58: Sul | B58: Piúma | C58: 59.85267035
A59: Central Norte | B59: Ponto Belo | C59: 53.78787879
A60: Sul | B60: Presidente Kennedy | C60: 80.95890411
A61: Central Norte | B61: Rio Bananal | C61: 70.60606061
A62: Sul | B62: Rio Novo do Sul | C62: 51.91570881
A63: Metropolitana | B63: Santa Leopoldina | C63: 44.72440945
A64: Metropolitana | B64: Santa Maria de Jetibá | C64: 67.19849836
A65: Metropolitana | B65: Santa Teresa | C65: 68.59582543
A66: Central Norte | B66: São Domingos do Norte | C66: 66.34146341
A67: Central Norte | B67: São Gabriel da Palha | C67: 51.23762376
A68: Sul | B68: São José do Calçado | C68: 62.13768116
A69: Central Norte | B69: São Mateus | C69: 53.57142857
A70: Central Norte | B70: São Roque do Canaã | C70: 73.11827957
A71: Metropolitana | B71: Serra | C71: 58.10889829
A72: Central Norte | B72: Sooretama | C72: 70.37900875
A73: Sul | B73: Vargem Alta | C73: 66.6023166
A74: Metropolitana | B74: Venda Nova do Imigrante | C74: 64.79500891
A75: Metropolitana | B75: Viana | C75: 65.76168929
A76: Central Norte | B76: Vila Pavão | C76: 75.76419214
A77: Central Norte | B77: Vila Valério | C77: 79.0560472
A78: Metropolitana | B78: Vila Velha | C78: 68.46912346
A79: Metropolitana | B79: Vitória | C79: 70.50465458
A80: Total | C80: 69.82425627
A82: Meningocócica Conjudada C e Meningocócica ACWY
A83: Período avaliado: 2016-2024
A84: Fonte: http://tabnet.datasus.gov.br/ e https://www.vacinaeconfia.es.gov.br
A85: *Dados parciais. Dados de janeiro/2022 a abril/2022 extraídos do TABNET em 09/11/2023
A86: *Dados de Março/2024 extraídos do Vacina e Confia em Abril/2024
A87: População proporcional extraída do Censo IBGE 2022
A88: Cobertura Calculada por município de procedência da vacinação
A90: Observações:
A91: Imunobiológicos que foram recebidos parcialmente pelo estado no mês da análise, sendo distribuídos em quantidades reduzidas às regionais e municípios: Varicela, Febre Amarela e HPV Quadrivalente.
A92: Imunobiológicos que não foram recebidos pelo estado no mês da análise, não sendo possível a distribuição às regionais e municípios: Meningo C, Hepatite A (CRIE), HIB, Hepatite A Rotina Pediátrica, DTPa (CRIE).
A93: Imunobiológicos com indisponibilidade de aquisição e distribuição no mês da análise: Tetra Viral.

Sheet Cobert. HPV
A1: REGIONAL | B1: MUNICÍPIO | C1: HPV* Quadrivalente D1 Total - Feminino | D1: HPV* Quadrivalente D2 Total - Feminino | E1: HPV* Quadrivalente D1 Total - Masculino | F1: HPV* Quadrivalente D2 Total - Masculino
A2: METROPOLITANA | B2: Afonso Cláudio | C2: 82.11143695 | D2: 71.81328546 | E2: 78.92752409 | F2: 66.42728905
A3: CENTRAL-NORTE | B3: Água Doce do Norte | C3: 82.87740628 | D3: 73.39130435 | E3: 55.52178318 | F3: 44.34782609
A4: CENTRAL-NORTE | B4: Águia Branca | C4: 68.12585499 | D4: 60.16260163 | E4: 71.13543092 | F4: 43.43786295
A5: SUL | B5: Alegre | C5: 78.70778267 | D5: 72.05387205 | E5: 58.73715125 | F5: 60.69023569
A6: SUL | B6: Alfredo Chaves | C6: 77.22567288 | D6: 73.92449517 | E6: 55.27950311 | F6: 65.14486392
A7: CENTRAL-NORTE | B7: Alto Rio Novo | C7: 100.4975124 | D7: 96.69064748 | E7: 87.56218905 | F7: 68.20143885
A8: SUL | B8: Anchieta | C8: 89.23476005 | D8: 76.13093049 | E8: 76.95633377 | F8: 58.84516366
A9: SUL | B9: Apiacá | C9: 68.29268293 | D9: 57.18799368 | E9: 49.15572233 | F9: 37.28278041
A10: METROPOLITANA | B10: Aracruz | C10: 81.46699267 | D10: 69.58442925 | E10: 71.44254279 | F10: 59.94739611
A11: SUL | B11: Atílio Vivácqua | C11: 99.49748744 | D11: 79.74413646 | E11: 89.44723618 | F11: 67.59061834
A12: CENTRAL-NORTE | B12: Baixo Guandu | C12: 79.45922372 | D12: 65.75645756 | E12: 61.14260794 | F12: 39.92619926
A13: CENTRAL-NORTE | B13: Barra de São Francisco | C13: 72.24618924 | D13: 56.82547519 | E13: 56.25539258 | F13: 34.2631449
A14: CENTRAL-NORTE | B14: Boa Esperança | C14: 84.4613918 | D14: 71.20843471 | E14: 46.90181125 | F14: 33.09002433
A15: SUL | B15: Bom Jesus do Norte | C15: 79.6875 | D15: 58.44444444 | E15: 59.63541667 | F15: 32
A16: METROPOLITANA | B16: Brejetuba | C16: 88.26619965 | D16: 76.88953488 | E16: 73.02977233 | F16: 59.88372093
A17: SUL | B17: Cachoeiro de Itapemirim | C17: 84.72906404 | D17: 71.5627561 | E17: 82.65568708 | F17: 60.12734035
A18: METROPOLITANA | B18: Cariacica | C18: 78.88011774 | D18: 62.3193818 | E18: 47.97297297 | F18: 39.50475424
A19: SUL | B19: Castelo | C19: 89.43427621 | D19: 78.00502332 | E19: 81.03161398 | F19: 68.53247219
A20: CENTRAL-NORTE | B20: Colatina | C20: 50.14946789 | D20: 41.57987006 | E20: 40.1052254 | F20: 28.04991234
A21: CENTRAL-NORTE | B21: Conceição da Barra | C21: 78.47113885 | D21: 58.811749 | E21: 63.72854914 | F21: 37.91722296
A22: METROPOLITANA | B22: Conceição do Castelo | C22: 95.50930997 | D22: 86.58649399 | E22: 84.11829135 | F22: 65.67992599
A23: SUL | B23: Divino de São Lourenço | C23: 73.23232323 | D23: 64.79481641 | E23: 81.81818182 | F23: 64.36285097
A24: METROPOLITANA | B24: Domingos Martins | C24: 87.96616686 | D24: 84.29862739 | E24: 77.73933103 | F24: 69.768999
A25: SUL | B25: Dores do Rio Preto | C25: 89.90825688 | D25: 79.87117552 | E25: 81.46788991 | F25: 66.66666667
A26: CENTRAL-NORTE | B26: Ecoporanga | C26: 79.85347985 | D26: 68.25479026 | E26: 64.95726496 | F26: 48.26514759
A27: METROPOLITANA | B27: Fundão | C27: 78.06587246 | D27: 65.86538462 | E27: 64.47091801 | F27: 53.72596154
A28: CENTRAL-NORTE | B28: Governador Lindenberg | C28: 84.2364532 | D28: 76.2605042 | E28: 77.5862069 | F28: 56.51260504
A29: SUL | B29: Guaçuí | C29: 82.18213814 | D29: 60.11428571 | E29: 63.00043995 | F29: 36.4952381
A30: METROPOLITANA | B30: Guarapari | C30: 73.51649474 | D30: 56.42512077 | E30: 43.55019916 | F30: 38.96354853
A31: METROPOLITANA | B31: Ibatiba | C31: 85.14173998 | D31: 79.61409396 | E31: 77.71260997 | F31: 71.97986577
A32: METROPOLITANA | B32: Ibiraçu | C32: 87.51406074 | D32: 76.86350436 | E32: 66.81664792 | F32: 66.40851888
A33: SUL | B33: Ibitirama | C33: 48.52767962 | D33: 45.04504505 | E33: 57.00824499 | F33: 44.24424424
A34: SUL | B34: Iconha | C34: 90.74550129 | D34: 81.0989011 | E34: 83.54755784 | F34: 70.54945055
A35: SUL | B35: Irupi | C35: 66.07460036 | D35: 62.59541985 | E35: 78.68561279 | F35: 64.88549618
A36: METROPOLITANA | B36: Itaguaçu | C36: 90.95022624 | D36: 86.07350097 | E36: 47.05882353 | F36: 65.18375242
A37: SUL | B37: Itapemirim | C37: 65.23505514 | D37: 53.40909091 | E37: 64.30644225 | F37: 39.8715415
A38: METROPOLITANA | B38: Itarana | C38: 81.36645963 | D38: 78.63695937 | E38: 77.63975155 | F38: 61.59895151
A39: SUL | B39: Iúna | C39: 74.15345049 | D39: 66.69109564 | E39: 78.18259751 | F39: 64.49248809
A40: CENTRAL-NORTE | B40: Jaguaré | C40: 87.30395818 | D40: 79.30047695 | E40: 72.36743839 | F40: 48.20349762
A41: SUL | B41: Jerônimo Monteiro | C41: 89.15956151 | D41: 75.9706191 | E41: 76.24847747 | F41: 61.28016789
A42: METROPOLITANA | B42: João Neiva | C42: 92.94605809 | D42: 85.96802842 | E42: 74.89626556 | F42: 68.56127886
A43: METROPOLITANA | B43: Laranja da Terra | C43: 76.01078167 | D43: 76.43610785 | E43: 64.95956873 | F43: 73.15357562
A44: CENTRAL-NORTE | B44: Linhares | C44: 74.37343806 | D44: 59.0306216 | E44: 56.97965012 | F44: 37.77275228
A45: CENTRAL-NORTE | B45: Mantenópolis | C45: 87.99231508 | D45: 80.66945607 | E45: 57.44476465 | F45: 49.70711297
A46: SUL | B46: Marataízes | C46: 91.92919292 | D46: 75.04442752 | E46: 92.58925893 | F46: 70.27164255
A47: METROPOLITANA | B47: Marechal Floriano | C47: 92.23880597 | D47: 80.43202033 | E47: 67.91044776 | F47: 64.42185515
A48: CENTRAL-NORTE | B48: Marilândia | C48: 99.50124688 | D48: 99.78586724 | E48: 84.53865337 | F48: 58.24411135
A49: SUL | B49: Mimoso do Sul | C49: 78.59690844 | D49: 67.16943188 | E49: 68.96551724 | F49: 47.66214178
A50: CENTRAL-NORTE | B50: Montanha | C50: 89.24455826 | D50: 74.23014587 | E50: 80.92189501 | F50: 50.89141005
A51: CENTRAL-NORTE | B51: Mucurici | C51: 86.59217877 | D51: 74.36489607 | E51: 68.15642458 | F51: 48.0369515
A52: SUL | B52: Muniz Freire | C52: 89.53488372 | D52: 78.03970223 | E52: 87.93604651 | F52: 74.93796526
A53: SUL | B53: Muqui | C53: 78.35671343 | D53: 74.57044674 | E53: 67.53507014 | F53: 59.62199313
A54: CENTRAL-NORTE | B54: Nova Venécia | C54: 85.56559847 | D54: 75.849145 | E54: 76.30786086 | F54: 48.86390255
A55: CENTRAL-NORTE | B55: Pancas | C55: 83.00283286 | D55: 79.17425622 | E55: 73.0878187 | F55: 53.55191257
A56: CENTRAL-NORTE | B56: Pedro Canário | C56: 86.58798283 | D56: 72.94011706 | E56: 71.88841202 | F56: 47.18595227
A57: CENTRAL-NORTE | B57: Pinheiros | C57: 75.23809524 | D57: 62.30831316 | E57: 55.42857143 | F57: 35.35108959
A58: SUL | B58: Piúma | C58: 68.18447169 | D58: 56.79513185 | E58: 58.61062464 | F58: 41.88640974
A59: CENTRAL-NORTE | B59: Ponto Belo | C59: 91.22807018 | D59: 91.69230769 | E59: 75.0877193 | F59: 44.92307692
A60: SUL | B60: Presidente Kennedy | C60: 84.11053541 | D60: 77.71260997 | E60: 82.38341969 | F60: 77.71260997
A61: CENTRAL-NORTE | B61: Rio Bananal | C61: 97.0257766 | D61: 91.10604333 | E61: 94.64639788 | F61: 62.82782212
A62: SUL | B62: Rio Novo do Sul | C62: 70.81218274 | D62: 64.00885936 | E62: 77.15736041 | F62: 56.03543743
A63: METROPOLITANA | B63: Santa Leopoldina | C63: 59.68253968 | D63: 53.57466063 | E63: 36.61375661 | F63: 37.64705882
A64: METROPOLITANA | B64: Santa Maria de Jetibá | C64: 86.54750706 | D64: 72.86445702 | E64: 54.68798997 | F64: 51.89975748
A65: METROPOLITANA | B65: Santa Teresa | C65: 99.01380671 | D65: 86.77130045 | E65: 73.63576594 | F65: 67.15246637
A66: CENTRAL-NORTE | B66: São Domingos do Norte | C66: 95.20661157 | D66: 83.98876404 | E66: 78.01652893 | F66: 58.42696629
A67: CENTRAL-NORTE | B67: São Gabriel da Palha | C67: 78.69822485 | D67: 66.76311031 | E67: 69.56889265 | F67: 42.09764919
A68: SUL | B68: São José do Calçado | C68: 79.6589525 | D68: 70.42553191 | E68: 80.87697929 | F68: 62.12765957
A69: CENTRAL-NORTE | B69: São Mateus | C69: 79.90771391 | D69: 64.20676756 | E69: 57.85936403 | F69: 38.97296378
A70: CENTRAL-NORTE | B70: São Roque do Canaã | C70: 100 | D70: 90.15421115 | E70: 71.38728324 | F70: 54.09252669
A71: METROPOLITANA | B71: Serra | C71: 74.62328069 | D71: 57.09391727 | E71: 39.23319209 | F71: 31.75474453
A72: CENTRAL-NORTE | B72: Sooretama | C72: 79.01907357 | D72: 70.02012072 | E72: 72.55741534 | F72: 45.60697518
A73: SUL | B73: Vargem Alta | C73: 84.32934927 | D73: 75.94070696 | E73: 82.47011952 | F73: 67.27480046
A74: METROPOLITANA | B74: Venda Nova do Imigrante | C74: 95.01538462 | D74: 89.55844156 | E74: 88.61538462 | F74: 74.49350649
A75: METROPOLITANA | B75: Viana | C75: 86.1466039 | D75: 68.81443299 | E75: 68.29186281 | F75: 51.11683849
A76: CENTRAL-NORTE | B76: Vila Pavão | C76: 93.9481268 | D76: 88.30845771 | E76: 67.72334294 | F76: 59.95024876
A77: CENTRAL-NORTE | B77: Vila Valério | C77: 101.3944223 | D77: 88.35274542 | E77: 79.48207171 | F77: 54.24292845
A78: METROPOLITANA | B78: Vila Velha | C78: 85.81248116 | D78: 67.35748631 | E78: 64.21465179 | F78: 49.98585791
A79: METROPOLITANA | B79: Vitória | C79: 94.28624778 | D79: 77.54645355 | E79: 64.46643637 | F79: 51.74825175
A80: TOTAL | C80: 80.84271459 | D80: 66.51032138 | E80: 74.08147812 | F80: 52.06701335
A83: Cobertura Vacinal HPV 2024
A84: Período avaliado: 2013-2024
A85: Fonte: http://tabnet.datasus.gov.br/
A86: Fonte: https://www.vacinaeconfia.es.gov.br
A87: *Dados parciais gerados em 09/11/2023 e 10/11/2023 (TABNET) e Abril/2024 (VeC)
A88: População proporcional extraída do Censo IBGE 2022
A89: Cobertura Calculada por município de procedência da vacinação
A91: Observações:
A92: Imunobiológicos que foram recebidos parcialmente pelo estado no mês da análise, sendo distribuídos em quantidades reduzidas às regionais e municípios: Varicela, Febre Amarela e HPV Quadrivalente.
A93: Imunobiológicos que não foram recebidos pelo estado no mês da análise, não sendo possível a distribuição às regionais e municípios: Meningo C, Hepatite A (CRIE), HIB, Hepatite A Rotina Pediátrica, DTPa (CRIE).
A94: Imunobiológicos com indisponibilidade de aquisição e distribuição no mês da análise: Tetra Viral.

Sheet dTpa gestantes - procedência
A1: REGIONAL | B1: MUNICÍPIO | C1: ¹POPULAÇÃO GESTANTE ANUAL | D1: ²POPULAÇÃO PROPORCIONAL | E1: DOSES APLICADAS dTpa GESTANTES | F1: COBERTURA VACINAL dTpa GESTANTES
A2: Metropolitana | B2: Afonso Cláudio | C2: 396 | D2: 110 | E2: 75 | F2: =E2/D2 -> 0.6818181818
A3: Norte | B3: Água Doce do Norte | C3: 157 | D3: 33 | E3: 51 | F3: =E3/D3 -> 1.545454545
A4: Central | B4: Águia Branca | C4: 138 | D4: 31 | E4: 35 | F4: 1.129032258
A5: Sul | B5: Alegre | C5: 335 | D5: 78 | E5: 85 | F5: 1.08974359
A6: Sul | B6: Alfredo Chaves | C6: 154 | D6: 40 | E6: 36 | F6: 0.9
A7: Central | B7: Alto Rio Novo | C7: 90 | D7: 24 | E7: 22 | F7: 0.9166666667
A8: Sul | B8: Anchieta | C8: 377 | D8: 84 | E8: 79 | F8: 0.9404761905
A9: Sul | B9: Apiacá | C9: 62 | D9: 13 | E9: 22 | F9: 1.692307692
A10: Metropolitana | B10: Aracruz | C10: 1453 | D10: 355 | E10: 331 | F10: 0.9323943662
A11: Sul | B11: Atilio Vivacqua | C11: 140 | D11: 37 | E11: 38 | F11: 1.027027027
A12: Central | B12: Baixo Guandu | C12: 364 | D12: 76 | E12: 84 | F12: 1.105263158
A13: Norte | B13: Barra de São Francisco | C13: 510 | D13: 122 | E13: 117 | F13: 0.9590163934
A14: Norte | B14: Boa Esperança | C14: 199 | D14: 54 | E14: 41 | F14: 0.7592592593
A15: Sul | B15: Bom Jesus do Norte | C15: 81 | D15: 14 | E15: 28 | F15: 2
A16: Metropolitana | B16: Brejetuba | C16: 195 | D16: 39 | E16: 42 | F16: 1.076923077
A17: Sul | B17: Cachoeiro de Itapemirim | C17: 2446 | D17: 639 | E17: 520 | F17: 0.813771518
A18: Metropolitana | B18: Cariacica | C18: 4835 | D18: 1168 | E18: 964 | F18: 0.8253424658
A19: Sul | B19: Castelo | C19: 452 | D19: 125 | E19: 100 | F19: 0.8
A20: Central | B20: Colatina | C20: 1530 | D20: 360 | E20: 361 | F20: 1.002777778
A21: Norte | B21: Conceição da Barra | C21: 373 | D21: 88 | E21: 100 | F21: 1.136363636
A22: Metropolitana | B22: Conceição do Castelo | C22: 152 | D22: 29 | E22: 33 | F22: 1.137931034
A23: Sul | B23: Divino de São Lourenço | C23: 57 | D23: 9 | E23: 12 | F23: 1.333333333
A24: Metropolitana | B24: Domingos Martins | C24: 407 | D24: 94 | E24: 111 | F24: 1.180851064
A25: Sul | B25: Dores do Rio Preto | C25: 95 | D25: 28 | E25: 16 | F25: 0.5714285714
A26: Norte | B26: Ecoporanga | C26: 226 | D26: 48 | E26: 66 | F26: 1.375
A27: Metropolitana | B27: Fundão | C27: 217 | D27: 58 | E27: 51 | F27: 0.8793103448
A28: Central | B28: Governador Lindenberg | C28: 145 | D28: 27 | E28: 29 | F28: 1.074074074
A29: Sul | B29: Guaçuí | C29: 375 | D29: 78 | E29: 69 | F29: 0.8846153846
A30: Metropolitana | B30: Guarapari | C30: 1759 | D30: 452 | E30: 397 | F30: 0.8783185841
A31: Metropolitana | B31: Ibatiba | C31: 341 | D31: 66 | E31: 93 | F31: 1.409090909
A32: Metropolitana | B32: Ibiraçu | C32: 147 | D32: 41 | E32: 41 | F32: 1
A33: Sul | B33: Ibitirama | C33: 122 | D33: 27 | E33: 26 | F33: 0.962962963
A34: Sul | B34: Iconha | C34: 123 | D34: 36 | E34: 25 | F34: 0.6944444444
A35: Sul | B35: Irupi | C35: 196 | D35: 47 | E35: 53 | F35: 1.127659574
A36: Metropolitana | B36: Itaguaçu | C36: 131 | D36: 30 | E36: 38 | F36: 1.266666667
A37: Sul | B37: Itapemirim | C37: 571 | D37: 142 | E37: 113 | F37: 0.7957746479
A38: Metropolitana | B38: Itarana | C38: 135 | D38: 33 | E38: 40 | F38: 1.212121212
A39: Sul | B39: Iúna | C39: 469 | D39: 103 | E39: 90 | F39: 0.8737864078
A40: Norte | B40: Jaguaré | C40: 492 | D40: 114 | E40: 128 | F40: 1.122807018
A41: Sul | B41: Jerônimo Monteiro | C41: 163 | D41: 41 | E41: 28 | F41: 0.6829268293
A42: Metropolitana | B42: João Neiva | C42: 179 | D42: 41 | E42: 33 | F42: 0.8048780488
A43: Metropolitana | B43: Laranja da Terra | C43: 100 | D43: 25 | E43: 20 | F43: 0.8
A44: Central | B44: Linhares | C44: 2585 | D44: 648 | E44: 551 | F44: 0.850308642
A45: Central | B45: Mantenópolis | C45: 152 | D45: 34 | E45: 39 | F45: 1.147058824
A46: Sul | B46: Marataízes | C46: 570 | D46: 156 | E46: 137 | F46: 0.8782051282
A47: Metropolitana | B47: Marechal Floriano | C47: 235 | D47: 65 | E47: 61 | F47: 0.9384615385
A48: Central | B48: Marilândia | C48: 160 | D48: 28 | E48: 31 | F48: 1.107142857
A49: Sul | B49: Mimoso do Sul | C49: 258 | D49: 56 | E49: 60 | F49: 1.071428571
A50: Norte | B50: Montanha | C50: 254 | D50: 55 | E50: 46 | F50: 0.8363636364
A51: Norte | B51: Mucurici | C51: 72 | D51: 12 | E51: 23 | F51: 1.916666667
A52: Sul | B52: Muniz Freire | C52: 211 | D52: 43 | E52: 58 | F52: 1.348837209
A53: Sul | B53: Muqui | C53: 172 | D53: 44 | E53: 41 | F53: 0.9318181818
A54: Norte | B54: Nova Venécia | C54: 681 | D54: 163 | E54: 146 | F54: 0.8957055215
A55: Central | B55: Pancas | C55: 208 | D55: 42 | E55: 48 | F55: 1.142857143
A56: Norte | B56: Pedro Canário | C56: 330 | D56: 78 | E56: 66 | F56: 0.8461538462
A57: Norte | B57: Pinheiros | C57: 322 | D57: 70 | E57: 69 | F57: 0.9857142857
A58: Sul | B58: Piúma | C58: 312 | D58: 67 | E58: 84 | F58: 1.253731343
A59: Norte | B59: Ponto Belo | C59: 86 | D59: 19 | E59: 20 | F59: 1.052631579
A60: Sul | B60: Presidente Kennedy | C60: 192 | D60: 57 | E60: 43 | F60: 0.7543859649
A61: Central | B61: Rio Bananal | C61: 304 | D61: 77 | E61: 60 | F61: 0.7792207792
A62: Sul | B62: Rio Novo do Sul | C62: 129 | D62: 34 | E62: 19 | F62: 0.5588235294
A63: Metropolitana | B63: Santa Leopoldina | C63: 108 | D63: 32 | E63: 24 | F63: 0.75
A64: Metropolitana | B64: Santa Maria de Jetibá | C64: 669 | D64: 163 | E64: 159 | F64: 0.9754601227
A65: Metropolitana | B65: Santa Teresa | C65: 288 | D65: 63 | E65: 65 | F65: 1.031746032
A66: Central | B66: São Domingos do Norte | C66: 119 | D66: 23 | E66: 15 | F66: 0.652173913
A67: Central | B67: São Gabriel da Palha | C67: 420 | D67: 88 | E67: 102 | F67: =E67/D67 -> 1.159090909
A68: Sul | B68: São José do Calçado | C68: 99 | D68: 23 | E68: 21 | F68: 0.9130434783
A69: Norte | B69: São Mateus | C69: 1854 | D69: 396 | E69: 347 | F69: 0.8762626263
A70: Central | B70: São Roque do Canaã | C70: 122 | D70: 40 | E70: 29 | F70: 0.725
A71: Metropolitana | B71: Serra | C71: 7403 | D71: 1921 | E71: 1513 | F71: 0.7876106195
A72: Central | B72: Sooretama | C72: 432 | D72: 110 | E72: 104 | F72: 0.9454545455
A73: Sul | B73: Vargem Alta | C73: 258 | D73: 64 | E73: 64 | F73: 1
A74: Metropolitana | B74: Venda Nova do Imigrante | C74: 382 | D74: 82 | E74: 72 | F74: 0.8780487805
A75: Metropolitana | B75: Viana | C75: 989 | D75: 241 | E75: 210 | F75: 0.8713692946
A76: Norte | B76: Vila Pavão | C76: 99 | D76: 21 | E76: 24 | F76: 1.142857143
A77: Central | B77: Vila Valério | C77: 694 | D77: 54 | E77: 42 | F77: 0.7777777778
A78: Metropolitana | B78: Vila Velha | C78: 5621 | D78: 1472 | E78: 1133 | F78: 0.769701087
A79: Metropolitana | B79: Vitória | C79: 6999 | D79: 910 | E79: 835 | F79: 0.9175824176
B81: Total Norte | C81: =SUMIF($A$2:$A$79,"Norte",C$2:C$79) -> 5655 | D81: =SUMIF($A$2:$A$79,"Norte",D$2:D$79) -> 1273 | E81: =SUMIF($A$2:$A$79,"Norte",E$2:E$79) -> 1244 | F81: 0.9772191673
B82: Total Central | C82: =SUMIF($A$2:$A$79,"CENTRAL",C$2:C$79) -> 7463 | D82: =SUMIF($A$2:$A$79,"CENTRAL",D$2:D$79) -> 1662 | E82: =SUMIF($A$2:$A$79,"CENTRAL",E$2:E$79) -> 1552 | F82: 0.9338146811
B83: Total Metropolitana | C83: =SUMIF($A$2:$A$79,"METROPOLITANA",C$2:C$79) -> 33141 | D83: =SUMIF($A$2:$A$79,"METROPOLITANA",D$2:D$79) -> 7490 | E83: =SUMIF($A$2:$A$79,"METROPOLITANA",E$2:E$79) -> 6341 | F83: 0.8465954606
B84: Total Sul | C84: =SUMIF($A$2:$A$79,"SUL",C$2:C$79) -> 8419 | D84: =SUMIF($A$2:$A$79,"SUL",D$2:D$79) -> 2085 | E84: =SUMIF($A$2:$A$79,"SUL",E$2:E$79) -> 1867 | F84: 0.8954436451
B85: TOTAL ES | C85: =SUM(C2:C79) -> 54678 | D85: =SUM(D2:D79) -> 12510 | E85: =SUM(E2:E79) -> 11004 | F85: =E85/D85 -> 0.879616307
B86: HOMOGENEIDADE ENTRE MUNICÍPIOS | E86: =COUNTIF(F2:F79,">=0,95") -> 37 | F86: =E86/78 -> 0.4743589744
A89: Vacina e Confia, em 12 de Abril de 2024.**
A90: **Dados referente às doses aplicadas no período de Março de 2024
A91: Cobertura Calculada por município de procedência da vacinação
A92: 1 População anual extraída do MS/SVS/DASIS - SINASC/DASIS/SVS/MS 2023 (hoje preliminares) referente ao período de fevereiro a dezembro de 2023 e SINASC/DASIS/SVS/MS 2024 referente ao período de janeiro de 2024.
A94: ² População proporcional extraída do MS/SVS/DASIS - SINASC/DASIS/SVS/MS 2023 (hoje preliminares) referente ao período de fevereiro e março de 2023 somada a população extraída do SINASC/DASIS/SVS/MS 2024 referente ao período de janeiro de 2024.
A96: Observações:
A97: Imunobiológicos que foram recebidos parcialmente pelo estado no mês da análise, sendo distribuídos em quantidades reduzidas às regionais e municípios: Varicela, Febre Amarela e HPV Quadrivalente.
A98: Imunobiológicos que não foram recebidos pelo estado no mês da análise, não sendo possível a distribuição às regionais e municípios: Meningo C, Hepatite A (CRIE), HIB, Hepatite A Rotina Pediátrica, DTPa (CRIE).
A99: Imunobiológicos com indisponibilidade de aquisição e distribuição no mês da análise: Tetra Viral.

Sheet dTpa gestantes - residência
A1: REGIONAL | B1: MUNICÍPIO | C1: ¹POPULAÇÃO GESTANTE ANUAL | D1: ¹POPULAÇÃO PROPORCIONAL | E1: DOSES APLICADAS dTpa GESTANTES | F1: COBERTURA VACINAL dTpa GESTANTES
A2: Metropolitana | B2: Afonso Cláudio | C2: 396 | D2: 110 | E2: 76 | F2: =E2/D2 -> 0.6909090909
A3: Norte | B3: Água Doce do Norte | C3: 157 | D3: 33 | E3: 35 | F3: =E3/D3 -> 1.060606061
A4: Central | B4: Águia Branca | C4: 138 | D4: 31 | E4: 26 | F4: 0.8387096774
A5: Sul | B5: Alegre | C5: 335 | D5: 78 | E5: 96 | F5: 1.230769231
A6: Sul | B6: Alfredo Chaves | C6: 154 | D6: 40 | E6: 39 | F6: 0.975
A7: Central | B7: Alto Rio Novo | C7: 90 | D7: 24 | E7: 22 | F7: 0.9166666667
A8: Sul | B8: Anchieta | C8: 377 | D8: 84 | E8: 77 | F8: 0.9166666667
A9: Sul | B9: Apiacá | C9: 62 | D9: 13 | E9: 18 | F9: 1.384615385
A10: Metropolitana | B10: Aracruz | C10: 1453 | D10: 355 | E10: 296 | F10: 0.8338028169
A11: Sul | B11: Atilio Vivacqua | C11: 140 | D11: 37 | E11: 36 | F11: 0.972972973
A12: Central | B12: Baixo Guandu | C12: 364 | D12: 76 | E12: 81 | F12: 1.065789474
A13: Norte | B13: Barra de São Francisco | C13: 510 | D13: 122 | E13: 121 | F13: 0.9918032787
A14: Norte | B14: Boa Esperança | C14: 199 | D14: 54 | E14: 37 | F14: 0.6851851852
A15: Sul | B15: Bom Jesus do Norte | C15: 81 | D15: 14 | E15: 18 | F15: 1.285714286
A16: Metropolitana | B16: Brejetuba | C16: 195 | D16: 39 | E16: 34 | F16: 0.8717948718
A17: Sul | B17: Cachoeiro de Itapemirim | C17: 2446 | D17: 639 | E17: 515 | F17: 0.8059467919
A18: Metropolitana | B18: Cariacica | C18: 4835 | D18: 1168 | E18: 1110 | F18: 0.9503424658
A19: Sul | B19: Castelo | C19: 452 | D19: 125 | E19: 102 | F19: 0.816
A20: Central | B20: Colatina | C20: 1530 | D20: 360 | E20: 317 | F20: 0.8805555556
A21: Norte | B21: Conceição da Barra | C21: 373 | D21: 88 | E21: 91 | F21: 1.034090909
A22: Metropolitana | B22: Conceição do Castelo | C22: 152 | D22: 29 | E22: 35 | F22: 1.206896552
A23: Sul | B23: Divino de São Lourenço | C23: 57 | D23: 9 | E23: 13 | F23: 1.444444444
A24: Metropolitana | B24: Domingos Martins | C24: 407 | D24: 94 | E24: 124 | F24: 1.319148936
A25: Sul | B25: Dores do Rio Preto | C25: 95 | D25: 28 | E25: 13 | F25: 0.4642857143
A26: Norte | B26: Ecoporanga | C26: 226 | D26: 48 | E26: 68 | F26: 1.416666667
A27: Metropolitana | B27: Fundão | C27: 217 | D27: 58 | E27: 43 | F27: 0.7413793103
A28: Central | B28: Governador Lindenberg | C28: 145 | D28: 27 | E28: 36 | F28: 1.333333333
A29: Sul | B29: Guaçuí | C29: 375 | D29: 78 | E29: 60 | F29: 0.7692307692
A30: Metropolitana | B30: Guarapari | C30: 1759 | D30: 452 | E30: 365 | F30: 0.8075221239
A31: Metropolitana | B31: Ibatiba | C31: 341 | D31: 66 | E31: 96 | F31: 1.454545455
A32: Metropolitana | B32: Ibiraçu | C32: 147 | D32: 41 | E32: 42 | F32: 1.024390244
A33: Sul | B33: Ibitirama | C33: 122 | D33: 27 | E33: 27 | F33: 1
A34: Sul | B34: Iconha | C34: 123 | D34: 36 | E34: 29 | F34: 0.8055555556
A35: Sul | B35: Irupi | C35: 196 | D35: 47 | E35: 38 | F35: 0.8085106383
A36: Metropolitana | B36: Itaguaçu | C36: 131 | D36: 30 | E36: 33 | F36: 1.1
A37: Sul | B37: Itapemirim | C37: 571 | D37: 142 | E37: 122 | F37: 0.8591549296
A38: Metropolitana | B38: Itarana | C38: 135 | D38: 33 | E38: 35 | F38: 1.060606061
A39: Sul | B39: Iúna | C39: 469 | D39: 103 | E39: 94 | F39: 0.9126213592
A40: Norte | B40: Jaguaré | C40: 492 | D40: 114 | E40: 128 | F40: 1.122807018
A41: Sul | B41: Jerônimo Monteiro | C41: 163 | D41: 41 | E41: 26 | F41: 0.6341463415
A42: Metropolitana | B42: João Neiva | C42: 179 | D42: 41 | E42: 33 | F42: 0.8048780488
A43: Metropolitana | B43: Laranja da Terra | C43: 100 | D43: 25 | E43: 17 | F43: 0.68
A44: Central | B44: Linhares | C44: 2585 | D44: 648 | E44: 523 | F44: 0.8070987654
A45: Central | B45: Mantenópolis | C45: 152 | D45: 34 | E45: 35 | F45: 1.029411765
A46: Sul | B46: Marataízes | C46: 570 | D46: 156 | E46: 124 | F46: 0.7948717949
A47: Metropolitana | B47: Marechal Floriano | C47: 235 | D47: 65 | E47: 62 | F47: 0.9538461538
A48: Central | B48: Marilândia | C48: 160 | D48: 28 | E48: 40 | F48: 1.428571429
A49: Sul | B49: Mimoso do Sul | C49: 258 | D49: 56 | E49: 57 | F49: 1.017857143
A50: Norte | B50: Montanha | C50: 254 | D50: 55 | E50: 43 | F50: 0.7818181818
A51: Norte | B51: Mucurici | C51: 72 | D51: 12 | E51: 28 | F51: 2.333333333
A52: Sul | B52: Muniz Freire | C52: 211 | D52: 43 | E52: 42 | F52: 0.976744186
A53: Sul | B53: Muqui | C53: 172 | D53: 44 | E53: 43 | F53: 0.9772727273
A54: Norte | B54: Nova Venécia | C54: 681 | D54: 163 | E54: 164 | F54: 1.006134969
A55: Central | B55: Pancas | C55: 208 | D55: 42 | E55: 50 | F55: 1.19047619
A56: Norte | B56: Pedro Canário | C56: 330 | D56: 78 | E56: 74 | F56: 0.9487179487
A57: Norte | B57: Pinheiros | C57: 322 | D57: 70 | E57: 64 | F57: 0.9142857143
A58: Sul | B58: Piúma | C58: 312 | D58: 67 | E58: 76 | F58: 1.134328358
A59: Norte | B59: Ponto Belo | C59: 86 | D59: 19 | E59: 21 | F59: 1.105263158
A60: Sul | B60: Presidente Kennedy | C60: 192 | D60: 57 | E60: 42 | F60: 0.7368421053
A61: Central | B61: Rio Bananal | C61: 304 | D61: 77 | E61: 66 | F61: 0.8571428571
A62: Sul | B62: Rio Novo do Sul | C62: 129 | D62: 34 | E62: 19 | F62: 0.5588235294
A63: Metropolitana | B63: Santa Leopoldina | C63: 108 | D63: 32 | E63: 21 | F63: 0.65625
A64: Metropolitana | B64: Santa Maria de Jetibá | C64: 669 | D64: 163 | E64: 137 | F64: 0.8404907975
A65: Metropolitana | B65: Santa Teresa | C65: 288 | D65: 63 | E65: 69 | F65: 1.095238095
A66: Central | B66: São Domingos do Norte | C66: 119 | D66: 23 | E66: 18 | F66: 0.7826086957
A67: Central | B67: São Gabriel da Palha | C67: 420 | D67: 88 | E67: 94 | F67: =E67/D67 -> 1.068181818
A68: Sul | B68: São José do Calçado | C68: 99 | D68: 23 | E68: 26 | F68: 1.130434783
A69: Norte | B69: São Mateus | C69: 1854 | D69: 396 | E69: 306 | F69: 0.7727272727
A70: Central | B70: São Roque do Canaã | C70: 122 | D70: 40 | E70: 36 | F70: 0.9
A71: Metropolitana | B71: Serra | C71: 7403 | D71: 1921 | E71: 1422 | F71: 0.7402394586
A72: Central | B72: Sooretama | C72: 432 | D72: 110 | E72: 111 | F72: 1.009090909
A73: Sul | B73: Vargem Alta | C73: 258 | D73: 64 | E73: 63 | F73: 0.984375
A74: Metropolitana | B74: Venda Nova do Imigrante | C74: 382 | D74: 82 | E74: 70 | F74: 0.8536585366
A75: Metropolitana | B75: Viana | C75: 989 | D75: 241 | E75: 210 | F75: 0.8713692946
A76: Norte | B76: Vila Pavão | C76: 99 | D76: 21 | E76: 25 | F76: 1.19047619
A77: Central | B77: Vila Valério | C77: 694 | D77: 54 | E77: 44 | F77: 0.8148148148
A78: Metropolitana | B78: Vila Velha | C78: 5621 | D78: 1472 | E78: 1016 | F78: 0.6902173913
A79: Metropolitana | B79: Vitória | C79: 6999 | D79: 910 | E79: 716 | F79: 0.7868131868
B81: Total Norte | C81: =SUMIF($A$2:$A$79,"Norte",C$2:C$79) -> 5655 | D81: =SUMIF($A$2:$A$79,"Norte",D$2:D$79) -> 1273 | E81: =SUMIF($A$2:$A$79,"Norte",E$2:E$79) -> 1205 | F81: 0.9465828751
B82: Total Central | C82: =SUMIF($A$2:$A$79,"CENTRAL",C$2:C$79) -> 7463 | D82: =SUMIF($A$2:$A$79,"CENTRAL",D$2:D$79) -> 1662 | E82: =SUMIF($A$2:$A$79,"CENTRAL",E$2:E$79) -> 1499 | F82: 0.9019253911
B83: Total Metropolitana | C83: =SUMIF($A$2:$A$79,"METROPOLITANA",C$2:C$79) -> 33141 | D83: =SUMIF($A$2:$A$79,"METROPOLITANA",D$2:D$79) -> 7490 | E83: =SUMIF($A$2:$A$79,"METROPOLITANA",E$2:E$79) -> 6062 | F83: 0.8093457944
B84: Total Sul | C84: =SUMIF($A$2:$A$79,"SUL",C$2:C$79) -> 8419 | D84: =SUMIF($A$2:$A$79,"SUL",D$2:D$79) -> 2085 | E84: =SUMIF($A$2:$A$79,"SUL",E$2:E$79) -> 1815 | F84: 0.8705035971
B85: TOTAL ES | C85: =SUM(C2:C79) -> 54678 | D85: =SUM(D2:D79) -> 12510 | E85: =SUM(E2:E79) -> 10581 | F85: =E85/D85 -> 0.8458033573
B86: HOMOGENEIDADE ENTRE MUNICÍPIOS | E86: =COUNTIF(F2:F79,">=0,95") -> 38 | F86: =E86/78 -> 0.4871794872
A89: Vacina e Confia, em 12 de Abril de 2024.**
A90: **Dados referente às doses aplicadas no período de Março de 2024
A91: Cobertura Calculada por município de residência do cidadão (no Vacina e Confia, a origem da informação é o endereço que consta no cadastro do cidadão preenchido manualmente por meio do autocadastro ou pelo cadastro realizado por um profissional de saúde no momento do atendimento).
A93: 1 População anual extraída do MS/SVS/DASIS - SINASC/DASIS/SVS/MS 2023 (hoje preliminares) referente ao período de fevereiro a dezembro de 2023 e SINASC/DASIS/SVS/MS 2024 referente ao período de janeiro de 2024.
A95: ² População proporcional extraída do MS/SVS/DASIS - SINASC/DASIS/SVS/MS 2023 (hoje preliminares) referente ao período de fevereiro e março de 2023 somada a população extraída do SINASC/DASIS/SVS/MS 2024 referente ao período de janeiro de 2024.
A97: Observações:
A98: Imunobiológicos que foram recebidos parcialmente pelo estado no mês da análise, sendo distribuídos em quantidades reduzidas às regionais e municípios: Varicela, Febre Amarela e HPV Quadrivalente.
A99: Imunobiológicos que não foram recebidos pelo estado no mês da análise, não sendo possível a distribuição às regionais e municípios: Meningo C, Hepatite A (CRIE), HIB, Hepatite A Rotina Pediátrica, DTPa (CRIE).
A100: Imunobiológicos com indisponibilidade de aquisição e distribuição no mês da análise: Tetra Viral.

Sheet PROTEÇÃO

Sheet cálculos1 (hidden)
A1: Regional | B1: Município | C1: Cobertura Vacinal BCG | D1: Cobertura Vacinal Rotavírus | E1: Cobertura Vacinal Pentavalente | F1: Cobertura Vacinal Poliomielite | G1: Cobertura Vacinal Pneumo 10 | H1: Cobertura Vacinal Tríplice Viral | I1: Cobertura Vacinal Meningo C | J1: Cobertura Vacinal Febre Amarela | K1: Cobertura Vacinal Hepatite A | L1: Cobertura Varicela | M1: META 90% | N1: META 95% | O1: ATINGIRAM META | P1: PQA-VS
A2: Metropolitana | B2: Afonso Cláudio | C2: ='CV Rotina <2A - procedência'!H3 -> 0.6818181818 | D2: ='CV Rotina <2A - procedência'!P3 -> 0.7545454545 | E2: ='CV Rotina <2A - procedência'!J3 -> 0.8909090909 | F2: ='CV Rotina <2A - procedência'!L3 -> 0.8818181818 | G2: ='CV Rotina <2A - procedência'!N3 -> 0.7454545455 | H2: ='CV Rotina <2A - procedência'!Z3 -> 0.9727272727 | I2: ='CV Rotina <2A - procedência'!R3 -> 0.9090909091 | J2: ='CV Rotina <2A - procedência'!T3 -> 0.7454545455 | K2: ='CV Rotina <2A - procedência'!X3 -> 0.7363636364 | L2: ='CV Rotina <2A - procedência'!AB3 -> 0.5545454545 | M2: =COUNTIF(C2:D2,">=0,9") -> 0 | N2: =COUNTIFS(E2:L2,">=0,95") -> 1 | O2: =SUM(M2:N2) -> 1 | P2: =COUNTIF(E2:H2,">=0,95") -> 1
A3: Norte | B3: Água Doce do Norte | C3: ='CV Rotina <2A - procedência'!H4 -> 0.5757575758 | D3: ='CV Rotina <2A - procedência'!P4 -> 1.090909091 | E3: ='CV Rotina <2A - procedência'!J4 -> 1.272727273 | F3: ='CV Rotina <2A - procedência'!L4 -> 1.333333333 | G3: ='CV Rotina <2A - procedência'!N4 -> 1.151515152 | H3: ='CV Rotina <2A - procedência'!Z4 -> 0.9393939394 | I3: ='CV Rotina <2A - procedência'!R4 -> 1.242424242 | J3: ='CV Rotina <2A - procedência'!T4 -> 0.8484848485 | K3: ='CV Rotina <2A - procedência'!X4 -> 0.9696969697 | L3: ='CV Rotina <2A - procedência'!AB4 -> 0.6363636364 | M3: 1 | N3: 5 | O3: =SUM(M3:N3) -> 6 | P3: =COUNTIF(E3:H3,">=0,95") -> 3
A4: Central | B4: Águia Branca | C4: ='CV Rotina <2A - procedência'!H5 -> 0.8064516129 | D4: ='CV Rotina <2A - procedência'!P5 -> 1.258064516 | E4: ='CV Rotina <2A - procedência'!J5 -> 1.451612903 | F4: ='CV Rotina <2A - procedência'!L5 -> 1.419354839 | G4: ='CV Rotina <2A - procedência'!N5 -> 1.258064516 | H4: ='CV Rotina <2A - procedência'!Z5 -> 0.8387096774 | I4: ='CV Rotina <2A - procedência'!R5 -> 1.612903226 | J4: ='CV Rotina <2A - procedência'!T5 -> 1.032258065 | K4: ='CV Rotina <2A - procedência'!X5 -> 0.8387096774 | L4: ='CV Rotina <2A - procedência'!AB5 -> 0.4516129032 | M4: 1 | N4: 5 | O4: 6 | P4: 3
A5: Sul | B5: Alegre | C5: ='CV Rotina <2A - procedência'!H6 -> 0.6923076923 | D5: ='CV Rotina <2A - procedência'!P6 -> 1.012820513 | E5: ='CV Rotina <2A - procedência'!J6 -> 1.076923077 | F5: ='CV Rotina <2A - procedência'!L6 -> 1.141025641 | G5: ='CV Rotina <2A - procedência'!N6 -> 1.076923077 | H5: ='CV Rotina <2A - procedência'!Z6 -> 0.9743589744 | I5: ='CV Rotina <2A - procedência'!R6 -> 0.9743589744 | J5: ='CV Rotina <2A - procedência'!T6 -> 1 | K5: ='CV Rotina <2A - procedência'!X6 -> 0.7564102564 | L5: ='CV Rotina <2A - procedência'!AB6 -> 0.3974358974 | M5: 1 | N5: 6 | O5: 7 | P5: 4
A6: Sul | B6: Alfredo Chaves | C6: ='CV Rotina <2A - procedência'!H7 -> 0.5 | D6: ='CV Rotina <2A - procedência'!P7 -> 1.225 | E6: ='CV Rotina <2A - procedência'!J7 -> 0.85 | F6: ='CV Rotina <2A - procedência'!L7 -> 0.95 | G6: ='CV Rotina <2A - procedência'!N7 -> 1.175 | H6: ='CV Rotina <2A - procedência'!Z7 -> 1.025 | I6: ='CV Rotina <2A - procedência'!R7 -> 1.05 | J6: ='CV Rotina <2A - procedência'!T7 -> 0.85 | K6: ='CV Rotina <2A - procedência'!X7 -> 0.825 | L6: ='CV Rotina <2A - procedência'!AB7 -> 0.525 | M6: 1 | N6: 4 | O6: 5 | P6: 3
A7: Central | B7: Alto Rio Novo | C7: ='CV Rotina <2A - procedência'!H8 -> 0.3333333333 | D7: ='CV Rotina <2A - procedência'!P8 -> 1.083333333 | E7: ='CV Rotina <2A - procedência'!J8 -> 1.083333333 | F7: ='CV Rotina <2A - procedência'!L8 -> 1.083333333 | G7: ='CV Rotina <2A - procedência'!N8 -> 1.083333333 | H7: ='CV Rotina <2A - procedência'!Z8 -> 0.9583333333 | I7: ='CV Rotina <2A - procedência'!R8 -> 1.25 | J7: ='CV Rotina <2A - procedência'!T8 -> 0.6666666667 | K7: ='CV Rotina <2A - procedência'!X8 -> 1 | L7: ='CV Rotina <2A - procedência'!AB8 -> 0.625 | M7: 1 | N7: 6 | O7: 7 | P7: 4
A8: Sul | B8: Anchieta | C8: ='CV Rotina <2A - procedência'!H9 -> 0.6547619048 | D8: ='CV Rotina <2A - procedência'!P9 -> 1.30952381 | E8: ='CV Rotina <2A - procedência'!J9 -> 1.035714286 | F8: ='CV Rotina <2A - procedência'!L9 -> 1.071428571 | G8: ='CV Rotina <2A - procedência'!N9 -> 1.345238095 | H8: ='CV Rotina <2A - procedência'!Z9 -> 1.107142857 | I8: ='CV Rotina <2A - procedência'!R9 -> 1.202380952 | J8: ='CV Rotina <2A - procedência'!T9 -> 0.9166666667 | K8: ='CV Rotina <2A - procedência'!X9 -> 1.035714286 | L8: ='CV Rotina <2A - procedência'!AB9 -> 0.5238095238 | M8: 1 | N8: 6 | O8: 7 | P8: 4
A9: Sul | B9: Apiacá | C9: ='CV Rotina <2A - procedência'!H10 -> 1.076923077 | D9: ='CV Rotina <2A - procedência'!P10 -> 1.230769231 | E9: ='CV Rotina <2A - procedência'!J10 -> 0.7692307692 | F9: ='CV Rotina <2A - procedência'!L10 -> 0.8461538462 | G9: ='CV Rotina <2A - procedência'!N10 -> 1.153846154 | H9: ='CV Rotina <2A - procedência'!Z10 -> 1 | I9: ='CV Rotina <2A - procedência'!R10 -> 0.8461538462 | J9: ='CV Rotina <2A - procedência'!T10 -> 1.384615385 | K9: ='CV Rotina <2A - procedência'!X10 -> 0.6923076923 | L9: ='CV Rotina <2A - procedência'!AB10 -> 0.3076923077 | M9: 2 | N9: 3 | O9: 5 | P9: 2
A10: Metropolitana | B10: Aracruz | C10: ='CV Rotina <2A - procedência'!H11 -> 0.9098591549 | D10: ='CV Rotina <2A - procedência'!P11 -> 0.9605633803 | E10: ='CV Rotina <2A - procedência'!J11 -> 0.9042253521 | F10: ='CV Rotina <2A - procedência'!L11 -> 0.9098591549 | G10: ='CV Rotina <2A - procedência'!N11 -> 0.9690140845 | H10: ='CV Rotina <2A - procedência'!Z11 -> 1.154929577 | I10: ='CV Rotina <2A - procedência'!R11 -> 0.8957746479 | J10: ='CV Rotina <2A - procedência'!T11 -> 0.8507042254 | K10: ='CV Rotina <2A - procedência'!X11 -> 0.923943662 | L10: ='CV Rotina <2A - procedência'!AB11 -> 0.7802816901 | M10: 2 | N10: 2 | O10: 4 | P10: 2
A11: Sul | B11: Atilio Vivacqua | C11: ='CV Rotina <2A - procedência'!H12 -> 0 | D11: ='CV Rotina <2A - procedência'!P12 -> 0.8648648649 | E11: ='CV Rotina <2A - procedência'!J12 -> 0.9459459459 | F11: ='CV Rotina <2A - procedência'!L12 -> 0.9189189189 | G11: ='CV Rotina <2A - procedência'!N12 -> 0.8648648649 | H11: ='CV Rotina <2A - procedência'!Z12 -> 1.054054054 | I11: ='CV Rotina <2A - procedência'!R12 -> 0.7567567568 | J11: ='CV Rotina <2A - procedência'!T12 -> 0.7027027027 | K11: ='CV Rotina <2A - procedência'!X12 -> 0.8378378378 | L11: ='CV Rotina <2A - procedência'!AB12 -> 0.5945945946 | M11: 0 | N11: 1 | O11: 1 | P11: 1
A12: Central | B12: Baixo Guandu | C12: ='CV Rotina <2A - procedência'!H13 -> 0.6315789474 | D12: ='CV Rotina <2A - procedência'!P13 -> 1.394736842 | E12: ='CV Rotina <2A - procedência'!J13 -> 1.394736842 | F12: ='CV Rotina <2A - procedência'!L13 -> 1.394736842 | G12: ='CV Rotina <2A - procedência'!N13 -> 1.447368421 | H12: ='CV Rotina <2A - procedência'!Z13 -> 1.855263158 | I12: ='CV Rotina <2A - procedência'!R13 -> 1.302631579 | J12: ='CV Rotina <2A - procedência'!T13 -> 1.105263158 | K12: ='CV Rotina <2A - procedência'!X13 -> 1.052631579 | L12: ='CV Rotina <2A - procedência'!AB13 -> 0.9342105263 | M12: 1 | N12: 7 | O12: 8 | P12: 4
A13: Norte | B13: Barra de São Francisco | C13: ='CV Rotina <2A - procedência'!H14 -> 0.8606557377 | D13: ='CV Rotina <2A - procedência'!P14 -> 0.9590163934 | E13: ='CV Rotina <2A - procedência'!J14 -> 0.9262295082 | F13: ='CV Rotina <2A - procedência'!L14 -> 0.9508196721 | G13: ='CV Rotina <2A - procedência'!N14 -> 0.9836065574 | H13: ='CV Rotina <2A - procedência'!Z14 -> 1.155737705 | I13: ='CV Rotina <2A - procedência'!R14 -> 0.9426229508 | J13: ='CV Rotina <2A - procedência'!T14 -> 1.114754098 | K13: ='CV Rotina <2A - procedência'!X14 -> 0.7950819672 | L13: ='CV Rotina <2A - procedência'!AB14 -> 0.8196721311 | M13: 1 | N13: 4 | O13: 5 | P13: 3
A14: Norte | B14: Boa Esperança | C14: ='CV Rotina <2A - procedência'!H15 -> 0.3703703704 | D14: ='CV Rotina <2A - procedência'!P15 -> 0.8518518519 | E14: ='CV Rotina <2A - procedência'!J15 -> 0.6666666667 | F14: ='CV Rotina <2A - procedência'!L15 -> 0.7407407407 | G14: ='CV Rotina <2A - procedência'!N15 -> 0.8148148148 | H14: ='CV Rotina <2A - procedência'!Z15 -> 0.9259259259 | I14: ='CV Rotina <2A - procedência'!R15 -> 0.8148148148 | J14: ='CV Rotina <2A - procedência'!T15 -> 0.7777777778 | K14: ='CV Rotina <2A - procedência'!X15 -> 0.7407407407 | L14: ='CV Rotina <2A - procedência'!AB15 -> 0.7592592593 | M14: 0 | N14: 0 | O14: 0 | P14: 0
A15: Sul | B15: Bom Jesus do Norte | C15: ='CV Rotina <2A - procedência'!H16 -> 0.7857142857 | D15: ='CV Rotina <2A - procedência'!P16 -> 2.071428571 | E15: ='CV Rotina <2A - procedência'!J16 -> 2.785714286 | F15: ='CV Rotina <2A - procedência'!L16 -> 2.642857143 | G15: ='CV Rotina <2A - procedência'!N16 -> 2.214285714 | H15: ='CV Rotina <2A - procedência'!Z16 -> 2.428571429 | I15: ='CV Rotina <2A - procedência'!R16 -> 2.214285714 | J15: ='CV Rotina <2A - procedência'!T16 -> 2.285714286 | K15: ='CV Rotina <2A - procedência'!X16 -> 0.4285714286 | L15: ='CV Rotina <2A - procedência'!AB16 -> 0.8571428571 | M15: 1 | N15: 6 | O15: 7 | P15: 4
A16: Metropolitana | B16: Brejetuba | C16: ='CV Rotina <2A - procedência'!H17 -> 1.051282051 | D16: ='CV Rotina <2A - procedência'!P17 -> 1.307692308 | E16: ='CV Rotina <2A - procedência'!J17 -> 1.256410256 | F16: ='CV Rotina <2A - procedência'!L17 -> 1.256410256 | G16: ='CV Rotina <2A - procedência'!N17 -> 1.307692308 | H16: ='CV Rotina <2A - procedência'!Z17 -> 1.153846154 | I16: ='CV Rotina <2A - procedência'!R17 -> 1.230769231 | J16: ='CV Rotina <2A - procedência'!T17 -> 1.435897436 | K16: ='CV Rotina <2A - procedência'!X17 -> 1.076923077 | L16: ='CV Rotina <2A - procedência'!AB17 -> 0.8974358974 | M16: 2 | N16: 7 | O16: 9 | P16: 4
A17: Sul | B17: Cachoeiro de Itapemirim | C17: ='CV Rotina <2A - procedência'!H18 -> 1.902973396 | D17: ='CV Rotina <2A - procedência'!P18 -> 0.8231611894 | E17: ='CV Rotina <2A - procedência'!J18 -> 0.8575899844 | F17: ='CV Rotina <2A - procedência'!L18 -> 0.8435054773 | G17: ='CV Rotina <2A - procedência'!N18 -> 0.8528951487 | H17: ='CV Rotina <2A - procedência'!Z18 -> 0.9405320814 | I17: ='CV Rotina <2A - procedência'!R18 -> 0.8294209703 | J17: ='CV Rotina <2A - procedência'!T18 -> 0.765258216 | K17: ='CV Rotina <2A - procedência'!X18 -> 0.7245696401 | L17: ='CV Rotina <2A - procedência'!AB18 -> 0.3098591549 | M17: 1 | N17: 0 | O17: 1 | P17: 0
A18: Metropolitana | B18: Cariacica | C18: ='CV Rotina <2A - procedência'!H19 -> 0.5085616438 | D18: ='CV Rotina <2A - procedência'!P19 -> 0.8835616438 | E18: ='CV Rotina <2A - procedência'!J19 -> 0.9238013699 | F18: ='CV Rotina <2A - procedência'!L19 -> 0.9032534247 | G18: ='CV Rotina <2A - procedência'!N19 -> 0.9400684932 | H18: ='CV Rotina <2A - procedência'!Z19 -> 0.9940068493 | I18: ='CV Rotina <2A - procedência'!R19 -> 0.9169520548 | J18: ='CV Rotina <2A - procedência'!T19 -> 0.7714041096 | K18: ='CV Rotina <2A - procedência'!X19 -> 0.6198630137 | L18: ='CV Rotina <2A - procedência'!AB19 -> 0.4323630137 | M18: 0 | N18: 1 | O18: 1 | P18: 1
A19: Sul | B19: Castelo | C19: ='CV Rotina <2A - procedência'!H20 -> 0.488 | D19: ='CV Rotina <2A - procedência'!P20 -> 0.704 | E19: ='CV Rotina <2A - procedência'!J20 -> 0.76 | F19: ='CV Rotina <2A - procedência'!L20 -> 0.752 | G19: ='CV Rotina <2A - procedência'!N20 -> 0.736 | H19: ='CV Rotina <2A - procedência'!Z20 -> 1.024 | I19: ='CV Rotina <2A - procedência'!R20 -> 0.712 | J19: ='CV Rotina <2A - procedência'!T20 -> 0.792 | K19: ='CV Rotina <2A - procedência'!X20 -> 0.336 | L19: ='CV Rotina <2A - procedência'!AB20 -> 0.44 | M19: 0 | N19: 1 | O19: 1 | P19: 1
A20: Central | B20: Colatina | C20: ='CV Rotina <2A - procedência'!H21 -> 2.380555556 | D20: ='CV Rotina <2A - procedência'!P21 -> 0.8916666667 | E20: ='CV Rotina <2A - procedência'!J21 -> 0.9833333333 | F20: ='CV Rotina <2A - procedência'!L21 -> 0.9472222222 | G20: ='CV Rotina <2A - procedência'!N21 -> 0.8888888889 | H20: ='CV Rotina <2A - procedência'!Z21 -> 0.9305555556 | I20: ='CV Rotina <2A - procedência'!R21 -> 0.9083333333 | J20: ='CV Rotina <2A - procedência'!T21 -> 0.7916666667 | K20: ='CV Rotina <2A - procedência'!X21 -> 0.5055555556 | L20: ='CV Rotina <2A - procedência'!AB21 -> 0.5666666667 | M20: 1 | N20: 1 | O20: 2 | P20: 1
A21: Norte | B21: Conceição da Barra | C21: ='CV Rotina <2A - procedência'!H22 -> 0.09090909091 | D21: ='CV Rotina <2A - procedência'!P22 -> 1.034090909 | E21: ='CV Rotina <2A - procedência'!J22 -> 0.9772727273 | F21: ='CV Rotina <2A - procedência'!L22 -> 1 | G21: ='CV Rotina <2A - procedência'!N22 -> 1.090909091 | H21: ='CV Rotina <2A - procedência'!Z22 -> 1.056818182 | I21: ='CV Rotina <2A - procedência'!R22 -> 0.9090909091 | J21: ='CV Rotina <2A - procedência'!T22 -> 1.136363636 | K21: ='CV Rotina <2A - procedência'!X22 -> 0.6363636364 | L21: ='CV Rotina <2A - procedência'!AB22 -> 0.6590909091 | M21: 1 | N21: 5 | O21: 6 | P21: 4
A22: Metropolitana | B22: Conceição do Castelo | C22: ='CV Rotina <2A - procedência'!H23 -> 0 | D22: ='CV Rotina <2A - procedência'!P23 -> 1.172413793 | E22: ='CV Rotina <2A - procedência'!J23 -> 1.103448276 | F22: ='CV Rotina <2A - procedência'!L23 -> 1.068965517 | G22: ='CV Rotina <2A - procedência'!N23 -> 1.24137931 | H22: ='CV Rotina <2A - procedência'!Z23 -> 0.7586206897 | I22: ='CV Rotina <2A - procedência'!R23 -> 1.206896552 | J22: ='CV Rotina <2A - procedência'!T23 -> 1.448275862 | K22: ='CV Rotina <2A - procedência'!X23 -> 1.206896552 | L22: ='CV Rotina <2A - procedência'!AB23 -> 0.6896551724 | M22: 1 | N22: 6 | O22: 7 | P22: 3
A23: Sul | B23: Divino de São Lourenço | C23: ='CV Rotina <2A - procedência'!H24 -> 1.666666667 | D23: ='CV Rotina <2A - procedência'!P24 -> 2 | E23: ='CV Rotina <2A - procedência'!J24 -> 2.111111111 | F23: ='CV Rotina <2A - procedência'!L24 -> 2.111111111 | G23: ='CV Rotina <2A - procedência'!N24 -> 2 | H23: ='CV Rotina <2A - procedência'!Z24 -> 1.222222222 | I23: ='CV Rotina <2A - procedência'!R24 -> 2.333333333 | J23: ='CV Rotina <2A - procedência'!T24 -> 1.777777778 | K23: ='CV Rotina <2A - procedência'!X24 -> 1.666666667 | L23: ='CV Rotina <2A - procedência'!AB24 -> 1.111111111 | M23: 2 | N23: 8 | O23: 10 | P23: 4
A24: Metropolitana | B24: Domingos Martins | C24: ='CV Rotina <2A - procedência'!H25 -> 0.2127659574 | D24: ='CV Rotina <2A - procedência'!P25 -> 1.021276596 | E24: ='CV Rotina <2A - procedência'!J25 -> 0.7978723404 | F24: ='CV Rotina <2A - procedência'!L25 -> 0.7978723404 | G24: ='CV Rotina <2A - procedência'!N25 -> 1.074468085 | H24: ='CV Rotina <2A - procedência'!Z25 -> 1.159574468 | I24: ='CV Rotina <2A - procedência'!R25 -> 0.8936170213 | J24: ='CV Rotina <2A - procedência'!T25 -> 1.053191489 | K24: ='CV Rotina <2A - procedência'!X25 -> 0.585106383 | L24: ='CV Rotina <2A - procedência'!AB25 -> 1.14893617 | M24: 1 | N24: 4 | O24: 5 | P24: 2
A25: Sul | B25: Dores do Rio Preto | C25: ='CV Rotina <2A - procedência'!H26 -> 0.6428571429 | D25: ='CV Rotina <2A - procedência'!P26 -> 1 | E25: ='CV Rotina <2A - procedência'!J26 -> 0.8928571429 | F25: ='CV Rotina <2A - procedência'!L26 -> 1 | G25: ='CV Rotina <2A - procedência'!N26 -> 1.071428571 | H25: ='CV Rotina <2A - procedência'!Z26 -> 0.8928571429 | I25: ='CV Rotina <2A - procedência'!R26 -> 0.9285714286 | J25: ='CV Rotina <2A - procedência'!T26 -> 0.8928571429 | K25: ='CV Rotina <2A - procedência'!X26 -> 0.6428571429 | L25: ='CV Rotina <2A - procedência'!AB26 -> 0.3214285714 | M25: 1 | N25: 2 | O25: 3 | P25: 2
A26: Norte | B26: Ecoporanga | C26: ='CV Rotina <2A - procedência'!H27 -> 0.75 | D26: ='CV Rotina <2A - procedência'!P27 -> 1.104166667 | E26: ='CV Rotina <2A - procedência'!J27 -> 1.4375 | F26: ='CV Rotina <2A - procedência'!L27 -> 1.416666667 | G26: ='CV Rotina <2A - procedência'!N27 -> 1.125 | H26: ='CV Rotina <2A - procedência'!Z27 -> 1.291666667 | I26: ='CV Rotina <2A - procedência'!R27 -> 1.1875 | J26: ='CV Rotina <2A - procedência'!T27 -> 1.229166667 | K26: ='CV Rotina <2A - procedência'!X27 -> 1.041666667 | L26: ='CV Rotina <2A - procedência'!AB27 -> 1.125 | M26: 1 | N26: 8 | O26: 9 | P26: 4
A27: Metropolitana | B27: Fundão | C27: ='CV Rotina <2A - procedência'!H28 -> 0.3448275862 | D27: ='CV Rotina <2A - procedência'!P28 -> 1 | E27: ='CV Rotina <2A - procedência'!J28 -> 1.103448276 | F27: ='CV Rotina <2A - procedência'!L28 -> 1.051724138 | G27: ='CV Rotina <2A - procedência'!N28 -> 1.017241379 | H27: ='CV Rotina <2A - procedência'!Z28 -> 0.6551724138 | I27: ='CV Rotina <2A - procedência'!R28 -> 0.9655172414 | J27: ='CV Rotina <2A - procedência'!T28 -> 0.9137931034 | K27: ='CV Rotina <2A - procedência'!X28 -> 0.9655172414 | L27: ='CV Rotina <2A - procedência'!AB28 -> 0.9482758621 | M27: 1 | N27: 5 | O27: 6 | P27: 3
A28: Central | B28: Governador Lindenberg | C28: ='CV Rotina <2A - procedência'!H29 -> 0.2962962963 | D28: ='CV Rotina <2A - procedência'!P29 -> 1.185185185 | E28: ='CV Rotina <2A - procedência'!J29 -> 1.185185185 | F28: ='CV Rotina <2A - procedência'!L29 -> 1.074074074 | G28: ='CV Rotina <2A - procedência'!N29 -> 1.148148148 | H28: ='CV Rotina <2A - procedência'!Z29 -> 1.074074074 | I28: ='CV Rotina <2A - procedência'!R29 -> 1.148148148 | J28: ='CV Rotina <2A - procedência'!T29 -> 1.37037037 | K28: ='CV Rotina <2A - procedência'!X29 -> 1 | L28: ='CV Rotina <2A - procedência'!AB29 -> 0.8888888889 | M28: 1 | N28: 7 | O28: 8 | P28: 4
A29: Sul | B29: Guaçuí | C29: ='CV Rotina <2A - procedência'!H30 -> 0.7435897436 | D29: ='CV Rotina <2A - procedência'!P30 -> 1.205128205 | E29: ='CV Rotina <2A - procedência'!J30 -> 1.294871795 | F29: ='CV Rotina <2A - procedência'!L30 -> 1.282051282 | G29: ='CV Rotina <2A - procedência'!N30 -> 1.307692308 | H29: ='CV Rotina <2A - procedência'!Z30 -> 1.384615385 | I29: ='CV Rotina <2A - procedência'!R30 -> 1.205128205 | J29: ='CV Rotina <2A - procedência'!T30 -> 1.025641026 | K29: ='CV Rotina <2A - procedência'!X30 -> 1.102564103 | L29: ='CV Rotina <2A - procedência'!AB30 -> 0.4487179487 | M29: 1 | N29: 7 | O29: 8 | P29: 4
A30: Metropolitana | B30: Guarapari | C30: ='CV Rotina <2A - procedência'!H31 -> 0.7212389381 | D30: ='CV Rotina <2A - procedência'!P31 -> 0.7942477876 | E30: ='CV Rotina <2A - procedência'!J31 -> 0.8119469027 | F30: ='CV Rotina <2A - procedência'!L31 -> 0.7654867257 | G30: ='CV Rotina <2A - procedência'!N31 -> 0.8362831858 | H30: ='CV Rotina <2A - procedência'!Z31 -> 0.7743362832 | I30: ='CV Rotina <2A - procedência'!R31 -> 0.7632743363 | J30: ='CV Rotina <2A - procedência'!T31 -> 0.6991150442 | K30: ='CV Rotina <2A - procedência'!X31 -> 0.6283185841 | L30: ='CV Rotina <2A - procedência'!AB31 -> 0.4469026549 | M30: 0 | N30: 0 | O30: 0 | P30: 0
A31: Metropolitana | B31: Ibatiba | C31: ='CV Rotina <2A - procedência'!H32 -> 1.212121212 | D31: ='CV Rotina <2A - procedência'!P32 -> 1.378787879 | E31: ='CV Rotina <2A - procedência'!J32 -> 1.409090909 | F31: ='CV Rotina <2A - procedência'!L32 -> 1.393939394 | G31: ='CV Rotina <2A - procedência'!N32 -> 1.590909091 | H31: ='CV Rotina <2A - procedência'!Z32 -> 1.227272727 | I31: ='CV Rotina <2A - procedência'!R32 -> 1.606060606 | J31: ='CV Rotina <2A - procedência'!T32 -> 1.242424242 | K31: ='CV Rotina <2A - procedência'!X32 -> 1.015151515 | L31: ='CV Rotina <2A - procedência'!AB32 -> 0.4393939394 | M31: 2 | N31: 7 | O31: 9 | P31: 4
A32: Metropolitana | B32: Ibiraçu | C32: ='CV Rotina <2A - procedência'!H33 -> 0.1707317073 | D32: ='CV Rotina <2A - procedência'!P33 -> 0.6585365854 | E32: ='CV Rotina <2A - procedência'!J33 -> 0.756097561 | F32: ='CV Rotina <2A - procedência'!L33 -> 0.7317073171 | G32: ='CV Rotina <2A - procedência'!N33 -> 0.7073170732 | H32: ='CV Rotina <2A - procedência'!Z33 -> 0.7804878049 | I32: ='CV Rotina <2A - procedência'!R33 -> 0.8292682927 | J32: ='CV Rotina <2A - procedência'!T33 -> 0.8048780488 | K32: ='CV Rotina <2A - procedência'!X33 -> 0.4390243902 | L32: ='CV Rotina <2A - procedência'!AB33 -> 0.4634146341 | M32: 0 | N32: 0 | O32: 0 | P32: 0
A33: Sul | B33: Ibitirama | C33: ='CV Rotina <2A - procedência'!H34 -> 0.7407407407 | D33: ='CV Rotina <2A - procedência'!P34 -> 1.222222222 | E33: ='CV Rotina <2A - procedência'!J34 -> 1.037037037 | F33: ='CV Rotina <2A - procedência'!L34 -> 1.111111111 | G33: ='CV Rotina <2A - procedência'!N34 -> 1.222222222 | H33: ='CV Rotina <2A - procedência'!Z34 -> 1.592592593 | I33: ='CV Rotina <2A - procedência'!R34 -> 0.9259259259 | J33: ='CV Rotina <2A - procedência'!T34 -> 0.8888888889 | K33: ='CV Rotina <2A - procedência'!X34 -> 0.8518518519 | L33: ='CV Rotina <2A - procedência'!AB34 -> 0.8148148148 | M33: 1 | N33: 4 | O33: 5 | P33: 4
A34: Sul | B34: Iconha | C34: ='CV Rotina <2A - procedência'!H35 -> 0.3333333333 | D34: ='CV Rotina <2A - procedência'!P35 -> 0.7777777778 | E34: ='CV Rotina <2A - procedência'!J35 -> 0.8888888889 | F34: ='CV Rotina <2A - procedência'!L35 -> 0.8611111111 | G34: ='CV Rotina <2A - procedência'!N35 -> 0.75 | H34: ='CV Rotina <2A - procedência'!Z35 -> 1.194444444 | I34: ='CV Rotina <2A - procedência'!R35 -> 0.7777777778 | J34: ='CV Rotina <2A - procedência'!T35 -> 0.9722222222 | K34: ='CV Rotina <2A - procedência'!X35 -> 0.7222222222 | L34: ='CV Rotina <2A - procedência'!AB35 -> 0.1666666667 | M34: =COUNTIF(C34:D34,">=0,9") -> 0 | N34: =COUNTIFS(E34:L34,">=0,95") -> 2 | O34: 2 | P34: 1
A35: Sul | B35: Irupi | C35: ='CV Rotina <2A - procedência'!H36 -> 0.5957446809 | D35: ='CV Rotina <2A - procedência'!P36 -> 1.340425532 | E35: ='CV Rotina <2A - procedência'!J36 -> 1.191489362 | F35: ='CV Rotina <2A - procedência'!L36 -> 1.191489362 | G35: ='CV Rotina <2A - procedência'!N36 -> 1.446808511 | H35: ='CV Rotina <2A - procedência'!Z36 -> 1.659574468 | I35: ='CV Rotina <2A - procedência'!R36 -> 1.29787234 | J35: ='CV Rotina <2A - procedência'!T36 -> 0.9361702128 | K35: ='CV Rotina <2A - procedência'!X36 -> 0.914893617 | L35: ='CV Rotina <2A - procedência'!AB36 -> 0.4042553191 | M35: 1 | N35: 5 | O35: 6 | P35: 4
A36: Metropolitana | B36: Itaguaçu | C36: ='CV Rotina <2A - procedência'!H37 -> 0.6333333333 | D36: ='CV Rotina <2A - procedência'!P37 -> 0.9333333333 | E36: ='CV Rotina <2A - procedência'!J37 -> 0.9666666667 | F36: ='CV Rotina <2A - procedência'!L37 -> 0.9666666667 | G36: ='CV Rotina <2A - procedência'!N37 -> 0.9333333333 | H36: ='CV Rotina <2A - procedência'!Z37 -> 1.3 | I36: ='CV Rotina <2A - procedência'!R37 -> 0.9666666667 | J36: ='CV Rotina <2A - procedência'!T37 -> 1.2 | K36: ='CV Rotina <2A - procedência'!X37 -> 1.233333333 | L36: ='CV Rotina <2A - procedência'!AB37 -> 1.3 | M36: 1 | N36: 7 | O36: 8 | P36: 3
A37: Sul | B37: Itapemirim | C37: ='CV Rotina <2A - procedência'!H38 -> 0.4084507042 | D37: ='CV Rotina <2A - procedência'!P38 -> 0.7535211268 | E37: ='CV Rotina <2A - procedência'!J38 -> 0.7253521127 | F37: ='CV Rotina <2A - procedência'!L38 -> 0.7042253521 | G37: ='CV Rotina <2A - procedência'!N38 -> 0.8873239437 | H37: ='CV Rotina <2A - procedência'!Z38 -> 0.9084507042 | I37: ='CV Rotina <2A - procedência'!R38 -> 0.6901408451 | J37: ='CV Rotina <2A - procedência'!T38 -> 0.5211267606 | K37: ='CV Rotina <2A - procedência'!X38 -> 0.6197183099 | L37: ='CV Rotina <2A - procedência'!AB38 -> 0.4929577465 | M37: 0 | N37: 0 | O37: 0 | P37: 0
A38: Metropolitana | B38: Itarana | C38: ='CV Rotina <2A - procedência'!H39 -> 1.03030303 | D38: ='CV Rotina <2A - procedência'!P39 -> 0.7575757576 | E38: ='CV Rotina <2A - procedência'!J39 -> 0.9393939394 | F38: ='CV Rotina <2A - procedência'!L39 -> 0.9393939394 | G38: ='CV Rotina <2A - procedência'!N39 -> 0.7575757576 | H38: ='CV Rotina <2A - procedência'!Z39 -> 1 | I38: ='CV Rotina <2A - procedência'!R39 -> 0.7878787879 | J38: ='CV Rotina <2A - procedência'!T39 -> 1.151515152 | K38: ='CV Rotina <2A - procedência'!X39 -> 0.2727272727 | L38: ='CV Rotina <2A - procedência'!AB39 -> 0.7878787879 | M38: 1 | N38: 2 | O38: 3 | P38: 1
A39: Sul | B39: Iúna | C39: ='CV Rotina <2A - procedência'!H40 -> 0.7281553398 | D39: ='CV Rotina <2A - procedência'!P40 -> 1.203883495 | E39: ='CV Rotina <2A - procedência'!J40 -> 1.174757282 | F39: ='CV Rotina <2A - procedência'!L40 -> 1.155339806 | G39: ='CV Rotina <2A - procedência'!N40 -> 1.213592233 | H39: ='CV Rotina <2A - procedência'!Z40 -> 1.184466019 | I39: ='CV Rotina <2A - procedência'!R40 -> 1.155339806 | J39: ='CV Rotina <2A - procedência'!T40 -> 1.029126214 | K39: ='CV Rotina <2A - procedência'!X40 -> 0.7378640777 | L39: ='CV Rotina <2A - procedência'!AB40 -> 0.4757281553 | M39: 1 | N39: 6 | O39: 7 | P39: 4
A40: Norte | B40: Jaguaré | C40: ='CV Rotina <2A - procedência'!H41 -> 0.701754386 | D40: ='CV Rotina <2A - procedência'!P41 -> 1.078947368 | E40: ='CV Rotina <2A - procedência'!J41 -> 1.035087719 | F40: ='CV Rotina <2A - procedência'!L41 -> 1.114035088 | G40: ='CV Rotina <2A - procedência'!N41 -> 1.078947368 | H40: ='CV Rotina <2A - procedência'!Z41 -> 0.9561403509 | I40: ='CV Rotina <2A - procedência'!R41 -> 0.9298245614 | J40: ='CV Rotina <2A - procedência'!T41 -> 0.9824561404 | K40: ='CV Rotina <2A - procedência'!X41 -> 0.7192982456 | L40: ='CV Rotina <2A - procedência'!AB41 -> 0.5614035088 | M40: 1 | N40: 5 | O40: 6 | P40: 4
A41: Sul | B41: Jerônimo Monteiro | C41: ='CV Rotina <2A - procedência'!H42 -> 0.1219512195 | D41: ='CV Rotina <2A - procedência'!P42 -> 0.9756097561 | E41: ='CV Rotina <2A - procedência'!J42 -> 1.170731707 | F41: ='CV Rotina <2A - procedência'!L42 -> 1.170731707 | G41: ='CV Rotina <2A - procedência'!N42 -> 0.9512195122 | H41: ='CV Rotina <2A - procedência'!Z42 -> 0.8780487805 | I41: ='CV Rotina <2A - procedência'!R42 -> 0.8780487805 | J41: ='CV Rotina <2A - procedência'!T42 -> 0.8536585366 | K41: ='CV Rotina <2A - procedência'!X42 -> 0.756097561 | L41: ='CV Rotina <2A - procedência'!AB42 -> 0.1707317073 | M41: 1 | N41: 3 | O41: 4 | P41: 3
A42: Metropolitana | B42: João Neiva | C42: ='CV Rotina <2A - procedência'!H43 -> 0.2682926829 | D42: ='CV Rotina <2A - procedência'!P43 -> 1.024390244 | E42: ='CV Rotina <2A - procedência'!J43 -> 1.12195122 | F42: ='CV Rotina <2A - procedência'!L43 -> 1.097560976 | G42: ='CV Rotina <2A - procedência'!N43 -> 1.048780488 | H42: ='CV Rotina <2A - procedência'!Z43 -> 1.219512195 | I42: ='CV Rotina <2A - procedência'!R43 -> 1.073170732 | J42: ='CV Rotina <2A - procedência'!T43 -> 1.146341463 | K42: ='CV Rotina <2A - procedência'!X43 -> 0.756097561 | L42: ='CV Rotina <2A - procedência'!AB43 -> 0.5365853659 | M42: 1 | N42: 6 | O42: 7 | P42: 4
A43: Metropolitana | B43: Laranja da Terra | C43: ='CV Rotina <2A - procedência'!H44 -> 0.6 | D43: ='CV Rotina <2A - procedência'!P44 -> 0.72 | E43: ='CV Rotina <2A - procedência'!J44 -> 1.12 | F43: ='CV Rotina <2A - procedência'!L44 -> 1.12 | G43: ='CV Rotina <2A - procedência'!N44 -> 0.68 | H43: ='CV Rotina <2A - procedência'!Z44 -> 1.68 | I43: ='CV Rotina <2A - procedência'!R44 -> 0.96 | J43: ='CV Rotina <2A - procedência'!T44 -> 1.48 | K43: ='CV Rotina <2A - procedência'!X44 -> 0.72 | L43: ='CV Rotina <2A - procedência'!AB44 -> 0.68 | M43: 0 | N43: 5 | O43: 5 | P43: 3
A44: Central | B44: Linhares | C44: ='CV Rotina <2A - procedência'!H45 -> 1.069444444 | D44: ='CV Rotina <2A - procedência'!P45 -> 0.8194444444 | E44: ='CV Rotina <2A - procedência'!J45 -> 0.8595679012 | F44: ='CV Rotina <2A - procedência'!L45 -> 0.8456790123 | G44: ='CV Rotina <2A - procedência'!N45 -> 0.8024691358 | H44: ='CV Rotina <2A - procedência'!Z45 -> 0.7885802469 | I44: ='CV Rotina <2A - procedência'!R45 -> 0.7453703704 | J44: ='CV Rotina <2A - procedência'!T45 -> 0.7175925926 | K44: ='CV Rotina <2A - procedência'!X45 -> 0.4660493827 | L44: ='CV Rotina <2A - procedência'!AB45 -> 0.5061728395 | M44: 1 | N44: 0 | O44: 1 | P44: 0
A45: Central | B45: Mantenópolis | C45: ='CV Rotina <2A - procedência'!H46 -> 0.5882352941 | D45: ='CV Rotina <2A - procedência'!P46 -> 0.8823529412 | E45: ='CV Rotina <2A - procedência'!J46 -> 1.176470588 | F45: ='CV Rotina <2A - procedência'!L46 -> 1.323529412 | G45: ='CV Rotina <2A - procedência'!N46 -> 0.9411764706 | H45: ='CV Rotina <2A - procedência'!Z46 -> 1.176470588 | I45: ='CV Rotina <2A - procedência'!R46 -> 0.9117647059 | J45: ='CV Rotina <2A - procedência'!T46 -> 1.029411765 | K45: ='CV Rotina <2A - procedência'!X46 -> 0.9705882353 | L45: ='CV Rotina <2A - procedência'!AB46 -> 0.7647058824 | M45: 0 | N45: 5 | O45: 5 | P45: 3
A46: Sul | B46: Marataízes | C46: ='CV Rotina <2A - procedência'!H47 -> 0.3717948718 | D46: ='CV Rotina <2A - procedência'!P47 -> 0.858974359 | E46: ='CV Rotina <2A - procedência'!J47 -> 0.8782051282 | F46: ='CV Rotina <2A - procedência'!L47 -> 0.9551282051 | G46: ='CV Rotina <2A - procedência'!N47 -> 0.8525641026 | H46: ='CV Rotina <2A - procedência'!Z47 -> 0.9294871795 | I46: ='CV Rotina <2A - procedência'!R47 -> 0.9358974359 | J46: ='CV Rotina <2A - procedência'!T47 -> 0.6794871795 | K46: ='CV Rotina <2A - procedência'!X47 -> 0.8525641026 | L46: ='CV Rotina <2A - procedência'!AB47 -> 0.3525641026 | M46: 0 | N46: 1 | O46: 1 | P46: 1
A47: Metropolitana | B47: Marechal Floriano | C47: ='CV Rotina <2A - procedência'!H48 -> 0.2307692308 | D47: ='CV Rotina <2A - procedência'!P48 -> 0.8615384615 | E47: ='CV Rotina <2A - procedência'!J48 -> 0.5692307692 | F47: ='CV Rotina <2A - procedência'!L48 -> 0.5692307692 | G47: ='CV Rotina <2A - procedência'!N48 -> 0.8769230769 | H47: ='CV Rotina <2A - procedência'!Z48 -> 0.8769230769 | I47: ='CV Rotina <2A - procedência'!R48 -> 0.6923076923 | J47: ='CV Rotina <2A - procedência'!T48 -> 0.7230769231 | K47: ='CV Rotina <2A - procedência'!X48 -> 0.6923076923 | L47: ='CV Rotina <2A - procedência'!AB48 -> 0.5846153846 | M47: 0 | N47: 0 | O47: 0 | P47: 0
A48: Central | B48: Marilândia | C48: ='CV Rotina <2A - procedência'!H49 -> 0.4642857143 | D48: ='CV Rotina <2A - procedência'!P49 -> 1.321428571 | E48: ='CV Rotina <2A - procedência'!J49 -> 1.285714286 | F48: ='CV Rotina <2A - procedência'!L49 -> 1.285714286 | G48: ='CV Rotina <2A - procedência'!N49 -> 1.178571429 | H48: ='CV Rotina <2A - procedência'!Z49 -> 1.428571429 | I48: ='CV Rotina <2A - procedência'!R49 -> 1.571428571 | J48: ='CV Rotina <2A - procedência'!T49 -> 1.107142857 | K48: ='CV Rotina <2A - procedência'!X49 -> 1.107142857 | L48: ='CV Rotina <2A - procedência'!AB49 -> 0.9285714286 | M48: 1 | N48: 7 | O48: 8 | P48: 4
A49: Sul | B49: Mimoso do Sul | C49: ='CV Rotina <2A - procedência'!H50 -> 0.1785714286 | D49: ='CV Rotina <2A - procedência'!P50 -> 0.8392857143 | E49: ='CV Rotina <2A - procedência'!J50 -> 0.9464285714 | F49: ='CV Rotina <2A - procedência'!L50 -> 0.9285714286 | G49: ='CV Rotina <2A - procedência'!N50 -> 0.875 | H49: ='CV Rotina <2A - procedência'!Z50 -> 1.017857143 | I49: ='CV Rotina <2A - procedência'!R50 -> 0.8571428571 | J49: ='CV Rotina <2A - procedência'!T50 -> 0.875 | K49: ='CV Rotina <2A - procedência'!X50 -> 0.6964285714 | L49: ='CV Rotina <2A - procedência'!AB50 -> 0.4821428571 | M49: 0 | N49: 1 | O49: 1 | P49: 1
A50: Norte | B50: Montanha | C50: ='CV Rotina <2A - procedência'!H51 -> 0.3272727273 | D50: ='CV Rotina <2A - procedência'!P51 -> 1.254545455 | E50: ='CV Rotina <2A - procedência'!J51 -> 1.636363636 | F50: ='CV Rotina <2A - procedência'!L51 -> 1.672727273 | G50: ='CV Rotina <2A - procedência'!N51 -> 1.236363636 | H50: ='CV Rotina <2A - procedência'!Z51 -> 1.272727273 | I50: ='CV Rotina <2A - procedência'!R51 -> 1.127272727 | J50: ='CV Rotina <2A - procedência'!T51 -> 1.145454545 | K50: ='CV Rotina <2A - procedência'!X51 -> 1.090909091 | L50: ='CV Rotina <2A - procedência'!AB51 -> 0.9272727273 | M50: 1 | N50: 7 | O50: 8 | P50: 4
A51: Norte | B51: Mucurici | C51: ='CV Rotina <2A - procedência'!H52 -> 0.25 | D51: ='CV Rotina <2A - procedência'!P52 -> 1.666666667 | E51: ='CV Rotina <2A - procedência'!J52 -> 1.916666667 | F51: ='CV Rotina <2A - procedência'!L52 -> 2.083333333 | G51: ='CV Rotina <2A - procedência'!N52 -> 1.75 | H51: ='CV Rotina <2A - procedência'!Z52 -> 1.666666667 | I51: ='CV Rotina <2A - procedência'!R52 -> 1.583333333 | J51: ='CV Rotina <2A - procedência'!T52 -> 1.916666667 | K51: ='CV Rotina <2A - procedência'!X52 -> 0.75 | L51: ='CV Rotina <2A - procedência'!AB52 -> 0.75 | M51: 1 | N51: 6 | O51: 7 | P51: 4
A52: Sul | B52: Muniz Freire | C52: ='CV Rotina <2A - procedência'!H53 -> 0.7674418605 | D52: ='CV Rotina <2A - procedência'!P53 -> 1.348837209 | E52: ='CV Rotina <2A - procedência'!J53 -> 1.325581395 | F52: ='CV Rotina <2A - procedência'!L53 -> 1.209302326 | G52: ='CV Rotina <2A - procedência'!N53 -> 1.302325581 | H52: ='CV Rotina <2A - procedência'!Z53 -> 1.697674419 | I52: ='CV Rotina <2A - procedência'!R53 -> 1.279069767 | J52: ='CV Rotina <2A - procedência'!T53 -> 1.418604651 | K52: ='CV Rotina <2A - procedência'!X53 -> 1.255813953 | L52: ='CV Rotina <2A - procedência'!AB53 -> 0.6046511628 | M52: 1 | N52: 7 | O52: 8 | P52: 4
A53: Sul | B53: Muqui | C53: ='CV Rotina <2A - procedência'!H54 -> 0.1590909091 | D53: ='CV Rotina <2A - procedência'!P54 -> 0.7727272727 | E53: ='CV Rotina <2A - procedência'!J54 -> 1.159090909 | F53: ='CV Rotina <2A - procedência'!L54 -> 1.181818182 | G53: ='CV Rotina <2A - procedência'!N54 -> 0.7727272727 | H53: ='CV Rotina <2A - procedência'!Z54 -> 0.8863636364 | I53: ='CV Rotina <2A - procedência'!R54 -> 1.022727273 | J53: ='CV Rotina <2A - procedência'!T54 -> 0.7954545455 | K53: ='CV Rotina <2A - procedência'!X54 -> 0.4772727273 | L53: ='CV Rotina <2A - procedência'!AB54 -> 0.4318181818 | M53: 0 | N53: 3 | O53: 3 | P53: 2
A54: Norte | B54: Nova Venécia | C54: ='CV Rotina <2A - procedência'!H55 -> 0.6012269939 | D54: ='CV Rotina <2A - procedência'!P55 -> 0.8588957055 | E54: ='CV Rotina <2A - procedência'!J55 -> 1.110429448 | F54: ='CV Rotina <2A - procedência'!L55 -> 1.116564417 | G54: ='CV Rotina <2A - procedência'!N55 -> 0.8895705521 | H54: ='CV Rotina <2A - procedência'!Z55 -> 1.030674847 | I54: ='CV Rotina <2A - procedência'!R55 -> 0.9079754601 | J54: ='CV Rotina <2A - procedência'!T55 -> 1.110429448 | K54: ='CV Rotina <2A - procedência'!X55 -> 0.773006135 | L54: ='CV Rotina <2A - procedência'!AB55 -> 0.6809815951 | M54: 0 | N54: 4 | O54: 4 | P54: 3
A55: Central | B55: Pancas | C55: ='CV Rotina <2A - procedência'!H56 -> 0.5238095238 | D55: ='CV Rotina <2A - procedência'!P56 -> 1.238095238 | E55: ='CV Rotina <2A - procedência'!J56 -> 1.30952381 | F55: ='CV Rotina <2A - procedência'!L56 -> 1.30952381 | G55: ='CV Rotina <2A - procedência'!N56 -> 1.261904762 | H55: ='CV Rotina <2A - procedência'!Z56 -> 1.095238095 | I55: ='CV Rotina <2A - procedência'!R56 -> 1.285714286 | J55: ='CV Rotina <2A - procedência'!T56 -> 1.166666667 | K55: ='CV Rotina <2A - procedência'!X56 -> 0.7619047619 | L55: ='CV Rotina <2A - procedência'!AB56 -> 1.238095238 | M55: 1 | N55: 7 | O55: 8 | P55: 4
A56: Norte | B56: Pedro Canário | C56: ='CV Rotina <2A - procedência'!H57 -> 0.03846153846 | D56: ='CV Rotina <2A - procedência'!P57 -> 0.8846153846 | E56: ='CV Rotina <2A - procedência'!J57 -> 1 | F56: ='CV Rotina <2A - procedência'!L57 -> 1.08974359 | G56: ='CV Rotina <2A - procedência'!N57 -> 0.9102564103 | H56: ='CV Rotina <2A - procedência'!Z57 -> 1.230769231 | I56: ='CV Rotina <2A - procedência'!R57 -> 0.8333333333 | J56: ='CV Rotina <2A - procedência'!T57 -> 1.064102564 | K56: ='CV Rotina <2A - procedência'!X57 -> 0.7051282051 | L56: ='CV Rotina <2A - procedência'!AB57 -> 0.7820512821 | M56: 0 | N56: 4 | O56: 4 | P56: 3
A57: Norte | B57: Pinheiros | C57: ='CV Rotina <2A - procedência'!H58 -> 0.05714285714 | D57: ='CV Rotina <2A - procedência'!P58 -> 1.071428571 | E57: ='CV Rotina <2A - procedência'!J58 -> 1.257142857 | F57: ='CV Rotina <2A - procedência'!L58 -> 1.242857143 | G57: ='CV Rotina <2A - procedência'!N58 -> 1.1 | H57: ='CV Rotina <2A - procedência'!Z58 -> 0.9285714286 | I57: ='CV Rotina <2A - procedência'!R58 -> 1.014285714 | J57: ='CV Rotina <2A - procedência'!T58 -> 1.085714286 | K57: ='CV Rotina <2A - procedência'!X58 -> 0.7428571429 | L57: ='CV Rotina <2A - procedência'!AB58 -> 0.4428571429 | M57: 1 | N57: 5 | O57: 6 | P57: 3
A58: Sul | B58: Piúma | C58: ='CV Rotina <2A - procedência'!H59 -> 0.5970149254 | D58: ='CV Rotina <2A - procedência'!P59 -> 0.8805970149 | E58: ='CV Rotina <2A - procedência'!J59 -> 1.074626866 | F58: ='CV Rotina <2A - procedência'!L59 -> 1.074626866 | G58: ='CV Rotina <2A - procedência'!N59 -> 0.9701492537 | H58: ='CV Rotina <2A - procedência'!Z59 -> 1.074626866 | I58: ='CV Rotina <2A - procedência'!R59 -> 0.7014925373 | J58: ='CV Rotina <2A - procedência'!T59 -> 0.7462686567 | K58: ='CV Rotina <2A - procedência'!X59 -> 0.8358208955 | L58: ='CV Rotina <2A - procedência'!AB59 -> 0.447761194 | M58: 0 | N58: 4 | O58: 4 | P58: 4
A59: Norte | B59: Ponto Belo | C59: ='CV Rotina <2A - procedência'!H60 -> 0.1578947368 | D59: ='CV Rotina <2A - procedência'!P60 -> 0.7368421053 | E59: ='CV Rotina <2A - procedência'!J60 -> 0.5789473684 | F59: ='CV Rotina <2A - procedência'!L60 -> 0.5263157895 | G59: ='CV Rotina <2A - procedência'!N60 -> 0.7368421053 | H59: ='CV Rotina <2A - procedência'!Z60 -> 0.7894736842 | I59: ='CV Rotina <2A - procedência'!R60 -> 0.3157894737 | J59: ='CV Rotina <2A - procedência'!T60 -> 0.8947368421 | K59: ='CV Rotina <2A - procedência'!X60 -> 0.4736842105 | L59: ='CV Rotina <2A - procedência'!AB60 -> 0.5789473684 | M59: 0 | N59: 0 | O59: 0 | P59: 0
A60: Sul | B60: Presidente Kennedy | C60: ='CV Rotina <2A - procedência'!H61 -> 0.08771929825 | D60: ='CV Rotina <2A - procedência'!P61 -> 0.5614035088 | E60: ='CV Rotina <2A - procedência'!J61 -> 0.701754386 | F60: ='CV Rotina <2A - procedência'!L61 -> 0.7719298246 | G60: ='CV Rotina <2A - procedência'!N61 -> 0.5789473684 | H60: ='CV Rotina <2A - procedência'!Z61 -> 1.122807018 | I60: ='CV Rotina <2A - procedência'!R61 -> 0.7719298246 | J60: ='CV Rotina <2A - procedência'!T61 -> 0.6842105263 | K60: ='CV Rotina <2A - procedência'!X61 -> 0.7543859649 | L60: ='CV Rotina <2A - procedência'!AB61 -> 0.2456140351 | M60: 0 | N60: 1 | O60: 1 | P60: 1
A61: Central | B61: Rio Bananal | C61: ='CV Rotina <2A - procedência'!H62 -> 0.2077922078 | D61: ='CV Rotina <2A - procedência'!P62 -> 0.8701298701 | E61: ='CV Rotina <2A - procedência'!J62 -> 0.987012987 | F61: ='CV Rotina <2A - procedência'!L62 -> 0.987012987 | G61: ='CV Rotina <2A - procedência'!N62 -> 0.8311688312 | H61: ='CV Rotina <2A - procedência'!Z62 -> 1.064935065 | I61: ='CV Rotina <2A - procedência'!R62 -> 0.8311688312 | J61: ='CV Rotina <2A - procedência'!T62 -> 1 | K61: ='CV Rotina <2A - procedência'!X62 -> 0.7922077922 | L61: ='CV Rotina <2A - procedência'!AB62 -> 0.7922077922 | M61: 0 | N61: 4 | O61: 4 | P61: 3
A62: Sul | B62: Rio Novo do Sul | C62: ='CV Rotina <2A - procedência'!H63 -> 0.2941176471 | D62: ='CV Rotina <2A - procedência'!P63 -> 0.9117647059 | E62: ='CV Rotina <2A - procedência'!J63 -> 1.117647059 | F62: ='CV Rotina <2A - procedência'!L63 -> 1.117647059 | G62: ='CV Rotina <2A - procedência'!N63 -> 0.9117647059 | H62: ='CV Rotina <2A - procedência'!Z63 -> 0.9117647059 | I62: ='CV Rotina <2A - procedência'!R63 -> 1.029411765 | J62: ='CV Rotina <2A - procedência'!T63 -> 0.9117647059 | K62: ='CV Rotina <2A - procedência'!X63 -> 0.6470588235 | L62: ='CV Rotina <2A - procedência'!AB63 -> 0.7352941176 | M62: 1 | N62: 3 | O62: 4 | P62: 2
A63: Metropolitana | B63: Santa Leopoldina | C63: ='CV Rotina <2A - procedência'!H64 -> 0.125 | D63: ='CV Rotina <2A - procedência'!P64 -> 0.84375 | E63: ='CV Rotina <2A - procedência'!J64 -> 0.78125 | F63: ='CV Rotina <2A - procedência'!L64 -> 0.78125 | G63: ='CV Rotina <2A - procedência'!N64 -> 0.8125 | H63: ='CV Rotina <2A - procedência'!Z64 -> 1.1875 | I63: ='CV Rotina <2A - procedência'!R64 -> 0.90625 | J63: ='CV Rotina <2A - procedência'!T64 -> 0.96875 | K63: ='CV Rotina <2A - procedência'!X64 -> 0.71875 | L63: ='CV Rotina <2A - procedência'!AB64 -> 0.3125 | M63: 0 | N63: 2 | O63: 2 | P63: 1
A64: Metropolitana | B64: Santa Maria de Jetibá | C64: ='CV Rotina <2A - procedência'!H65 -> 0.7300613497 | D64: ='CV Rotina <2A - procedência'!P65 -> 0.9509202454 | E64: ='CV Rotina <2A - procedência'!J65 -> 0.8466257669 | F64: ='CV Rotina <2A - procedência'!L65 -> 0.8466257669 | G64: ='CV Rotina <2A - procedência'!N65 -> 0.9386503067 | H64: ='CV Rotina <2A - procedência'!Z65 -> 1.098159509 | I64: ='CV Rotina <2A - procedência'!R65 -> 0.8650306748 | J64: ='CV Rotina <2A - procedência'!T65 -> 0.8773006135 | K64: ='CV Rotina <2A - procedência'!X65 -> 1.006134969 | L64: ='CV Rotina <2A - procedência'!AB65 -> 0.3619631902 | M64: 1 | N64: 2 | O64: 3 | P64: 1
A65: Metropolitana | B65: Santa Teresa | C65: ='CV Rotina <2A - procedência'!H66 -> 0.8412698413 | D65: ='CV Rotina <2A - procedência'!P66 -> 1.031746032 | E65: ='CV Rotina <2A - procedência'!J66 -> 1.253968254 | F65: ='CV Rotina <2A - procedência'!L66 -> 1.253968254 | G65: ='CV Rotina <2A - procedência'!N66 -> 1.015873016 | H65: ='CV Rotina <2A - procedência'!Z66 -> 1.111111111 | I65: ='CV Rotina <2A - procedência'!R66 -> 1.015873016 | J65: ='CV Rotina <2A - procedência'!T66 -> 0.8095238095 | K65: ='CV Rotina <2A - procedência'!X66 -> 0.7777777778 | L65: ='CV Rotina <2A - procedência'!AB66 -> 0.6984126984 | M65: 1 | N65: 5 | O65: 6 | P65: 4
A66: Central | B66: São Domingos do Norte | C66: ='CV Rotina <2A - procedência'!H67 -> 0.6086956522 | D66: ='CV Rotina <2A - procedência'!P67 -> 1.130434783 | E66: ='CV Rotina <2A - procedência'!J67 -> 1.217391304 | F66: ='CV Rotina <2A - procedência'!L67 -> 1.217391304 | G66: ='CV Rotina <2A - procedência'!N67 -> 1.130434783 | H66: ='CV Rotina <2A - procedência'!Z67 -> 0.8260869565 | I66: ='CV Rotina <2A - procedência'!R67 -> 1.217391304 | J66: ='CV Rotina <2A - procedência'!T67 -> 1.52173913 | K66: ='CV Rotina <2A - procedência'!X67 -> 0.5652173913 | L66: ='CV Rotina <2A - procedência'!AB67 -> 0.8260869565 | M66: =COUNTIF(C66:D66,">=0,9") -> 1 | N66: =COUNTIFS(E66:L66,">=0,95") -> 5 | O66: 6 | P66: 3
A67: Central | B67: São Gabriel da Palha | C67: ='CV Rotina <2A - procedência'!H68 -> 0.5340909091 | D67: ='CV Rotina <2A - procedência'!P68 -> 0.9886363636 | E67: ='CV Rotina <2A - procedência'!J68 -> 1.227272727 | F67: ='CV Rotina <2A - procedência'!L68 -> 1.25 | G67: ='CV Rotina <2A - procedência'!N68 -> 1.045454545 | H67: ='CV Rotina <2A - procedência'!Z68 -> 0.9886363636 | I67: ='CV Rotina <2A - procedência'!R68 -> 1.090909091 | J67: ='CV Rotina <2A - procedência'!T68 -> 1.022727273 | K67: ='CV Rotina <2A - procedência'!X68 -> 0.5909090909 | L67: ='CV Rotina <2A - procedência'!AB68 -> 0.7272727273 | M67: 1 | N67: 6 | O67: =SUM(M67:N67) -> 7 | P67: =COUNTIF(E67:H67,">=0,95") -> 4
A68: Sul | B68: São José do Calçado | C68: ='CV Rotina <2A - procedência'!H69 -> 1.130434783 | D68: ='CV Rotina <2A - procedência'!P69 -> 1.173913043 | E68: ='CV Rotina <2A - procedência'!J69 -> 1.695652174 | F68: ='CV Rotina <2A - procedência'!L69 -> 1.652173913 | G68: ='CV Rotina <2A - procedência'!N69 -> 1.260869565 | H68: ='CV Rotina <2A - procedência'!Z69 -> 1.565217391 | I68: ='CV Rotina <2A - procedência'!R69 -> 1.608695652 | J68: ='CV Rotina <2A - procedência'!T69 -> 0.9130434783 | K68: ='CV Rotina <2A - procedência'!X69 -> 1.173913043 | L68: ='CV Rotina <2A - procedência'!AB69 -> 0.7391304348 | M68: 2 | N68: 6 | O68: 8 | P68: 4
A69: Norte | B69: São Mateus | C69: ='CV Rotina <2A - procedência'!H70 -> 1.631313131 | D69: ='CV Rotina <2A - procedência'!P70 -> 0.9696969697 | E69: ='CV Rotina <2A - procedência'!J70 -> 1.166666667 | F69: ='CV Rotina <2A - procedência'!L70 -> 1.148989899 | G69: ='CV Rotina <2A - procedência'!N70 -> 1.037878788 | H69: ='CV Rotina <2A - procedência'!Z70 -> 0.9444444444 | I69: ='CV Rotina <2A - procedência'!R70 -> 0.9368686869 | J69: ='CV Rotina <2A - procedência'!T70 -> 0.8106060606 | K69: ='CV Rotina <2A - procedência'!X70 -> 0.7803030303 | L69: ='CV Rotina <2A - procedência'!AB70 -> 0.4873737374 | M69: 2 | N69: 3 | O69: 5 | P69: 3
A70: Central | B70: São Roque do Canaã | C70: ='CV Rotina <2A - procedência'!H71 -> 0.4 | D70: ='CV Rotina <2A - procedência'!P71 -> 0.45 | E70: ='CV Rotina <2A - procedência'!J71 -> 0.675 | F70: ='CV Rotina <2A - procedência'!L71 -> 0.65 | G70: ='CV Rotina <2A - procedência'!N71 -> 0.4 | H70: ='CV Rotina <2A - procedência'!Z71 -> 0.85 | I70: ='CV Rotina <2A - procedência'!R71 -> 0.6 | J70: ='CV Rotina <2A - procedência'!T71 -> 0.975 | K70: ='CV Rotina <2A - procedência'!X71 -> 0.275 | L70: ='CV Rotina <2A - procedência'!AB71 -> 0.525 | M70: 0 | N70: 1 | O70: 1 | P70: 0
A71: Metropolitana | B71: Serra | C71: ='CV Rotina <2A - procedência'!H72 -> 1.138990109 | D71: ='CV Rotina <2A - procedência'!P72 -> 0.7959396148 | E71: ='CV Rotina <2A - procedência'!J72 -> 0.8302967205 | F71: ='CV Rotina <2A - procedência'!L72 -> 0.8375845914 | G71: ='CV Rotina <2A - procedência'!N72 -> 0.8105153566 | H71: ='CV Rotina <2A - procedência'!Z72 -> 0.7948984904 | I71: ='CV Rotina <2A - procedência'!R72 -> 0.7719937533 | J71: ='CV Rotina <2A - procedência'!T72 -> 0.680895367 | K71: ='CV Rotina <2A - procedência'!X72 -> 0.477355544 | L71: ='CV Rotina <2A - procedência'!AB72 -> 0.3409682457 | M71: 1 | N71: 0 | O71: 1 | P71: 0
A72: Central | B72: Sooretama | C72: ='CV Rotina <2A - procedência'!H73 -> 0.03636363636 | D72: ='CV Rotina <2A - procedência'!P73 -> 0.8272727273 | E72: ='CV Rotina <2A - procedência'!J73 -> 0.9272727273 | F72: ='CV Rotina <2A - procedência'!L73 -> 0.9363636364 | G72: ='CV Rotina <2A - procedência'!N73 -> 0.8727272727 | H72: ='CV Rotina <2A - procedência'!Z73 -> 0.8545454545 | I72: ='CV Rotina <2A - procedência'!R73 -> 0.7545454545 | J72: ='CV Rotina <2A - procedência'!T73 -> 0.8181818182 | K72: ='CV Rotina <2A - procedência'!X73 -> 0.8 | L72: ='CV Rotina <2A - procedência'!AB73 -> 0.4909090909 | M72: 0 | N72: 0 | O72: 0 | P72: 0
A73: Sul | B73: Vargem Alta | C73: ='CV Rotina <2A - procedência'!H74 -> 0.0625 | D73: ='CV Rotina <2A - procedência'!P74 -> 0.96875 | E73: ='CV Rotina <2A - procedência'!J74 -> 0.875 | F73: ='CV Rotina <2A - procedência'!L74 -> 0.859375 | G73: ='CV Rotina <2A - procedência'!N74 -> 0.953125 | H73: ='CV Rotina <2A - procedência'!Z74 -> 0.984375 | I73: ='CV Rotina <2A - procedência'!R74 -> 0.953125 | J73: ='CV Rotina <2A - procedência'!T74 -> 0.921875 | K73: ='CV Rotina <2A - procedência'!X74 -> 0.890625 | L73: ='CV Rotina <2A - procedência'!AB74 -> 0.484375 | M73: 1 | N73: 3 | O73: 4 | P73: 2
A74: Metropolitana | B74: Venda Nova do Imigrante | C74: ='CV Rotina <2A - procedência'!H75 -> 1.146341463 | D74: ='CV Rotina <2A - procedência'!P75 -> 1.036585366 | E74: ='CV Rotina <2A - procedência'!J75 -> 1.231707317 | F74: ='CV Rotina <2A - procedência'!L75 -> 1.231707317 | G74: ='CV Rotina <2A - procedência'!N75 -> 1.073170732 | H74: ='CV Rotina <2A - procedência'!Z75 -> 1.280487805 | I74: ='CV Rotina <2A - procedência'!R75 -> 1.158536585 | J74: ='CV Rotina <2A - procedência'!T75 -> 1.280487805 | K74: ='CV Rotina <2A - procedência'!X75 -> 0.6585365854 | L74: ='CV Rotina <2A - procedência'!AB75 -> 0.4756097561 | M74: 2 | N74: 6 | O74: 8 | P74: 4
A75: Metropolitana | B75: Viana | C75: ='CV Rotina <2A - procedência'!H76 -> 0.1867219917 | D75: ='CV Rotina <2A - procedência'!P76 -> 0.8755186722 | E75: ='CV Rotina <2A - procedência'!J76 -> 0.9585062241 | F75: ='CV Rotina <2A - procedência'!L76 -> 0.9253112033 | G75: ='CV Rotina <2A - procedência'!N76 -> 0.9294605809 | H75: ='CV Rotina <2A - procedência'!Z76 -> 0.9004149378 | I75: ='CV Rotina <2A - procedência'!R76 -> 0.9502074689 | J75: ='CV Rotina <2A - procedência'!T76 -> 0.7095435685 | K75: ='CV Rotina <2A - procedência'!X76 -> 0.622406639 | L75: ='CV Rotina <2A - procedência'!AB76 -> 0.2863070539 | M75: 0 | N75: 2 | O75: 2 | P75: 1
A76: Norte | B76: Vila Pavão | C76: ='CV Rotina <2A - procedência'!H77 -> 0.6666666667 | D76: ='CV Rotina <2A - procedência'!P77 -> 1 | E76: ='CV Rotina <2A - procedência'!J77 -> 1.19047619 | F76: ='CV Rotina <2A - procedência'!L77 -> 1.142857143 | G76: ='CV Rotina <2A - procedência'!N77 -> 1 | H76: ='CV Rotina <2A - procedência'!Z77 -> 1.476190476 | I76: ='CV Rotina <2A - procedência'!R77 -> 1.047619048 | J76: ='CV Rotina <2A - procedência'!T77 -> 1.380952381 | K76: ='CV Rotina <2A - procedência'!X77 -> 0.8571428571 | L76: ='CV Rotina <2A - procedência'!AB77 -> 1.047619048 | M76: 1 | N76: 7 | O76: 8 | P76: 4
A77: Central | B77: Vila Valério | C77: ='CV Rotina <2A - procedência'!H78 -> 0.3703703704 | D77: ='CV Rotina <2A - procedência'!P78 -> 0.9074074074 | E77: ='CV Rotina <2A - procedência'!J78 -> 0.8703703704 | F77: ='CV Rotina <2A - procedência'!L78 -> 0.8888888889 | G77: ='CV Rotina <2A - procedência'!N78 -> 0.8333333333 | H77: ='CV Rotina <2A - procedência'!Z78 -> 0.8518518519 | I77: ='CV Rotina <2A - procedência'!R78 -> 0.7407407407 | J77: ='CV Rotina <2A - procedência'!T78 -> 1 | K77: ='CV Rotina <2A - procedência'!X78 -> 0.5925925926 | L77: ='CV Rotina <2A - procedência'!AB78 -> 0.8333333333 | M77: 1 | N77: 1 | O77: 2 | P77: 0
A78: Metropolitana | B78: Vila Velha | C78: ='CV Rotina <2A - procedência'!H79 -> 0.7173913043 | D78: ='CV Rotina <2A - procedência'!P79 -> 0.7948369565 | E78: ='CV Rotina <2A - procedência'!J79 -> 0.769701087 | F78: ='CV Rotina <2A - procedência'!L79 -> 0.7663043478 | G78: ='CV Rotina <2A - procedência'!N79 -> 0.7792119565 | H78: ='CV Rotina <2A - procedência'!Z79 -> 0.8125 | I78: ='CV Rotina <2A - procedência'!R79 -> 0.7717391304 | J78: ='CV Rotina <2A - procedência'!T79 -> 0.6752717391 | K78: ='CV Rotina <2A - procedência'!X79 -> 0.4673913043 | L78: ='CV Rotina <2A - procedência'!AB79 -> 0.4578804348 | M78: 0 | N78: 0 | O78: 0 | P78: 0
A79: Metropolitana | B79: Vitória | C79: ='CV Rotina <2A - procedência'!H80 -> 1.776923077 | D79: ='CV Rotina <2A - procedência'!P80 -> 0.8835164835 | E79: ='CV Rotina <2A - procedência'!J80 -> 1.052747253 | F79: ='CV Rotina <2A - procedência'!L80 -> 1.050549451 | G79: ='CV Rotina <2A - procedência'!N80 -> 0.8285714286 | H79: ='CV Rotina <2A - procedência'!Z80 -> 0.8747252747 | I79: ='CV Rotina <2A - procedência'!R80 -> 0.9395604396 | J79: ='CV Rotina <2A - procedência'!T80 -> 0.7615384615 | K79: ='CV Rotina <2A - procedência'!X80 -> 0.910989011 | L79: ='CV Rotina <2A - procedência'!AB80 -> 0.5571428571 | M79: 1 | N79: 2 | O79: 3 | P79: 2
B81: Total Norte | C81: ='CV Rotina <2A - procedência'!H82 -> 0.8303220738 | D81: ='CV Rotina <2A - procedência'!P82 -> 0.9882168107 | E81: ='CV Rotina <2A - procedência'!J82 -> 1.117046347 | F81: ='CV Rotina <2A - procedência'!L82 -> 1.133542812 | G81: ='CV Rotina <2A - procedência'!N82 -> 1.023566379 | H81: ='CV Rotina <2A - procedência'!Z82 -> 1.04084839 | I81: ='CV Rotina <2A - procedência'!R82 -> 0.948153967 | J81: ='CV Rotina <2A - procedência'!T82 -> 0.9976433621 | K81: ='CV Rotina <2A - procedência'!X82 -> 0.7816182247 | L81: ='CV Rotina <2A - procedência'!AB82 -> 0.6496465043 | M81: =COUNTIF(C81:D81,">=0,9") -> 1 | N81: =COUNTIFS(E81:L81,">=0,95") -> 5 | O81: =SUM(M81:N81) -> 6 | P81: =COUNTIF(E81:H81,">=0,95") -> 4
B82: Total Central | C82: ='CV Rotina <2A - procedência'!H83 -> 1.089651023 | D82: ='CV Rotina <2A - procedência'!P83 -> 0.9097472924 | E82: ='CV Rotina <2A - procedência'!J83 -> 0.9861612515 | F82: ='CV Rotina <2A - procedência'!L83 -> 0.9753309266 | G82: ='CV Rotina <2A - procedência'!N83 -> 0.90433213 | H82: ='CV Rotina <2A - procedência'!Z83 -> 0.9344163658 | I82: ='CV Rotina <2A - procedência'!R83 -> 0.8929001203 | J82: ='CV Rotina <2A - procedência'!T83 -> 0.8537906137 | K82: ='CV Rotina <2A - procedência'!X83 -> 0.5980746089 | L82: ='CV Rotina <2A - procedência'!AB83 -> 0.6161251504 | M82: =COUNTIF(C82:D82,">=0,9") -> 2 | N82: =COUNTIFS(E82:L82,">=0,95") -> 2 | O82: =SUM(M82:N82) -> 4 | P82: =COUNTIF(E82:H82,">=0,95") -> 2
B83: Total Metropolitana | C83: ='CV Rotina <2A - procedência'!H84 -> 0.9020026702 | D83: ='CV Rotina <2A - procedência'!P84 -> 0.8527369826 | E83: ='CV Rotina <2A - procedência'!J84 -> 0.8865153538 | F83: ='CV Rotina <2A - procedência'!L84 -> 0.8795727637 | G83: ='CV Rotina <2A - procedência'!N84 -> 0.8632843792 | H83: ='CV Rotina <2A - procedência'!Z84 -> 0.8950600801 | I83: ='CV Rotina <2A - procedência'!R84 -> 0.8540720961 | J83: ='CV Rotina <2A - procedência'!T84 -> 0.7566088117 | K83: ='CV Rotina <2A - procedência'!X84 -> 0.6280373832 | L83: ='CV Rotina <2A - procedência'!AB84 -> 0.4686248331 | M83: =COUNTIF(C83:D83,">=0,9") -> 1 | N83: =COUNTIFS(E83:L83,">=0,95") -> 0 | O83: =SUM(M83:N83) -> 1 | P83: =COUNTIF(E83:H83,">=0,95") -> 0
B84: Total Sul | C84: ='CV Rotina <2A - procedência'!H85 -> 0.9175059952 | D84: ='CV Rotina <2A - procedência'!P85 -> 0.9342925659 | E84: ='CV Rotina <2A - procedência'!J85 -> 0.9630695444 | F84: ='CV Rotina <2A - procedência'!L85 -> 0.9664268585 | G84: ='CV Rotina <2A - procedência'!N85 -> 0.9678657074 | H84: ='CV Rotina <2A - procedência'!Z85 -> 1.055155875 | I84: ='CV Rotina <2A - procedência'!R85 -> 0.9275779376 | J84: ='CV Rotina <2A - procedência'!T85 -> 0.835971223 | K84: ='CV Rotina <2A - procedência'!X85 -> 0.7616306954 | L84: ='CV Rotina <2A - procedência'!AB85 -> 0.4115107914 | M84: =COUNTIF(C84:D84,">=0,9") -> 2 | N84: =COUNTIFS(E84:L84,">=0,95") -> 4 | O84: =SUM(M84:N84) -> 6 | P84: =COUNTIF(E84:H84,">=0,95") -> 4
B85: Total Espírito Santo | C85: ='CV Rotina <2A - procedência'!H86 -> 0.9222222222 | D85: ='CV Rotina <2A - procedência'!P86 -> 0.8876898481 | E85: ='CV Rotina <2A - procedência'!J86 -> 0.935971223 | F85: ='CV Rotina <2A - procedência'!L86 -> 0.9326139089 | G85: ='CV Rotina <2A - procedência'!N86 -> 0.9024780176 | H85: ='CV Rotina <2A - procedência'!Z86 -> 0.9418065548 | I85: ='CV Rotina <2A - procedência'!R86 -> 0.8810551559 | J85: ='CV Rotina <2A - procedência'!T86 -> 0.8072741807 | K85: ='CV Rotina <2A - procedência'!X86 -> 0.6619504396 | L85: ='CV Rotina <2A - procedência'!AB86 -> 0.4971223022 | M85: =COUNTIF(C85:D85,">=0,9") -> 1 | N85: =COUNTIFS(E85:L85,">=0,95") -> 0 | O85: =SUM(M85:N85) -> 1 | P85: =COUNTIF(E85:H85,">=0,95") -> 0
A88: Fonte: SIPNI/DATASUS, em 09 de junho de 2023.*
A89: Vacina e Confia, em 12 de junho de 2023.**
A90: *Dados referentes às doses aplicadas pelas clínicas particulares de janeiro a maio de 2023
A91: **Dados referente às doses aplicadas no período de janeiro a maio de 2023
A92: Cobertura Calculada por município de vacinação
A93: 1 População proporcional extraída do MS/SVS/DASIS - Sistema de Informações sobre Nascidos Vivos - SINASC
A94: 2000 a 2021 – Estimativas preliminares elaboradas pelo Ministério da Saúde/SVS/DASNT/CGIAE
A95: Nota: Dados preliminares 2021

Sheet cálculos2 (hidden)
A1: Regional | B1: Município | C1: Cobertura Vacinal BCG | D1: Cobertura Vacinal Rotavírus | E1: Cobertura Vacinal Pentavalente | F1: Cobertura Vacinal Poliomielite | G1: Cobertura Vacinal Pneumo 10 | H1: Cobertura Vacinal Tríplice Viral | I1: Cobertura Vacinal Meningo C | J1: Cobertura Vacinal Febre Amarela | K1: Cobertura Vacinal Hepatite A | L1: Cobertura Varicela | M1: META 90% | N1: META 95% | O1: ATINGIRAM META | P1: PQA-VS
A2: Metropolitana | B2: Afonso Cláudio | C2: ='CV Rotina <2A - residência'!H3 -> 0.7363636364 | D2: ='CV Rotina <2A - residência'!P3 -> 0.8636363636 | E2: ='CV Rotina <2A - residência'!J3 -> 0.9454545455 | F2: ='CV Rotina <2A - residência'!L3 -> 0.9363636364 | G2: ='CV Rotina <2A - residência'!N3 -> 0.8454545455 | H2: ='CV Rotina <2A - residência'!Z3 -> 1.063636364 | I2: ='CV Rotina <2A - residência'!R3 -> 0.9545454545 | J2: ='CV Rotina <2A - residência'!T3 -> 0.7727272727 | K2: ='CV Rotina <2A - residência'!X3 -> 0.8090909091 | L2: ='CV Rotina <2A - residência'!AB3 -> 0.5909090909 | M2: =COUNTIF(C2:D2,">=0,9") -> 0 | N2: =COUNTIFS(E2:L2,">=0,95") -> 2 | O2: =SUM(M2:N2) -> 2 | P2: =COUNTIF(E2:H2,">=0,95") -> 1
A3: Norte | B3: Água Doce do Norte | C3: ='CV Rotina <2A - residência'!H4 -> 1.757575758 | D3: ='CV Rotina <2A - residência'!P4 -> 1.212121212 | E3: ='CV Rotina <2A - residência'!J4 -> 1.303030303 | F3: ='CV Rotina <2A - residência'!L4 -> 1.363636364 | G3: ='CV Rotina <2A - residência'!N4 -> 1.272727273 | H3: ='CV Rotina <2A - residência'!Z4 -> 0.9090909091 | I3: ='CV Rotina <2A - residência'!R4 -> 1.393939394 | J3: ='CV Rotina <2A - residência'!T4 -> 0.9090909091 | K3: ='CV Rotina <2A - residência'!X4 -> 0.8484848485 | L3: ='CV Rotina <2A - residência'!AB4 -> 0.5757575758 | M3: 2 | N3: 4 | O3: =SUM(M3:N3) -> 6 | P3: =COUNTIF(E3:H3,">=0,95") -> 3
A4: Central | B4: Águia Branca | C4: ='CV Rotina <2A - residência'!H5 -> 1.322580645 | D4: ='CV Rotina <2A - residência'!P5 -> 1.225806452 | E4: ='CV Rotina <2A - residência'!J5 -> 1.451612903 | F4: ='CV Rotina <2A - residência'!L5 -> 1.451612903 | G4: ='CV Rotina <2A - residência'!N5 -> 1.225806452 | H4: ='CV Rotina <2A - residência'!Z5 -> 0.9032258065 | I4: ='CV Rotina <2A - residência'!R5 -> 1.483870968 | J4: ='CV Rotina <2A - residência'!T5 -> 1.129032258 | K4: ='CV Rotina <2A - residência'!X5 -> 0.8064516129 | L4: ='CV Rotina <2A - residência'!AB5 -> 0.4516129032 | M4: 2 | N4: 5 | O4: 7 | P4: 3
A5: Sul | B5: Alegre | C5: ='CV Rotina <2A - residência'!H6 -> 0.9102564103 | D5: ='CV Rotina <2A - residência'!P6 -> 1 | E5: ='CV Rotina <2A - residência'!J6 -> 1.012820513 | F5: ='CV Rotina <2A - residência'!L6 -> 1.064102564 | G5: ='CV Rotina <2A - residência'!N6 -> 1.051282051 | H5: ='CV Rotina <2A - residência'!Z6 -> 1.025641026 | I5: ='CV Rotina <2A - residência'!R6 -> 0.9487179487 | J5: ='CV Rotina <2A - residência'!T6 -> 1.025641026 | K5: ='CV Rotina <2A - residência'!X6 -> 0.7051282051 | L5: ='CV Rotina <2A - residência'!AB6 -> 0.3974358974 | M5: 2 | N5: 5 | O5: 7 | P5: 4
A6: Sul | B6: Alfredo Chaves | C6: ='CV Rotina <2A - residência'!H7 -> 0.625 | D6: ='CV Rotina <2A - residência'!P7 -> 1.2 | E6: ='CV Rotina <2A - residência'!J7 -> 0.8 | F6: ='CV Rotina <2A - residência'!L7 -> 0.9 | G6: ='CV Rotina <2A - residência'!N7 -> 1.15 | H6: ='CV Rotina <2A - residência'!Z7 -> 0.925 | I6: ='CV Rotina <2A - residência'!R7 -> 1.025 | J6: ='CV Rotina <2A - residência'!T7 -> 0.925 | K6: ='CV Rotina <2A - residência'!X7 -> 0.725 | L6: ='CV Rotina <2A - residência'!AB7 -> 0.45 | M6: 1 | N6: 2 | O6: 3 | P6: 1
A7: Central | B7: Alto Rio Novo | C7: ='CV Rotina <2A - residência'!H8 -> 0.6666666667 | D7: ='CV Rotina <2A - residência'!P8 -> 0.9583333333 | E7: ='CV Rotina <2A - residência'!J8 -> 1.083333333 | F7: ='CV Rotina <2A - residência'!L8 -> 1.083333333 | G7: ='CV Rotina <2A - residência'!N8 -> 0.9583333333 | H7: ='CV Rotina <2A - residência'!Z8 -> 0.9583333333 | I7: ='CV Rotina <2A - residência'!R8 -> 1 | J7: ='CV Rotina <2A - residência'!T8 -> 0.625 | K7: ='CV Rotina <2A - residência'!X8 -> 0.7083333333 | L7: ='CV Rotina <2A - residência'!AB8 -> 0.4166666667 | M7: 1 | N7: 5 | O7: 6 | P7: 4
A8: Sul | B8: Anchieta | C8: ='CV Rotina <2A - residência'!H9 -> 0.9761904762 | D8: ='CV Rotina <2A - residência'!P9 -> 1.30952381 | E8: ='CV Rotina <2A - residência'!J9 -> 1.095238095 | F8: ='CV Rotina <2A - residência'!L9 -> 1.130952381 | G8: ='CV Rotina <2A - residência'!N9 -> 1.297619048 | H8: ='CV Rotina <2A - residência'!Z9 -> 1.166666667 | I8: ='CV Rotina <2A - residência'!R9 -> 1.19047619 | J8: ='CV Rotina <2A - residência'!T9 -> 0.9761904762 | K8: ='CV Rotina <2A - residência'!X9 -> 1 | L8: ='CV Rotina <2A - residência'!AB9 -> 0.5595238095 | M8: 2 | N8: 7 | O8: 9 | P8: 4
A9: Sul | B9: Apiacá | C9: ='CV Rotina <2A - residência'!H10 -> 1.153846154 | D9: ='CV Rotina <2A - residência'!P10 -> 1.153846154 | E9: ='CV Rotina <2A - residência'!J10 -> 0.6923076923 | F9: ='CV Rotina <2A - residência'!L10 -> 0.6923076923 | G9: ='CV Rotina <2A - residência'!N10 -> 1.076923077 | H9: ='CV Rotina <2A - residência'!Z10 -> 0.7692307692 | I9: ='CV Rotina <2A - residência'!R10 -> 0.6923076923 | J9: ='CV Rotina <2A - residência'!T10 -> 1.384615385 | K9: ='CV Rotina <2A - residência'!X10 -> 0.3076923077 | L9: ='CV Rotina <2A - residência'!AB10 -> 0.1538461538 | M9: 2 | N9: 2 | O9: 4 | P9: 1
A10: Metropolitana | B10: Aracruz | C10: ='CV Rotina <2A - residência'!H11 -> 0.9464788732 | D10: ='CV Rotina <2A - residência'!P11 -> 0.9521126761 | E10: ='CV Rotina <2A - residência'!J11 -> 0.8901408451 | F10: ='CV Rotina <2A - residência'!L11 -> 0.8957746479 | G10: ='CV Rotina <2A - residência'!N11 -> 0.9633802817 | H10: ='CV Rotina <2A - residência'!Z11 -> 1.152112676 | I10: ='CV Rotina <2A - residência'!R11 -> 0.876056338 | J10: ='CV Rotina <2A - residência'!T11 -> 0.8281690141 | K10: ='CV Rotina <2A - residência'!X11 -> 0.8816901408 | L10: ='CV Rotina <2A - residência'!AB11 -> 0.7521126761 | M10: 2 | N10: 2 | O10: 4 | P10: 2
A11: Sul | B11: Atilio Vivacqua | C11: ='CV Rotina <2A - residência'!H12 -> 0.7567567568 | D11: ='CV Rotina <2A - residência'!P12 -> 0.8108108108 | E11: ='CV Rotina <2A - residência'!J12 -> 0.8108108108 | F11: ='CV Rotina <2A - residência'!L12 -> 0.7837837838 | G11: ='CV Rotina <2A - residência'!N12 -> 0.8108108108 | H11: ='CV Rotina <2A - residência'!Z12 -> 0.9189189189 | I11: ='CV Rotina <2A - residência'!R12 -> 0.7027027027 | J11: ='CV Rotina <2A - residência'!T12 -> 0.6756756757 | K11: ='CV Rotina <2A - residência'!X12 -> 0.7567567568 | L11: ='CV Rotina <2A - residência'!AB12 -> 0.5135135135 | M11: 0 | N11: 0 | O11: 0 | P11: 0
A12: Central | B12: Baixo Guandu | C12: ='CV Rotina <2A - residência'!H13 -> 1.157894737 | D12: ='CV Rotina <2A - residência'!P13 -> 1.328947368 | E12: ='CV Rotina <2A - residência'!J13 -> 1.328947368 | F12: ='CV Rotina <2A - residência'!L13 -> 1.328947368 | G12: ='CV Rotina <2A - residência'!N13 -> 1.368421053 | H12: ='CV Rotina <2A - residência'!Z13 -> 1.776315789 | I12: ='CV Rotina <2A - residência'!R13 -> 1.276315789 | J12: ='CV Rotina <2A - residência'!T13 -> 1.118421053 | K12: ='CV Rotina <2A - residência'!X13 -> 1.026315789 | L12: ='CV Rotina <2A - residência'!AB13 -> 0.9078947368 | M12: 2 | N12: 7 | O12: 9 | P12: 4
A13: Norte | B13: Barra de São Francisco | C13: ='CV Rotina <2A - residência'!H14 -> 0.9180327869 | D13: ='CV Rotina <2A - residência'!P14 -> 0.9672131148 | E13: ='CV Rotina <2A - residência'!J14 -> 0.9754098361 | F13: ='CV Rotina <2A - residência'!L14 -> 0.9836065574 | G13: ='CV Rotina <2A - residência'!N14 -> 0.9918032787 | H13: ='CV Rotina <2A - residência'!Z14 -> 1.098360656 | I13: ='CV Rotina <2A - residência'!R14 -> 0.9590163934 | J13: ='CV Rotina <2A - residência'!T14 -> 1.12295082 | K13: ='CV Rotina <2A - residência'!X14 -> 0.8442622951 | L13: ='CV Rotina <2A - residência'!AB14 -> 0.8278688525 | M13: 2 | N13: 6 | O13: 8 | P13: 4
A14: Norte | B14: Boa Esperança | C14: ='CV Rotina <2A - residência'!H15 -> 0.8518518519 | D14: ='CV Rotina <2A - residência'!P15 -> 0.9074074074 | E14: ='CV Rotina <2A - residência'!J15 -> 0.6481481481 | F14: ='CV Rotina <2A - residência'!L15 -> 0.7407407407 | G14: ='CV Rotina <2A - residência'!N15 -> 0.8888888889 | H14: ='CV Rotina <2A - residência'!Z15 -> 0.9259259259 | I14: ='CV Rotina <2A - residência'!R15 -> 0.8518518519 | J14: ='CV Rotina <2A - residência'!T15 -> 0.8518518519 | K14: ='CV Rotina <2A - residência'!X15 -> 0.7222222222 | L14: ='CV Rotina <2A - residência'!AB15 -> 0.6851851852 | M14: 1 | N14: 0 | O14: 1 | P14: 0
A15: Sul | B15: Bom Jesus do Norte | C15: ='CV Rotina <2A - residência'!H16 -> 0.9285714286 | D15: ='CV Rotina <2A - residência'!P16 -> 2.214285714 | E15: ='CV Rotina <2A - residência'!J16 -> 2.642857143 | F15: ='CV Rotina <2A - residência'!L16 -> 2.5 | G15: ='CV Rotina <2A - residência'!N16 -> 2.357142857 | H15: ='CV Rotina <2A - residência'!Z16 -> 1.714285714 | I15: ='CV Rotina <2A - residência'!R16 -> 2 | J15: ='CV Rotina <2A - residência'!T16 -> 2.142857143 | K15: ='CV Rotina <2A - residência'!X16 -> 0.2857142857 | L15: ='CV Rotina <2A - residência'!AB16 -> 0.2857142857 | M15: 2 | N15: 6 | O15: 8 | P15: 4
A16: Metropolitana | B16: Brejetuba | C16: ='CV Rotina <2A - residência'!H17 -> 1.230769231 | D16: ='CV Rotina <2A - residência'!P17 -> 1.205128205 | E16: ='CV Rotina <2A - residência'!J17 -> 1.205128205 | F16: ='CV Rotina <2A - residência'!L17 -> 1.205128205 | G16: ='CV Rotina <2A - residência'!N17 -> 1.230769231 | H16: ='CV Rotina <2A - residência'!Z17 -> 1.205128205 | I16: ='CV Rotina <2A - residência'!R17 -> 1.205128205 | J16: ='CV Rotina <2A - residência'!T17 -> 1.41025641 | K16: ='CV Rotina <2A - residência'!X17 -> 1.102564103 | L16: ='CV Rotina <2A - residência'!AB17 -> 0.8205128205 | M16: 2 | N16: 7 | O16: 9 | P16: 4
A17: Sul | B17: Cachoeiro de Itapemirim | C17: ='CV Rotina <2A - residência'!H18 -> 1.025039124 | D17: ='CV Rotina <2A - residência'!P18 -> 0.8169014085 | E17: ='CV Rotina <2A - residência'!J18 -> 0.8669796557 | F17: ='CV Rotina <2A - residência'!L18 -> 0.8528951487 | G17: ='CV Rotina <2A - residência'!N18 -> 0.8419405321 | H17: ='CV Rotina <2A - residência'!Z18 -> 0.9593114241 | I17: ='CV Rotina <2A - residência'!R18 -> 0.813771518 | J17: ='CV Rotina <2A - residência'!T18 -> 0.7887323944 | K17: ='CV Rotina <2A - residência'!X18 -> 0.7464788732 | L17: ='CV Rotina <2A - residência'!AB18 -> 0.3317683881 | M17: 1 | N17: 1 | O17: 2 | P17: 1
A18: Metropolitana | B18: Cariacica | C18: ='CV Rotina <2A - residência'!H19 -> 0.8690068493 | D18: ='CV Rotina <2A - residência'!P19 -> 0.8946917808 | E18: ='CV Rotina <2A - residência'!J19 -> 0.9503424658 | F18: ='CV Rotina <2A - residência'!L19 -> 0.926369863 | G18: ='CV Rotina <2A - residência'!N19 -> 0.9477739726 | H18: ='CV Rotina <2A - residência'!Z19 -> 0.9905821918 | I18: ='CV Rotina <2A - residência'!R19 -> 0.9280821918 | J18: ='CV Rotina <2A - residência'!T19 -> 0.7688356164 | K18: ='CV Rotina <2A - residência'!X19 -> 0.6395547945 | L18: ='CV Rotina <2A - residência'!AB19 -> 0.4469178082 | M18: 0 | N18: 2 | O18: 2 | P18: 2
A19: Sul | B19: Castelo | C19: ='CV Rotina <2A - residência'!H20 -> 0.72 | D19: ='CV Rotina <2A - residência'!P20 -> 0.76 | E19: ='CV Rotina <2A - residência'!J20 -> 0.776 | F19: ='CV Rotina <2A - residência'!L20 -> 0.768 | G19: ='CV Rotina <2A - residência'!N20 -> 0.792 | H19: ='CV Rotina <2A - residência'!Z20 -> 0.992 | I19: ='CV Rotina <2A - residência'!R20 -> 0.76 | J19: ='CV Rotina <2A - residência'!T20 -> 0.784 | K19: ='CV Rotina <2A - residência'!X20 -> 0.328 | L19: ='CV Rotina <2A - residência'!AB20 -> 0.424 | M19: 0 | N19: 1 | O19: 1 | P19: 1
A20: Central | B20: Colatina | C20: ='CV Rotina <2A - residência'!H21 -> 1.122222222 | D20: ='CV Rotina <2A - residência'!P21 -> 0.9361111111 | E20: ='CV Rotina <2A - residência'!J21 -> 1.016666667 | F20: ='CV Rotina <2A - residência'!L21 -> 0.975 | G20: ='CV Rotina <2A - residência'!N21 -> 0.9083333333 | H20: ='CV Rotina <2A - residência'!Z21 -> 0.95 | I20: ='CV Rotina <2A - residência'!R21 -> 0.95 | J20: ='CV Rotina <2A - residência'!T21 -> 0.8166666667 | K20: ='CV Rotina <2A - residência'!X21 -> 0.5638888889 | L20: ='CV Rotina <2A - residência'!AB21 -> 0.6083333333 | M20: 2 | N20: 4 | O20: 6 | P20: 3
A21: Norte | B21: Conceição da Barra | C21: ='CV Rotina <2A - residência'!H22 -> 0.6590909091 | D21: ='CV Rotina <2A - residência'!P22 -> 1.022727273 | E21: ='CV Rotina <2A - residência'!J22 -> 0.9659090909 | F21: ='CV Rotina <2A - residência'!L22 -> 1.011363636 | G21: ='CV Rotina <2A - residência'!N22 -> 1.090909091 | H21: ='CV Rotina <2A - residência'!Z22 -> 1.079545455 | I21: ='CV Rotina <2A - residência'!R22 -> 0.8977272727 | J21: ='CV Rotina <2A - residência'!T22 -> 1.136363636 | K21: ='CV Rotina <2A - residência'!X22 -> 0.6022727273 | L21: ='CV Rotina <2A - residência'!AB22 -> 0.6136363636 | M21: 1 | N21: 5 | O21: 6 | P21: 4
A22: Metropolitana | B22: Conceição do Castelo | C22: ='CV Rotina <2A - residência'!H23 -> 1.379310345 | D22: ='CV Rotina <2A - residência'!P23 -> 1.034482759 | E22: ='CV Rotina <2A - residência'!J23 -> 1 | F22: ='CV Rotina <2A - residência'!L23 -> 0.9655172414 | G22: ='CV Rotina <2A - residência'!N23 -> 1.103448276 | H22: ='CV Rotina <2A - residência'!Z23 -> 0.8965517241 | I22: ='CV Rotina <2A - residência'!R23 -> 1.103448276 | J22: ='CV Rotina <2A - residência'!T23 -> 1.275862069 | K22: ='CV Rotina <2A - residência'!X23 -> 1.034482759 | L22: ='CV Rotina <2A - residência'!AB23 -> 0.6206896552 | M22: 2 | N22: 6 | O22: 8 | P22: 3
A23: Sul | B23: Divino de São Lourenço | C23: ='CV Rotina <2A - residência'!H24 -> 2 | D23: ='CV Rotina <2A - residência'!P24 -> 2 | E23: ='CV Rotina <2A - residência'!J24 -> 2 | F23: ='CV Rotina <2A - residência'!L24 -> 2 | G23: ='CV Rotina <2A - residência'!N24 -> 2 | H23: ='CV Rotina <2A - residência'!Z24 -> 1.222222222 | I23: ='CV Rotina <2A - residência'!R24 -> 2.222222222 | J23: ='CV Rotina <2A - residência'!T24 -> 1.888888889 | K23: ='CV Rotina <2A - residência'!X24 -> 1.444444444 | L23: ='CV Rotina <2A - residência'!AB24 -> 0.6666666667 | M23: 2 | N23: 7 | O23: 9 | P23: 4
A24: Metropolitana | B24: Domingos Martins | C24: ='CV Rotina <2A - residência'!H25 -> 0.9042553191 | D24: ='CV Rotina <2A - residência'!P25 -> 0.9574468085 | E24: ='CV Rotina <2A - residência'!J25 -> 0.8617021277 | F24: ='CV Rotina <2A - residência'!L25 -> 0.8723404255 | G24: ='CV Rotina <2A - residência'!N25 -> 1 | H24: ='CV Rotina <2A - residência'!Z25 -> 1.14893617 | I24: ='CV Rotina <2A - residência'!R25 -> 0.9042553191 | J24: ='CV Rotina <2A - residência'!T25 -> 1.053191489 | K24: ='CV Rotina <2A - residência'!X25 -> 0.6808510638 | L24: ='CV Rotina <2A - residência'!AB25 -> 1.14893617 | M24: 2 | N24: 4 | O24: 6 | P24: 2
A25: Sul | B25: Dores do Rio Preto | C25: ='CV Rotina <2A - residência'!H26 -> 0.5 | D25: ='CV Rotina <2A - residência'!P26 -> 0.8571428571 | E25: ='CV Rotina <2A - residência'!J26 -> 0.7142857143 | F25: ='CV Rotina <2A - residência'!L26 -> 0.8214285714 | G25: ='CV Rotina <2A - residência'!N26 -> 0.9285714286 | H25: ='CV Rotina <2A - residência'!Z26 -> 0.7142857143 | I25: ='CV Rotina <2A - residência'!R26 -> 0.8571428571 | J25: ='CV Rotina <2A - residência'!T26 -> 0.8214285714 | K25: ='CV Rotina <2A - residência'!X26 -> 0.5357142857 | L25: ='CV Rotina <2A - residência'!AB26 -> 0.25 | M25: 0 | N25: 0 | O25: 0 | P25: 0
A26: Norte | B26: Ecoporanga | C26: ='CV Rotina <2A - residência'!H27 -> 1.604166667 | D26: ='CV Rotina <2A - residência'!P27 -> 1.166666667 | E26: ='CV Rotina <2A - residência'!J27 -> 1.4375 | F26: ='CV Rotina <2A - residência'!L27 -> 1.395833333 | G26: ='CV Rotina <2A - residência'!N27 -> 1.1875 | H26: ='CV Rotina <2A - residência'!Z27 -> 1.25 | I26: ='CV Rotina <2A - residência'!R27 -> 1.1875 | J26: ='CV Rotina <2A - residência'!T27 -> 1.3125 | K26: ='CV Rotina <2A - residência'!X27 -> 1.041666667 | L26: ='CV Rotina <2A - residência'!AB27 -> 1.145833333 | M26: 2 | N26: 8 | O26: 10 | P26: 4
A27: Metropolitana | B27: Fundão | C27: ='CV Rotina <2A - residência'!H28 -> 0.7413793103 | D27: ='CV Rotina <2A - residência'!P28 -> 0.9310344828 | E27: ='CV Rotina <2A - residência'!J28 -> 1.189655172 | F27: ='CV Rotina <2A - residência'!L28 -> 1.155172414 | G27: ='CV Rotina <2A - residência'!N28 -> 0.9482758621 | H27: ='CV Rotina <2A - residência'!Z28 -> 0.724137931 | I27: ='CV Rotina <2A - residência'!R28 -> 0.9655172414 | J27: ='CV Rotina <2A - residência'!T28 -> 0.9310344828 | K27: ='CV Rotina <2A - residência'!X28 -> 0.8103448276 | L27: ='CV Rotina <2A - residência'!AB28 -> 0.8448275862 | M27: 1 | N27: 3 | O27: 4 | P27: 2
A28: Central | B28: Governador Lindenberg | C28: ='CV Rotina <2A - residência'!H29 -> 0.7777777778 | D28: ='CV Rotina <2A - residência'!P29 -> 1.259259259 | E28: ='CV Rotina <2A - residência'!J29 -> 1.296296296 | F28: ='CV Rotina <2A - residência'!L29 -> 1.222222222 | G28: ='CV Rotina <2A - residência'!N29 -> 1.222222222 | H28: ='CV Rotina <2A - residência'!Z29 -> 0.9259259259 | I28: ='CV Rotina <2A - residência'!R29 -> 1.222222222 | J28: ='CV Rotina <2A - residência'!T29 -> 1.592592593 | K28: ='CV Rotina <2A - residência'!X29 -> 0.962962963 | L28: ='CV Rotina <2A - residência'!AB29 -> 0.9259259259 | M28: 1 | N28: 6 | O28: 7 | P28: 3
A29: Sul | B29: Guaçuí | C29: ='CV Rotina <2A - residência'!H30 -> 1.102564103 | D29: ='CV Rotina <2A - residência'!P30 -> 1.243589744 | E29: ='CV Rotina <2A - residência'!J30 -> 1.333333333 | F29: ='CV Rotina <2A - residência'!L30 -> 1.333333333 | G29: ='CV Rotina <2A - residência'!N30 -> 1.358974359 | H29: ='CV Rotina <2A - residência'!Z30 -> 1.397435897 | I29: ='CV Rotina <2A - residência'!R30 -> 1.256410256 | J29: ='CV Rotina <2A - residência'!T30 -> 1.012820513 | K29: ='CV Rotina <2A - residência'!X30 -> 1.192307692 | L29: ='CV Rotina <2A - residência'!AB30 -> 0.5384615385 | M29: 2 | N29: 7 | O29: 9 | P29: 4
A30: Metropolitana | B30: Guarapari | C30: ='CV Rotina <2A - residência'!H31 -> 0.8053097345 | D30: ='CV Rotina <2A - residência'!P31 -> 0.8252212389 | E30: ='CV Rotina <2A - residência'!J31 -> 0.8207964602 | F30: ='CV Rotina <2A - residência'!L31 -> 0.7765486726 | G30: ='CV Rotina <2A - residência'!N31 -> 0.8650442478 | H30: ='CV Rotina <2A - residência'!Z31 -> 0.7588495575 | I30: ='CV Rotina <2A - residência'!R31 -> 0.7831858407 | J30: ='CV Rotina <2A - residência'!T31 -> 0.7168141593 | K30: ='CV Rotina <2A - residência'!X31 -> 0.6283185841 | L30: ='CV Rotina <2A - residência'!AB31 -> 0.435840708 | M30: 0 | N30: 0 | O30: 0 | P30: 0
A31: Metropolitana | B31: Ibatiba | C31: ='CV Rotina <2A - residência'!H32 -> 1.378787879 | D31: ='CV Rotina <2A - residência'!P32 -> 1.378787879 | E31: ='CV Rotina <2A - residência'!J32 -> 1.424242424 | F31: ='CV Rotina <2A - residência'!L32 -> 1.424242424 | G31: ='CV Rotina <2A - residência'!N32 -> 1.560606061 | H31: ='CV Rotina <2A - residência'!Z32 -> 1.212121212 | I31: ='CV Rotina <2A - residência'!R32 -> 1.590909091 | J31: ='CV Rotina <2A - residência'!T32 -> 1.257575758 | K31: ='CV Rotina <2A - residência'!X32 -> 0.9545454545 | L31: ='CV Rotina <2A - residência'!AB32 -> 0.4696969697 | M31: 2 | N31: 7 | O31: 9 | P31: 4
A32: Metropolitana | B32: Ibiraçu | C32: ='CV Rotina <2A - residência'!H33 -> 0.8292682927 | D32: ='CV Rotina <2A - residência'!P33 -> 0.6585365854 | E32: ='CV Rotina <2A - residência'!J33 -> 0.8048780488 | F32: ='CV Rotina <2A - residência'!L33 -> 0.756097561 | G32: ='CV Rotina <2A - residência'!N33 -> 0.7073170732 | H32: ='CV Rotina <2A - residência'!Z33 -> 0.7073170732 | I32: ='CV Rotina <2A - residência'!R33 -> 0.8048780488 | J32: ='CV Rotina <2A - residência'!T33 -> 0.756097561 | K32: ='CV Rotina <2A - residência'!X33 -> 0.4634146341 | L32: ='CV Rotina <2A - residência'!AB33 -> 0.3658536585 | M32: 0 | N32: 0 | O32: 0 | P32: 0
A33: Sul | B33: Ibitirama | C33: ='CV Rotina <2A - residência'!H34 -> 1.222222222 | D33: ='CV Rotina <2A - residência'!P34 -> 1.185185185 | E33: ='CV Rotina <2A - residência'!J34 -> 1 | F33: ='CV Rotina <2A - residência'!L34 -> 1.037037037 | G33: ='CV Rotina <2A - residência'!N34 -> 1.148148148 | H33: ='CV Rotina <2A - residência'!Z34 -> 1.333333333 | I33: ='CV Rotina <2A - residência'!R34 -> 0.8518518519 | J33: ='CV Rotina <2A - residência'!T34 -> 0.7777777778 | K33: ='CV Rotina <2A - residência'!X34 -> 0.7777777778 | L33: ='CV Rotina <2A - residência'!AB34 -> 0.7037037037 | M33: 2 | N33: 4 | O33: 6 | P33: 4
A34: Sul | B34: Iconha | C34: ='CV Rotina <2A - residência'!H35 -> 0.5555555556 | D34: ='CV Rotina <2A - residência'!P35 -> 0.8611111111 | E34: ='CV Rotina <2A - residência'!J35 -> 0.8611111111 | F34: ='CV Rotina <2A - residência'!L35 -> 0.8055555556 | G34: ='CV Rotina <2A - residência'!N35 -> 0.8333333333 | H34: ='CV Rotina <2A - residência'!Z35 -> 1.25 | I34: ='CV Rotina <2A - residência'!R35 -> 0.6944444444 | J34: ='CV Rotina <2A - residência'!T35 -> 0.8611111111 | K34: ='CV Rotina <2A - residência'!X35 -> 0.75 | L34: ='CV Rotina <2A - residência'!AB35 -> 0.3055555556 | M34: 0 | N34: 1 | O34: =SUM(M34:N34) -> 1 | P34: 1
A35: Sul | B35: Irupi | C35: ='CV Rotina <2A - residência'!H36 -> 0.8510638298 | D35: ='CV Rotina <2A - residência'!P36 -> 1.276595745 | E35: ='CV Rotina <2A - residência'!J36 -> 1.127659574 | F35: ='CV Rotina <2A - residência'!L36 -> 1.127659574 | G35: ='CV Rotina <2A - residência'!N36 -> 1.382978723 | H35: ='CV Rotina <2A - residência'!Z36 -> 1.617021277 | I35: ='CV Rotina <2A - residência'!R36 -> 1.234042553 | J35: ='CV Rotina <2A - residência'!T36 -> 0.9574468085 | K35: ='CV Rotina <2A - residência'!X36 -> 0.829787234 | L35: ='CV Rotina <2A - residência'!AB36 -> 0.3829787234 | M35: 1 | N35: 6 | O35: 7 | P35: 4
A36: Metropolitana | B36: Itaguaçu | C36: ='CV Rotina <2A - residência'!H37 -> 0.9666666667 | D36: ='CV Rotina <2A - residência'!P37 -> 0.9333333333 | E36: ='CV Rotina <2A - residência'!J37 -> 1.033333333 | F36: ='CV Rotina <2A - residência'!L37 -> 1 | G36: ='CV Rotina <2A - residência'!N37 -> 0.9333333333 | H36: ='CV Rotina <2A - residência'!Z37 -> 1.333333333 | I36: ='CV Rotina <2A - residência'!R37 -> 1.033333333 | J36: ='CV Rotina <2A - residência'!T37 -> 1.133333333 | K36: ='CV Rotina <2A - residência'!X37 -> 1.133333333 | L36: ='CV Rotina <2A - residência'!AB37 -> 1.3 | M36: 2 | N36: 7 | O36: 9 | P36: 3
A37: Sul | B37: Itapemirim | C37: ='CV Rotina <2A - residência'!H38 -> 0.7464788732 | D37: ='CV Rotina <2A - residência'!P38 -> 0.7816901408 | E37: ='CV Rotina <2A - residência'!J38 -> 0.7605633803 | F37: ='CV Rotina <2A - residência'!L38 -> 0.7464788732 | G37: ='CV Rotina <2A - residência'!N38 -> 0.9225352113 | H37: ='CV Rotina <2A - residência'!Z38 -> 0.9295774648 | I37: ='CV Rotina <2A - residência'!R38 -> 0.7535211268 | J37: ='CV Rotina <2A - residência'!T38 -> 0.6126760563 | K37: ='CV Rotina <2A - residência'!X38 -> 0.7394366197 | L37: ='CV Rotina <2A - residência'!AB38 -> 0.4788732394 | M37: 0 | N37: 0 | O37: 0 | P37: 0
A38: Metropolitana | B38: Itarana | C38: ='CV Rotina <2A - residência'!H39 -> 1.181818182 | D38: ='CV Rotina <2A - residência'!P39 -> 0.696969697 | E38: ='CV Rotina <2A - residência'!J39 -> 0.9393939394 | F38: ='CV Rotina <2A - residência'!L39 -> 0.9393939394 | G38: ='CV Rotina <2A - residência'!N39 -> 0.7272727273 | H38: ='CV Rotina <2A - residência'!Z39 -> 0.9090909091 | I38: ='CV Rotina <2A - residência'!R39 -> 0.7878787879 | J38: ='CV Rotina <2A - residência'!T39 -> 1.181818182 | K38: ='CV Rotina <2A - residência'!X39 -> 0.4848484848 | L38: ='CV Rotina <2A - residência'!AB39 -> 0.7878787879 | M38: 1 | N38: 1 | O38: 2 | P38: 0
A39: Sul | B39: Iúna | C39: ='CV Rotina <2A - residência'!H40 -> 0.7184466019 | D39: ='CV Rotina <2A - residência'!P40 -> 1.213592233 | E39: ='CV Rotina <2A - residência'!J40 -> 1.165048544 | F39: ='CV Rotina <2A - residência'!L40 -> 1.13592233 | G39: ='CV Rotina <2A - residência'!N40 -> 1.233009709 | H39: ='CV Rotina <2A - residência'!Z40 -> 1.223300971 | I39: ='CV Rotina <2A - residência'!R40 -> 1.145631068 | J39: ='CV Rotina <2A - residência'!T40 -> 1.038834951 | K39: ='CV Rotina <2A - residência'!X40 -> 0.7669902913 | L39: ='CV Rotina <2A - residência'!AB40 -> 0.4854368932 | M39: 1 | N39: 6 | O39: 7 | P39: 4
A40: Norte | B40: Jaguaré | C40: ='CV Rotina <2A - residência'!H41 -> 0.8947368421 | D40: ='CV Rotina <2A - residência'!P41 -> 1.061403509 | E40: ='CV Rotina <2A - residência'!J41 -> 1.105263158 | F40: ='CV Rotina <2A - residência'!L41 -> 1.192982456 | G40: ='CV Rotina <2A - residência'!N41 -> 1.070175439 | H40: ='CV Rotina <2A - residência'!Z41 -> 0.8947368421 | I40: ='CV Rotina <2A - residência'!R41 -> 0.9298245614 | J40: ='CV Rotina <2A - residência'!T41 -> 0.9736842105 | K40: ='CV Rotina <2A - residência'!X41 -> 0.6754385965 | L40: ='CV Rotina <2A - residência'!AB41 -> 0.5526315789 | M40: 1 | N40: 4 | O40: 5 | P40: 3
A41: Sul | B41: Jerônimo Monteiro | C41: ='CV Rotina <2A - residência'!H42 -> 0.8292682927 | D41: ='CV Rotina <2A - residência'!P42 -> 1.073170732 | E41: ='CV Rotina <2A - residência'!J42 -> 1.146341463 | F41: ='CV Rotina <2A - residência'!L42 -> 1.146341463 | G41: ='CV Rotina <2A - residência'!N42 -> 1.073170732 | H41: ='CV Rotina <2A - residência'!Z42 -> 0.9024390244 | I41: ='CV Rotina <2A - residência'!R42 -> 0.8780487805 | J41: ='CV Rotina <2A - residência'!T42 -> 0.8780487805 | K41: ='CV Rotina <2A - residência'!X42 -> 0.6829268293 | L41: ='CV Rotina <2A - residência'!AB42 -> 0.1951219512 | M41: 1 | N41: 3 | O41: 4 | P41: 3
A42: Metropolitana | B42: João Neiva | C42: ='CV Rotina <2A - residência'!H43 -> 0.756097561 | D42: ='CV Rotina <2A - residência'!P43 -> 1.097560976 | E42: ='CV Rotina <2A - residência'!J43 -> 1.073170732 | F42: ='CV Rotina <2A - residência'!L43 -> 1.024390244 | G42: ='CV Rotina <2A - residência'!N43 -> 1.097560976 | H42: ='CV Rotina <2A - residência'!Z43 -> 1.219512195 | I42: ='CV Rotina <2A - residência'!R43 -> 1.048780488 | J42: ='CV Rotina <2A - residência'!T43 -> 1.073170732 | K42: ='CV Rotina <2A - residência'!X43 -> 0.6341463415 | L42: ='CV Rotina <2A - residência'!AB43 -> 0.487804878 | M42: 1 | N42: 6 | O42: 7 | P42: 4
A43: Metropolitana | B43: Laranja da Terra | C43: ='CV Rotina <2A - residência'!H44 -> 0.76 | D43: ='CV Rotina <2A - residência'!P44 -> 0.6 | E43: ='CV Rotina <2A - residência'!J44 -> 0.92 | F43: ='CV Rotina <2A - residência'!L44 -> 0.92 | G43: ='CV Rotina <2A - residência'!N44 -> 0.56 | H43: ='CV Rotina <2A - residência'!Z44 -> 1.64 | I43: ='CV Rotina <2A - residência'!R44 -> 0.76 | J43: ='CV Rotina <2A - residência'!T44 -> 1.44 | K43: ='CV Rotina <2A - residência'!X44 -> 0.68 | L43: ='CV Rotina <2A - residência'!AB44 -> 0.64 | M43: 0 | N43: 2 | O43: 2 | P43: 1
A44: Central | B44: Linhares | C44: ='CV Rotina <2A - residência'!H45 -> 0.8117283951 | D44: ='CV Rotina <2A - residência'!P45 -> 0.8487654321 | E44: ='CV Rotina <2A - residência'!J45 -> 0.875 | F44: ='CV Rotina <2A - residência'!L45 -> 0.8657407407 | G44: ='CV Rotina <2A - residência'!N45 -> 0.8194444444 | H44: ='CV Rotina <2A - residência'!Z45 -> 0.8348765432 | I44: ='CV Rotina <2A - residência'!R45 -> 0.7654320988 | J44: ='CV Rotina <2A - residência'!T45 -> 0.7484567901 | K44: ='CV Rotina <2A - residência'!X45 -> 0.4861111111 | L44: ='CV Rotina <2A - residência'!AB45 -> 0.5046296296 | M44: 0 | N44: 0 | O44: 0 | P44: 0
A45: Central | B45: Mantenópolis | C45: ='CV Rotina <2A - residência'!H46 -> 1.147058824 | D45: ='CV Rotina <2A - residência'!P46 -> 0.8823529412 | E45: ='CV Rotina <2A - residência'!J46 -> 1.088235294 | F45: ='CV Rotina <2A - residência'!L46 -> 1.235294118 | G45: ='CV Rotina <2A - residência'!N46 -> 0.9411764706 | H45: ='CV Rotina <2A - residência'!Z46 -> 1.117647059 | I45: ='CV Rotina <2A - residência'!R46 -> 0.9117647059 | J45: ='CV Rotina <2A - residência'!T46 -> 1.058823529 | K45: ='CV Rotina <2A - residência'!X46 -> 0.9117647059 | L45: ='CV Rotina <2A - residência'!AB46 -> 0.7941176471 | M45: 1 | N45: 4 | O45: 5 | P45: 3
A46: Sul | B46: Marataízes | C46: ='CV Rotina <2A - residência'!H47 -> 0.8333333333 | D46: ='CV Rotina <2A - residência'!P47 -> 0.8333333333 | E46: ='CV Rotina <2A - residência'!J47 -> 0.7756410256 | F46: ='CV Rotina <2A - residência'!L47 -> 0.8525641026 | G46: ='CV Rotina <2A - residência'!N47 -> 0.8269230769 | H46: ='CV Rotina <2A - residência'!Z47 -> 0.8269230769 | I46: ='CV Rotina <2A - residência'!R47 -> 0.8717948718 | J46: ='CV Rotina <2A - residência'!T47 -> 0.608974359 | K46: ='CV Rotina <2A - residência'!X47 -> 0.7051282051 | L46: ='CV Rotina <2A - residência'!AB47 -> 0.3012820513 | M46: 0 | N46: 0 | O46: 0 | P46: 0
A47: Metropolitana | B47: Marechal Floriano | C47: ='CV Rotina <2A - residência'!H48 -> 0.7384615385 | D47: ='CV Rotina <2A - residência'!P48 -> 0.8461538462 | E47: ='CV Rotina <2A - residência'!J48 -> 0.6 | F47: ='CV Rotina <2A - residência'!L48 -> 0.6 | G47: ='CV Rotina <2A - residência'!N48 -> 0.8615384615 | H47: ='CV Rotina <2A - residência'!Z48 -> 0.8769230769 | I47: ='CV Rotina <2A - residência'!R48 -> 0.6923076923 | J47: ='CV Rotina <2A - residência'!T48 -> 0.6769230769 | K47: ='CV Rotina <2A - residência'!X48 -> 0.6461538462 | L47: ='CV Rotina <2A - residência'!AB48 -> 0.5230769231 | M47: 0 | N47: 0 | O47: 0 | P47: 0
A48: Central | B48: Marilândia | C48: ='CV Rotina <2A - residência'!H49 -> 1.142857143 | D48: ='CV Rotina <2A - residência'!P49 -> 1.357142857 | E48: ='CV Rotina <2A - residência'!J49 -> 1.642857143 | F48: ='CV Rotina <2A - residência'!L49 -> 1.642857143 | G48: ='CV Rotina <2A - residência'!N49 -> 1.321428571 | H48: ='CV Rotina <2A - residência'!Z49 -> 1.5 | I48: ='CV Rotina <2A - residência'!R49 -> 1.75 | J48: ='CV Rotina <2A - residência'!T49 -> 1.178571429 | K48: ='CV Rotina <2A - residência'!X49 -> 1.214285714 | L48: ='CV Rotina <2A - residência'!AB49 -> 1.071428571 | M48: 2 | N48: 8 | O48: 10 | P48: 4
A49: Sul | B49: Mimoso do Sul | C49: ='CV Rotina <2A - residência'!H50 -> 0.875 | D49: ='CV Rotina <2A - residência'!P50 -> 0.9107142857 | E49: ='CV Rotina <2A - residência'!J50 -> 1.035714286 | F49: ='CV Rotina <2A - residência'!L50 -> 1.035714286 | G49: ='CV Rotina <2A - residência'!N50 -> 0.9642857143 | H49: ='CV Rotina <2A - residência'!Z50 -> 1.071428571 | I49: ='CV Rotina <2A - residência'!R50 -> 1.017857143 | J49: ='CV Rotina <2A - residência'!T50 -> 0.875 | K49: ='CV Rotina <2A - residência'!X50 -> 0.7857142857 | L49: ='CV Rotina <2A - residência'!AB50 -> 0.5357142857 | M49: 1 | N49: 5 | O49: 6 | P49: 4
A50: Norte | B50: Montanha | C50: ='CV Rotina <2A - residência'!H51 -> 0.7272727273 | D50: ='CV Rotina <2A - residência'!P51 -> 1.236363636 | E50: ='CV Rotina <2A - residência'!J51 -> 1.581818182 | F50: ='CV Rotina <2A - residência'!L51 -> 1.618181818 | G50: ='CV Rotina <2A - residência'!N51 -> 1.218181818 | H50: ='CV Rotina <2A - residência'!Z51 -> 1.163636364 | I50: ='CV Rotina <2A - residência'!R51 -> 1.072727273 | J50: ='CV Rotina <2A - residência'!T51 -> 1.072727273 | K50: ='CV Rotina <2A - residência'!X51 -> 1.018181818 | L50: ='CV Rotina <2A - residência'!AB51 -> 0.9272727273 | M50: 1 | N50: 7 | O50: 8 | P50: 4
A51: Norte | B51: Mucurici | C51: ='CV Rotina <2A - residência'!H52 -> 0.9166666667 | D51: ='CV Rotina <2A - residência'!P52 -> 1.75 | E51: ='CV Rotina <2A - residência'!J52 -> 1.75 | F51: ='CV Rotina <2A - residência'!L52 -> 1.916666667 | G51: ='CV Rotina <2A - residência'!N52 -> 1.75 | H51: ='CV Rotina <2A - residência'!Z52 -> 1.75 | I51: ='CV Rotina <2A - residência'!R52 -> 1.416666667 | J51: ='CV Rotina <2A - residência'!T52 -> 1.75 | K51: ='CV Rotina <2A - residência'!X52 -> 0.8333333333 | L51: ='CV Rotina <2A - residência'!AB52 -> 0.8333333333 | M51: 2 | N51: 6 | O51: 8 | P51: 4
A52: Sul | B52: Muniz Freire | C52: ='CV Rotina <2A - residência'!H53 -> 1.11627907 | D52: ='CV Rotina <2A - residência'!P53 -> 1.302325581 | E52: ='CV Rotina <2A - residência'!J53 -> 1.418604651 | F52: ='CV Rotina <2A - residência'!L53 -> 1.302325581 | G52: ='CV Rotina <2A - residência'!N53 -> 1.325581395 | H52: ='CV Rotina <2A - residência'!Z53 -> 1.511627907 | I52: ='CV Rotina <2A - residência'!R53 -> 1.372093023 | J52: ='CV Rotina <2A - residência'!T53 -> 1.348837209 | K52: ='CV Rotina <2A - residência'!X53 -> 1.209302326 | L52: ='CV Rotina <2A - residência'!AB53 -> 0.5581395349 | M52: 2 | N52: 7 | O52: 9 | P52: 4
A53: Sul | B53: Muqui | C53: ='CV Rotina <2A - residência'!H54 -> 0.7045454545 | D53: ='CV Rotina <2A - residência'!P54 -> 0.8181818182 | E53: ='CV Rotina <2A - residência'!J54 -> 1.181818182 | F53: ='CV Rotina <2A - residência'!L54 -> 1.204545455 | G53: ='CV Rotina <2A - residência'!N54 -> 0.8181818182 | H53: ='CV Rotina <2A - residência'!Z54 -> 1.045454545 | I53: ='CV Rotina <2A - residência'!R54 -> 1 | J53: ='CV Rotina <2A - residência'!T54 -> 0.7727272727 | K53: ='CV Rotina <2A - residência'!X54 -> 0.4545454545 | L53: ='CV Rotina <2A - residência'!AB54 -> 0.4090909091 | M53: 0 | N53: 4 | O53: 4 | P53: 3
A54: Norte | B54: Nova Venécia | C54: ='CV Rotina <2A - residência'!H55 -> 0.9447852761 | D54: ='CV Rotina <2A - residência'!P55 -> 0.8895705521 | E54: ='CV Rotina <2A - residência'!J55 -> 1.202453988 | F54: ='CV Rotina <2A - residência'!L55 -> 1.214723926 | G54: ='CV Rotina <2A - residência'!N55 -> 0.9447852761 | H54: ='CV Rotina <2A - residência'!Z55 -> 1.024539877 | I54: ='CV Rotina <2A - residência'!R55 -> 0.9754601227 | J54: ='CV Rotina <2A - residência'!T55 -> 1.036809816 | K54: ='CV Rotina <2A - residência'!X55 -> 0.7852760736 | L54: ='CV Rotina <2A - residência'!AB55 -> 0.6748466258 | M54: 1 | N54: 5 | O54: 6 | P54: 3
A55: Central | B55: Pancas | C55: ='CV Rotina <2A - residência'!H56 -> 1.142857143 | D55: ='CV Rotina <2A - residência'!P56 -> 1.404761905 | E55: ='CV Rotina <2A - residência'!J56 -> 1.452380952 | F55: ='CV Rotina <2A - residência'!L56 -> 1.452380952 | G55: ='CV Rotina <2A - residência'!N56 -> 1.476190476 | H55: ='CV Rotina <2A - residência'!Z56 -> 1.238095238 | I55: ='CV Rotina <2A - residência'!R56 -> 1.428571429 | J55: ='CV Rotina <2A - residência'!T56 -> 1.142857143 | K55: ='CV Rotina <2A - residência'!X56 -> 0.7142857143 | L55: ='CV Rotina <2A - residência'!AB56 -> 1.285714286 | M55: 2 | N55: 7 | O55: 9 | P55: 4
A56: Norte | B56: Pedro Canário | C56: ='CV Rotina <2A - residência'!H57 -> 0.7564102564 | D56: ='CV Rotina <2A - residência'!P57 -> 0.8333333333 | E56: ='CV Rotina <2A - residência'!J57 -> 0.9871794872 | F56: ='CV Rotina <2A - residência'!L57 -> 1.051282051 | G56: ='CV Rotina <2A - residência'!N57 -> 0.8717948718 | H56: ='CV Rotina <2A - residência'!Z57 -> 1.269230769 | I56: ='CV Rotina <2A - residência'!R57 -> 0.7948717949 | J56: ='CV Rotina <2A - residência'!T57 -> 1.051282051 | K56: ='CV Rotina <2A - residência'!X57 -> 0.7307692308 | L56: ='CV Rotina <2A - residência'!AB57 -> 0.8205128205 | M56: 0 | N56: 4 | O56: 4 | P56: 3
A57: Norte | B57: Pinheiros | C57: ='CV Rotina <2A - residência'!H58 -> 0.6428571429 | D57: ='CV Rotina <2A - residência'!P58 -> 0.9857142857 | E57: ='CV Rotina <2A - residência'!J58 -> 1.171428571 | F57: ='CV Rotina <2A - residência'!L58 -> 1.157142857 | G57: ='CV Rotina <2A - residência'!N58 -> 1.028571429 | H57: ='CV Rotina <2A - residência'!Z58 -> 1.028571429 | I57: ='CV Rotina <2A - residência'!R58 -> 0.9714285714 | J57: ='CV Rotina <2A - residência'!T58 -> 1.014285714 | K57: ='CV Rotina <2A - residência'!X58 -> 0.8 | L57: ='CV Rotina <2A - residência'!AB58 -> 0.4857142857 | M57: 1 | N57: 6 | O57: 7 | P57: 4
A58: Sul | B58: Piúma | C58: ='CV Rotina <2A - residência'!H59 -> 0.8507462687 | D58: ='CV Rotina <2A - residência'!P59 -> 0.8805970149 | E58: ='CV Rotina <2A - residência'!J59 -> 1.089552239 | F58: ='CV Rotina <2A - residência'!L59 -> 1.074626866 | G58: ='CV Rotina <2A - residência'!N59 -> 0.9701492537 | H58: ='CV Rotina <2A - residência'!Z59 -> 1.149253731 | I58: ='CV Rotina <2A - residência'!R59 -> 0.776119403 | J58: ='CV Rotina <2A - residência'!T59 -> 0.776119403 | K58: ='CV Rotina <2A - residência'!X59 -> 0.8059701493 | L58: ='CV Rotina <2A - residência'!AB59 -> 0.5074626866 | M58: 0 | N58: 4 | O58: 4 | P58: 4
A59: Norte | B59: Ponto Belo | C59: ='CV Rotina <2A - residência'!H60 -> 0.5789473684 | D59: ='CV Rotina <2A - residência'!P60 -> 0.5789473684 | E59: ='CV Rotina <2A - residência'!J60 -> 0.5263157895 | F59: ='CV Rotina <2A - residência'!L60 -> 0.4736842105 | G59: ='CV Rotina <2A - residência'!N60 -> 0.5789473684 | H59: ='CV Rotina <2A - residência'!Z60 -> 0.7368421053 | I59: ='CV Rotina <2A - residência'!R60 -> 0.3684210526 | J59: ='CV Rotina <2A - residência'!T60 -> 1 | K59: ='CV Rotina <2A - residência'!X60 -> 0.5263157895 | L59: ='CV Rotina <2A - residência'!AB60 -> 0.5789473684 | M59: 0 | N59: 1 | O59: 1 | P59: 0
A60: Sul | B60: Presidente Kennedy | C60: ='CV Rotina <2A - residência'!H61 -> 0.8245614035 | D60: ='CV Rotina <2A - residência'!P61 -> 0.5789473684 | E60: ='CV Rotina <2A - residência'!J61 -> 0.7192982456 | F60: ='CV Rotina <2A - residência'!L61 -> 0.8070175439 | G60: ='CV Rotina <2A - residência'!N61 -> 0.5964912281 | H60: ='CV Rotina <2A - residência'!Z61 -> 1.122807018 | I60: ='CV Rotina <2A - residência'!R61 -> 0.8070175439 | J60: ='CV Rotina <2A - residência'!T61 -> 0.701754386 | K60: ='CV Rotina <2A - residência'!X61 -> 0.7894736842 | L60: ='CV Rotina <2A - residência'!AB61 -> 0.2807017544 | M60: 0 | N60: 1 | O60: 1 | P60: 1
A61: Central | B61: Rio Bananal | C61: ='CV Rotina <2A - residência'!H62 -> 0.8441558442 | D61: ='CV Rotina <2A - residência'!P62 -> 0.7662337662 | E61: ='CV Rotina <2A - residência'!J62 -> 0.961038961 | F61: ='CV Rotina <2A - residência'!L62 -> 0.961038961 | G61: ='CV Rotina <2A - residência'!N62 -> 0.7012987013 | H61: ='CV Rotina <2A - residência'!Z62 -> 0.9480519481 | I61: ='CV Rotina <2A - residência'!R62 -> 0.8441558442 | J61: ='CV Rotina <2A - residência'!T62 -> 0.987012987 | K61: ='CV Rotina <2A - residência'!X62 -> 0.7272727273 | L61: ='CV Rotina <2A - residência'!AB62 -> 0.7272727273 | M61: 0 | N61: 3 | O61: 3 | P61: 2
A62: Sul | B62: Rio Novo do Sul | C62: ='CV Rotina <2A - residência'!H63 -> 0.6764705882 | D62: ='CV Rotina <2A - residência'!P63 -> 0.8823529412 | E62: ='CV Rotina <2A - residência'!J63 -> 0.9705882353 | F62: ='CV Rotina <2A - residência'!L63 -> 0.9411764706 | G62: ='CV Rotina <2A - residência'!N63 -> 0.8529411765 | H62: ='CV Rotina <2A - residência'!Z63 -> 0.8235294118 | I62: ='CV Rotina <2A - residência'!R63 -> 0.8823529412 | J62: ='CV Rotina <2A - residência'!T63 -> 0.9705882353 | K62: ='CV Rotina <2A - residência'!X63 -> 0.5 | L62: ='CV Rotina <2A - residência'!AB63 -> 0.5882352941 | M62: 0 | N62: 2 | O62: 2 | P62: 1
A63: Metropolitana | B63: Santa Leopoldina | C63: ='CV Rotina <2A - residência'!H64 -> 0.21875 | D63: ='CV Rotina <2A - residência'!P64 -> 0.84375 | E63: ='CV Rotina <2A - residência'!J64 -> 0.875 | F63: ='CV Rotina <2A - residência'!L64 -> 0.875 | G63: ='CV Rotina <2A - residência'!N64 -> 0.8125 | H63: ='CV Rotina <2A - residência'!Z64 -> 1.34375 | I63: ='CV Rotina <2A - residência'!R64 -> 0.875 | J63: ='CV Rotina <2A - residência'!T64 -> 0.96875 | K63: ='CV Rotina <2A - residência'!X64 -> 0.6875 | L63: ='CV Rotina <2A - residência'!AB64 -> 0.28125 | M63: 0 | N63: 2 | O63: 2 | P63: 1
A64: Metropolitana | B64: Santa Maria de Jetibá | C64: ='CV Rotina <2A - residência'!H65 -> 0.8957055215 | D64: ='CV Rotina <2A - residência'!P65 -> 0.9325153374 | E64: ='CV Rotina <2A - residência'!J65 -> 0.7975460123 | F64: ='CV Rotina <2A - residência'!L65 -> 0.8036809816 | G64: ='CV Rotina <2A - residência'!N65 -> 0.9263803681 | H64: ='CV Rotina <2A - residência'!Z65 -> 1.030674847 | I64: ='CV Rotina <2A - residência'!R65 -> 0.8343558282 | J64: ='CV Rotina <2A - residência'!T65 -> 0.8404907975 | K64: ='CV Rotina <2A - residência'!X65 -> 0.9570552147 | L64: ='CV Rotina <2A - residência'!AB65 -> 0.3926380368 | M64: 1 | N64: 2 | O64: 3 | P64: 1
A65: Metropolitana | B65: Santa Teresa | C65: ='CV Rotina <2A - residência'!H66 -> 1.126984127 | D65: ='CV Rotina <2A - residência'!P66 -> 1.158730159 | E65: ='CV Rotina <2A - residência'!J66 -> 1.26984127 | F65: ='CV Rotina <2A - residência'!L66 -> 1.253968254 | G65: ='CV Rotina <2A - residência'!N66 -> 1.126984127 | H65: ='CV Rotina <2A - residência'!Z66 -> 1.206349206 | I65: ='CV Rotina <2A - residência'!R66 -> 1.158730159 | J65: ='CV Rotina <2A - residência'!T66 -> 0.8888888889 | K65: ='CV Rotina <2A - residência'!X66 -> 0.746031746 | L65: ='CV Rotina <2A - residência'!AB66 -> 0.6984126984 | M65: 2 | N65: 5 | O65: 7 | P65: 4
A66: Central | B66: São Domingos do Norte | C66: ='CV Rotina <2A - residência'!H67 -> 1.217391304 | D66: ='CV Rotina <2A - residência'!P67 -> 1.043478261 | E66: ='CV Rotina <2A - residência'!J67 -> 1.217391304 | F66: ='CV Rotina <2A - residência'!L67 -> 1.217391304 | G66: ='CV Rotina <2A - residência'!N67 -> 1.130434783 | H66: ='CV Rotina <2A - residência'!Z67 -> 0.7826086957 | I66: ='CV Rotina <2A - residência'!R67 -> 1.260869565 | J66: ='CV Rotina <2A - residência'!T67 -> 1.260869565 | K66: ='CV Rotina <2A - residência'!X67 -> 0.5652173913 | L66: ='CV Rotina <2A - residência'!AB67 -> 0.8260869565 | M66: =COUNTIF(C66:D66,">=0,9") -> 2 | N66: =COUNTIFS(E66:L66,">=0,95") -> 5 | O66: 7 | P66: 3
A67: Central | B67: São Gabriel da Palha | C67: ='CV Rotina <2A - residência'!H68 -> 1 | D67: ='CV Rotina <2A - residência'!P68 -> 0.9886363636 | E67: ='CV Rotina <2A - residência'!J68 -> 1.159090909 | F67: ='CV Rotina <2A - residência'!L68 -> 1.170454545 | G67: ='CV Rotina <2A - residência'!N68 -> 1.022727273 | H67: ='CV Rotina <2A - residência'!Z68 -> 1 | I67: ='CV Rotina <2A - residência'!R68 -> 1.090909091 | J67: ='CV Rotina <2A - residência'!T68 -> 0.9772727273 | K67: ='CV Rotina <2A - residência'!X68 -> 0.5113636364 | L67: ='CV Rotina <2A - residência'!AB68 -> 0.625 | M67: 2 | N67: 6 | O67: =SUM(M67:N67) -> 8 | P67: =COUNTIF(E67:H67,">=0,95") -> 4
A68: Sul | B68: São José do Calçado | C68: ='CV Rotina <2A - residência'!H69 -> 1.608695652 | D68: ='CV Rotina <2A - residência'!P69 -> 1.086956522 | E68: ='CV Rotina <2A - residência'!J69 -> 1.695652174 | F68: ='CV Rotina <2A - residência'!L69 -> 1.652173913 | G68: ='CV Rotina <2A - residência'!N69 -> 1.217391304 | H68: ='CV Rotina <2A - residência'!Z69 -> 1.434782609 | I68: ='CV Rotina <2A - residência'!R69 -> 1.695652174 | J68: ='CV Rotina <2A - residência'!T69 -> 0.9130434783 | K68: ='CV Rotina <2A - residência'!X69 -> 1.130434783 | L68: ='CV Rotina <2A - residência'!AB69 -> 0.7826086957 | M68: 2 | N68: 6 | O68: 8 | P68: 4
A69: Norte | B69: São Mateus | C69: ='CV Rotina <2A - residência'!H70 -> 1.181818182 | D69: ='CV Rotina <2A - residência'!P70 -> 1.002525253 | E69: ='CV Rotina <2A - residência'!J70 -> 1.146464646 | F69: ='CV Rotina <2A - residência'!L70 -> 1.128787879 | G69: ='CV Rotina <2A - residência'!N70 -> 1.047979798 | H69: ='CV Rotina <2A - residência'!Z70 -> 0.9166666667 | I69: ='CV Rotina <2A - residência'!R70 -> 0.9368686869 | J69: ='CV Rotina <2A - residência'!T70 -> 0.8333333333 | K69: ='CV Rotina <2A - residência'!X70 -> 0.7929292929 | L69: ='CV Rotina <2A - residência'!AB70 -> 0.4974747475 | M69: 2 | N69: 3 | O69: 5 | P69: 3
A70: Central | B70: São Roque do Canaã | C70: ='CV Rotina <2A - residência'!H71 -> 1.1 | D70: ='CV Rotina <2A - residência'!P71 -> 0.4 | E70: ='CV Rotina <2A - residência'!J71 -> 0.6 | F70: ='CV Rotina <2A - residência'!L71 -> 0.575 | G70: ='CV Rotina <2A - residência'!N71 -> 0.35 | H70: ='CV Rotina <2A - residência'!Z71 -> 0.825 | I70: ='CV Rotina <2A - residência'!R71 -> 0.55 | J70: ='CV Rotina <2A - residência'!T71 -> 0.85 | K70: ='CV Rotina <2A - residência'!X71 -> 0.35 | L70: ='CV Rotina <2A - residência'!AB71 -> 0.475 | M70: 1 | N70: 0 | O70: 1 | P70: 0
A71: Metropolitana | B71: Serra | C71: ='CV Rotina <2A - residência'!H72 -> 0.8901613743 | D71: ='CV Rotina <2A - residência'!P72 -> 0.7922956793 | E71: ='CV Rotina <2A - residência'!J72 -> 0.8422696512 | F71: ='CV Rotina <2A - residência'!L72 -> 0.8495575221 | G71: ='CV Rotina <2A - residência'!N72 -> 0.8063508589 | H71: ='CV Rotina <2A - residência'!Z72 -> 0.8110359188 | I71: ='CV Rotina <2A - residência'!R72 -> 0.7803227486 | J71: ='CV Rotina <2A - residência'!T72 -> 0.6918271733 | K71: ='CV Rotina <2A - residência'!X72 -> 0.5091098386 | L71: ='CV Rotina <2A - residência'!AB72 -> 0.3607496096 | M71: 0 | N71: 0 | O71: 0 | P71: 0
A72: Central | B72: Sooretama | C72: ='CV Rotina <2A - residência'!H73 -> 0.8272727273 | D72: ='CV Rotina <2A - residência'!P73 -> 0.8 | E72: ='CV Rotina <2A - residência'!J73 -> 0.9090909091 | F72: ='CV Rotina <2A - residência'!L73 -> 0.9272727273 | G72: ='CV Rotina <2A - residência'!N73 -> 0.8454545455 | H72: ='CV Rotina <2A - residência'!Z73 -> 0.8090909091 | I72: ='CV Rotina <2A - residência'!R73 -> 0.7363636364 | J72: ='CV Rotina <2A - residência'!T73 -> 0.7272727273 | K72: ='CV Rotina <2A - residência'!X73 -> 0.7818181818 | L72: ='CV Rotina <2A - residência'!AB73 -> 0.5545454545 | M72: 0 | N72: 0 | O72: 0 | P72: 0
A73: Sul | B73: Vargem Alta | C73: ='CV Rotina <2A - residência'!H74 -> 0.921875 | D73: ='CV Rotina <2A - residência'!P74 -> 0.90625 | E73: ='CV Rotina <2A - residência'!J74 -> 0.921875 | F73: ='CV Rotina <2A - residência'!L74 -> 0.90625 | G73: ='CV Rotina <2A - residência'!N74 -> 0.921875 | H73: ='CV Rotina <2A - residência'!Z74 -> 1.078125 | I73: ='CV Rotina <2A - residência'!R74 -> 0.953125 | J73: ='CV Rotina <2A - residência'!T74 -> 0.859375 | K73: ='CV Rotina <2A - residência'!X74 -> 0.96875 | L73: ='CV Rotina <2A - residência'!AB74 -> 0.53125 | M73: 2 | N73: 3 | O73: 5 | P73: 1
A74: Metropolitana | B74: Venda Nova do Imigrante | C74: ='CV Rotina <2A - residência'!H75 -> 0.9024390244 | D74: ='CV Rotina <2A - residência'!P75 -> 1.06097561 | E74: ='CV Rotina <2A - residência'!J75 -> 1.146341463 | F74: ='CV Rotina <2A - residência'!L75 -> 1.146341463 | G74: ='CV Rotina <2A - residência'!N75 -> 1.06097561 | H74: ='CV Rotina <2A - residência'!Z75 -> 1.170731707 | I74: ='CV Rotina <2A - residência'!R75 -> 1.134146341 | J74: ='CV Rotina <2A - residência'!T75 -> 1.243902439 | K74: ='CV Rotina <2A - residência'!X75 -> 0.756097561 | L74: ='CV Rotina <2A - residência'!AB75 -> 0.5 | M74: 2 | N74: 6 | O74: 8 | P74: 4
